Workbook

Sheet CF (hidden)
B2: CONDITIONAL FORMATTING MAP
F3: =INDEX(dms_CF_3.6.1, MATCH(dms_TradingName,dms_CF_TradingName))="Y" -> FALSE | G3: =INDEX(dms_CF_3.6.5, MATCH(dms_TradingName,dms_CF_TradingName))="Y" | H3: =INDEX(dms_CF_3.6.6, MATCH(dms_TradingName,dms_CF_TradingName))="Y" -> FALSE | I3: =INDEX(dms_CF_3.6.7.1, MATCH(dms_TradingName,dms_CF_TradingName))="Y" | J3: =INDEX(dms_CF_3.6.7.2, MATCH(dms_TradingName,dms_CF_TradingName))="Y" | K3: =INDEX(dms_CF_3.6.7.3, MATCH(dms_TradingName,dms_CF_TradingName))="Y" | L3: =INDEX(dms_CF_3.6.7.4, MATCH(dms_TradingName,dms_CF_TradingName))="Y" | M3: =INDEX(dms_CF_4.1, MATCH(dms_TradingName,dms_CF_TradingName))="Y" | N3: =INDEX(dms_CF_6.6.1, MATCH(dms_TradingName,dms_CF_TradingName))="Y" | O3: =INDEX(dms_CF_6.8, MATCH(dms_TradingName,dms_CF_TradingName))="Y" | P3: =INDEX(dms_CF_7.12, MATCH(dms_TradingName,dms_CF_TradingName))="Y" | Q3: =INDEX(dms_CF_8.1_A, MATCH(dms_TradingName,dms_CF_TradingName))="Y" | R3: =INDEX(dms_CF_8.1_B, MATCH(dms_TradingName,dms_CF_TradingName))="Y" | S3: =INDEX(dms_CF_8.1_Neg, MATCH(dms_TradingName,dms_CF_TradingName))="Y"
B4: dms_CF_TradingName | C4: JurisdictionList | D4: Sector | E4: Segment | F4: dms_CF_3.6.1 | G4: dms_CF_3.6.5 | H4: dms_CF_3.6.6 | I4: dms_CF_3.6.7.1 | J4: dms_CF_3.6.7.2 | K4: dms_CF_3.6.7.3 | L4: dms_CF_3.6.7.4 | M4: dms_CF_4.1 | N4: dms_CF_6.6.1 | O4: dms_CF_6.8 | P4: dms_CF_7.12 | Q4: dms_CF_8.1_A | R4: dms_CF_8.1_B | S4: dms_CF_8.1_Neg | T4: dms_CF_4.4.1 | U4: Spare2
B5: ActewAGL Distribution | C5: ACT | D5: Electricity | E5: Distribution | G5: Y | I5: Y | J5: Y | K5: N | L5: Y | M5: Y | N5: N | O5: Y | P5: Y | Q5: N | R5: Y | S5: Y | T5: N | U5: N
B6: Ausgrid | C6: NSW | D6: Electricity | E6: Distribution | G6: Y | I6: N | J6: N | K6: N | L6: Y | M6: Y | N6: N | O6: Y | P6: Y | Q6: N | R6: Y | S6: Y | T6: N | U6: N
B7: AusNet (D) | C7: Vic | D7: Electricity | E7: Distribution | G7: N | I7: N | J7: N | K7: N | L7: N | M7: Y | N7: N | O7: Y | P7: N | Q7: N | R7: N | S7: Y | T7: N | U7: N
B8: AusNet (T) | C8: Vic | D8: Electricity | E8: Transmission | G8: N | I8: N | J8: N | K8: N | L8: N | M8: Y | N8: N | O8: Y | P8: N | Q8: N | R8: N | S8: Y | T8: N | U8: N
B9: CitiPower | C9: Vic | D9: Electricity | E9: Distribution | G9: N | I9: N | J9: N | K9: N | L9: N | M9: Y | N9: N | O9: Y | P9: N | Q9: N | R9: N | S9: Y | T9: N | U9: N
B10: Directlink | C10: Qld | D10: Electricity | E10: Transmission | G10: N | I10: N | J10: N | K10: N | L10: N | M10: Y | N10: N | O10: Y | P10: N | Q10: N | R10: Y | S10: Y | T10: N | U10: N
B11: ElectraNet | C11: SA | D11: Electricity | E11: Transmission | G11: N | I11: N | J11: N | K11: N | L11: N | M11: Y | N11: N | O11: Y | P11: N | Q11: N | R11: Y | S11: Y | T11: N | U11: N
B12: Endeavour Energy | C12: NSW | D12: Electricity | E12: Distribution | G12: Y | I12: N | J12: N | K12: N | L12: Y | M12: Y | N12: N | O12: Y | P12: Y | Q12: N | R12: Y | S12: Y | T12: N | U12: N
B13: Energex | C13: Qld | D13: Electricity | E13: Distribution | G13: Y | I13: N | J13: N | K13: N | L13: N | M13: Y | N13: N | O13: Y | P13: Y | Q13: N | R13: Y | S13: Y | T13: Y | U13: N
B14: Ergon Energy | C14: Qld | D14: Electricity | E14: Distribution | G14: Y | I14: N | J14: N | K14: N | L14: N | M14: Y | N14: N | O14: Y | P14: Y | Q14: N | R14: Y | S14: Y | T14: Y | U14: N
B15: Essential Energy | C15: NSW | D15: Electricity | E15: Distribution | G15: Y | I15: N | J15: N | K15: N | L15: Y | M15: Y | N15: N | O15: Y | P15: Y | Q15: N | R15: Y | S15: Y | T15: N | U15: N
B16: Jemena Electricity | C16: Vic | D16: Electricity | E16: Distribution | G16: N | I16: N | J16: N | K16: N | L16: N | M16: Y | N16: N | O16: Y | P16: N | Q16: N | R16: N | S16: Y | T16: N | U16: N
B17: Murraylink | C17: SA | D17: Electricity | E17: Transmission | G17: N | I17: N | J17: N | K17: N | L17: N | M17: Y | N17: N | O17: Y | P17: N | Q17: N | R17: Y | S17: Y | T17: N | U17: N
B18: Power and Water | C18: NT | D18: Electricity | E18: Distribution | G18: N | I18: N | J18: Y | K18: N | L18: N | M18: Y | N18: Y | O18: Y | P18: Y | Q18: N | R18: Y | S18: Y | T18: N | U18: N
B19: Powercor Australia | C19: Vic | D19: Electricity | E19: Distribution | G19: N | I19: N | J19: N | K19: N | L19: N | M19: Y | N19: N | O19: Y | P19: N | Q19: N | R19: N | S19: Y | T19: N | U19: N
B20: Powerlink | C20: Qld | D20: Electricity | E20: Transmission | G20: N | I20: N | J20: N | K20: N | L20: N | M20: Y | N20: N | O20: Y | P20: N | Q20: N | R20: Y | S20: Y | T20: N | U20: N
B21: SA Power Networks | C21: SA | D21: Electricity | E21: Distribution | G21: Y | I21: N | J21: N | K21: N | L21: N | M21: Y | N21: N | O21: Y | P21: Y | Q21: Y | R21: Y | S21: N | T21: N | U21: N
B22: TasNetworks (D) | C22: Tas | D22: Electricity | E22: Distribution | G22: Y | I22: N | J22: N | K22: N | L22: N | M22: Y | N22: N | O22: Y | P22: Y | Q22: N | R22: Y | S22: Y | T22: N | U22: N
B23: TasNetworks (T) | C23: Tas | D23: Electricity | E23: Transmission | G23: N | I23: N | J23: N | K23: N | L23: N | M23: Y | N23: N | O23: Y | P23: N | Q23: N | R23: Y | S23: Y | T23: N | U23: N
B24: TransGrid | C24: NSW | D24: Electricity | E24: Transmission | G24: N | I24: N | J24: N | K24: N | L24: N | M24: Y | N24: N | O24: Y | P24: N | Q24: N | R24: Y | S24: Y | T24: N | U24: N
B25: United Energy | C25: Vic | D25: Electricity | E25: Distribution | G25: N | I25: N | J25: N | K25: N | L25: N | M25: Y | N25: N | O25: Y | P25: N | Q25: N | R25: N | S25: Y | T25: N | U25: N
C124: 0
C125: =IFERROR(IF(dms_Model="ARR",(MAX(0,dms_0608_LastRow-dms_0608_OffsetRows)),"not an ARR"),"0") -> not an ARR

Sheet AER only (hidden)
B1: Data in these columns used for data validation and database purposes.
B2: Date last modified: | C2: 2017-01-16 | D2: added (Albury and Victora) for AGN
C3: 2016-10-17 | D3: updated TransGrid's correct legal name, corrected TasNetworks (T) to June financial year
C4: 2017-02-01 | D4: inserted Power and Water, added NRs (dms_FeederCat_1 and dms_FeederCat_2)
C5: 2017-03-03 | D5: inserted AEMO as a business | AB5: FOR ELECTRICITY BUSINESSES ONLY
C6: 2018-03-28 | D6: major changes to accommodate STPIS
C7: Template Version | D7: 5 | AB7: Feeder Types | AF7: TasNetworks (D) | AG7: MAIFI flag | AH7: Feeder Names
AB9: CBD | AC9: Urban | AD9: Short rural | AE9: long rural | AF9: EXTRA
B10: dms_TradingName_List | C10: dms_TradingNameFull_List | D10: dms_ABN_List | E10: dms_JurisdictionList | F10: dms_Sector_List | G10: dms_Segment_List | H10: dms_FormControl_List | I10: dms_RPT_List | J10: dms_RPTMonth_List | K10: dms_CRCPlength_List | L10: dms_FRCPlength_List | M10: dms_663_List | N10: dms_DeterminationRef_List | O10: dms_Addr1_List | P10: dms_Addr2_List | Q10: dms_Suburb_List | R10: dms_State_List | S10: dms_PostCode_List | T10: dms_PAddr1_List | U10: dms_PAddr2_List | V10: dms_PSuburb_List | W10: dms_PState_List | X10: dms_PPostCode_List | Y10: dms_ContactName1_List | Z10: dms_ContactPh1_List | AA10: dms_ContactEmail_List | AB10: dms_CBD_flag | AC10: dms_Urban_flag | AD10: dms_ShortRural_flag | AE10: dms_LongRural_flag | AF10: dms_FeederType_5_flag | AG10: dms_MAIFI_flag_List | AH10: dms_FeederName_1 | AI10: dms_FeederName_2 | AJ10: dms_FeederName_3 | AK10: dms_FeederName_4 | AL10: dms_FeederName_5 | AM10: dms_Public_Lighting_List | AN10: Column1
B11: ActewAGL Distribution | C11: ActewAGL Distribution | D11: 76670568688 | E11: ACT | F11: Electricity | G11: Distribution | H11: Revenue cap | I11: Financial | J11: June | K11: 5 | L11: 5 | M11: 5 | N11: 2014-19 Distribution Determination | O11: 40 Bunda Street | Q11: CANBERRA | R11: ACT | S11: 2600 | T11: GPO BOX 366 | V11: CANBERRA | W11: ACT | X11: 2601 | Y11: Robert Walker | Z11: 02 6248 3847 | AA11: robert.walker@actewagle.com.au | AB11: NO | AC11: YES | AD11: YES | AE11: NO | AF11: NO | AH11: CBD | AI11: Urban | AJ11: Short rural | AK11: Long rural | AM11: NO | AN11: ActewAGL Distribution
B12: ActewAGL Distribution (Tx Assets) | C12: ActewAGL Distribution (Tx Assets) | D12: 76670568688 | E12: ACT | F12: Electricity | G12: Distribution | H12: Revenue cap | I12: Financial | J12: June | K12: 5 | L12: 5 | M12: 5 | N12: distribution determination | O12: 40 Bunda Street | Q12: CANBERRA | R12: ACT | S12: 2600 | T12: GPO BOX 366 | V12: CANBERRA | W12: ACT | X12: 2601 | Y12: Robert Walker | Z12: 02 6248 3847 | AA12: robert.walker@actewagle.com.au | AB12: NO | AC12: YES | AD12: YES | AE12: NO | AF12: NO | AH12: CBD | AI12: Urban | AJ12: Short rural | AK12: Long rural | AM12: NO | AN12: ActewAGL Distribution (Tx Assets)
B13: ActewAGL Gas | C13: ActewAGL Gas | D13: 76670568688 | E13: ACT | F13: Gas | G13: Distribution | H13: Weighted average price cap | I13: Financial | J13: June | K13: 5 | L13: 5 | M13: x | O13: 40 Bunda Street | Q13: CANBERRA | R13: ACT | S13: 2600 | T13: GPO BOX 366 | V13: CANBERRA | W13: ACT | X13: 2601 | Y13: Philip Deamer | Z13: 02 6248 3438 | AA13: GasAAReview@actewagl.com.au | AB13: NO | AC13: NO | AD13: NO | AE13: NO | AF13: NO | AH13: CBD | AI13: Urban | AJ13: Short rural | AK13: Long rural | AM13: NO | AN13: ActewAGL Gas
B14: AEMO | C14: Australian Energy Market Operator Ltd | D14: 94072010327 | E14: Vic | F14: Electricity | G14: Transmission | H14: - | I14: Financial | J14: March | K14: 5 | L14: 5 | M14: x | N14: - | O14: Level 22 | P14: 530 Collins Street | Q14: MELBOURNE | R14: VIC | S14: 3000 | T14: GPO Box 2008 | V14: MELBOURNE | W14: VIC | X14: 3001 | AB14: NO | AC14: NO | AD14: NO | AE14: NO | AF14: NO | AH14: CBD | AI14: Urban | AJ14: Short rural | AK14: Long rural | AM14: NO | AN14: AEMO
B15: AGN (Albury and Victoria) | C15: Australian Gas Networks Limited (reporting data for Albury and Victoria) | D15: 19078551685 | E15: Vic | F15: Gas | G15: Distribution | H15: Weighted average price cap | I15: Calendar | J15: December | K15: 5 | L15: 5 | M15: x | O15: Level 6 | P15: 400 King William Street | Q15: ADELAIDE | R15: SA | S15: 5000 | T15: PO Box 6468 | U15: Halifax Street | V15: ADELAIDE | W15: SA | X15: 5000 | Y15: Craig de Laine | Z15: 08 8418 1129 | AA15: craig.delaine@agn.com.au | AB15: NO | AC15: NO | AD15: NO | AE15: NO | AF15: NO | AH15: CBD | AI15: Urban | AJ15: Short rural | AK15: Long rural | AM15: NO | AN15: AGN (Albury)
B16: AGN (Albury) | C16: Australian Gas Networks Limited (reporting data for Albury) | D16: 19078551685 | E16: Vic | F16: Gas | G16: Distribution | H16: Weighted average price cap | I16: Calendar | J16: December | K16: 5 | L16: 5 | M16: x | O16: Level 6 | P16: 400 King William Street | Q16: ADELAIDE | R16: SA | S16: 5000 | T16: PO Box 6468 | U16: Halifax Street | V16: ADELAIDE | W16: SA | X16: 5000 | Y16: Craig de Laine | Z16: 08 8418 1129 | AA16: craig.delaine@agn.com.au | AB16: NO | AC16: NO | AD16: NO | AE16: NO | AF16: NO | AH16: CBD | AI16: Urban | AJ16: Short rural | AK16: Long rural | AM16: NO
B17: AGN (SA) | C17: Australian Gas Networks Limited (reporting data for SA) | D17: 19078551685 | E17: SA | F17: Gas | G17: Distribution | H17: Weighted average price cap | I17: Financial | J17: June | K17: 5 | L17: 5 | M17: 5 | N17: distribution determination | O17: Level 6 | P17: 400 King William Street | Q17: ADELAIDE | R17: SA | S17: 5000 | T17: PO Box 6468 | U17: Halifax Street | V17: ADELAIDE | W17: SA | X17: 5000 | Y17: Craig de Laine | Z17: 08 8418 1129 | AA17: craig.delaine@agn.com.au | AB17: NO | AC17: NO | AD17: NO | AE17: NO | AF17: NO | AH17: CBD | AI17: Urban | AJ17: Short rural | AK17: Long rural | AM17: NO | AN17: AGN (SA)
B18: AGN (Victoria) | C18: Australian Gas Networks Limited (reporting data for Victoria) | D18: 19078551685 | E18: Vic | F18: Gas | G18: Distribution | H18: Weighted average price cap | I18: Calendar | J18: December | K18: 5 | L18: 5 | M18: x | O18: Level 6 | P18: 400 King William Street | Q18: ADELAIDE | R18: SA | S18: 5000 | T18: PO Box 6468 | U18: Halifax Street | V18: ADELAIDE | W18: SA | X18: 5000 | Y18: Craig de Laine | Z18: 08 8418 1129 | AA18: craig.delaine@agn.com.au | AB18: NO | AC18: NO | AD18: NO | AE18: NO | AF18: NO | AH18: CBD | AI18: Urban | AJ18: Short rural | AK18: Long rural | AM18: NO | AN18: AGN (Victoria)
B19: Amadeus | C19: APT Pipelines (NT) Pty Ltd | D19: 39009737393 | E19: NT | F19: Gas | G19: Transmission | H19: Weighted average price cap | I19: Financial | J19: June | K19: 5 | L19: 5 | M19: x | N19: n/a | O19: Level 19, HSBC Building | P19: 580 George Street | Q19: SYDNEY | R19: NSW | S19: 2000 | T19: Level 19, HSBC Building | U19: 580 George Street | V19: SYDNEY | W19: NSW | X19: 2000 | Y19: Alexandra Curran | Z19: 02 9275 0020 | AA19: alexandra.curran@apa.com.au | AB19: NO | AC19: NO | AD19: NO | AE19: NO | AF19: NO | AH19: CBD | AI19: Urban | AJ19: Short rural | AK19: Long rural | AM19: NO | AN19: Amadeus
B20: APA GasNet | C20: APA GasNet Australia (Operations) Pty Ltd | D20: 065083009 | E20: Vic | F20: Gas | G20: Transmission | H20: Weighted average price cap | I20: Calendar | J20: December | K20: 5 | L20: 5 | M20: x | O20: Level 19, HSBC Building | P20: 580 George Street | Q20: SYDNEY | R20: NSW | S20: 2000 | T20: PO Box R41 | V20: ROYAL EXCHANGE | W20: NSW | X20: 1225 | Y20: Alexandra Curran | Z20: 02 9275 0020 | AA20: alexandra.curran@apa.com.au | AB20: NO | AC20: NO | AD20: NO | AE20: NO | AF20: NO | AH20: CBD | AI20: Urban | AJ20: Short rural | AK20: Long rural | AM20: NO | AN20: APA GasNet
B21: Ausgrid | C21: Ausgrid | D21: 78508211731 | E21: NSW | F21: Electricity | G21: Distribution | H21: Revenue cap | I21: Financial | J21: June | K21: 5 | L21: 5 | M21: 5 | N21: 2014-19 Distribution Determination | O21: 570 George St | Q21: SYDNEY | R21: NSW | S21: 2000 | T21: GPO Box 4009 | V21: SYDNEY | W21: NSW | X21: 2001 | Y21: John Thomson | Z21: 02 9269 2312 | AA21: john.thomson@ausgrid.com.au | AB21: YES | AC21: YES | AD21: YES | AE21: YES | AF21: NO | AH21: CBD | AI21: Urban | AJ21: Short rural | AK21: Long rural | AM21: YES | AN21: Ausgrid
B22: Ausgrid (Tx Assets) | C22: Ausgrid (Tx Assets) | D22: 67505337385 | E22: NSW | F22: Electricity | G22: Distribution | H22: Revenue cap | I22: Financial | J22: June | K22: 5 | L22: 5 | M22: 5 | N22: distribution determination | O22: 570 George St | Q22: SYDNEY | R22: NSW | S22: 2000 | T22: GPO Box 4009 | V22: SYDNEY | W22: NSW | X22: 2001 | Y22: John Thomson | Z22: 02 9269 2312 | AA22: john.thomson@ausgrid.com.au | AB22: YES | AC22: YES | AD22: YES | AE22: YES | AF22: NO | AH22: CBD | AI22: Urban | AJ22: Short rural | AK22: Long rural | AM22: NO | AN22: Ausgrid (Tx Assets)
B23: AusNet (D) | C23: AusNet Electricity Services Pty Ltd | D23: 91064651118 | E23: Vic | F23: Electricity | G23: Distribution | H23: Revenue cap | I23: Calendar | J23: December | K23: 5 | L23: 5 | M23: 2 | N23: 2016-20 Distribution Determination | O23: Level 32 | P23: 2 Southbank Boulevard | Q23: SOUTHBANK | R23: Vic | S23: 3006 | T23: Locked Bag 14051 | V23: MELBOURNE CITY MAIL CENTRE | W23: VIC | X23: 8001 | Y23: please provide contact details | AB23: NO | AC23: YES | AD23: YES | AE23: YES | AF23: NO | AH23: CBD | AI23: Urban | AJ23: Short rural | AK23: Long rural | AM23: YES | AN23: AusNet (D)
B24: AusNet (Gas) | C24: AusNet Gas Services | D24: 086015036 | E24: Vic | F24: Gas | G24: Distribution | H24: Weighted average price cap | I24: Calendar | J24: December | K24: 5 | L24: 5 | M24: X | O24: Level 19, HSBC Building | P24: 580 George Street | Q24: SYDNEY | R24: NSW | S24: 2000 | T24: PO Box R41 | V24: ROYAL EXCHANGE | W24: NSW | X24: 1225 | Y24: Alexandra Curran | Z24: 02 9275 0020 | AA24: alexandra.curran@apa.com.au | AB24: NO | AC24: NO | AD24: NO | AE24: NO | AF24: NO | AH24: CBD | AI24: Urban | AJ24: Short rural | AK24: Long rural | AM24: NO | AN24: AusNet (Gas)
B25: AusNet (T) | C25: Ausnet Services (Transmission) Ltd | D25: 48116124362 | E25: Vic | F25: Electricity | G25: Transmission | H25: Revenue cap | I25: Financial | J25: March | K25: 5 | L25: 5 | M25: 2 | N25: transmission determination | O25: Level 32 | P25: 2 Southbank Boulevard | Q25: SOUTHBANK | R25: Vic | S25: 3006 | T25: Locked Bag 14051 | V25: MELBOURNE CITY MAIL CENTRE | W25: Vic | X25: 8001 | Y25: Clare Thompson | Z25: 03 9695 6670 | AA25: clare.e.thompson@ausnetservices.com.au | AB25: NO | AC25: NO | AD25: NO | AE25: NO | AF25: NO | AH25: CBD | AI25: Urban | AJ25: Short rural | AK25: Long rural | AM25: NO | AN25: AusNet (T)
B26: Australian Distribution Co. | C26: Australian Distribution Co. | D26: 11222333444 | E26: - | F26: Electricity | G26: Distribution | H26: Revenue cap | I26: Financial | J26: June | K26: 5 | L26: 5 | M26: 2 | N26: distribution determination | O26: 123 Straight Street | Q26: SYDNEY | R26: NSW | S26: 2000 | T26: PO Box 123 | V26: SYDNEY | W26: NSW | X26: 2000 | Y26: Bob Smith | Z26: 02 1234 5678 | AA26: bob@auselec.net.au | AB26: YES | AC26: YES | AD26: YES | AE26: YES | AF26: NO | AH26: CBD | AI26: Urban | AJ26: Short rural | AK26: Long rural | AM26: YES | AN26: Australian Distribution Co.
B27: Australian Distribution Co. (Gas) | C27: Australian Gas Distribution Co. | D27: 11222333444 | E27: NSW | F27: Gas | G27: Distribution | H27: Weighted average price cap | I27: Financial | J27: June | K27: 5 | L27: 5 | O27: 123 Straight Street | Q27: SYDNEY | R27: NSW | S27: 2000 | T27: PO Box 123 | V27: SYDNEY | W27: NSW | X27: 2000 | Y27: Bob Smith | Z27: 02 1234 5678 | AA27: bob@auselec.net.au | AB27: NO | AC27: NO | AD27: NO | AE27: NO | AF27: NO | AH27: CBD | AI27: Urban | AJ27: Short rural | AK27: Long rural | AM27: NO | AN27: Australian Distribution Co. (Vic)
B28: Australian Distribution Co. (Vic) | C28: Australian Distribution Co. (Victoria) | D28: 11222333444 | E28: Vic | F28: Electricity | G28: Distribution | H28: Revenue cap | I28: Calendar | J28: December | K28: 5 | L28: 5 | M28: 2 | N28: distribution determination | O28: 123 Straight Street | Q28: MELBOURNE | R28: Vic | S28: 3000 | T28: PO Box 123 | V28: MELBOURNE | W28: VIC | X28: 3000 | Y28: Bob Smith | Z28: 02 1234 5678 | AA28: bob@auselec.net.au | AB28: NO | AC28: NO | AD28: NO | AE28: NO | AF28: NO | AH28: CBD | AI28: Urban | AJ28: Short rural | AK28: Long rural | AM28: YES | AN28: Australian Distribution Co. (Vic)
B29: Australian Transmission Co. | C29: Australian Transmission Co. | D29: 11222333444 | E29: - | F29: Electricity | G29: Transmission | H29: Revenue cap | I29: Financial | J29: June | K29: 5 | L29: 5 | M29: 5 | N29: transmission determination | O29: 123 Straight Street | Q29: SYDNEY | R29: NSW | S29: 2000 | T29: PO Box 123 | V29: SYDNEY | W29: NSW | X29: 2000 | Y29: Bob Smith | Z29: 02 1234 5678 | AA29: bob@auselec.net.au | AB29: NO | AC29: NO | AD29: NO | AE29: NO | AF29: NO | AH29: CBD | AI29: Urban | AJ29: Short rural | AK29: Long rural | AM29: NO | AN29: Australian Transmission Co.
B30: Central Ranges Pipeline (D) | C30: Central Ranges Pipeline Pty Ltd | D30: 108218355 | E30: NSW | F30: Gas | G30: Distribution | H30: Weighted average price cap | I30: Financial | J30: June | K30: 15 | L30: 5 | M30: 5 | N30: distribution determination | O30: Level 19 | P30: 580 George Street | Q30: SYDNEY | R30: NSW | S30: 2000 | T30: PO Box R41 | V30: ROYAL EXCHANGE | W30: NSW | X30: 1225 | Y30: Scott Young | Z30: 02 9275 0031 | AA30: scott.young@apa.com.au | AB30: NO | AC30: NO | AD30: NO | AE30: NO | AF30: NO | AH30: CBD | AI30: Urban | AJ30: Short rural | AK30: Long rural | AM30: NO
B31: Central Ranges Pipeline (T) | C31: Central Ranges Pipeline Pty Ltd | D31: 108218355 | E31: NSW | F31: Gas | G31: Distribution | H31: Weighted average price cap | I31: Financial | J31: June | K31: 14 | L31: 5 | M31: 5 | N31: transmission determination | O31: Level 19 | P31: 580 George Street | Q31: SYDNEY | R31: NSW | S31: 2000 | T31: PO Box R41 | V31: ROYAL EXCHANGE | W31: NSW | X31: 1225 | Y31: Scott Young | Z31: 02 9275 0031 | AA31: scott.young@apa.com.au | AB31: NO | AC31: NO | AD31: NO | AE31: NO | AF31: NO | AH31: CBD | AI31: Urban | AJ31: Short rural | AK31: Long rural | AM31: NO
B32: CitiPower | C32: CitiPower | D32: 76064651056 | E32: Vic | F32: Electricity | G32: Distribution | H32: Revenue cap | I32: Calendar | J32: December | K32: 5 | L32: 5 | M32: 2 | N32: 2016-20 Distribution Determination | O32: 40 Market Street | Q32: MELBOURNE | R32: Vic | S32: 3000 | T32: Locked Bag 14090 | V32: MELBOURNE | W32: VIC | X32: 8001 | Y32: Hannah Williams | Z32: 03 9683 4088 | AA32: hwilliams@powercor.com.au | AB32: YES | AC32: YES | AD32: NO | AE32: NO | AF32: NO | AH32: CBD | AI32: Urban | AJ32: Short rural | AK32: Long rural | AM32: YES | AN32: CitiPower
B33: Directlink | C33: Directlink | D33: 16779340889 | E33: Qld | F33: Electricity | G33: Transmission | H33: Revenue cap | I33: Financial | J33: June | K33: 9 | L33: 5 | M33: 5 | N33: transmission determination | O33: Level 19, HSBC Building | P33: 580 George Street | Q33: SYDNEY | R33: NSW | S33: 2000 | T33: PO Box R41 | V33: ROYAL EXCHANGE | W33: NSW | X33: 1225 | Y33: Scott Young | Z33: 02 9275 0031 | AA33: scott.young@apa.com.au | AB33: NO | AC33: NO | AD33: NO | AE33: NO | AF33: NO | AH33: CBD | AI33: Urban | AJ33: Short rural | AK33: Long rural | AM33: NO | AN33: Directlink
B34: ElectraNet | C34: ElectraNet | D34: 41094482416 | E34: SA | F34: Electricity | G34: Transmission | H34: Revenue cap | I34: Financial | J34: June | K34: 5 | L34: 5 | M34: 5 | N34: transmission determination | O34: 52-55 East Terrace | P34: Rymill Park | Q34: ADELAIDE | R34: SA | S34: 5000 | T34: PO Box 7096 | U34: Hutt Street Post Office | V34: ADELAIDE | W34: SA | X34: 5000 | Y34: Bill Jackson | Z34: 08 8404 7969 | AA34: jackson.bill@electranet.com.au | AB34: NO | AC34: NO | AD34: NO | AE34: NO | AF34: NO | AH34: CBD | AI34: Urban | AJ34: Short rural | AK34: Long rural | AM34: NO | AN34: ElectraNet
B35: Endeavour Energy | C35: Endeavour Energy | D35: 11247365823 | E35: NSW | F35: Electricity | G35: Distribution | H35: Revenue cap | I35: Financial | J35: June | K35: 5 | L35: 5 | M35: 5 | N35: 2014-19 Distribution Determination | O35: 51 Huntingwood Drive | Q35: HUNTINGWOOD | R35: NSW | S35: 2148 | T35: PO Box 811 | V35: SEVEN HILLS | W35: NSW | X35: 1730 | Y35: Jon Hocking | Z35: 02 9853 4386 / 0407 348 156 | AA35: Jon.Hocking@Endeavourenergy.com.au | AB35: NO | AC35: YES | AD35: YES | AE35: YES | AF35: NO | AH35: CBD | AI35: Urban | AJ35: Short rural | AK35: Long rural | AM35: YES | AN35: Endeavour Energy
B36: Energex | C36: Energex | D36: 40078849055 | E36: Qld | F36: Electricity | G36: Distribution | H36: Revenue cap | I36: Financial | J36: June | K36: 5 | L36: 5 | M36: 5 | N36: 2015-20 Distribution Determination | O36: 26 Reddacliff Street | Q36: NEWSTEAD | R36: Qld | S36: 4006 | T36: 26 Reddacliff Street | V36: NEWSTEAD | W36: QLD | X36: 4006 | Y36: Jenny Doyle, General Manager Regulation and Pricing | Z36: (07) 3851 6416 | AA36: jenny.doyle@energyq.com.au | AB36: YES | AC36: YES | AD36: YES | AE36: NO | AF36: NO | AH36: CBD | AI36: Urban | AJ36: Short rural | AK36: Long rural | AM36: YES | AN36: Energex
B37: Ergon Energy | C37: Ergon Energy | D37: 50087646062 | E37: Qld | F37: Electricity | G37: Distribution | H37: Revenue cap | I37: Financial | J37: June | K37: 5 | L37: 5 | M37: 5 | N37: 2015-20 Distribution Determination | O37: 22 Walker Street | Q37: TOWNSVILLE | R37: Qld | S37: 4810 | T37: Po Box 264 | V37: FORTITUDE VALLEY | W37: QLD | X37: 4006 | Y37: Jenny Doyle, General Manager Regulation and Pricing | Z37: (07) 3851 6416 | AA37: jenny.doyle@energyq.com.au | AB37: NO | AC37: YES | AD37: YES | AE37: YES | AF37: NO | AH37: CBD | AI37: Urban | AJ37: Short rural | AK37: Long rural | AM37: YES | AN37: Ergon Energy
B38: Essential Energy | C38: Essential Energy | D38: 37428185226 | E38: NSW | F38: Electricity | G38: Distribution | H38: Revenue cap | I38: Financial | J38: June | K38: 5 | L38: 5 | M38: 5 | N38: 2014-19 Distribution Determination | O38: 8 Buller Street | Q38: PORT MACQUARIE | R38: NSW | S38: 2444 | T38: PO Box 5730 | V38: PORT MACQUARIE | W38: NSW | X38: 2444 | Y38: Catherine Waddell | Z38: 02 6338 3553 | AA38: catherine.waddell@essentialenergy.com.au | AB38: NO | AC38: NO | AD38: YES | AE38: YES | AF38: NO | AH38: CBD | AI38: Urban | AJ38: Short rural | AK38: Long rural | AM38: YES | AN38: Essential Energy
B39: Jemena Electricity | C39: Jemena Electricity | D39: 82064651083 | E39: Vic | F39: Electricity | G39: Distribution | H39: Revenue cap | I39: Calendar | J39: December | K39: 5 | L39: 5 | M39: 2 | N39: 2016-20 Distribution Determination | O39: Level 16 | P39: 567 Collins Street | Q39: MELBOURNE | R39: VIC | S39: 3000 | T39: PO Box 16182 | V39: MELBOURNE | W39: VIC | X39: 8001 | Y39: Matthew Serpell | Z39: 03 9173 8231 | AA39: matthew.serpell@jemena.com.au | AB39: NO | AC39: YES | AD39: YES | AE39: NO | AF39: NO | AH39: CBD | AI39: Urban | AJ39: Short rural | AK39: Long rural | AM39: YES | AN39: Jemena Electricity
B40: JGN | C40: Jemena Gas Networks (NSW) Ltd | D40: 003 004 322 | E40: NSW | F40: Gas | G40: Distribution | H40: Weighted average price cap | I40: Financial | J40: June | K40: 5 | L40: 5 | Y40: please provide contact details | AB40: NO | AC40: NO | AD40: NO | AE40: NO | AF40: NO | AH40: CBD | AI40: Urban | AJ40: Short rural | AK40: Long rural | AM40: NO | AN40: JGN
B41: Multinet Gas | C41: Multinet Gas (DB No.1) Pty Ltd (ACN 086 026 986), Multinet Gas (DB No.2) Pty Ltd (ACN 086 230 122) | D41: 086026986 | E41: Vic | F41: Gas | G41: Distribution | H41: Weighted average price cap | I41: Calendar | J41: December | K41: 5 | L41: 5 | M41: x | O41: 43-45 Centreway | Q41: MT WAVERLEY | R41: Vic | S41: 3149 | Y41: Andrew Schille | Z41: 03 8846 9860 | AA41: andrew.schille@ue.com.au | AB41: NO | AC41: NO | AD41: NO | AE41: NO | AF41: NO | AH41: CBD | AI41: Urban | AJ41: Short rural | AK41: Long rural | AM41: NO | AN41: Multinet Gas
B42: Murraylink | C42: Murraylink | D42: 79181207909 | E42: SA | F42: Electricity | G42: Transmission | H42: Revenue cap | I42: Financial | J42: June | K42: 5 | L42: 5 | M42: 5 | N42: transmission determination | O42: Level 19 | P42: 580 George Street | Q42: SYDNEY | R42: NSW | S42: 2000 | T42: PO Box R41 | V42: ROYAL EXCHANGE | W42: NSW | X42: 1225 | Y42: Scott Young | Z42: 02 9275 0031 | AA42: scott.young@apa.com.au | AB42: NO | AC42: NO | AD42: NO | AE42: NO | AF42: NO | AH42: CBD | AI42: Urban | AJ42: Short rural | AK42: Long rural | AM42: NO | AN42: Murraylink
B43: Power and Water | C43: Power and Water Corporation | D43: 15947352360 | E43: NT | F43: Electricity | G43: Distribution | H43: Revenue cap | I43: Financial | J43: June | K43: 5 | L43: 5 | M43: x | N43: distribution determination | O43: GPO Box 1921 | Q43: DARWIN | R43: NT | S43: 801 | T43: GPO Box 1921 | V43: DARWIN | W43: NT | X43: 801 | Y43: Lucy Moon | Z43: 08 8924 5822 | AA43: Lucy.Moon@powerwater.com.au | AB43: YES | AC43: YES | AD43: YES | AE43: YES | AF43: NO | AH43: CBD | AI43: Urban | AJ43: Short rural | AK43: Long rural | AM43: NO | AN43: Power and Water
B44: Powercor Australia | C44: Powercor Australia | D44: 89064651109 | E44: Vic | F44: Electricity | G44: Distribution | H44: Revenue cap | I44: Calendar | J44: December | K44: 5 | L44: 5 | M44: 2 | N44: 2016-20 Distribution Determination | O44: 40 Market Street | Q44: MELBOURNE | R44: Vic | S44: 3000 | T44: Locked bag 14090 | V44: MELBOURNE | W44: VIC | X44: 8001 | Y44: Hannah Williams | Z44: 03 9683 4088 | AA44: hwilliams@powercor.com.au | AB44: NO | AC44: NO | AD44: YES | AE44: YES | AF44: NO | AH44: CBD | AI44: Urban | AJ44: Short rural | AK44: Long rural | AM44: YES | AN44: Powercor Australia
B45: Powerlink | C45: Queensland Electricity Transmission Corporation Limited trading as Powerlink Queensland | D45: 82078849233 | E45: Qld | F45: Electricity | G45: Transmission | H45: Revenue cap | I45: Financial | J45: June | K45: 5 | L45: 5 | M45: 5 | N45: transmission determination | O45: 33 Harold St | Q45: VIRGINIA | R45: Qld | S45: 4014 | T45: PO Box 1193 | V45: VIRGINIA | W45: QLD | X45: 4014 | Y45: Jennifer Harris | Z45: 07 3860 2667 | AA45: jharris@powerlink.com.au | AB45: NO | AC45: NO | AD45: NO | AE45: NO | AF45: NO | AH45: CBD | AI45: Urban | AJ45: Short rural | AK45: Long rural | AM45: NO | AN45: Powerlink
B46: Roma to Brisbane Pipeline | C46: APT Petroleum Pipelines Limited t/a Roma to Brisbane Pipeline | D46: 009 737 393 | E46: Qld | F46: Gas | G46: Transmission | H46: Weighted average price cap | I46: Financial | J46: June | K46: 5 | L46: 5 | M46: x | N46: n/a | O46: 580 George Street | Q46: SYDNEY | R46: NSW | S46: 2000 | T46: PO Box R41 | V46: ROYAL EXCHANGE | W46: NSW | X46: 1225 | Y46: Mark Allen | Z46: 02 9275 0010 | AA46: mark.allen@apa.com.au | AB46: NO | AC46: NO | AD46: NO | AE46: NO | AF46: NO | AH46: CBD | AI46: Urban | AJ46: Short rural | AK46: Long rural | AM46: NO | AN46: Roma to Brisbane Pipeline
B47: SA Power Networks | C47: SA Power Networks | D47: 13332330749 | E47: SA | F47: Electricity | G47: Distribution | H47: Revenue cap | I47: Financial | J47: June | K47: 5 | L47: 5 | M47: 5 | N47: 2015-20 Distribution Determination | O47: 1 Anzac Highway | Q47: KESWICK | R47: SA | S47: 5035 | T47: GPO Box 77 | V47: ADELAIDE | W47: SA | X47: 5000 | Y47: Richard Sibly | Z47: 08 8404 5613 | AA47: richard.sibly@sapowernetworks.com.au | AB47: NO | AC47: NO | AD47: YES | AE47: YES | AF47: NO | AH47: CBD | AI47: Urban | AJ47: Short rural | AK47: Long rural | AM47: NO | AN47: SA Power Networks
B48: TasNetworks (D) | C48: TasNetworks (D) | D48: 24167357299 | E48: Tas | F48: Electricity | G48: Distribution | H48: Revenue cap | I48: Financial | J48: June | K48: 5 | L48: 5 | M48: 5 | N48: distribution determination | O48: 1-7 Maria Street | Q48: LENAH VALLEY | R48: Tas | S48: 7008 | T48: PO Box 606 | V48: MOONAH | W48: Tas | X48: 7009 | Y48: John Sayers | Z48: 03 6271 6469 | AA48: john.sayers@tasnetworks.com.au | AB48: YES | AC48: YES | AD48: YES | AE48: YES | AF48: YES | AH48: Critical Infrastructure | AI48: High density commercial | AJ48: Urban | AK48: High density rural | AL48: Low density rural | AM48: YES | AN48: TasNetworks (D)
B49: TasNetworks (T) | C49: TasNetworks (T) | D49: 24167357299 | E49: Tas | F49: Electricity | G49: Transmission | H49: Revenue cap | I49: Financial | J49: June | K49: 5 | L49: 5 | M49: 5 | N49: transmission determination | O49: 1-7 Maria Street | Q49: LENAH VALLEY | R49: Tas | S49: 7008 | T49: PO Box 606 | V49: MOONAH | W49: Tas | X49: 7009 | Y49: John Sayers | Z49: 03 6271 6469 | AA49: john.sayers@tasnetworks.com.au | AB49: NO | AC49: NO | AD49: NO | AE49: NO | AF49: NO | AH49: CBD | AI49: Urban | AJ49: Short rural | AK49: Long rural | AM49: NO | AN49: TasNetworks (T)
B50: TransGrid | C50: NSW Electricity Networks Operations Pty Ltd trading as TransGrid | D50: 70 250 995 390 | E50: NSW | F50: Electricity | G50: Transmission | H50: Revenue cap | I50: Financial | J50: June | K50: 4 | L50: 5 | M50: 5 | N50: transmission determination | O50: 180 Thomas Street | Q50: SYDNEY | R50: NSW | S50: 2000 | T50: PO Box A1000 | V50: SYDNEY SOUTH | W50: NSW | X50: 1235 | Y50: Garrie Chubb | Z50: 0408 210 221 | AA50: garrie.chubb@transgrid.com.au | AB50: NO | AC50: NO | AD50: NO | AE50: NO | AF50: NO | AH50: CBD | AI50: Urban | AJ50: Short rural | AK50: Long rural | AM50: NO | AN50: TransGrid
B51: United Energy | C51: United Energy | D51: 70064651029 | E51: Vic | F51: Electricity | G51: Distribution | H51: Revenue cap | I51: Calendar | J51: December | K51: 5 | L51: 5 | M51: 2 | N51: 2016-20 Distribution Determination | O51: Level 3 | P51: 6 Nexus Court | Q51: MULGRAVE | R51: Vic | S51: 3149 | T51: PO Box 449 | V51: MOUNT WAVERLEY | W51: VIC | X51: 3170 | Y51: Mathew Abraham | Z51: 03 8846 9758 | AA51: mathew.abraham@ue.com.au | AB51: NO | AC51: NO | AD51: YES | AE51: NO | AF51: NO | AH51: CBD | AI51: Urban | AJ51: Short rural | AK51: Long rural | AM51: YES | AN51: United Energy
Z54: For EB & Reset RINs only | AE54: For AARs only
B55: The Reg Year Ending (dms_RYE) must be set to the last year of the regulatory period. For forecast data is is usually (FRCP_y5) for actual it is a single year (CRY). For historical actual data the RYE will need to be set manually in the business details sheet by setting the dms_Multiyear_flag to 1 and putting the correct value in 'dms_Specified_FinalYear. See cells C67:C68 | N55: Drop down selector box for CA & Reset RINs. | O55: For CA & Reset RINs only | Z55: for DNSP only | AE55: For DNSPs only
B56: dms_Model_List | C56: dms_Worksheet_List | E56: dms_RYE_Formula_Result | N56: dms_0203_ProjectType | O56: dms_020303_01_UOM | P56: dms_020501_01_UOM | Q56: dms_020501_02_UOM | R56: dms_020501_03_UOM | S56: dms_020501_04_UOM | T56: dms_020603_01_UOM | U56: dms_020701_01_UOM | V56: dms_020701_02_UOM | W56: dms_020701_01_Rows | X56: dms_040102_01_UOM | Y56: dms_040102_04_UOM | Z56: dms_030601_01_UOM | AA56: dms_030601_02_UOM | AB56: dms_030701_01_UOM | AC56: dms_030702_01_UOM | AD56: dms_030703_01_UOM | AE56: dms_030605_UOM | AF56: dms_03060703_UOM
B57: ARR | C57: ANNUAL REPORTING STATEMENT | E57: =LEFT(dms_SingleYear_FinalYear_Result,2)&RIGHT(dms_SingleYear_FinalYear_Result,2) -> noIN | F57: =LEFT(dms_SingleYear_FinalYear_Result,2)&RIGHT(dms_SingleYear_FinalYear_Result,2) | H57: Formula errors are OK | N57: New line on new route - single circuit | O57: Circuit line length in km | P57: 0's | Q57: 0's | R57: 0's | S57: 0's | T57: 0's | U57: km | V57: km | W57: Route line length within zone | X57: 0's | Y57: days | Z57: minutes/customer | AA57: minutes/customer | AB57: Customer / km | AC57: % | AD57: km | AE57: number | AF57: number
B58: CA | C58: CATEGORY ANALYSIS | E58: =LEFT(dms_SingleYear_FinalYear_Result,2)&RIGHT(dms_SingleYear_FinalYear_Result,2) -> noIN | F58: =LEFT(dms_SingleYear_FinalYear_Result,2)&RIGHT(dms_SingleYear_FinalYear_Result,2) | H58: Formula errors are OK | N58: New line on new route - dual circuit | O58: Circuit line length in km | P58: 0's | Q58: 0's | R58: 0's | S58: 0's | T58: 0's | U58: 0's | V58: 0's | W58: Number of maintenance spans | X58: 0's | Y58: 0's | Z58: minutes/customer | AA58: minutes/customer | AB58: MWh/customer | AC58: Number of spans | AE58: number | AF58: number
B59: CPI | C59: CPI | N59: New line on new route - other | O59: Circuit line length in km | P59: MVA added | Q59: MVA added | R59: MVA added | S59: MVA added | T59: 0's | U59: km | V59: km | W59: Total length of maintenance spans | X59: 0's | Y59: $0s | Z59: interruptions/customer | AA59: interruptions/customer | AB59: kVA / customer | AC59: Number of spans | AE59: number | AF59: number
B60: EB | C60: ECONOMIC BENCHMARKING | E60: =LEFT(dms_SingleYear_FinalYear_Result,2)&RIGHT(dms_SingleYear_FinalYear_Result,2) -> noIN | F60: =LEFT(dms_SingleYear_FinalYear_Result,2)&RIGHT(dms_SingleYear_FinalYear_Result,2) | H60: Formula errors are OK | N60: Line rebuild over existing route - single circuit | O60: Circuit line length in km | P60: 0's | Q60: 0's | R60: 0's | S60: 0's | T60: 0's | U60: km | V60: km | W60: Length of vegetation corridors | X60: $0s | Y60: 0's | Z60: interruptions/customer | AA60: interruptions/customer | AC60: Number of spans | AE60: number | AF60: number
B61: PTRM | C61: POST TAX REVENUE MODEL | E61: =LEFT(dms_MultiYear_FinalYear_Result,2)&RIGHT(dms_MultiYear_FinalYear_Result,2) -> 2025 | F61: =LEFT(dms_MultiYear_FinalYear_Result,2)&RIGHT(dms_MultiYear_FinalYear_Result,2) | N61: Line rebuild over existing route - dual circuit | O61: Number | P61: total spend $0s | Q61: total spend $0s | R61: total spend $0s | S61: total spend $0s | T61: (per cent) | U61: 0's | V61: 0's | W61: Average number of trees per maintenance span | AC61: Number of spans | AE61: number | AF61: (per cent)
B62: Reset | C62: REGULATORY REPORTING STATEMENT | E62: =LEFT(dms_MultiYear_FinalYear_Result,2)&RIGHT(dms_MultiYear_FinalYear_Result,2) -> 2025 | F62: =LEFT(dms_MultiYear_FinalYear_Result,2)&RIGHT(dms_MultiYear_FinalYear_Result,2) | H62: Formula errors are OK | N62: Reconductor - Single circuit | O62: Number | P62: net circuit km added | Q62: net circuit km added | R62: net circuit km added | S62: net circuit km added | U62: years | V62: years | W62: Average frequency of cutting cycle | AC62: Years | AE62: number
B63: RFM | C63: ROLL FORWARD MODEL | E63: =LEFT(dms_CRCP_FinalYear_Result,2)&RIGHT(dms_CRCP_FinalYear_Result,2) -> 2020 | F63: =LEFT(dms_CRCP_FinalYear_Result,2)&RIGHT(dms_CRCP_FinalYear_Result,2) | N63: Reconductor - Dual circuit | O63: Number | P63: total spend $0s | Q63: total spend $0s | R63: total spend $0s | S63: total spend $0s | AC63: Years | AE63: number
B64: WACC | C64: WEIGHTED AVERAGE COST OF CAPITAL | E64: =LEFT(dms_MultiYear_FinalYear_Result,2)&RIGHT(dms_MultiYear_FinalYear_Result,2) -> 2025 | F64: =LEFT(dms_MultiYear_FinalYear_Result,2)&RIGHT(dms_MultiYear_FinalYear_Result,2) | N64: Other | P64: net circuit km added | Q64: net circuit km added | R64: net circuit km added | S64: net circuit km added | AC64: Trees | AE64: number
P65: total spend $0s | Q65: total spend $0s | R65: total spend $0s | S65: total spend $0s | AC65: Trees | AE65: number
B66: dms_DataQuality_List | P66: 0's | R66: $0s | AC66: Defects | AE66: number
B67: Actual | P67: 0's | AC67: Defects | AE67: number
B68: Estimate | P68: 0's | AC68: Spans | AE68: number
B69: Consolidated | P69: $0s | AC69: km | AE69: (per cent)
B70: Recast | AC70: Spans | AE70: (per cent)
B71: Public
B73: For all files either AER or business needs to be able to specify the type of submission | C73: For PTRM & RFM templates we must provide a choice in case they change their form of control - otherwise it is drawn from the business specific lookup table above. | O73: For PTRM files - this field set the text for the named range "DMS_Xfactor" which in all cases is simply the text "x factors" - this saves putting in each old gas PTRM file | Z73: for TNSP only
B74: dms_SourceList | C74: dms_FormControl_Choices | O74: DMS_Xfactor | Z74: dms_030601_01_UOM | AB74: dms_030701_01_UOM | AC74: dms_030702_01_UOM
B75: After appeal | C75: Revenue cap | O75: x factors | Z75: % | AB75: Number of spans | AC75: km
B76: Draft decision | C76: Revenue yield | Z76: number | AB76: Years | AC76: %
B77: Final decision | C77: Weighted average price cap | Z77: number | AB77: Trees | AC77: km
B78: PTRM update 1 | Z78: % | AB78: Defects | AC78: number
B79: PTRM update 2 | Z79: number | AB79: Number of spans
B80: PTRM update 3 | Z80: number | AB80: km
B81: PTRM update 4 | Z81: % | AB81: km
B82: PTRM update 5 | Z82: number | AB82: Number of spans
B83: PTRM update 6 | Z83: number
B84: PTRM update 7 | Z84: %
B85: Regulatory proposal | Z85: number
B86: Reporting | Z86: %
B87: Revised regulatory proposal | Z87: number
Z88: %
Z89: number
B93: Reason for interruption | C93: dms_Reason_Interruption_Detailed | D93: dms_Reason_Interruption | E93: dms_STPIS_Exclusion_List | F93: dms_020301_ProjectType_List | G93: dms_020302_ProjectType_List
B94: Animal | C94: Animal impact | D94: Animal | E94: Weather | F94: New substation establishment | G94: New line on new route - single circuit
C95: Animal nesting/burrowing, etc and other | D95: Asset failure | E95: Equipment failure | F95: Capacity upgrade | G95: New line on new route - dual circuit
C96: Other | D96: Other | E96: Operational error | F96: Voltage upgrade | G96: New line on new route - other
B97: Asset failure | C97: LV | D97: Overloads | E97: Vegetation | F97: Other | G97: Line rebuild over existing route - single circuit
C98: Distribution substation | D98: Planned | E98: Animals | G98: Line rebuild over existing route - dual circuit
C99: HV | D99: Network business | E99: Third party impacts | G99: Reconductor - Single circuit
C100: Zone substation | D100: Third party | E100: Transmission failure | G100: Reconductor - Dual circuit
C101: Subtransmission | D101: Unknown | E101: Load shedding | G101: Reconductor - Other
B102: Other | C102: insert description of 'other' | D102: Vegetation | E102: Inter-distributor connection failure | G102: Line upgrade - raising/retensoring
B103: Overloads | C103: - | D103: Weather | E103: Other | G103: Line upgrade - voltage upgrade
B104: Planned | C104: - | D104: 2 - STPIS Exclusion (3.3)(a) | G104: Line upgrade - capacity
B105: Network business | C105: Network error | D105: 3 - STPIS Exclusion (3.3)(a) | G105: String spare circuit
C106: Switching and protection error | D106: 4 - STPIS Exclusion (3.3)(a) | G106: Other
B107: Third party | C107: Fire | D107: 5 - STPIS Exclusion (3.3)(a)
C108: Other | D108: 6 - STPIS Exclusion (3.3)(a)
C109: Dig-in | D109: 7 - STPIS Exclusion (3.3)(a)
C110: Unauthorised access
C111: Vehicle impact
B112: Unknown | C112: Unknown
B113: Vegetation | C113: Blow-in/Fall-in - NSP responsibility
C114: Grow-in - NSP responsibility
C115: Blow-in/Fall-in - Other responsible party
C116: Grow-in - Other responsible party
B117: Weather
B118: 2 - STPIS Exclusion (3.3)(a)
B119: 3 - STPIS Exclusion (3.3)(a)
B120: 4 - STPIS Exclusion (3.3)(a)
B121: 5 - STPIS Exclusion (3.3)(a)
B122: 6 - STPIS Exclusion (3.3)(a)
B123: 7 - STPIS Exclusion (3.3)(a)
B131: These are indeces and lookup values for various dates. All step from the value placed in FRCP_y1 on the business and other details worksheet | C131: =IF(dms_FifthFeeder_flag_NSP="NO","This NSP has only 4 feeder categories","This NSP has 5 feeder categories") -> This NSP has only 4 feeder categories | O131: These date tables are currently used in the Recast templates to provide column headings and conditional formatting
B132: dms_FRCPlength_Num_List | C132: dms_FinalYear_List | D132: dms_CRCPlength_Num_List | E132: dms_CFinalYear_List | F132: dms_FRCP_years | H132: dms_CRCP_years | J132: dms_CRCP_index | L132: These are static values for cut / paste purposes only | O132: CRY from input cell on business sheet | P132: CRY - financial | Q132: dms_FinYears | R132: CRY calendar | S132: dms_CalYears
B133: 1 | C133: dms_FRCP_y1 | D133: 1 | E133: CRCP_y1 | F133: =FRCP_y1 -> 2020-21 | G133: dms_FRCP_y1 | H133: =IF(dms_RPT="financial",VALUE(LEFT(dms_FRCP_y1,4)-1)&"-"&TEXT(VALUE(MID(dms_FRCP_y1,3,2)),"00"),VALUE(LEFT(dms_FRCP_y1,4)-1)) -> 2019-20 | I133: dms_CRCP_yZ | J133: 1 | L133: 2005-06 | M133: 2006 | O133: ='Business & other details'!C48 -> 2018-19 | P133: =VALUE(LEFT(CRY,4))&"-"&TEXT(MID(CRY,3,2)+1,"00") -> 2018-19 | Q133: dms_CRYf_y1 | R133: =VALUE(LEFT(CRY,4)+1) -> 2019 | S133: dms_CRYc_y1
B134: 2 | C134: dms_FRCP_y2 | D134: 2 | E134: CRCP_y2 | F134: =IF(dms_RPT="financial",VALUE(LEFT(dms_FRCP_y1,4)+1)&"-"&TEXT(VALUE(RIGHT(dms_FRCP_y1,2)+1),"00"),VALUE(LEFT(dms_FRCP_y1,4)+1)) -> 2021-22 | G134: dms_FRCP_y2 | H134: =IF(dms_RPT="financial",VALUE(LEFT(dms_CRCP_yZ,4)-1)&"-"&TEXT(VALUE(MID(dms_CRCP_yZ,3,2)),"00"),VALUE(LEFT(dms_CRCP_yZ,4)-1)) -> 2018-19 | I134: dms_CRCP_yY | J134: 2 | L134: 2006-07 | M134: 2007 | P134: =VALUE(LEFT(dms_CRYf_y1,4)+1)&"-"&TEXT(MID(dms_CRYf_y1,3,2)+2,"00") -> 2019-20 | Q134: dms_CRYf_y2 | R134: =VALUE(LEFT(dms_CRYc_y1,4)+1) -> 2020 | S134: dms_CRYc_y2
B135: 3 | C135: dms_FRCP_y3 | D135: 3 | E135: CRCP_y3 | F135: =IF(dms_RPT="financial",VALUE(LEFT(dms_FRCP_y2,4)+1)&"-"&TEXT(VALUE(RIGHT(dms_FRCP_y2,2)+1),"00"),VALUE(LEFT(dms_FRCP_y2,4)+1)) -> 2022-23 | G135: dms_FRCP_y3 | H135: =IF(dms_RPT="financial",VALUE(LEFT(dms_CRCP_yY,4)-1)&"-"&TEXT(VALUE(MID(dms_CRCP_yY,3,2)),"00"),VALUE(LEFT(dms_CRCP_yY,4)-1)) -> 2017-18 | I135: dms_CRCP_yX | J135: 3 | L135: 2007-08 | M135: 2008 | P135: =VALUE(LEFT(dms_CRYf_y2,4)+1)&"-"&TEXT(MID(dms_CRYf_y2,3,2)+2,"00") -> 2020-21 | Q135: dms_CRYf_y3 | R135: =VALUE(LEFT(dms_CRYc_y2,4)+1) -> 2021 | S135: dms_CRYc_y3
B136: 4 | C136: dms_FRCP_y4 | D136: 4 | E136: CRCP_y4 | F136: =IF(dms_RPT="financial",VALUE(LEFT(dms_FRCP_y3,4)+1)&"-"&TEXT(VALUE(RIGHT(dms_FRCP_y3,2)+1),"00"),VALUE(LEFT(dms_FRCP_y3,4)+1)) -> 2023-24 | G136: dms_FRCP_y4 | H136: =IF(dms_RPT="financial",VALUE(LEFT(dms_CRCP_yX,4)-1)&"-"&TEXT(VALUE(MID(dms_CRCP_yX,3,2)),"00"),VALUE(LEFT(dms_CRCP_yX,4)-1)) -> 2016-17 | I136: dms_CRCP_yW | J136: 4 | L136: 2008-09 | M136: 2009 | P136: =VALUE(LEFT(dms_CRYf_y3,4)+1)&"-"&TEXT(MID(dms_CRYf_y3,3,2)+2,"00") -> 2021-22 | Q136: dms_CRYf_y4 | R136: =VALUE(LEFT(dms_CRYc_y3,4)+1) -> 2022 | S136: dms_CRYc_y4
B137: 5 | C137: dms_FRCP_y5 | D137: 5 | E137: CRCP_y5 | F137: =IF(dms_RPT="financial",VALUE(LEFT(dms_FRCP_y4,4)+1)&"-"&TEXT(VALUE(RIGHT(dms_FRCP_y4,2)+1),"00"),VALUE(LEFT(dms_FRCP_y4,4)+1)) -> 2024-25 | G137: dms_FRCP_y5 | H137: =IF(dms_RPT="financial",VALUE(LEFT(dms_CRCP_yW,4)-1)&"-"&TEXT(VALUE(MID(dms_CRCP_yW,3,2)),"00"),VALUE(LEFT(dms_CRCP_yW,4)-1)) -> 2015-16 | I137: dms_CRCP_yV | J137: 5 | L137: 2009-10 | M137: 2010 | P137: =VALUE(LEFT(dms_CRYf_y4,4)+1)&"-"&TEXT(MID(dms_CRYf_y4,3,2)+2,"00") -> 2022-23 | Q137: dms_CRYf_y5 | R137: =VALUE(LEFT(dms_CRYc_y4,4)+1) -> 2023 | S137: dms_CRYc_y5
B138: 6 | C138: dms_FRCP_y6 | D138: 6 | E138: CRCP_y6 | F138: =IF(dms_RPT="financial",VALUE(LEFT(dms_FRCP_y5,4)+1)&"-"&TEXT(VALUE(RIGHT(dms_FRCP_y5,2)+1),"00"),VALUE(LEFT(dms_FRCP_y5,4)+1)) -> 2025-26 | G138: dms_FRCP_y6 | H138: =IF(dms_RPT="financial",VALUE(LEFT(dms_CRCP_yV,4)-1)&"-"&TEXT(VALUE(MID(dms_CRCP_yV,3,2)),"00"),VALUE(LEFT(dms_CRCP_yV,4)-1)) -> 2014-15 | I138: dms_CRCP_yU | J138: 6 | L138: 2010-11 | M138: 2011 | P138: =VALUE(LEFT(dms_CRYf_y5,4)+1)&"-"&TEXT(MID(dms_CRYf_y5,3,2)+2,"00") -> 2023-24 | Q138: dms_CRYf_y6 | R138: =VALUE(LEFT(dms_CRYc_y5,4)+1) -> 2024 | S138: dms_CRYc_y6
B139: 7 | C139: dms_FRCP_y7 | D139: 7 | E139: CRCP_y7 | F139: =IF(dms_RPT="financial",VALUE(LEFT(dms_FRCP_y6,4)+1)&"-"&TEXT(VALUE(RIGHT(dms_FRCP_y6,2)+1),"00"),VALUE(LEFT(dms_FRCP_y6,4)+1)) -> 2026-27 | G139: dms_FRCP_y7 | H139: =IF(dms_RPT="financial",VALUE(LEFT(dms_CRCP_yU,4)-1)&"-"&TEXT(VALUE(MID(dms_CRCP_yU,3,2)),"00"),VALUE(LEFT(dms_CRCP_yU,4)-1)) -> 2013-14 | I139: dms_CRCP_yT | J139: 7 | L139: 2011-12 | M139: 2012 | P139: =VALUE(LEFT(dms_CRYf_y6,4)+1)&"-"&TEXT(MID(dms_CRYf_y6,3,2)+2,"00") -> 2024-25 | Q139: dms_CRYf_y7 | R139: =VALUE(LEFT(dms_CRYc_y6,4)+1) -> 2025 | S139: dms_CRYc_y7
B140: 8 | C140: dms_FRCP_y8 | D140: 8 | E140: CRCP_y8 | F140: =IF(dms_RPT="financial",VALUE(LEFT(dms_FRCP_y7,4)+1)&"-"&TEXT(VALUE(RIGHT(dms_FRCP_y7,2)+1),"00"),VALUE(LEFT(dms_FRCP_y7,4)+1)) -> 2027-28 | G140: dms_FRCP_y8 | H140: =IF(dms_RPT="financial",VALUE(LEFT(dms_CRCP_yT,4)-1)&"-"&TEXT(VALUE(MID(dms_CRCP_yT,3,2)),"00"),VALUE(LEFT(dms_CRCP_yT,4)-1)) -> 2012-13 | I140: dms_CRCP_yS | J140: 8 | L140: 2012-13 | M140: 2013 | P140: =VALUE(LEFT(dms_CRYf_y7,4)+1)&"-"&TEXT(MID(dms_CRYf_y7,3,2)+2,"00") -> 2025-26 | Q140: dms_CRYf_y8 | R140: =VALUE(LEFT(dms_CRYc_y7,4)+1) -> 2026 | S140: dms_CRYc_y8
B141: 9 | C141: dms_FRCP_y9 | D141: 9 | E141: CRCP_y9 | F141: =IF(dms_RPT="financial",VALUE(LEFT(dms_FRCP_y8,4)+1)&"-"&TEXT(VALUE(RIGHT(dms_FRCP_y8,2)+1),"00"),VALUE(LEFT(dms_FRCP_y8,4)+1)) -> 2028-29 | G141: dms_FRCP_y9 | H141: =IF(dms_RPT="financial",VALUE(LEFT(dms_CRCP_yS,4)-1)&"-"&TEXT(VALUE(MID(dms_CRCP_yS,3,2)),"00"),VALUE(LEFT(dms_CRCP_yS,4)-1)) -> 2011-12 | I141: dms_CRCP_yR | J141: 9 | L141: 2013-14 | M141: 2014 | P141: =VALUE(LEFT(dms_CRYf_y8,4)+1)&"-"&TEXT(MID(dms_CRYf_y8,3,2)+2,"00") -> 2026-27 | Q141: dms_CRYf_y9 | R141: =VALUE(LEFT(dms_CRYc_y8,4)+1) -> 2027 | S141: dms_CRYc_y9
B142: 10 | C142: dms_FRCP_y10 | D142: 10 | E142: CRCP_y10 | F142: =IF(dms_RPT="financial",VALUE(LEFT(dms_FRCP_y9,4)+1)&"-"&TEXT(VALUE(RIGHT(dms_FRCP_y9,2)+1),"00"),VALUE(LEFT(dms_FRCP_y9,4)+1)) -> 2029-30 | G142: dms_FRCP_y10 | H142: =IF(dms_RPT="financial",VALUE(LEFT(dms_CRCP_yR,4)-1)&"-"&TEXT(VALUE(MID(dms_CRCP_yR,3,2)),"00"),VALUE(LEFT(dms_CRCP_yR,4)-1)) -> 2010-11 | I142: dms_CRCP_yQ | J142: 10 | L142: 2014-15 | M142: 2015 | P142: =VALUE(LEFT(dms_CRYf_y9,4)+1)&"-"&TEXT(MID(dms_CRYf_y9,3,2)+2,"00") -> 2027-28 | Q142: dms_CRYf_y10 | R142: =VALUE(LEFT(dms_CRYc_y9,4)+1) -> 2028 | S142: dms_CRYc_y10
B143: 11 | C143: dms_FRCP_y11 | D143: 11 | E143: CRCP_y11 | F143: =IF(dms_RPT="financial",VALUE(LEFT(dms_FRCP_y10,4)+1)&"-"&TEXT(VALUE(RIGHT(dms_FRCP_y10,2)+1),"00"),VALUE(LEFT(dms_FRCP_y10,4)+1)) -> 2030-31 | G143: dms_FRCP_y11 | H143: =IF(dms_RPT="financial",VALUE(LEFT(dms_CRCP_yQ,4)-1)&"-"&TEXT(VALUE(MID(dms_CRCP_yQ,3,2)),"00"),VALUE(LEFT(dms_CRCP_yQ,4)-1)) -> 2009-10 | I143: dms_CRCP_yP | J143: 11 | L143: 2015-16 | M143: 2016 | P143: =VALUE(LEFT(dms_CRYf_y10,4)+1)&"-"&TEXT(MID(dms_CRYf_y10,3,2)+2,"00") -> 2028-29 | Q143: dms_CRYf_y11 | R143: =VALUE(LEFT(dms_CRYc_y10,4)+1) -> 2029 | S143: dms_CRYc_y11
B144: 12 | C144: dms_FRCP_y12 | D144: 12 | E144: CRCP_y12 | F144: =IF(dms_RPT="financial",VALUE(LEFT(dms_FRCP_y11,4)+1)&"-"&TEXT(VALUE(RIGHT(dms_FRCP_y11,2)+1),"00"),VALUE(LEFT(dms_FRCP_y11,4)+1)) -> 2031-32 | G144: dms_FRCP_y12 | H144: =IF(dms_RPT="financial",VALUE(LEFT(dms_CRCP_yP,4)-1)&"-"&TEXT(VALUE(MID(dms_CRCP_yP,3,2)),"00"),VALUE(LEFT(dms_CRCP_yP,4)-1)) -> 2008-09 | I144: dms_CRCP_yO | J144: 12 | L144: 2016-17 | M144: 2017 | P144: =VALUE(LEFT(dms_CRYf_y11,4)+1)&"-"&TEXT(MID(dms_CRYf_y11,3,2)+2,"00") -> 2029-30 | Q144: dms_CRYf_y12 | R144: =VALUE(LEFT(dms_CRYc_y11,4)+1) -> 2030 | S144: dms_CRYc_y12
B145: 13 | C145: dms_FRCP_y13 | D145: 13 | E145: CRCP_y13 | F145: =IF(dms_RPT="financial",VALUE(LEFT(dms_FRCP_y12,4)+1)&"-"&TEXT(VALUE(RIGHT(dms_FRCP_y12,2)+1),"00"),VALUE(LEFT(dms_FRCP_y12,4)+1)) -> 2032-33 | G145: dms_FRCP_y13 | H145: =IF(dms_RPT="financial",VALUE(LEFT(dms_CRCP_yO,4)-1)&"-"&TEXT(VALUE(MID(dms_CRCP_yO,3,2)),"00"),VALUE(LEFT(dms_CRCP_yO,4)-1)) -> 2007-08 | I145: dms_CRCP_yN | J145: 13 | L145: 2017-18 | M145: 2018 | P145: =VALUE(LEFT(dms_CRYf_y12,4)+1)&"-"&TEXT(MID(dms_CRYf_y12,3,2)+2,"00") -> 2030-31 | Q145: dms_CRYf_y13 | R145: =VALUE(LEFT(dms_CRYc_y12,4)+1) -> 2031 | S145: dms_CRYc_y13
B146: 14 | C146: dms_FRCP_y14 | D146: 14 | E146: CRCP_y14 | F146: =IF(dms_RPT="financial",VALUE(LEFT(dms_FRCP_y13,4)+1)&"-"&TEXT(VALUE(RIGHT(dms_FRCP_y13,2)+1),"00"),VALUE(LEFT(dms_FRCP_y13,4)+1)) -> 2033-34 | G146: dms_FRCP_y14 | H146: =IF(dms_RPT="financial",VALUE(LEFT(dms_CRCP_yN,4)-1)&"-"&TEXT(VALUE(MID(dms_CRCP_yN,3,2)),"00"),VALUE(LEFT(dms_CRCP_yN,4)-1)) -> 2006-07 | I146: dms_CRCP_yM | J146: 14 | L146: 2018-19 | M146: 2019 | P146: =VALUE(LEFT(dms_CRYf_y13,4)+1)&"-"&TEXT(MID(dms_CRYf_y13,3,2)+2,"00") -> 2031-32 | Q146: dms_CRYf_y14 | R146: =VALUE(LEFT(dms_CRYc_y13,4)+1) -> 2032 | S146: dms_CRYc_y14
B147: 15 | C147: dms_FRCP_y15 | D147: 15 | E147: CRCP_y15 | F147: =IF(dms_RPT="financial",VALUE(LEFT(dms_FRCP_y14,4)+1)&"-"&TEXT(VALUE(RIGHT(dms_FRCP_y14,2)+1),"00"),VALUE(LEFT(dms_FRCP_y14,4)+1)) -> 2034-35 | G147: dms_FRCP_y15 | H147: =IF(dms_RPT="financial",VALUE(LEFT(dms_CRCP_yM,4)-1)&"-"&TEXT(VALUE(MID(dms_CRCP_yM,3,2)),"00"),VALUE(LEFT(dms_CRCP_yM,4)-1)) -> 2005-06 | I147: dms_CRCP_yL | J147: 15 | L147: 2019-20 | M147: 2020 | P147: =VALUE(LEFT(dms_CRYf_y14,4)+1)&"-"&TEXT(MID(dms_CRYf_y14,3,2)+2,"00") -> 2032-33 | Q147: dms_CRYf_y15 | R147: =VALUE(LEFT(dms_CRYc_y14,4)+1) -> 2033 | S147: dms_CRYc_y15
L148: 2020-21 | M148: 2021 | P148: =VALUE(LEFT(dms_CRYf_y15,4)+1)&"-"&TEXT(MID(dms_CRYf_y15,3,2)+2,"00") -> 2033-34 | Q148: dms_CRYf_y16 | R148: =VALUE(LEFT(dms_CRYc_y15,4)+1) -> 2034 | S148: dms_CRYc_y16
B149: These are drop down lists for businesses to select the correct FRCP_y1 on the business and other details worksheet. This also populates the column headings in the worksheets | L149: 2021-22 | M149: 2022 | P149: =VALUE(LEFT(dms_CRYf_y16,4)+1)&"-"&TEXT(MID(dms_CRYf_y16,3,2)+2,"00") -> 2034-35 | Q149: dms_CRYf_y17 | R149: =VALUE(LEFT(dms_CRYc_y16,4)+1) -> 2035 | S149: dms_CRYc_y17
B150: dms_RCP_fyear_list | C150: dms_CRY_ListF | D150: dms_CRY_ListC | E150: dms_RCP_cyear_list | F150: dms_FRCP_fyear_list | G150: dms_FRCP_ListF | H150: dms_FRCP_ListC | I150: dms_FRCP_cyear_list | L150: 2022-23 | M150: 2023 | P150: =VALUE(LEFT(dms_CRYf_y17,4)+1)&"-"&TEXT(MID(dms_CRYf_y17,3,2)+2,"00") -> 2035-36 | Q150: dms_CRYf_y18 | R150: =VALUE(LEFT(dms_CRYc_y17,4)+1) -> 2036 | S150: dms_CRYc_y18
B151: dms_fy1 | C151: 2005-06 | D151: 2006 | E151: dms_cy1 | F151: dms_frcp_fy1 | G151: 2010-11 | H151: 2011 | I151: dms_crcp_cy1 | L151: 2023-24 | M151: 2024 | P151: =VALUE(LEFT(dms_CRYf_y18,4)+1)&"-"&TEXT(MID(dms_CRYf_y18,3,2)+2,"00") -> 2036-37 | Q151: dms_CRYf_y19 | R151: =VALUE(LEFT(dms_CRYc_y18,4)+1) -> 2037 | S151: dms_CRYc_y19
B152: dms_fy2 | C152: 2006-07 | D152: 2007 | E152: dms_cy2 | F152: dms_frcp_fy2 | G152: 2011-12 | H152: 2012 | I152: dms_crcp_cy2 | L152: 2024-25 | M152: 2025 | P152: =VALUE(LEFT(dms_CRYf_y19,4)+1)&"-"&TEXT(MID(dms_CRYf_y19,3,2)+2,"00") -> 2037-38 | Q152: dms_CRYf_y20 | R152: =VALUE(LEFT(dms_CRYc_y19,4)+1) -> 2038 | S152: dms_CRYc_y20
B153: dms_fy3 | C153: 2007-08 | D153: 2008 | E153: dms_cy3 | F153: dms_frcp_fy3 | G153: 2012-13 | H153: 2013 | I153: dms_crcp_cy3 | L153: 2025-26 | M153: 2026
B154: dms_fy4 | C154: 2008-09 | D154: 2009 | E154: dms_cy4 | F154: dms_frcp_fy4 | G154: 2013-14 | H154: 2014 | I154: dms_crcp_cy4 | L154: 2026-27 | M154: 2027
B155: dms_fy5 | C155: 2009-10 | D155: 2010 | E155: dms_cy5 | F155: dms_frcp_fy5 | G155: 2014-15 | H155: 2015 | I155: dms_crcp_cy5 | L155: 2027-28 | M155: 2028
B156: dms_fy6 | C156: 2010-11 | D156: 2011 | E156: dms_cy6 | F156: dms_frcp_fy6 | G156: 2015-16 | H156: 2016 | I156: dms_crcp_cy6 | L156: 2028-29 | M156: 2029
B157: dms_fy7 | C157: 2011-12 | D157: 2012 | E157: dms_cy7 | F157: dms_frcp_fy7 | G157: 2016-17 | H157: 2017 | I157: dms_crcp_cy7 | L157: 2029-30 | M157: 2030
B158: dms_fy8 | C158: 2012-13 | D158: 2013 | E158: dms_cy8 | F158: dms_frcp_fy8 | G158: 2017-18 | H158: 2018 | I158: dms_crcp_cy8 | L158: 2030-31 | M158: 2031
B159: dms_fy9 | C159: 2013-14 | D159: 2014 | E159: dms_cy9 | F159: dms_frcp_fy9 | G159: 2018-19 | H159: 2019 | I159: dms_crcp_cy9 | L159: 2031-32 | M159: 2032
B160: dms_fy10 | C160: 2014-15 | D160: 2015 | E160: dms_cy10 | F160: dms_frcp_fy10 | G160: 2019-20 | H160: 2020 | I160: dms_crcp_cy10 | L160: 2032-33 | M160: 2033
B161: dms_fy11 | C161: 2015-16 | D161: 2016 | E161: dms_cy11 | F161: dms_frcp_fy11 | G161: 2020-21 | H161: 2021 | I161: dms_crcp_cy11 | L161: 2033-34 | M161: 2034
B162: dms_fy12 | C162: 2016-17 | D162: 2017 | E162: dms_cy12 | F162: dms_frcp_fy12 | G162: 2021-22 | H162: 2022 | I162: dms_crcp_cy12 | L162: 2034-35 | M162: 2035
B163: dms_fy13 | C163: 2017-18 | D163: 2018 | E163: dms_cy13 | F163: dms_frcp_fy13 | G163: 2022-23 | H163: 2023 | I163: dms_crcp_cy13 | L163: 2035-36 | M163: 2036
B164: dms_fy14 | C164: 2018-19 | D164: 2019 | E164: dms_cy14 | F164: dms_frcp_fy14 | G164: 2023-24 | H164: 2024 | I164: dms_crcp_cy14
B165: dms_fy15 | C165: 2019-20 | D165: 2020 | E165: dms_cy15 | F165: dms_frcp_fy15 | G165: 2024-25 | H165: 2025 | I165: dms_crcp_cy15
B166: dms_fy16 | C166: 2020-21 | D166: 2021 | E166: dms_cy16
B167: dms_fy17 | C167: 2021-22 | D167: 2022 | E167: dms_cy17
B168: dms_fy18 | C168: 2022-23 | D168: 2023 | E168: dms_cy18
B169: dms_fy19 | C169: 2023-24 | D169: 2024 | E169: dms_cy19
B170: dms_fy20 | C170: 2024-25 | D170: 2025 | E170: dms_cy20
B176: These "row descriptions" are the column headings in the various templates but become row descriptions in the ETL process
C177: Table 6.3 sustained interruptions - row descriptions
C178: dms_060301_CustNo_Affected_Row | D178: dms_060301_Avg_Duration_Sustained_Int_Row | E178: dms_060301_Effect_unplanned_SAIDI_Row | F178: dms_060301_Effect_unplanned_SAIFI_Row
C179: Number of customers affected by the interruption | D179: Average duration of sustained customer interruption | E179: Effect on unplanned SAIDI | F179: Effect on unplanned SAIFI
C183: Table 6.1 telephone answering - row descriptions and start date
C184: dms_060101_Rows | D184: dms_060102_Rows | E184: dms_060101_StartDateTxt
C185: Total number of calls (after removing excluded events) | D185: Number of calls answered within 30 seconds (after excluding excluded events) | E185: =dms_060701_StartDateTxt -> 1-Jul-2018
H189: dms_0603_FeederList | I189: =INDEX(dms_FeederName_1,MATCH(dms_TradingName,dms_TradingName_List)) -> CBD | J189: =INDEX(dms_FeederName_2,MATCH(dms_TradingName,dms_TradingName_List)) -> Urban | K189: =INDEX(dms_FeederName_3,MATCH(dms_TradingName,dms_TradingName_List)) -> Short rural | L189: =INDEX(dms_FeederName_4,MATCH(dms_TradingName,dms_TradingName_List)) -> Long rural
C190: Table 6.7.1 - daily performance data - unplanned - MAIFI -- row descriptions and header named range values
C191: These headings (Lists) are determined from the INDEX/MATCH function on the NSP selected on the Business & other details sheet
B192: dms_060701_Feeder_Header_Lvl4 | C192: =INDEX(dms_FeederName_1,MATCH(dms_TradingName,dms_TradingName_List)) -> CBD | D192: =INDEX(dms_FeederName_1,MATCH(dms_TradingName,dms_TradingName_List)) -> CBD | E192: =INDEX(dms_FeederName_2,MATCH(dms_TradingName,dms_TradingName_List)) -> Urban | F192: =INDEX(dms_FeederName_2,MATCH(dms_TradingName,dms_TradingName_List)) -> Urban | G192: =INDEX(dms_FeederName_3,MATCH(dms_TradingName,dms_TradingName_List)) -> Short rural | H192: =INDEX(dms_FeederName_3,MATCH(dms_TradingName,dms_TradingName_List)) -> Short rural | I192: =INDEX(dms_FeederName_4,MATCH(dms_TradingName,dms_TradingName_List)) -> Long rural | J192: =INDEX(dms_FeederName_4,MATCH(dms_TradingName,dms_TradingName_List)) -> Long rural | K192: =IF((INDEX(dms_FeederName_5,MATCH(dms_TradingName,dms_TradingName_List))=0),"Network",(INDEX(dms_FeederName_5,MATCH(dms_TradingName,dms_TradingName_List)))) -> Network | L192: =IF((INDEX(dms_FeederName_5,MATCH(dms_TradingName,dms_TradingName_List))=0),"Network",(INDEX(dms_FeederName_5,MATCH(dms_TradingName,dms_TradingName_List)))) -> Network | M192: Network | N192: Network
B194: dms_060701_Rows | C194: All events | D194: After removing excluded events | E194: All events | F194: After removing excluded events | G194: All events | H194: After removing excluded events | I194: All events | J194: After removing excluded events | K194: All events | L194: After removing excluded events | M194: All events | N194: After removing excluded events
C195: the number of column headings changes from 10 to 12 depending on the number of feeder categories for the NSP
C200: Table 6.8.1 - row descriptions
C201: dms_060801_01_Rows | D201: dms_060801_02_Rows | E201: dms_060801_03_Rows | F201: dms_060801_04_Rows
C202: Number of interruptions | D202: Duration of interruptions | E202: Total unplanned minutes off supply | F202: Effect on unplanned MAIFI
C207: Table 7.9.4 - market impact component - row descriptions
B208: dms_070904_01_Rows | C208: without exclusions | D208: with exclusions
C214: Use this to add to existing files
C215: ARRs 6.7 STPIS daily performance
C216: dms_060101_Values | D216: dms_060102_Values | E216: dms_060701_Values
C218: ARR's 6.8 STPIS exclusions
C219: dms_060801_Event_Date | D219: dms_060801_OutageID | E219: dms_060801_FeederID | F219: dms_060801_FeederClass | G219: dms_060801_CauseID | H219: dms_060801_01_Values | I219: dms_060801_02_Values | J219: dms_060801_03_Values | K219: dms_060801_Excl_Cat | L219: dms_060801_04_Values
C220: dms_060801_StartCell
C222: CA 6.3 sustained interruptions
C223: dms_060301_Event_Date | D223: dms_060301_Event_Time | E223: dms_060301_AssetID | F223: dms_060301_FeederClass | G223: dms_060301_Reason | H223: dms_060301_DetailedReason | I223: dms_060301_CustNo_Affected_Values | J223: dms_060301_Avg_Duration_Sustained_Int_Values | K223: dms_060301_Effect_unplanned_SAIDI_Values | L223: dms_060301_Effect_unplanned_SAIFI_Values | M223: dms_060301_MED

Sheet Instructions
B2: =CONCATENATE(dms_Segment," Network Service Provider") -> Distribution Network Service Provider
B3: =IF(dms_Model="Reset","Regulatory Proposal RIN Template","Annual Reporting RIN") -> Regulatory Proposal RIN Template
C4: =CONCATENATE("This template is to be used by ",dms_TradingName," to fulfil its reporting obligations to the AER.") -> This template is to be used by Ergon Energy to fulfil its reporting obligations to the AER.
C5: INSTRUCTIONS
C6: Complete the Business & other details worksheet before entering data or values in any other worksheets. The Business & other details worksheet is linked to other worksheets within the workbook and automatically generates certain column headings and conditional formatting.
C8: Identifying CONFIDENTIAL INFORMATION: Please use the macro at the top of each worksheet to identify confidential information. See Returning completed responses below, for how to deal with confidential and public information.
C9: -Do this by selecting the cell or cells that contain confidential information and then run the Mark selected cells as CONFIDENTIAL macro. This will format the cells a specific colour that is identified by the AER's database which in turn marks that information as confidential. -To reverse this, select the cell or cells and run the Return cells to NON-CONFIDENTIAL macro.
C11: UNITS OF MEASURE All amounts are to be unrounded and reported on a one for one basis: that is 1000 is to be entered as '1000'. Applicable units of measure may be identified in the table column headings or row descriptors.
C13: COLOUR CODING OF INPUT / NON-INPUT CELLS:
D14: Yellow = Input cell (mandatory)
D15: Darker yellow = input cell (mandatory)
D16: Orange = input cell (if data available)
D17: Grey = Not applicable/No inputs required
D18: PLEASE DO NOT ENTER TEXT into cells that are to contain numeric data.
C21: WORKSHEET NAVIGATION Many tables in the worksheets have been "grouped" to allow for easy navigation. To ungroup or group data use the outline symbols in the left margin (for Row groupings) or above the columns (for column groupings).
C23: RETURNING COMPLETED RESPONSES Please return two (2) files to the AER: 1. A confidential version which must contain a complete set of all responses with confidential information marked using the Mark selection CONFIDENTIAL macro and which has been completed using the locked template file provided by the AER. 2. A public version with confidential information either removed completely or aggregated in some form together with writtten consent to disclose the public version of the response. Use the drop down box on the Business and other details worksheet to identify the file as either confidential ('consolidated') or public.
C25: SUBMITTING AMENDED DATA TO THE AER If an NSP wishes to correct data previously submitted to the AER it should resubmit that data using the original completed submission as the starting point. Please make any necessary changes to the data. Data that is not being amended should be left unchanged. NSPs must identify the reason for the amendments in the Amendment Reason box on the Business and other details worksheet. NSPs may provide further details regarding any amendments in the Amendments worksheet. .
C26: NSP may use Amended Data macro to highlight cells that contain amended data. NB: if data is also CONFIDENTIAL, re-apply the Confidentiality macro after applying the Amended macro
C27: Please resubmit two (2) files - a confidential version and a public version of the amended submission to the AER

Sheet Contents
B1: =SheetHeader -> REGULATORY REPORTING STATEMENT
B2: =dms_TradingName -> Ergon Energy
B3: =CONCATENATE(FRCP_y1," to ",FRCP_y5) -> 2020-21 to 2024-25
B4: CONTENTS
E7: 1. Business and other details | L7: 2. Expenditure | S7: 3. Economic benchmarking
E27: 4. Alternative control services | L27: 5. Network information | S27: 6. Service & quality
E34: 7. Other templates

Sheet Business & other details
B1: =IF(dms_DataQuality="backcast",INDEX(dms_Worksheet_List,MATCH(dms_Model,dms_Model_List))&" BACKCAST",INDEX(dms_Worksheet_List,MATCH(dms_Model,dms_Model_List))) -> REGULATORY REPORTING STATEMENT
B2: =INDEX(dms_TradingNameFull_List,MATCH(dms_TradingName,dms_TradingName_List)) -> Ergon Energy
B3: =IF(SUM(dms_SingleYear_Model)>0,CONCATENATE(CRY),CONCATENATE(FRCP_y1," to ",dms_MultiYear_FinalYear_Result)) -> 2020-21 to 2024-25
B4: BUSINESS & OTHER DETAILS
B7: Instructions
B8: Complete the following business details regulatory template before entering data or values in any other regulatory template. This regulatory template is linked to other cells within the spreadsheet and automatically generates column headings and conditional formatting to distinguish business specific input and non-input cells.
B10: SUBMISSION PARTICULARS INPUT SHEETS
B12: ENTITY DETAILS
B14: Short name | C14: Ergon Energy | F14: Select business name from drop down list first
B15: ACN / ABN | C15: =INDEX(dms_ABN_List,MATCH(dms_TradingName,dms_TradingName_List)) -> 50087646062
B18: Business address | C18: Address 1 | E18: 420 Flinders Street
D19: Address 2 | E19: =IF(ISBLANK(INDEX(dms_Addr2_List,MATCH(dms_TradingName,dms_TradingName_List))),"",(INDEX(dms_Addr2_List,MATCH(dms_TradingName,dms_TradingName_List)))) -> 
C20: Suburb | E20: =INDEX(dms_Suburb_List,MATCH(dms_TradingName,dms_TradingName_List)) -> TOWNSVILLE
D21: State | E21: =INDEX(dms_State_List,MATCH(dms_TradingName,dms_TradingName_List)) -> Qld | F21: p/code | G21: =INDEX(dms_PostCode_List,MATCH(dms_TradingName,dms_TradingName_List)) -> 4810
B23: Postal address | C23: Address 1 | E23: GPO Box 1461
D24: Address 2 | E24: =IF(ISBLANK(INDEX(dms_PAddr2_List,MATCH(dms_TradingName,dms_TradingName_List))),"",(INDEX(dms_PAddr2_List,MATCH(dms_TradingName,dms_TradingName_List)))) -> 
C25: Suburb | E25: BRISBANE
D26: State | E26: =INDEX(dms_PState_List,MATCH(dms_TradingName,dms_TradingName_List)) -> QLD | F26: p/code | G26: 4001
B29: Contact name/s | C29: Karen Stafford | F29: Group Manager Legal, Regulation & Pricing
B30: Contact phone/s | C30: (07) 3851 6793
B31: Contact email address/s | C31: karen.stafford@energyq.com.au
B33: REGULATORY CONTROL PERIODS
B35: Forthcoming regulatory control period | C35: 2020-21 | D35: =dms_FRCP_y2 -> 2021-22 | E35: =dms_FRCP_y3 -> 2022-23 | F35: =dms_FRCP_y4 -> 2023-24 | G35: =dms_FRCP_y5 -> 2024-25
C36: =dms_FRCP_y6 -> 2025-26 | D36: =dms_FRCP_y7 -> 2026-27 | E36: 0 | F36: =dms_FRCP_y9 -> 2028-29 | G36: =dms_FRCP_y10 -> 2029-30
B39: Current regulatory control period | C39: =dms_CRCP_FirstYear_Result -> 2015-16 | D39: =IF(dms_RPT="financial",VALUE(LEFT(CRCP_y1,4)+1)&"-"&TEXT(MID(CRCP_y1,3,2)+2,"00"),VALUE(LEFT(CRCP_y1,4)+1)) -> 2016-17 | E39: =IF(dms_RPT="financial",VALUE(LEFT(CRCP_y1,4)+2)&"-"&TEXT(VALUE(MID(CRCP_y1,3,2)+3),"00"),VALUE(LEFT(CRCP_y1,4)+2)) -> 2017-18 | F39: =IF(dms_RPT="financial",VALUE(LEFT(CRCP_y1,4)+3)&"-"&TEXT(MID(CRCP_y1,3,2)+4,"00"),VALUE(LEFT(CRCP_y1,4)+3)) -> 2018-19 | G39: =IF(dms_RPT="financial",VALUE(LEFT(CRCP_y1,4)+4)&"-"&TEXT(MID(CRCP_y1,3,2)+5,"00"),VALUE(LEFT(CRCP_y1,4)+4)) -> 2019-20
C40: =IF(dms_RPT="financial",VALUE(LEFT(CRCP_y1,4)+5)&"-"&TEXT(MID(CRCP_y1,3,2)+6,"00"),VALUE(LEFT(CRCP_y1,4)+5)) -> 2020-21 | D40: =IF(dms_RPT="financial",VALUE(LEFT(CRCP_y1,4)+6)&"-"&TEXT(MID(CRCP_y1,3,2)+7,"00"),VALUE(LEFT(CRCP_y1,4)+6)) -> 2021-22 | E40: =IF(dms_RPT="financial",VALUE(LEFT(CRCP_y1,4)+7)&"-"&TEXT(MID(CRCP_y1,3,2)+8,"00"),VALUE(LEFT(CRCP_y1,4)+7)) -> 2022-23 | F40: =IF(dms_RPT="financial",VALUE(LEFT(CRCP_y1,4)+8)&"-"&TEXT(MID(CRCP_y1,3,2)+9,"00"),VALUE(LEFT(CRCP_y1,4)+8)) -> 2023-24 | G40: =IF(dms_RPT="financial",VALUE(LEFT(CRCP_y1,4)+9)&"-"&TEXT(MID(CRCP_y1,3,2)+10,"00"),VALUE(LEFT(CRCP_y1,4)+9)) -> 2024-25
C41: =IF(dms_RPT="financial",VALUE(LEFT(CRCP_y1,4)+10)&"-"&TEXT(MID(CRCP_y1,3,2)+11,"00"),VALUE(LEFT(CRCP_y1,4)+10)) -> 2025-26 | D41: =IF(dms_RPT="financial",VALUE(LEFT(CRCP_y1,4)+11)&"-"&TEXT(MID(CRCP_y1,3,2)+12,"00"),VALUE(LEFT(CRCP_y1,4)+11)) -> 2026-27 | E41: =IF(dms_RPT="financial",VALUE(LEFT(CRCP_y1,4)+12)&"-"&TEXT(MID(CRCP_y1,3,2)+13,"00"),VALUE(LEFT(CRCP_y1,4)+12)) -> 2027-28 | F41: =IF(dms_RPT="financial",VALUE(LEFT(CRCP_y1,4)+13)&"-"&TEXT(MID(CRCP_y1,3,2)+14,"00"),VALUE(LEFT(CRCP_y1,4)+13)) -> 2028-29 | G41: =IF(dms_RPT="financial",VALUE(LEFT(CRCP_y1,4)+14)&"-"&TEXT(MID(CRCP_y1,3,2)+15,"00"),VALUE(LEFT(CRCP_y1,4)+14)) -> 2029-30
B44: Previous regulatory control period | C44: =IF(dms_RPT="financial",VALUE(LEFT(PRCP_y2,4)-1)&"-"&TEXT(VALUE(MID(PRCP_y2,3,2)),"00"),VALUE(LEFT(PRCP_y2,4)-1)) -> 2010-11 | D44: =IF(dms_RPT="financial",VALUE(LEFT(PRCP_y3,4)-1)&"-"&TEXT(VALUE(MID(PRCP_y3,3,2)),"00"),VALUE(LEFT(PRCP_y3,4)-1)) -> 2011-12 | E44: =IF(dms_RPT="financial",VALUE(LEFT(PRCP_y4,4)-1)&"-"&TEXT(VALUE(MID(PRCP_y4,3,2)),"00"),VALUE(LEFT(PRCP_y4,4)-1)) -> 2012-13 | F44: =IF(dms_RPT="financial",VALUE(LEFT(PRCP_y5,4)-1)&"-"&TEXT(VALUE(RIGHT(PRCP_y5,2)-1),"00"),VALUE(LEFT(PRCP_y5,4)-1)) -> 2013-14 | G44: =IF(dms_RPT="financial",VALUE(LEFT(CRCP_y1,4)-1)&"-"&TEXT(VALUE(RIGHT(CRCP_y1,2)-1),"00"),VALUE(LEFT(CRCP_y1,4)-1)) -> 2014-15
B48: Commencing regulatory year | C48: 2018-19 | D48: CRY
B50: Last completed regulatory year | C50: 2024-25 | D50: dms_FinalYear
C54: IF THIS IS AN ABC RIN - make sure the the named range CRY is applied and the named range dms_dollar_nom_UOM is applied
C55: IF THIS IS A RESET RIN - make sure the named ranges CRY and dms_dollar_nom_UOM are NOT present in the workbook
C56: FOR ABC RINS THAT SPAN MULTIPLE YEARS - make sure MultiYear Flag is set and final year entered as required
B58: Source | C58: Regulatory proposal | E58: Please select the correct submission type from the dropdown list.
B59: Data quality (actual, estimate, public, consolidated) | C59: Public | E59: Use Consolidated for Consolidated Confidential version Use Public for Consolidated Public version
B60: Amended RIN submission - amendment reason | C60: .
B61: Submission Date | C61: 2019-01-31 | D61: dms_SubmissionDate | E61: Please enter date this file submitted to AER (dd/mm/yyyy)
B62: EBSS - First application of scheme in forthcoming period? | C62: No
B63: Sector | C63: =INDEX(dms_Sector_List,MATCH(dms_TradingName,dms_TradingName_List)) -> Electricity | D63: dms_Sector | E63: =INDEX(dms_Sector_List,MATCH(dms_TradingName,dms_TradingName_List))
B64: Segment | C64: =INDEX(dms_Segment_List,MATCH(dms_TradingName,dms_TradingName_List)) -> Distribution | D64: dms_Segment | E64: =INDEX(dms_Segment_List,MATCH(dms_TradingName,dms_TradingName_List))
B65: Regulatory Year Ending | C65: =IF(dms_MultiYear_Flag=1,LEFT(dms_Specified_FinalYear,2)&RIGHT(dms_Specified_FinalYear,2),INDEX(dms_RYE_Formula_Result,MATCH(dms_Model,dms_Model_List))) -> 2025 | D65: dms_RYE | E65: =IF(dms_MultiYear_Flag=1,LEFT(dms_Specified_FinalYear,2)&RIGHT(dms_Specified_FinalYear,2),INDEX(dms_RYE_Formula_Result,MATCH(dms_Model,dms_Model_List)))
B66: Reporting Period Type | C66: =INDEX(dms_RPT_List,MATCH(dms_TradingName,dms_TradingName_List)) -> Financial | D66: dms_RPT | E66: =INDEX(dms_RPT_List,MATCH(dms_TradingName,dms_TradingName_List))
B67: Model or RIN Type | C67: Reset | D67: dms_Model | E67: Drop down selection
B68: EB/CA Unit of Measure for Monetary Values | C68: $0s | D68: dms_dollar_nom_UOM | E68: If the cover sheet is attached to an ABC RIN apply the NAMED RANGE to the cell
B69: Security Classification | C69: Public | D69: dms_Classification | E69: Always Public
B70: Jurisdiction | C70: =INDEX(dms_JurisdictionList,MATCH(dms_TradingName,dms_TradingName_List)) -> Qld | D70: dms_Jurisdiction | E70: =INDEX(dms_JurisdictionList,MATCH(dms_TradingName,dms_TradingName_List))
B71: FORECAST and MultiYear RINS
B72: CRY-1 (last full calendar year before CRY) | C72: =IF(dms_RPT="financial",VALUE(LEFT(dms_SingleYear_FinalYear_Result,4)),VALUE(LEFT(dms_SingleYear_FinalYear_Result,4)-1)) ->  | D72: dms_Cal_Year_B4_CRY | E72: '=IF(dms_RPT="financial",VALUE(LEFT(dms_SingleYear_FinalYear_Result,4)),VALUE(LEFT(dms_SingleYear_FinalYear_Result,4)-1))
B73: Dollar $ real month | C73: =INDEX(dms_RPTMonth_List,MATCH(dms_TradingName,dms_TradingName_List)) -> June | D73: dms_RPTMonth | E73: =INDEX(dms_RPTMonth_List,MATCH(dms_TradingName,dms_TradingName_List))
B74: Dollar $ real (the last month before the FRCP_y1) | C74: =IF(SUM(dms_SingleYear_Model)>0,CONCATENATE(dms_RPTMonth)&" "&VALUE((LEFT(CRY,2))&RIGHT(CRY,2)),CONCATENATE(dms_RPTMonth)&" "&VALUE((LEFT(dms_CRCP_FinalYear_Result,2)&RIGHT(dms_CRCP_FinalYear_Result,2)))) -> June 2020 | D74: dms_DollarReal | E74: =IF(SUM(dms_SingleYear_Model)>0,CONCATENATE(dms_RPTMonth)&" "&VALUE((LEFT(CRY,2))&RIGHT(CRY,2)),CONCATENATE(dms_RPTMonth)&" "&VALUE((LEFT(dms_CRCP_FinalYear_Result,2)&RIGHT(dms_CRCP_FinalYear_Result,2))))
B75: Dollar $ real previous year (PRCP_y5) | C75: =IF(SUM(dms_SingleYear_Model)>0,CONCATENATE(dms_RPTMonth)&" "&VALUE(((LEFT(CRY,2))&RIGHT(CRY,2))-1),CONCATENATE(dms_RPTMonth)&" "&VALUE(((LEFT(dms_CRCP_FirstYear_Result,2)&RIGHT(dms_CRCP_FirstYear_Result,2))))-1) -> June 2015 | D75: dms_DollarReal_Prev | E75: =IF(SUM(dms_SingleYear_Model)>0,CONCATENATE(dms_RPTMonth)&" "&VALUE(((LEFT(CRY,2))&RIGHT(CRY,2))-1),CONCATENATE(dms_RPTMonth)&" "&VALUE(((LEFT(dms_CRCP_FirstYear_Result,2)&RIGHT(dms_CRCP_FirstYear_Result,2))))-1)
B76: This block works out the various RYE's for ALL RIN types and MODELS
B77: Single Year Model T/F | C77: =IF(dms_Model="EB",1,0) -> 0 | D77: dms_EB
C78: =IF(dms_Model="CA",1,0) -> 0 | D78: dms_CA | E78: =dms_SingleYear_Model
C79: =IF(dms_Model="ARR",1,0) -> 0 | D79: dms_ARR
B80: Is this a single Year RIN? | C80: =IF(SUM(dms_SingleYear_Model)=1,"yes","no") -> no | E80: =IF(SUM(dms_SingleYear_Model)=1,"yes","no")
B81: Single Year Final Year Reference | C81: CRY | D81: dms_SingleYear_FinalYear_Ref | E81: This is the reference for EB, CA & ARR RINs
B82: Single Year Final Year Result | C82: =IFERROR(IF(SUM(dms_SingleYear_Model)<>0,(INDIRECT(dms_SingleYear_FinalYear_Ref)),"not a single year RIN"),"CRY not present") -> not a single year RIN | D82: dms_SingleYear_FinalYear_Result | E82: =IFERROR(IF(SUM(dms_SingleYear_Model)<>0,(INDIRECT(dms_SingleYear_FinalYear_Ref)),"not a single year RIN"),"CRY not present")
B83: FRCP length in years | C83: =INDEX(dms_FRCPlength_List,MATCH(dms_TradingName,dms_TradingName_List)) -> 5 | D83: dms_FRCPlength_Num | E83: =INDEX(dms_FRCPlength_List,MATCH(dms_TradingName,dms_TradingName_List))
B84: Multi Year Final Year Reference | C84: =INDEX(dms_FinalYear_List,MATCH(dms_FRCPlength_Num,dms_FRCPlength_Num_List)) -> dms_FRCP_y5 | D84: dms_MultiYear_FinalYear_Ref | E84: =INDEX(dms_FinalYear_List,MATCH(dms_FRCPlength_Num,dms_FRCPlength_Num_List))
B85: Multi Year Final Year Result | C85: =IF(dms_MultiYear_Flag=0,INDIRECT(dms_MultiYear_FinalYear_Ref),dms_Specified_FinalYear) -> 2024-25 | D85: dms_MultiYear_FinalYear_Result | E85: =IF(dms_MultiYear_Flag=0,INDIRECT(dms_MultiYear_FinalYear_Ref),dms_Specified_FinalYear) | I85: Formula errors OK
B86: CRCP length in years | C86: =INDEX(dms_CRCPlength_List,MATCH(dms_TradingName,dms_TradingName_List)) -> 5 | D86: dms_CRCPlength_Num | E86: =INDEX(dms_CRCPlength_List,MATCH(dms_TradingName,dms_TradingName_List))
B87: CRCP Final Year Reference | C87: =INDEX(dms_CFinalYear_List,MATCH(dms_CRCPlength_Num,dms_CRCPlength_Num_List)) -> CRCP_y5 | D87: dms_CRCP_FinalYear_Ref | E87: =INDEX(dms_CFinalYear_List,MATCH(dms_CRCPlength_Num,dms_CRCPlength_Num_List))
B88: CRCP First Year Result | C88: =INDEX(dms_CRCP_years,MATCH(dms_CRCPlength_Num,dms_CRCP_index)) -> 2015-16 | D88: dms_CRCP_FirstYear_Result | E88: =INDEX(dms_CRCP_years,MATCH(dms_CRCPlength_Num,dms_CRCP_index))
B89: CRCP Final Year Result | C89: =IF(dms_MultiYear_Flag=0,(IF(SUM(dms_SingleYear_Model)>0,CRY,dms_CRCP_yZ)),dms_Specified_FinalYear) -> 2019-20 | D89: dms_CRCP_FinalYear_Result | E89: =IF(dms_MultiYear_Flag=0,(IF(SUM(dms_SingleYear_Model)>0,CRY,dms_CRCP_yZ)),dms_Specified_FinalYear)
B90: PTRM/ RFMs
B91: Form of control | C91: =INDEX(dms_FormControl_List,MATCH(dms_TradingName,dms_TradingName_List)) -> Revenue cap | D91: dms_FormControl | E91: =INDEX(dms_FormControl_List,MATCH(dms_TradingName,dms_TradingName_List))
B92: ABC RINS THAT SPAN MULTIPLE YEARS
B93: Is this a multi year ABC RIN? | C93: No
B94: Multiyear EB, CA or ARR? | C94: =IF(dms_MultiYear_ResponseFlag="No",0,1) -> 0 | D94: dms_MultiYear_Flag | E94: This is set from the answer provided above
C95: =IF(dms_MultiYear_Flag=1,FRY,"not a Multiple year submission") -> not a Multiple year submission | D95: dms_Specified_FinalYear | E95: The result here is returned to dms_CRCP_FinalYear_Result if response to Q in C73 is "yes" and dms_MultiYear_Flag is set to 1
B96: Start year for 5.2 in Multi year RINS | C96: =IF(dms_MultiYear_Flag=1,FRY,CRY) -> 2018-19 | D96: dms_0502_Inst_Year | E96: =IF(dms_MultiYear_Flag=1,FRY,CRY) | G96: For single year RINS this is CRY - multi year RINS need to start a the end of the span of years (ie. FRY)
B97: EB RINS
B98: Calendar Year for table 3.6 data | C98: =IF(dms_RPT="financial",VALUE(LEFT(dms_SingleYear_FinalYear_Result,4)),VALUE(LEFT(dms_SingleYear_FinalYear_Result,4)-1)) ->  | D98: dms_0306_Year | E98: =IF(dms_RPT="financial",VALUE(LEFT(dms_SingleYear_FinalYear_Result,4)),VALUE(LEFT(dms_SingleYear_FinalYear_Result,4)-1))
B99: CA RINS
B100: Find how many rows in tables 6.3 sustained interruptions? | E100: dms_060301_MaxRows only returns a valid value when cover sheet is attached to a CA file
C101: =IF(dms_Model<>"CA","not a CA","Is a CA") -> not a CA | E101: =IF(dms_Model<>"CA","not a CA","Is a CA")
B102: dms_060301_Avg_Duration_Sustained_Int_Values present? | C102: =IFERROR(IF(INDEX(dms_060301_Avg_Duration_Sustained_Int_Values,1,1)<>"","yes","no"),"no") -> no | D102: dms_060301_checkvalue | E102: =IFERROR(IF(INDEX(dms_060301_Avg_Duration_Sustained_Int_Values,1,1)<>"","yes","no"),"no")
C103: =IF(AND(dms_Model="CA",(dms_060301_checkvalue="no")),"error - NR not present","no errors") -> no errors | E103: =IF(AND(dms_Model="CA",(dms_060301_checkvalue="no")),"error - NR not present","no errors")
B104: Table 6.3.1 - last row reference | C104: =IFERROR(IF(dms_Model="CA",LOOKUP(2,1/(dms_060301_Avg_Duration_Sustained_Int_Values<>""),(ROW(dms_060301_Avg_Duration_Sustained_Int_Values))),"not a CA"),"6.3 not present") -> not a CA | D104: dms_060301_LastRow | E104: =IFERROR(IF(dms_Model="CA",LOOKUP(2,1/(dms_060301_Avg_Duration_Sustained_Int_Values<>""),(ROW(dms_060301_Avg_Duration_Sustained_Int_Values))),"not a CA"),"6.3 not present")
B105: Table 6.3.1 - max number rows | C105: =IFERROR(IF(dms_Model="CA",(dms_060301_LastRow-15),"not a CA"),"error") -> not a CA | D105: dms_060301_MaxRows | E105: =IFERROR(IF(dms_Model="CA",(dms_060301_LastRow-15),"not a CA"),"error")
B106: Table 6.6.3 - Public lighting repair - no. business days | C106: =INDEX(dms_663_List,MATCH(dms_TradingName,dms_TradingName_List)) -> 5 | D106: dms_663 | E106: =INDEX(dms_663_List,MATCH(dms_TradingName,dms_TradingName_List))
B107: ARR or RESET RINS
B108: How many rows in tables 6.1 or 6.7? (leap year?) | C108: insert dms_LeapYear NR if required | E108: 'dms_LeapYear is used to determine dms_060701_Max_Rows BUT it is only found on worksheet 6.1 or 6.7 and the date value in the cell is used to determine whether it is a leap year
B109: Is dms_LeapYear named range present? | C109: =IFERROR(IF(dms_LeapYear,"yes"),"no") -> no
B110: Table 6.7.1 - includes a leap year? | C110: =IFERROR(IF(MONTH(DATE(YEAR(dms_LeapYear),2,29))=2,"is a leap year","not a leap year"), "dms_LeapYear not present") -> dms_LeapYear not present | D110: dms_LeapYear_Result | E110: =IFERROR(IF(MONTH(DATE(YEAR(dms_LeapYear),2,29))=2,"is a leap year","not a leap year"),"dms_LeapYear not present")
B111: MaxRows if Reset and leap year | C111: =IF(dms_LeapYear_Result="is a leap year",1827,1826) -> 1826 | D111: dms_060701_Reset_MaxRows | E111: =IF(dms_LeapYear_Result="is a leap year",1827,1826) | H111: number of days present in Reset RIN table
B112: MaxRows if ARR and leap year | C112: =IF(dms_LeapYear_Result="is a leap year",366,365) -> 365 | D112: dms_060701_ARR_MaxRows | E112: =IF(dms_LeapYear_Result="is a leap year",366,365) | H112: number of days present in ARR RIN table
B113: Table 6.7.1 - Max Rows (leap year/ non leap year) | C113: =IF(dms_Model="ARR",dms_060701_ARR_MaxRows,IF(dms_Model="Reset",dms_060701_Reset_MaxRows,"not a relevant RIN type")) -> 1826 | D113: dms_060701_MaxRows | E113: =IF(dms_Model="ARR",dms_060701_ARR_MaxRows,IF(dms_Model="Reset",dms_060701_Reset_MaxRows,"not a relevant RIN type"))
B114: How many columns in 6.7? (4 or 5 feeder categories) | C114: =IF(dms_FifthFeeder_flag_NSP="NO","This NSP has only 4 feeder categories","This NSP has 5 feeder categories") -> This NSP has only 4 feeder categories
B115: Table 6.7.1 - Last column (# of feeder categories > 4) | C115: =IF(dms_FifthFeeder_flag_NSP="NO",10,12) -> 10 | D115: dms_060701_MaxCols | E115: =IF(dms_FifthFeeder_flag_NSP="NO",8,10)
B116: Table 6.7.1 - Number of offset rows | C116: =IF(dms_Model="ARR",15,9) -> 9 | D116: dms_060701_OffsetRows | E116: =IF(dms_Model="ARR",15,9)
B117: Start date for telephone answering in 6.1 or 6.7? | E117: Using 060101 as naming standard not 060701 for start dates
B118: Table 6.1.1 and 6.7.1 - Start Date as Text | C118: =IF(SUM(dms_SingleYear_Model)>0,(CONCATENATE(IF(LEN(CRY)=4,"1-Jan-","1-Jul-"),LEFT(CRY,4))),(CONCATENATE(IF(LEN(CRCP_y4)=4,"1-Jan-","1-Jul-"),LEFT(CRCP_y4,4)))) -> 1-Jul-2018 | D118: dms_060101_StartDateTxt | E118: =IF(SUM(dms_SingleYear_Model)>1,(CONCATENATE(IF(LEN(CRY)=4,"1-Jan-","1-Jul-"),LEFT(CRY,4))),(CONCATENATE(IF(LEN(CRCP_y4)=4,"1-Jan-","1-Jul-"),LEFT(CRCP_y4,4))))
B119: Table 6.1.1 and 6.7.1 - Start Date as Date Value | C119: =DATEVALUE(dms_060701_StartDateTxt) -> 43282 | D119: dms_060101_StartDateVal | E119: =DATEVALUE(dms_060701_StartDateTxt)
B120: ARRs
B121: How many rows in table 6.8? | C121: insert dms_060801_StartCell NR if required | E121: dms_060801_StartCell is only found on worksheet 6.8 and is used to determine the starting date for the date range
B122: Is dms_060801_StartCell named range present? | C122: yes | E122: =IFERROR(IF((ROW(dms_060801_StartCell)-1)=1,"yes","yes"),"no")
B123: Table 6.8 - Number of offset rows | C123: 12 | D123: dms_0608_OffsetRows | E123: =IFERROR(IF(dms_Model="ARR",(ROW(dms_060801_StartCell)-1),"not an ARR"),"6.8 error")
B124: Table 6.8 - Last row | C124: 6.8 not present | D124: dms_0608_LastRow | E124: =IFERROR(IF(dms_060801_StartCell<>"",IF(dms_Model="ARR",(LOOKUP(2,1/(dms_060801_01_Values<>""),(ROW(dms_060801_01_Values)))),"not an ARR"),0),"6.8 not present")
B125: Table 6.8 - MaxRows | C125: =IFERROR(IF(dms_Model="ARR",(MAX(0,dms_0608_LastRow-dms_0608_OffsetRows)),"not an ARR"),"6.8 not present") -> not an ARR | D125: dms_060801_MaxRows | E125: =IFERROR(IF(dms_Model="ARR",(MAX(0,dms_0608_LastRow-dms_0608_OffsetRows)),"not an ARR"),"6.8 not present")
B126: TNSP RESET RINS
B127: Table 7.9.4 only appears in TNSPs Reset RIN
B128: Table 7.9.4 - first year | C128: =LEFT(PRCP_y3,4) -> 2012 | D128: dms_070904_Start_Year | E128: =LEFT(PRCP_y3,4)
B129: SUBSET FILES
B130: Is this Submission File a Subset File | C130: NO | D130: dms_Partial
B131: MISC
B132: Distribution Determination Reference | C132: =INDEX(dms_DeterminationRef_List,MATCH(dms_TradingName,dms_TradingName_List)) -> 2015-20 Distribution Determination | D132: dms_DeterminationRef
B133: Public lighting NSP? | C133: =INDEX(dms_Public_Lighting_List,MATCH(dms_TradingName,dms_TradingName_List)) -> YES | D133: dms_Public_Lighting | E133: =INDEX(dms_Public_Lighting_List,MATCH(dms_TradingName,dms_TradingName_List))
B134: CBD Feeder for this business | C134: =INDEX(dms_CBD_flag,MATCH(dms_TradingName,dms_TradingName_List)) -> NO | D134: dms_CBD_flag_NSP
B135: Urban Feeder for this business | C135: =INDEX(dms_Urban_flag,MATCH(dms_TradingName,dms_TradingName_List)) -> YES | D135: dms_Urban_flag_NSP
B136: Short rural Feeder for this business | C136: =INDEX(dms_ShortRural_flag,MATCH(dms_TradingName,dms_TradingName_List)) -> YES | D136: dms_ShortRural_flag_NSP
B137: Long rural Feeder for this business | C137: =INDEX(dms_LongRural_flag,MATCH(dms_TradingName,dms_TradingName_List)) -> YES | D137: dms_LongRural_flag_NSP
B138: Fifth Feeder Category (eg. TasNetworks (D)) | C138: =INDEX(dms_FeederType_5_flag,MATCH(dms_TradingName,dms_TradingName_List)) -> NO | D138: dms_FifthFeeder_flag_NSP | E138: =INDEX(dms_FeederType_5_flag,MATCH(dms_TradingName,dms_TradingName_List))
B140: DISCARD FILES
B141: discard this record? | C141: NO | D141: dms_DISCARD | E141: If record is to be discarded from DB set this flag to YES
B143: USES NAMED RANGES FLAG | C143: yes | D143: dms_Defined_Names_Used
B145: REGULATORY YEARS FOR MULTI RYE SUBMISSIONS
B146: Multiple RYE flag | C146: NO | D146: dms_Multi_RYE_flag
C147: Manually specify RYE | D147: Named ranges to apply
C148: 2013 | D148: dms_RYE_01
C149: 2014 | D149: dms_RYE_02
C150: 2015 | D150: dms_RYE_03
C151: 2016 | D151: dms_RYE_04
C152: 2017 | D152: dms_RYE_05
C153: 2018 | D153: dms_RYE_06
C154: 2019 | D154: dms_RYE_07
C155: 2020 | D155: dms_RYE_08
C156: 2021 | D156: dms_RYE_09

Sheet CPI series
B1: =SheetHeader -> REGULATORY REPORTING STATEMENT
B2: =dms_TradingName -> Ergon Energy
B3: =dms_Reg_Year_Span -> 2020-21 to 2024-25
B4: CPI SERIES
B8: NOMINATED CPI SERIES
B10: Name of CPI series | C10: 6401.0 Weighted average of eight capital cities
C12: =CRCP_y1 -> 2015-16 | D12: =CRCP_y2 -> 2016-17 | E12: =CRCP_y3 -> 2017-18 | F12: =CRCP_y4 -> 2018-19 | G12: =CRCP_y5 -> 2019-20 | H12: =FRCP_y1 -> 2020-21 | I12: =FRCP_y2 -> 2021-22 | J12: =FRCP_y3 -> 2022-23 | K12: =FRCP_y4 -> 2023-24 | L12: =FRCP_y5 -> 2024-25
B13: Series data | C13: 0.01023255814 | D13: 0.01933701657 | E13: 0.02077687444 | F13: 0.02 | G13: 0.0225 | H13: 0.0242 | I13: 0.0242 | J13: 0.0242 | K13: 0.0242 | L13: 0.0242

Sheet 2.1 Expenditure summary
B1: =SheetHeader -> REGULATORY REPORTING STATEMENT
B2: =dms_TradingName -> Ergon Energy
B3: =dms_Reg_Year_Span -> 2020-21 to 2024-25
B4: 2.1 EXPENDITURE SUMMARY & RECONCILIATION
B8: 2.1.1 - STANDARD CONTROL SERVICES CAPEX
C9: =CONCATENATE("Forecast ($0's, real ", dms_DollarReal, ")") -> Forecast ($0's, real June 2020)
C10: =CRCP_y4 -> 2018-19 | D10: =CRCP_y5 -> 2019-20 | E10: =FRCP_y1 -> 2020-21 | F10: =FRCP_y2 -> 2021-22 | G10: =FRCP_y3 -> 2022-23 | H10: =FRCP_y4 -> 2023-24 | I10: =FRCP_y5 -> 2024-25
B11: Replacement expenditure | C11: 179754562.8 | D11: 187540012.6 | E11: 200126997.9 | F11: 199649577 | G11: 221336906 | H11: 234164927.3 | I11: 239130411.6
B12: Connections | C12: 89044852.41 | D12: 89320548.99 | E12: 79325036.33 | F12: 76754383 | G12: 72773723.24 | H12: 73016935.58 | I12: 74044888.93
B13: Augmentation Expenditure | C13: 38361717.88 | D13: 35575508.99 | E13: 55530856.53 | F13: 61523463.68 | G13: 56138596.66 | H13: 42317598.98 | I13: 33002601.32
B14: Non-network | C14: 196441926.6 | D14: 161371229.3 | E14: 162879668.7 | F14: 168574128.3 | G14: 169914503.5 | H14: 153401760.9 | I14: 157495672.6
B15: Public lighting | C15: 0 | D15: 0 | E15: 0 | F15: 0 | G15: 0 | H15: 0 | I15: 0
B16: Metering | C16: 0 | D16: 0 | E16: 0 | F16: 0 | G16: 0 | H16: 0 | I16: 0
B17: Capitalised network overheads | C17: 59206525.08 | D17: 59206525.08 | E17: 59590885.58 | F17: 60513452.71 | G17: 62104328.22 | H17: 64336096.89 | I17: 67275308.09
B18: Capitalised corporate overheads | C18: 11277433.35 | D18: 11277433.35 | E18: 11350644.87 | F18: 11526371.94 | G18: 11829395.85 | H18: 12254494.65 | I18: 12814344.4
B19: capcons (included in the above) | C19: 48182542.84 | D19: 48269059.62 | E19: 38268455.01 | F19: 35476874.97 | G19: 32008700.98 | H19: 32040187.33 | I19: 32075924.23
B20: Total | C20: =SUM(C11:C18) -> 574087018.1 | D20: =SUM(D11:D18) -> 544291258.3 | E20: =SUM(E11:E18) -> 568804089.9 | F20: 578541376.6 | G20: 594097453.5 | H20: 579491814.3 | I20: 583763226.9
B23: 2.1.2 - STANDARD CONTROL SERVICES OPEX BY CATEGORY
C24: =CONCATENATE("Forecast ($0's, real ", dms_DollarReal, ")") -> Forecast ($0's, real June 2020)
C25: =CRCP_y4 -> 2018-19 | D25: =CRCP_y5 -> 2019-20
B26: Vegetation management | C26: 41333551.9 | D26: 40574236.61
B27: Maintenance | C27: 83118208.73 | D27: 81591291.16
B28: Emergency response | C28: 50852669.92 | D28: 49918484.3
B29: Non-network | C29: 49716303.18 | D29: 48802993.11
B30: Metering | C30: 0 | D30: 0
B31: Network overheads | C31: 134306792 | D31: 131839517.9
B32: Corporate overheads | C32: 36255714.6 | D32: 35589681.38
B33: Total | C33: =SUM(C26:C32) -> 395583240.3 | D33: =SUM(D26:D32) -> 388316204.5
B36: 2.1.3 - ALTERNATIVE CONTROL SERVICES CAPEX
C37: =CONCATENATE("Forecast ($0's, real ", dms_DollarReal, ")") -> Forecast ($0's, real June 2020)
C38: =CRCP_y4 -> 2018-19 | D38: =CRCP_y5 -> 2019-20 | E38: =FRCP_y1 -> 2020-21 | F38: =FRCP_y2 -> 2021-22 | G38: =FRCP_y3 -> 2022-23 | H38: =FRCP_y4 -> 2023-24 | I38: =FRCP_y5 -> 2024-25
B39: Connections | C39: 0 | D39: 0 | E39: 0 | F39: 0 | G39: 0 | H39: 0 | I39: 0
B40: Metering | C40: 4401292.202 | D40: 3608799.097 | E40: 3693859.714 | F40: 3793221.817 | G40: 3604279.901 | H40: 3030441.39 | I40: 3030970.657
B41: Public lighting | C41: 14020336.82 | D41: 14229544.85 | E41: 13602218.41 | F41: 15285063.86 | G41: 16441407.31 | H41: 17357418.12 | I41: 18760958.93
B42: Fee and quoted | C42: 1891775.306 | D42: 1881482.212 | E42: 2158545.354 | F42: 2071400.46 | G42: 1984239.809 | H42: 1890386.476 | I42: 1788455.501
B43: Network overheads | C43: 2652605.649 | D43: 2725815.837 | E43: 2941040.107 | F43: 2864576.203 | G43: 2676441.915 | H43: 2515984.934 | I43: 2220930.024
B44: Corporate overheads | C44: 903464.2642 | D44: 944201.4612 | E44: 1158697.875 | F44: 1116825.323 | G44: 1053969.214 | H44: 995329.8373 | I44: 909832.851
B45: Total | C45: =SUM(C39:C44) -> 23869474.24 | D45: 23389843.45 | E45: 23554361.46 | F45: 25131087.66 | G45: 25760338.15 | H45: 25789560.76 | I45: 26711147.97
B48: 2.1.4 - ALTERNATIVE CONTROL SERVICES OPEX
C49: =CONCATENATE("Forecast ($0's, real ", dms_DollarReal, ")") -> Forecast ($0's, real June 2020)
C50: =CRCP_y4 -> 2018-19 | D50: =CRCP_y5 -> 2019-20 | E50: =FRCP_y1 -> 2020-21 | F50: =FRCP_y2 -> 2021-22 | G50: =FRCP_y3 -> 2022-23 | H50: =FRCP_y4 -> 2023-24 | I50: =FRCP_y5 -> 2024-25
B51: Connections | C51: 0 | D51: 0 | E51: 0 | F51: 0 | G51: 0 | H51: 0 | I51: 0
B52: Metering | C52: 28083214.14 | D52: 28083214.14 | E52: 25642163.39 | F52: 23510131 | G52: 21643001.29 | H52: 19975536.82 | I52: 18481750.56
B53: Public lighting | C53: 10715185.71 | D53: 10715185.71 | E53: 10661378.18 | F53: 10562754.62 | G53: 10289810.57 | H53: 10051328.12 | I53: 9733587.186
B54: Fee and quoted | C54: 10720060.07 | D54: 10661732.54 | E54: 12231757.01 | F54: 11737935.94 | G54: 11244025.58 | H54: 10712190.03 | I54: 10134581.17
B55: Network overheads | C55: 9927683.123 | D55: 10158160.58 | E55: 11234734.68 | F55: 10627753.54 | G55: 10037741.94 | H55: 9477787.753 | I55: 8922803.945
B56: Corporate overheads | C56: 5354112.6 | D56: 7526805.478 | E56: 4213382.141 | F56: 4093570.592 | G56: 3950988.337 | H56: 3794671.404 | I56: 3615363.875
B57: Total | C57: =SUM(C51:C56) -> 64800255.64 | D57: 67145098.44 | E57: 63983415.4 | F57: 60532145.68 | G57: 57165567.72 | H57: 54011514.12 | I57: 50888086.74
B60: 2.1.5 - DUAL FUNCTION ASSETS CAPEX
C61: =CONCATENATE("Forecast ($0's, real ", dms_DollarReal, ")") -> Forecast ($0's, real June 2020)
C62: =CRCP_y4 -> 2018-19 | D62: =CRCP_y5 -> 2019-20 | E62: =FRCP_y1 -> 2020-21 | F62: =FRCP_y2 -> 2021-22 | G62: =FRCP_y3 -> 2022-23 | H62: =FRCP_y4 -> 2023-24 | I62: =FRCP_y5 -> 2024-25
B63: Replacement expenditure
B64: Connections
B65: Augmentation expenditure
B66: Non-network
B67: Capitalised network overheads
B68: Capitalised corporate overheads
B69: capcons (included in the above)
B70: Total | C70: =SUM(C63:C68) -> 0 | D70: =SUM(D63:D68) -> 0 | E70: 0 | F70: 0 | G70: 0 | H70: 0 | I70: 0
B73: 2.1.6 - DUAL FUNCTION ASSETS OPEX BY CATEGORY
C74: =CONCATENATE("Forecast ($0's, real ", dms_DollarReal, ")") -> Forecast ($0's, real June 2020)
C75: =CRCP_y4 -> 2018-19 | D75: =CRCP_y5 -> 2019-20
B76: Vegetation management
B77: Maintenance
B78: Emergency response
B79: Non-network
B80: Metering
B81: Network overheads
B82: Corporate overheads
B97: Total | C97: =SUM(C76:C96) -> 0 | D97: =SUM(D76:D96) -> 0
B100: 2.1.7 - STANDARD CONTROL SERVICES CAPCONS
C101: =CONCATENATE("Forecast ($0's, real ", dms_DollarReal, ")") -> Forecast ($0's, real June 2020)
C102: =CRCP_y4 -> 2018-19 | D102: =CRCP_y5 -> 2019-20 | E102: =FRCP_y1 -> 2020-21 | F102: =FRCP_y2 -> 2021-22 | G102: =FRCP_y3 -> 2022-23 | H102: =FRCP_y4 -> 2023-24 | I102: =FRCP_y5 -> 2024-25
B103: Replacement expenditure | C103: 0 | D103: 0 | E103: 0 | F103: 0 | G103: 0 | H103: 0 | I103: 0
B104: Connections | C104: 48182542.84 | D104: 48269059.62 | E104: 38268455.01 | F104: 35476874.97 | G104: 32008700.98 | H104: 32040187.33 | I104: 32075924.23
B105: Augmentation Expenditure | C105: 0 | D105: 0 | E105: 0 | F105: 0 | G105: 0 | H105: 0 | I105: 0
B106: Non-network | C106: 0 | D106: 0 | E106: 0 | F106: 0 | G106: 0 | H106: 0 | I106: 0
B107: Capitalised network overheads | C107: 0 | D107: 0 | E107: 0 | F107: 0 | G107: 0 | H107: 0 | I107: 0
B108: Capitalised corporate overheads | C108: 0 | D108: 0 | E108: 0 | F108: 0 | G108: 0 | H108: 0 | I108: 0
B109: Total | C109: =SUM(C103:C108) -> 48182542.84 | D109: =SUM(D103:D108) -> 48269059.62 | E109: 38268455.01 | F109: 35476874.97 | G109: 32008700.98 | H109: 32040187.33 | I109: 32075924.23
B112: 2.1.8 - STANDARD CONTROL SERVICES CAPITALISED OVERHEADS
C113: =CONCATENATE("Forecast ($0's, real ", dms_DollarReal, ")") -> Forecast ($0's, real June 2020)
C114: =CRCP_y4 -> 2018-19 | D114: =CRCP_y5 -> 2019-20 | E114: =FRCP_y1 -> 2020-21 | F114: =FRCP_y2 -> 2021-22 | G114: =FRCP_y3 -> 2022-23 | H114: =FRCP_y4 -> 2023-24 | I114: =FRCP_y5 -> 2024-25
B115: Replacement expenditure | C115: 52872017.96 | D115: 52913495.28 | E115: 51658927.41 | F115: 52768014.46 | G115: 56192981.81 | H115: 60669389.63 | I115: 64759234.24
B116: Connections | C116: 8617089.49 | D116: 8695512.01 | E116: 7817531.305 | F116: 7895790.502 | G116: 7510572.256 | H116: 7870941.946 | I116: 8882588.543
B117: Augmentation Expenditure | C117: 8994850.98 | D117: 8874951.145 | E117: 11465071.74 | F117: 11376019.69 | G117: 10230170 | H117: 8050259.96 | I117: 6447829.707
B118: Non-network | C118: 0 | D118: 0 | E118: 0 | F118: 0 | G118: 0 | H118: 0 | I118: 0
B119: capcons (included in the above) | C119: 0 | D119: 0 | E119: 0 | F119: 0 | G119: 0 | H119: 0 | I119: 0
B120: Total | C120: =SUM(C115:C118) -> 70483958.43 | D120: =SUM(D115:D118) -> 70483958.43 | E120: 70941530.45 | F120: 72039824.66 | G120: 73933724.07 | H120: 76590591.53 | I120: 80089652.49

Sheet 2.2 Repex
B1: =SheetHeader -> REGULATORY REPORTING STATEMENT
B2: =dms_TradingName -> Ergon Energy
B3: =dms_Reg_Year_Span -> 2020-21 to 2024-25
B4: 2.2 REPEX
B6: There is ONE table on this worksheet. The table has been sub-grouped for easy navigation. See the Instructions sheet on how to group or ungroup tables.
B8: 2.2.1 - REPLACEMENT EXPENDITURE, VOLUMES AND ASSET FAILURES BY ASSET CATEGORY
B9: EXPENDITURE
E10: =CONCATENATE("EXPENDITURE ($0's, real ", dms_DollarReal,")") -> EXPENDITURE ($0's, real June 2020)
B11: ASSET GROUP | C11: ASSET CATEGORY | E11: =CRCP_y4 -> 2018-19 | F11: =CRCP_y5 -> 2019-20 | G11: =FRCP_y1 -> 2020-21 | H11: =FRCP_y2 -> 2021-22 | I11: =FRCP_y3 -> 2022-23 | J11: =FRCP_y4 -> 2023-24 | K11: =FRCP_y5 -> 2024-25
B12: POLES BY: HIGHEST OPERATING VOLTAGE ; MATERIAL TYPE | C12: Staking of a wooden pole | E12: 4187710.508 | F12: 5148554.278 | G12: 4848055.649 | H12: 4851028.021 | I12: 4866211.97 | J12: 4883391.276 | K12: 4900736.048
C13: ˂ = 1 kV; Wood | E13: 13641354.37 | F13: 12365248.61 | G13: 11946207.08 | H13: 11953531.37 | I13: 11990949.1 | J13: 12033281.03 | K13: 12076018.08
C14: > 1 kV & < = 11 kV; Wood | E14: 10784067.25 | F14: 9438381.656 | G14: 14014513.12 | H14: 14023104.45 | I14: 14067000.48 | J14: 14116661.56 | K14: 14166798.94
C15: ˃ 11 kV & < = 22 kV; Wood | E15: 10784067.25 | F15: 9438381.656 | G15: 17570322.95 | H15: 17581095.43 | I15: 17636127.86 | J15: 17698390.17 | K15: 17761247.26
C16: > 22 kV & < = 66 kV; Wood | E16: 5134455.385 | F16: 3828025.41 | G16: 2640136.458 | H16: 2641755.142 | I16: 2650024.536 | J16: 2659379.982 | K16: 2668824.958
C17: > 66 kV & < = 132 kV; Wood | E17: 0 | F17: 0 | G17: 0 | H17: 0 | I17: 0 | J17: 0 | K17: 0
C18: > 132 kV; Wood | E18: 0 | F18: 0 | G18: 0 | H18: 0 | I18: 0 | J18: 0 | K18: 0
C19: ˂ = 1 kV; Concrete | E19: 0 | F19: 0 | G19: 0 | H19: 0 | I19: 0 | J19: 0 | K19: 0
C20: > 1 kV & < = 11 kV; Concrete | E20: 0 | F20: 0 | G20: 0 | H20: 0 | I20: 0 | J20: 0 | K20: 0
C21: ˃ 11 kV & < = 22 kV; Concrete | E21: 0 | F21: 0 | G21: 0 | H21: 0 | I21: 0 | J21: 0 | K21: 0
C22: > 22 kV & < = 66 kV; Concrete | E22: 593.2493822 | F22: 225999.5639 | G22: 3710372.866 | H22: 4205407.021 | I22: 7082979.922 | J22: 8660128.583 | K22: 0
C23: > 66 kV & < = 132 kV; Concrete | E23: 0 | F23: 0 | G23: 0 | H23: 0 | I23: 0 | J23: 0 | K23: 0
C24: > 132 kV; Concrete | E24: 0 | F24: 0 | G24: 0 | H24: 0 | I24: 0 | J24: 0 | K24: 0
C25: ˂ = 1 kV; Steel | E25: 0 | F25: 0 | G25: 0 | H25: 0 | I25: 0 | J25: 0 | K25: 0
C26: > 1 kV & < = 11 kV; Steel | E26: 0 | F26: 0 | G26: 0 | H26: 0 | I26: 0 | J26: 0 | K26: 0
C27: ˃ 11 kV & < = 22 kV; Steel | E27: 0 | F27: 0 | G27: 0 | H27: 0 | I27: 0 | J27: 0 | K27: 0
C28: > 22 kV & < = 66 kV; Steel | E28: 0 | F28: 0 | G28: 0 | H28: 0 | I28: 0 | J28: 0 | K28: 0
C29: > 66 kV & < = 132 kV; Steel | E29: 0 | F29: 0 | G29: 0 | H29: 0 | I29: 0 | J29: 0 | K29: 0
C30: > 132 kV; Steel | E30: 0 | F30: 0 | G30: 0 | H30: 0 | I30: 0 | J30: 0 | K30: 0
C31: Other | E31: 0 | F31: 0 | G31: 0 | H31: 0 | I31: 0 | J31: 0 | K31: 0
B32: POLE TOP STRUCTURES BY: HIGHEST OPERATING VOLTAGE | C32: ˂ = 1 kV | E32: 6132188.097 | F32: 5748630.77 | G32: 5097552.551 | H32: 5100677.891 | I32: 5116644.366 | J32: 5134707.78 | K32: 5152944.057
C33: > 1 kV & < = 11 kV | E33: 6999120.384 | F33: 6959976.462 | G33: 7759770.493 | H33: 7764528.055 | I33: 7788833.088 | J33: 7816330.194 | K33: 7844090.443
C34: ˃ 11 kV & < = 22 kV | E34: 5908143.2 | F34: 6157062.422 | G34: 9536450.357 | H34: 9542297.212 | I34: 9572166.078 | J34: 9605959.987 | K34: 9640076.233
C35: > 22 kV & < = 66 kV | E35: 1534398.958 | F35: 1725330.424 | G35: 2446231.814 | H35: 2566351.76 | I35: 3263923.615 | J35: 3649088.263 | K35: 1569923.796
C36: > 66 kV & < = 132 kV | E36: 12654.2306 | F36: 15620.47752 | G36: 14692.24717 | H36: 14701.25508 | I36: 14747.27391 | J36: 14799.33657 | K36: 14851.89746
C37: > 132 kV | E37: 0 | F37: 0 | G37: 0 | H37: 0 | I37: 0 | J37: 0 | K37: 0
C38: Other | E38: 0 | F38: 0 | G38: 0 | H38: 0 | I38: 0 | J38: 0 | K38: 0
B39: STAKING WOODEN POLES BY: HIGHEST OPERATING VOLTAGE | C39: ˂ = 1 Kv | D39: for year wooden pole staked
C40: > 1 kV & < = 11 kV | D40: for year wooden pole staked
C41: ˃ 11 kV & < = 22 kV | D41: for year wooden pole staked
C42: > 22 kV & < = 66 kV | D42: for year wooden pole staked
C43: > 66 kV & < = 132 kV | D43: for year wooden pole staked
C44: > 132 kV | D44: for year wooden pole staked
B45: OVERHEAD CONDUCTORS BY: Highest operating voltage; Number of phases (at HV) | C45: ˂ = 1 kV | D45: per km | E45: 11928585.45 | F45: 10328687.76 | G45: 10117649.03 | H45: 10123852.22 | I45: 10155542.56 | J45: 10191394.92 | K45: 10227590.38
C46: > 1 kV & < = 11 kV | D46: per km | E46: 910173.1072 | F46: 623407.1039 | G46: 5632682.848 | H46: 5636136.279 | I46: 5653778.881 | J46: 5673738.554 | K46: 5693889.237
C47: ˃ 11 kV & < = 22 kV ; SWER | D47: per km | E47: 449336.3549 | F47: 467109.6006 | G47: 673094.62 | H47: 673507.2984 | I47: 675615.5549 | J47: 678000.6969 | K47: 680408.6643
C48: ˃ 11 kV & < = 22 kV ; Single-Phase | D48: per km | E48: 0 | F48: 0 | G48: 0 | H48: 0 | I48: 0 | J48: 0 | K48: 0
C49: ˃ 11 kV & < = 22 kV ; Multiple-Phase | D49: per km | E49: 91858.81863 | F49: 56365.01368 | G49: 2901975.395 | H49: 2903754.613 | I49: 2912844.136 | J49: 2923127.42 | K49: 2933509.114
C50: > 22 kV & < = 66 kV | D50: per km | E50: 110.6415366 | F50: 42063.80477 | G50: 690582.9369 | H50: 782719.7784 | I50: 1318298.839 | J50: 1611841.8 | K50: 0
C51: > 66 kV & < = 132 kV | D51: per km | E51: 0 | F51: 0 | G51: 0 | H51: 0 | I51: 0 | J51: 0 | K51: 0
C52: > 132 kV | D52: per km | E52: 0 | F52: 0 | G52: 0 | H52: 0 | I52: 0 | J52: 0 | K52: 0
C53: Other | D53: per km | E53: 0 | F53: 0 | G53: 0 | H53: 0 | I53: 0 | J53: 0 | K53: 0
B54: UNDERGROUND CABLES BY: Highest operating voltage | C54: ˂ = 1 kV | D54: per km | E54: 638487.0184 | F54: 754896.6672 | G54: 718528.9117 | H54: 718969.4461 | I54: 721220.0112 | J54: 723766.1517 | K54: 726336.6584
C55: > 1 kV & < = 11 kV | D55: per km | E55: 120669.8748 | F55: 120669.8748 | G55: 120420.2741 | H55: 120494.1045 | I55: 120871.283 | J55: 121297.9978 | K55: 121728.7962
C56: > 11 kV & < = 22 kV | D56: per km | E56: 0 | F56: 0 | G56: 0 | H56: 0 | I56: 0 | J56: 0 | K56: 0
C57: > 22 kV & < = 33 kV | D57: per km | E57: 0 | F57: 0 | G57: 0 | H57: 0 | I57: 0 | J57: 0 | K57: 0
C58: > 33 kV & < = 66 kV | D58: per km | E58: 0 | F58: 0 | G58: 0 | H58: 0 | I58: 0 | J58: 0 | K58: 0
C59: > 66 kV & < = 132 kV | D59: per km | E59: 0 | F59: 0 | G59: 0 | H59: 0 | I59: 0 | J59: 0 | K59: 0
C60: > 132 kV | D60: per km | E60: 0 | F60: 0 | G60: 0 | H60: 0 | I60: 0 | J60: 0 | K60: 0
C61: Other | D61: per km | E61: 0 | F61: 0 | G61: 0 | H61: 0 | I61: 0 | J61: 0 | K61: 0
B62: SERVICE LINES BY: Connection voltage; Customer type; Connection complexity | C62: ˂ = 11 kV ; Residential ; Simple Type | D62: per number of spans | E62: 5278191.386 | F62: 4619881.619 | G62: 6660581.777 | H62: 6664665.42 | I62: 6685527.591 | J62: 6709129.671 | K62: 6732957.619
C63: ˂ = 11 kV ; Commercial & Industrial ; Simple Type | D63: per number of spans | E63: 3320858.304 | F63: 2934790.995 | G63: 3936686.261 | H63: 3939099.867 | I63: 3951430.294 | J63: 3965380.125 | K63: 3979463.452
C64: ˂ = 11 kV ; Residential ; Complex Type | D64: per number of spans | E64: 56463.01047 | F64: 67541.91634 | G64: 65467.35789 | H64: 65507.49632 | I64: 65712.55217 | J64: 65944.53878 | K64: 66178.74547
C65: ˂ = 11 kV ; Commercial & Industrial ; Complex Type | D65: per number of spans | E65: 0 | F65: 0 | G65: 0 | H65: 0 | I65: 0 | J65: 0 | K65: 0
C66: ˂ = 11 kV ; Subdivision ; Complex Type | D66: per number of spans | E66: 0 | F66: 0 | G66: 0 | H66: 0 | I66: 0 | J66: 0 | K66: 0
C67: > 11 kV & < = 22 kV ; Commercial & Industrial | D67: per number of spans | E67: 0 | F67: 0 | G67: 0 | H67: 0 | I67: 0 | J67: 0 | K67: 0
C68: > 11 kV & < = 22 kV ; Subdivision | D68: per number of spans | E68: 0 | F68: 0 | G68: 0 | H68: 0 | I68: 0 | J68: 0 | K68: 0
C69: > 22 kV & < = 33 kV ; Commercial & Industrial | D69: per number of spans | E69: 0 | F69: 0 | G69: 0 | H69: 0 | I69: 0 | J69: 0 | K69: 0
C70: > 22 kV & < = 33 kV ; Subdivision | D70: per number of spans | E70: 0 | F70: 0 | G70: 0 | H70: 0 | I70: 0 | J70: 0 | K70: 0
C71: > 33 kV & < = 66 kV ; Commercial & Industrial | D71: per number of spans | E71: 0 | F71: 0 | G71: 0 | H71: 0 | I71: 0 | J71: 0 | K71: 0
C72: > 33 kV & < = 66 kV ; Subdivision | D72: per number of spans | E72: 0 | F72: 0 | G72: 0 | H72: 0 | I72: 0 | J72: 0 | K72: 0
C73: > 66 kV & < = 132 kV ; Commercial & Industrial | D73: per number of spans | E73: 0 | F73: 0 | G73: 0 | H73: 0 | I73: 0 | J73: 0 | K73: 0
C74: > 66 kV & < = 132 kV ; Subdivision | D74: per number of spans | E74: 0 | F74: 0 | G74: 0 | H74: 0 | I74: 0 | J74: 0 | K74: 0
C75: > 132 kV ; Commercial & Industrial | D75: per number of spans | E75: 0 | F75: 0 | G75: 0 | H75: 0 | I75: 0 | J75: 0 | K75: 0
C76: > 132 kV ; Subdivision | D76: per number of spans | E76: 0 | F76: 0 | G76: 0 | H76: 0 | I76: 0 | J76: 0 | K76: 0
C77: Other | D77: per number of spans | E77: 0 | F77: 0 | G77: 0 | H77: 0 | I77: 0 | J77: 0 | K77: 0
B78: TRANSFORMERS BY: Mounting type; Highest operating voltage; Ampere rating; Number of phases (at LV) | C78: Pole Mounted ; < = 22kV ; < = 60 kVA ; Single Phase | E78: 7044921.765 | F78: 6479393.883 | G78: 6367283.639 | H78: 6371187.459 | I78: 6391130.966 | J78: 6413693.731 | K78: 6436472.417
C79: Pole Mounted ; < = 22kV ; > 60 kVA and < = 600 kVA ; Single Phase | E79: 486019.8198 | F79: 456263.5688 | G79: 558578.7954 | H79: 558921.2634 | I79: 560670.8353 | J79: 562650.1851 | K79: 564648.477
C80: Pole Mounted ; < = 22kV ; > 600 kVA ; Single Phase | E80: 0 | F80: 0 | G80: 0 | H80: 0 | I80: 0 | J80: 0 | K80: 0
C81: Pole Mounted ; < = 22kV ; < = 60 kVA ; Multiple Phase | E81: 4308992.599 | F81: 3358744.074 | G81: 2807176.12 | H81: 2808897.216 | I81: 2817689.81 | J81: 2827637.169 | K81: 2837679.722
C82: Pole Mounted ; < = 22kV ; > 60 kVA and < = 600 kVA ; Multiple Phase | E82: 18788186.86 | F82: 17024932.73 | G82: 15974694.65 | H82: 15984488.83 | I82: 16034524.52 | J82: 16091131.59 | K82: 16148280.38
C83: Pole Mounted ; < = 22kV ; > 600 kVA ; Multiple Phase | E83: 1838452.438 | F83: 1627711.923 | G83: 2109033.595 | H83: 2110326.656 | I83: 2116932.538 | J83: 2124405.997 | K83: 2131950.975
C84: Kiosk Mounted ; < = 22kV ; < = 60 kVA ; Single Phase | E84: 0 | F84: 0 | G84: 0 | H84: 0 | I84: 0 | J84: 0 | K84: 0
C85: Kiosk Mounted ; < = 22kV ; > 60 kVA and < = 600 kVA ; Single Phase | E85: 0 | F85: 0 | G85: 0 | H85: 0 | I85: 0 | J85: 0 | K85: 0
C86: Kiosk Mounted ; < = 22kV ; > 600 kVA ; Single Phase | E86: 0 | F86: 0 | G86: 0 | H86: 0 | I86: 0 | J86: 0 | K86: 0
C87: Kiosk Mounted ; < = 22kV ; < = 60 kVA ; Multiple Phase | E87: 0 | F87: 0 | G87: 0 | H87: 0 | I87: 0 | J87: 0 | K87: 0
C88: Kiosk Mounted ; < = 22kV ; > 60 kVA and < = 600 kVA ; Multiple Phase | E88: 3446425.911 | F88: 3497590.773 | G88: 3486541.129 | H88: 3490816.806 | I88: 3622114.971 | J88: 3597532.086 | K88: 3526350.897
C89: Kiosk Mounted ; < = 22kV ; > 600 kVA ; Multiple Phase | E89: 960143.04 | F89: 998112.0542 | G89: 1107311.934 | H89: 1107990.834 | I89: 1111459.139 | J89: 1115382.95 | K89: 1119344.312
C90: Ground Outdoor / Indoor Chamber Mounted; ˂ 22 kV ; < = 60 kVA ; Single Phase | E90: 0 | F90: 0 | G90: 0 | H90: 0 | I90: 0 | J90: 0 | K90: 0
C91: Ground Outdoor / Indoor Chamber Mounted; ˂ 22 kV ; > 60 kVA and < = 600 kVA ; Single Phase | E91: 0 | F91: 0 | G91: 0 | H91: 0 | I91: 0 | J91: 0 | K91: 0
C92: Ground Outdoor / Indoor Chamber Mounted; ˂ 22 kV ; > 600 kVA ; Single Phase | E92: 0 | F92: 0 | G92: 0 | H92: 0 | I92: 0 | J92: 0 | K92: 0
C93: Ground Outdoor / Indoor Chamber Mounted; ˂ 22 kV ; < = 60 kVA ; Multiple Phase | E93: 0 | F93: 0 | G93: 0 | H93: 0 | I93: 0 | J93: 0 | K93: 0
C94: Ground Outdoor / Indoor Chamber Mounted; ˂ 22 kV ; > 60 kVA and < = 600 kVA ; Multiple Phase | E94: 64861.22996 | F94: 57426.1187 | G94: 74407.63026 | H94: 74453.25002 | I94: 74686.30845 | J94: 74949.97533 | K94: 75216.16547
C95: Ground Outdoor / Indoor Chamber Mounted; ˂ 22 kV ; > 600 kVA ; Multiple Phase | E95: 88811.43459 | F95: 78632.41322 | G95: 109401.0887 | H95: 101946.028 | I95: 189463.2056 | J95: 347256.9208 | K95: 493441.8561
C96: Ground Outdoor / Indoor Chamber Mounted; > = 22 kV & < = 33 kV ; < = 15 MVA | E96: 1593307.674 | F96: 2763427.276 | G96: 585759.2424 | H96: 456259.7435 | I96: 569971.7927 | J96: 3924193.651 | K96: 4867501.048
C97: Ground Outdoor / Indoor Chamber Mounted; > = 22 kV & < = 33 kV ; > 15 MVA and < = 40 MVA | E97: 208871.2003 | F97: 1102602.975 | G97: 12029.72428 | H97: 33591.29462 | I97: 148819.5414 | J97: 802781.39 | K97: 1241877.781
C98: Ground Outdoor / Indoor Chamber Mounted; > = 22 kV & < = 33 kV ; > 40 MVA | E98: 0 | F98: 0 | G98: 0 | H98: 0 | I98: 0 | J98: 0 | K98: 0
C99: Ground Outdoor / Indoor Chamber Mounted; > 33 kV & < = 66 kV ; < = 15 MVA | E99: 740422.6467 | F99: 905598.8699 | G99: 85643.4348 | H99: 298915.6994 | I99: 2319532.344 | J99: 2512656.614 | K99: 3786346.266
C100: Ground Outdoor / Indoor Chamber Mounted; > 33 kV & < = 66 kV ; > 15 MVA and < = 40 MVA | E100: 23022.92318 | F100: 5600.569212 | G100: 94770.88294 | H100: 153028.9963 | I100: 1785004.883 | J100: 2213466.82 | K100: 3185575.747
C101: Ground Outdoor / Indoor Chamber Mounted; > 33 kV & < = 66 kV ; > 40 MVA | E101: 0 | F101: 0 | G101: 0 | H101: 0 | I101: 0 | J101: 0 | K101: 0
C102: Ground Outdoor / Indoor Chamber Mounted; > 66 kV & < = 132 kV ; < = 100 MVA | E102: 433801.2294 | F102: 2330966.389 | G102: 88965.27912 | H102: 624547.6577 | I102: 927863.3898 | J102: 802781.39 | K102: 1241877.781
C103: Ground Outdoor / Indoor Chamber Mounted; > 66 kV & < = 132 kV ; > 100 MVA | E103: 0 | F103: 0 | G103: 0 | H103: 0 | I103: 0 | J103: 0 | K103: 0
C104: Ground Outdoor / Indoor Chamber Mounted; > 132 kV ; < = 100 MVA | E104: 0 | F104: 0 | G104: 0 | H104: 0 | I104: 0 | J104: 0 | K104: 0
C105: Ground Outdoor / Indoor Chamber Mounted; > 132 kV ; > 100 MVA | E105: 0 | F105: 0 | G105: 0 | H105: 0 | I105: 0 | J105: 0 | K105: 0
C106: Other | E106: 0 | F106: 0 | G106: 0 | H106: 0 | I106: 0 | J106: 0 | K106: 0
B107: SWITCHGEAR BY: Highest operating voltage; Switch function | C107: ˂ = 11 kV ; FUSE | E107: 2958239.625 | F107: 2685011.931 | G107: 2103616.013 | H107: 2104905.752 | I107: 2111494.666 | J107: 2118948.927 | K107: 2126474.524
C108: ˂ = 11 kV ; Switch | E108: 3932286.618 | F108: 3684166.123 | G108: 4488686.564 | H108: 4800614.248 | I108: 6409281.132 | J108: 7251556.285 | K108: 7156888.301
C109: ˂ = 11 kV ; Circuit Breaker | E109: 1003929.692 | F109: 2205833.973 | G109: 488827.4256 | H109: 1144895.488 | I109: 5226186.044 | J109: 6839170.42 | K109: 5005728.291
C110: > 11 kV & < = 22 kV ; Switch | E110: 4288781.025 | F110: 3047328.19 | G110: 3238117.858 | H110: 3242899.9 | I110: 3400810.868 | J110: 3564915.712 | K110: 4060041.268
C111: > 11 kV & < = 22 kV ; Circuit Breaker | E111: 807183.7499 | F111: 960596.1435 | G111: 1318949.906 | H111: 673418.9141 | I111: 673274.4832 | J111: 675502.0113 | K111: 677901.1044
C112: > 22 kV & < = 33 kV ; Switch | E112: 246537.7943 | F112: 442735.7969 | G112: 216951.4506 | H112: 195065.2002 | I112: 978813.8912 | J112: 1311799.339 | K112: 1231980.413
C113: > 22 kV & < = 33 kV ; Circuit Breaker | E113: 561729.189 | F113: 885614.9009 | G113: 225909.5993 | H113: 350528.9735 | I113: 875005.6221 | J113: 1341896.902 | K113: 1412993.494
C114: > 33 kV & < = 66 kV ; Switch | E114: 1523552.927 | F114: 1511190.579 | G114: 7210813.374 | H114: 3999654.686 | I114: 7683651.629 | J114: 3843176.499 | K114: 3068824.866
C115: > 33 kV & < = 66 kV ; Circuit Breaker | E115: 7325748.952 | F115: 7469891.693 | G115: 2067311.272 | H115: 830966.0316 | I115: 2220854.8 | J115: 2756628.528 | K115: 5101809.608
C116: > 66 kV & < = 132 kV ; Switch | E116: 0 | F116: 0 | G116: 0 | H116: 0 | I116: 0 | J116: 0 | K116: 0
C117: > 66 kV & < = 132 kV ; Circuit Breaker | E117: 0 | F117: 0 | G117: 0 | H117: 2711.504032 | I117: 182692.2521 | J117: 241793.1115 | K117: 263931.5688
C118: > 132 kV ; Switch | E118: 0 | F118: 0 | G118: 0 | H118: 0 | I118: 0 | J118: 0 | K118: 0
C119: > 132 kV ; Circuit Breaker | E119: 0 | F119: 0 | G119: 0 | H119: 0 | I119: 0 | J119: 0 | K119: 0
C120: Other | E120: 0 | F120: 0 | G120: 0 | H120: 0 | I120: 0 | J120: 0 | K120: 0
B121: PUBLIC LIGHTING BY: Asset type ; Lighting obligation | C121: Luminaires ; Major Road | E121: 599059.6434 | F121: 595843.6628 | G121: 489235.4267 | H121: 489535.3799 | I121: 491067.7555 | J121: 492801.3839 | K121: 494551.6028
C122: Luminaires ; Minor Road | E122: 916434.3644 | F122: 969846.8297 | G122: 865637.5077 | H122: 866168.2352 | I122: 868879.5716 | J122: 871946.9982 | K122: 875043.7796
C123: Brackets ; Major Road | E123: 332232.2988 | F123: 310199.8808 | G123: 248982.6946 | H123: 249136.3996 | I123: 249916.2626 | J123: 250798.548 | K123: 251689.2768
C124: Brackets ; Minor Road | E124: 280622.7637 | F124: 267460.6358 | G124: 215973.5097 | H124: 216105.9244 | I124: 216782.3933 | J124: 217547.7054 | K124: 218320.3415
C125: Lamps ; Major Road | E125: 38652.88426 | F125: 38736.12884 | G125: 34144.85814 | H125: 34165.79256 | I125: 34272.74055 | J125: 34393.73444 | K125: 34515.88622
C126: Lamps ; Minor Road | E126: 24883.80845 | F126: 27293.6865 | G126: 26143.61933 | H126: 26159.64814 | I126: 26241.53477 | J126: 26334.1759 | K126: 26427.70359
C127: Poles / Columns ; Major Road | E127: 223859.4405 | F127: 261688.3087 | G127: 250173.0484 | H127: 250326.431 | I127: 251110.0192 | J127: 251996.519 | K127: 252891.5024
C128: Poles / Columns ; Minor Road | E128: 434845.4748 | F128: 510951.046 | G128: 487694.9069 | H128: 487993.9156 | I128: 489521.466 | J128: 491249.6355 | K128: 492994.3433
C129: Other | E129: 0 | F129: 0 | G129: 0 | H129: 0 | I129: 0 | J129: 0 | K129: 0
B130: SCADA, NETWORK CONTROL AND PROTECTION SYSTEMS BY: Function | C130: Field Devices | E130: 6068383.757 | F130: 8192979.445 | G130: 3363245.919 | H130: 3924905.769 | I130: 2838778.454 | J130: 6796595.318 | K130: 11814625.96
C131: Local Network Wiring Assets | E131: 0 | F131: 0 | G131: 0 | H131: 0 | I131: 0 | J131: 0 | K131: 0
C132: Communications Network Assets | E132: 3495819.454 | F132: 12155389.01 | G132: 6185213.131 | H132: 6401122.38 | I132: 3848258.484 | J132: 2637205.339 | K132: 2481216.112
C133: Master Station Assets | E133: 0 | F133: 0 | G133: 0 | H133: 0 | I133: 0 | J133: 0 | K133: 0
C134: Communications Site Infrastructure | E134: 1246016.535 | F134: 3499956.394 | G134: 3249882.592 | H134: 1506718.712 | I134: 1405820.933 | J134: 673328.5044 | K134: 691809.0794
C135: Communications Linear Assets | E135: 0 | F135: 515671.7516 | G135: 513721.8043 | H135: 514036.7702 | I135: 1181280.705 | J135: 1180997.015 | K135: 525560.732
C136: AFLC | E136: 9651.103182 | F136: 0 | G136: 0 | H136: 0 | I136: 0 | J136: 0 | K136: 0
C137: Other | E137: 0 | F137: 0 | G137: 0 | H137: 0 | I137: 0 | J137: 0 | K137: 0
B138: OTHER BY: enter DNSP defined asset group here | C138: CURRENT TRANSFORMERS | E138: 2946061.68 | F138: 2331565.961 | G138: 2360885.968 | H138: 2142502.75 | I138: 3183443.735 | J138: 3669659.256 | K138: 6269793.565
C139: VOLTAGE TRANSFORMERS | E139: 1387835.803 | F139: 2071894.49 | G139: 1399788.812 | H139: 1180254.468 | I139: 1818201.026 | J139: 2057300.56 | K139: 3211407.121
C140: CAPACITOR BANKS | E140: 0 | F140: 0 | G140: 0 | H140: 0 | I140: 0 | J140: 0 | K140: 0
C141: STATIC VAR COMPENSATOR | E141: 34331.54195 | F141: 111240.0547 | G141: 2714582.996 | H141: 2457029.852 | I141: 894104.6717 | J141: 107383.1049 | K141: 3489212.649
C142: REGULATORS | E142: 116491.8396 | F142: 103138.9867 | G142: 133637.1976 | H142: 133719.1313 | I142: 134137.7077 | J142: 134611.2573 | K142: 135089.3387
C143: UNALLOCATED | E143: 0 | F143: 0 | G143: 0 | H143: 0 | I143: 0 | J143: 0 | K143: 0
C144: Return to service | E144: 10443191.21 | F144: 5470062.777 | G144: 8914628.23 | H144: 8917493.871 | I144: 8945407.993 | J144: 8976988.183 | K144: 9008870.591
C145: Transformer Bunding | E145: 568472.0003 | F145: 2226391.17 | G145: 2750670.065 | H145: 0 | I145: 0 | J145: 0 | K145: 0
C146: LV Network Safety | E146: 0 | F146: 3233703.332 | G146: 0 | H146: 6457985.05 | I146: 9717300.912 | J146: 13002141.87 | K146: 14135680.33
E147: 0 | F147: 0 | G147: 0 | H147: 0 | I147: 0 | J147: 0 | K147: 0
E148: 0 | F148: 0 | G148: 0 | H148: 0 | I148: 0 | J148: 0 | K148: 0
E149: 0 | F149: 0 | G149: 0 | H149: 0 | I149: 0 | J149: 0 | K149: 0
E150: 0 | F150: 0 | G150: 0 | H150: 0 | I150: 0 | J150: 0 | K150: 0
E151: 0 | F151: 0 | G151: 0 | H151: 0 | I151: 0 | J151: 0 | K151: 0
E152: 0 | F152: 0 | G152: 0 | H152: 0 | I152: 0 | J152: 0 | K152: 0
E153: 0 | F153: 0 | G153: 0 | H153: 0 | I153: 0 | J153: 0 | K153: 0
E154: 0 | F154: 0 | G154: 0 | H154: 0 | I154: 0 | J154: 0 | K154: 0
E155: 0 | F155: 0 | G155: 0 | H155: 0 | I155: 0 | J155: 0 | K155: 0
E156: 0 | F156: 0 | G156: 0 | H156: 0 | I156: 0 | J156: 0 | K156: 0
E157: 0 | F157: 0 | G157: 0 | H157: 0 | I157: 0 | J157: 0 | K157: 0
E158: 0 | F158: 0 | G158: 0 | H158: 0 | I158: 0 | J158: 0 | K158: 0
E159: 0 | F159: 0 | G159: 0 | H159: 0 | I159: 0 | J159: 0 | K159: 0
E160: 0 | F160: 0 | G160: 0 | H160: 0 | I160: 0 | J160: 0 | K160: 0
E161: 0 | F161: 0 | G161: 0 | H161: 0 | I161: 0 | J161: 0 | K161: 0
E162: 0 | F162: 0 | G162: 0 | H162: 0 | I162: 0 | J162: 0 | K162: 0
E163: 0 | F163: 0 | G163: 0 | H163: 0 | I163: 0 | J163: 0 | K163: 0
E164: 0 | F164: 0 | G164: 0 | H164: 0 | I164: 0 | J164: 0 | K164: 0
E165: 0 | F165: 0 | G165: 0 | H165: 0 | I165: 0 | J165: 0 | K165: 0
E166: 0 | F166: 0 | G166: 0 | H166: 0 | I166: 0 | J166: 0 | K166: 0
E167: 0 | F167: 0 | G167: 0 | H167: 0 | I167: 0 | J167: 0 | K167: 0
E168: 0 | F168: 0 | G168: 0 | H168: 0 | I168: 0 | J168: 0 | K168: 0
E169: 0 | F169: 0 | G169: 0 | H169: 0 | I169: 0 | J169: 0 | K169: 0
E170: 0 | F170: 0 | G170: 0 | H170: 0 | I170: 0 | J170: 0 | K170: 0
E171: 0 | F171: 0 | G171: 0 | H171: 0 | I171: 0 | J171: 0 | K171: 0
E172: 0 | F172: 0 | G172: 0 | H172: 0 | I172: 0 | J172: 0 | K172: 0
E173: 0 | F173: 0 | G173: 0 | H173: 0 | I173: 0 | J173: 0 | K173: 0
E174: 0 | F174: 0 | G174: 0 | H174: 0 | I174: 0 | J174: 0 | K174: 0
E175: 0 | F175: 0 | G175: 0 | H175: 0 | I175: 0 | J175: 0 | K175: 0
E176: 0 | F176: 0 | G176: 0 | H176: 0 | I176: 0 | J176: 0 | K176: 0
E177: 0 | F177: 0 | G177: 0 | H177: 0 | I177: 0 | J177: 0 | K177: 0
E178: 0 | F178: 0 | G178: 0 | H178: 0 | I178: 0 | J178: 0 | K178: 0
B182: ASSET REPLACEMENTS
E183: ASSET REPLACEMENTS (0's)
B184: ASSET GROUP | C184: ASSET CATEGORY | E184: =CRCP_y4 -> 2018-19 | F184: =CRCP_y5 -> 2019-20 | G184: =FRCP_y1 -> 2020-21 | H184: =FRCP_y2 -> 2021-22 | I184: =FRCP_y3 -> 2022-23 | J184: =FRCP_y4 -> 2023-24 | K184: =FRCP_y5 -> 2024-25
B185: POLES BY: HIGHEST OPERATING VOLTAGE ; MATERIAL TYPE | C185: Staking of a wooden pole | E185: 1310.838777 | F185: 1613.258977 | G185: 1521.584561 | H185: 1521.584561 | I185: 1521.584561 | J185: 1521.584561 | K185: 1521.584561
C186: ˂ = 1 kV; Wood | E186: 2677.525187 | F186: 2472.048047 | G186: 2410.93177 | H186: 2410.93177 | I186: 2410.93177 | J186: 2410.93177 | K186: 2410.93177
C187: > 1 kV & < = 11 kV; Wood | E187: 1458.360826 | F187: 1304.516403 | G187: 1937.807485 | H187: 1937.807485 | I187: 1937.807485 | J187: 1937.807485 | K187: 1937.807485
C188: ˃ 11 kV & < = 22 kV; Wood | E188: 1458.360826 | F188: 1304.516403 | G188: 2417.254143 | H188: 2417.254143 | I188: 2417.254143 | J188: 2417.254143 | K188: 2417.254143
C189: > 22 kV & < = 66 kV; Wood | E189: 363.5364775 | F189: 278.184435 | G189: 199.1547659 | H189: 199.1547659 | I189: 199.1547659 | J189: 199.1547659 | K189: 199.1547659
C190: > 66 kV & < = 132 kV; Wood | E190: 0 | F190: 0 | G190: 0 | H190: 0 | I190: 0 | J190: 0 | K190: 0
C191: > 132 kV; Wood | E191: 0 | F191: 0 | G191: 0 | H191: 0 | I191: 0 | J191: 0 | K191: 0
C192: ˂ = 1 kV; Concrete | E192: 0 | F192: 0 | G192: 0 | H192: 0 | I192: 0 | J192: 0 | K192: 0
C193: > 1 kV & < = 11 kV; Concrete | E193: 0 | F193: 0 | G193: 0 | H193: 0 | I193: 0 | J193: 0 | K193: 0
C194: ˃ 11 kV & < = 22 kV; Concrete | E194: 0 | F194: 0 | G194: 0 | H194: 0 | I194: 0 | J194: 0 | K194: 0
C195: > 22 kV & < = 66 kV; Concrete | E195: 0 | F195: 0 | G195: 0 | H195: 691.2461718 | I195: 691.2461718 | J195: 0 | K195: 0
C196: > 66 kV & < = 132 kV; Concrete | E196: 0 | F196: 0 | G196: 0 | H196: 0 | I196: 0 | J196: 0 | K196: 0
C197: > 132 kV; Concrete | E197: 0 | F197: 0 | G197: 0 | H197: 0 | I197: 0 | J197: 0 | K197: 0
C198: ˂ = 1 kV; Steel | E198: 0 | F198: 0 | G198: 0 | H198: 0 | I198: 0 | J198: 0 | K198: 0
C199: > 1 kV & < = 11 kV; Steel | E199: 0 | F199: 0 | G199: 0 | H199: 0 | I199: 0 | J199: 0 | K199: 0
C200: ˃ 11 kV & < = 22 kV; Steel | E200: 0 | F200: 0 | G200: 0 | H200: 0 | I200: 0 | J200: 0 | K200: 0
C201: > 22 kV & < = 66 kV; Steel | E201: 0 | F201: 0 | G201: 0 | H201: 0 | I201: 0 | J201: 0 | K201: 0
C202: > 66 kV & < = 132 kV; Steel | E202: 0 | F202: 0 | G202: 0 | H202: 0 | I202: 0 | J202: 0 | K202: 0
C203: > 132 kV; Steel | E203: 0 | F203: 0 | G203: 0 | H203: 0 | I203: 0 | J203: 0 | K203: 0
C204: Other | E204: 0 | F204: 0 | G204: 0 | H204: 0 | I204: 0 | J204: 0 | K204: 0
B205: POLE TOP STRUCTURES BY: HIGHEST OPERATING VOLTAGE | C205: ˂ = 1 kV | E205: 5450.939705 | F205: 5220.173071 | G205: 4735.457768 | H205: 4735.457768 | I205: 4735.457768 | J205: 4735.457768 | K205: 4735.457768
... 288 more rows

Sheet 2.3 Augex (a)
B1: =SheetHeader -> REGULATORY REPORTING STATEMENT
B2: =dms_TradingName -> Ergon Energy
B3: =dms_Reg_Year_Span -> 2020-21 to 2024-25
B4: 2.3 AUGEX PROJECT DATA
B6: There are TWO tables on this worksheet - each has been 'grouped' (and sub-grouped) for easy navigation. Both ROWS and COLUMNS have been grouped. See the Instructions sheet on how to group or ungroup tables.
B9: 2.3.1 - AUGEX ASSET DATA - SUBTRANSMISSION SUBSTATIONS, SWITCHING STATIONS AND ZONE SUBSTATIONS
B10: PROJECT DESCRIPTION AND CHANGES | L10: PLANT AND EQUIPMENT EXPENDITURE AND VOLUME | X10: OTHER EXPENDITURE | Z10: TOTAL DIRECT EXPENDITURE ($0's) | AA10: YEARS INCURRED | AB10: ALL RELATED PARTY CONTRACTS | AD10: ALL NON-RELATED PARTY CONTRACTS | AE10: LAND AND EASEMENTS
B11: SUBSTATION ID | C11: SUBSTATION TYPE | D11: PROJECT ID | E11: PROJECT TYPE (drop down) | F11: PROJECT TRIGGER (drop down) | G11: VOLTAGE (KV) | H11: SUBSTATION RATING NORMAL CYCLIC (MVA) | J11: SUBSTATION RATING N-1 EMERGENCY (MVA) | L11: TRANSFORMERS | O11: SWITCHGEAR | R11: CAPACITORS | U11: OTHER PLANT ITEM | V11: INSTALLATION (LABOUR) | X11: CIVIL WORKS | Y11: OTHER DIRECT | AB11: RELATED PARTY MARGINS | AC11: TOTAL | AE11: LAND PURCHASE | AF11: EASEMENTS
H12: PRE | I12: POST | J12: PRE | K12: POST | L12: UNITS ADDED | M12: MVA ADDED | N12: =CONCATENATE("EXPENDITURE ($0's, real ", dms_DollarReal,")") -> EXPENDITURE ($0's, real June 2020) | O12: UNITS ADDED | Q12: =CONCATENATE("EXPENDITURE ($0's, real ", dms_DollarReal,")") -> EXPENDITURE ($0's, real June 2020) | R12: MVAR ADDED | T12: =CONCATENATE("EXPENDITURE ($0's, real ", dms_DollarReal,")") -> EXPENDITURE ($0's, real June 2020) | U12: =CONCATENATE("EXPENDITURE ($0's, real ", dms_DollarReal,")") -> EXPENDITURE ($0's, real June 2020) | V12: VOLUME | W12: =CONCATENATE("EXPENDITURE ($0's, real ", dms_DollarReal,")") -> EXPENDITURE ($0's, real June 2020) | X12: =CONCATENATE("EXPENDITURE ($0's, real ", dms_DollarReal,")") -> EXPENDITURE ($0's, real June 2020) | AB12: =CONCATENATE("EXPENDITURE ($0's, real ", dms_DollarReal,")") -> EXPENDITURE ($0's, real June 2020) | AE12: =CONCATENATE("EXPENDITURE ($0's, real ", dms_DollarReal,")") -> EXPENDITURE ($0's, real June 2020)
B13: MORASS | C13: Zone substation | D13: 1035018 | E13: Substation upgrade - capacity | F13: Demand growth | G13: 132/66/11 | H13: 40 | I13: 40 | J13: 20 | K13: 20 | L13: 0 | M13: 0 | N13: 0 | O13: 8 | Q13: 190059.8341 | R13: 0 | T13: 0 | U13: 1096647.461 | V13: 25375 | W13: 2904159.184 | X13: 233097.8602 | Y13: 532025.5469 | Z13: =SUM(N13,Q13,T13,U13,W13,X13,Y13) -> 4955989.885 | AA13: 2016, 2017, 2018, 2019 | AB13: 0 | AC13: 0 | AD13: 819513.1583 | AE13: 0 | AF13: 0
B14: GRACESS | C14: Zone substation | D14: 317031 | E14: New substation establishment | F14: Demand growth | G14: 66/11 | H14: 0 | I14: 10 | J14: 0 | K14: 0 | L14: 1 | M14: 10 | N14: 446636.9181 | O14: 4 | Q14: 414064.5699 | R14: 0 | T14: 0 | U14: 1241157.077 | V14: 17443 | W14: 1552408.89 | X14: 1201189.225 | Y14: 619023.7221 | Z14: 5474480.403 | AA14: 2016, 2017, 2018, 2019, 2020, 2021, 2022 | AB14: 0 | AC14: 0 | AD14: 1641326.203 | AE14: 0 | AF14: 0
B15: CETO/TWCE | C15: Zone substation | D15: 140507 | E15: New substation establishment | F15: Demand growth | G15: 33/11 | H15: 38.1 | I15: 84 | J15: 28.4 | K15: 44 | L15: 2 | M15: 84 | N15: 1606168.687 | O15: 18 | Q15: 1109839.069 | R15: 0 | T15: 0 | U15: 5905736.824 | V15: 15590 | W15: 12319144.15 | X15: 0 | Y15: 473731.2941 | Z15: 21414620.03 | AA15: 2013, 2014, 2015, 2016, 2017 | AB15: 0 | AC15: 0 | AD15: 10775105.58 | AE15: 0 | AF15: 0
B16: CANNSS (NEW) | C16: Zone substation | D16: 1274424 | E16: Other | F16: Other | G16: 66 | H16: 34.9 | I16: 34.9 | J16: 20 | K16: 20 | L16: 0 | M16: 0 | N16: 0 | O16: 7 | Q16: 1618905.155 | R16: 0 | T16: 0 | U16: 5743343.101 | V16: 48646 | W16: 3734785.885 | X16: 2157875.217 | Y16: 1469162.598 | Z16: 14724071.96 | AA16: 2021, 2022, 2023, 2024 | AB16: 0 | AC16: 0 | AD16: 3261498.797 | AE16: 0 | AF16: 0
B17: BLACSS (NEW) | C17: Zone substation | D17: 1274718 | E17: Other | F17: Other | G17: 66/11 | H17: 20 | I17: 20 | J17: 11 | K17: 11 | L17: 2 | M17: 20 | N17: 709110.1205 | O17: 0 | Q17: 0 | R17: 0 | T17: 0 | U17: 1721150.97 | V17: 45270 | W17: 3645737.986 | X17: 2730858.098 | Y17: 73829.10332 | Z17: 8880686.278 | AA17: 2021, 2022 | AB17: 0 | AC17: 0 | AD17: 2804687.202 | AE17: 0 | AF17: 0
B18: BROXSS | C18: Zone substation | D18: 1266675 | E18: Substation upgrade - capacity | F18: Demand growth | G18: 33/11 | H18: 12.6 | I18: 20.5 | J18: 7 | K18: 11.5 | L18: 2 | M18: 15 | N18: 1245064.887 | O18: 0 | Q18: 0 | R18: 0 | T18: 0 | U18: 857269.5123 | V18: 27038 | W18: 2035458.624 | X18: 1059357.041 | Y18: 801299 | Z18: 5998449.065 | AA18: 2019, 2020, 2021 | AB18: 0 | AC18: 0 | AD18: 1671551.138 | AE18: 0 | AF18: 0
N19: 0 | Q19: 0 | T19: 0 | U19: 0 | W19: 0 | X19: 0 | Y19: 0 | Z19: 0 | AB19: 0 | AC19: 0 | AD19: 0 | AE19: 0 | AF19: 0
N20: 0 | Q20: 0 | T20: 0 | U20: 0 | W20: 0 | X20: 0 | Y20: 0 | Z20: 0 | AB20: 0 | AC20: 0 | AD20: 0 | AE20: 0 | AF20: 0
N21: 0 | Q21: 0 | T21: 0 | U21: 0 | W21: 0 | X21: 0 | Y21: 0 | Z21: 0 | AB21: 0 | AC21: 0 | AD21: 0 | AE21: 0 | AF21: 0
N22: 0 | Q22: 0 | T22: 0 | U22: 0 | W22: 0 | X22: 0 | Y22: 0 | Z22: 0 | AB22: 0 | AC22: 0 | AD22: 0 | AE22: 0 | AF22: 0
N23: 0 | Q23: 0 | T23: 0 | U23: 0 | W23: 0 | X23: 0 | Y23: 0 | Z23: 0 | AB23: 0 | AC23: 0 | AD23: 0 | AE23: 0 | AF23: 0
N24: 0 | Q24: 0 | T24: 0 | U24: 0 | W24: 0 | X24: 0 | Y24: 0 | Z24: 0 | AB24: 0 | AC24: 0 | AD24: 0 | AE24: 0 | AF24: 0
N25: 0 | Q25: 0 | T25: 0 | U25: 0 | W25: 0 | X25: 0 | Y25: 0 | Z25: 0 | AB25: 0 | AC25: 0 | AD25: 0 | AE25: 0 | AF25: 0
N26: 0 | Q26: 0 | T26: 0 | U26: 0 | W26: 0 | X26: 0 | Y26: 0 | Z26: 0 | AB26: 0 | AC26: 0 | AD26: 0 | AE26: 0 | AF26: 0
N27: 0 | Q27: 0 | T27: 0 | U27: 0 | W27: 0 | X27: 0 | Y27: 0 | Z27: 0 | AB27: 0 | AC27: 0 | AD27: 0 | AE27: 0 | AF27: 0
N28: 0 | Q28: 0 | T28: 0 | U28: 0 | W28: 0 | X28: 0 | Y28: 0 | Z28: 0 | AB28: 0 | AC28: 0 | AD28: 0 | AE28: 0 | AF28: 0
N29: 0 | Q29: 0 | T29: 0 | U29: 0 | W29: 0 | X29: 0 | Y29: 0 | Z29: 0 | AB29: 0 | AC29: 0 | AD29: 0 | AE29: 0 | AF29: 0
N30: 0 | Q30: 0 | T30: 0 | U30: 0 | W30: 0 | X30: 0 | Y30: 0 | Z30: 0 | AB30: 0 | AC30: 0 | AD30: 0 | AE30: 0 | AF30: 0
N31: 0 | Q31: 0 | T31: 0 | U31: 0 | W31: 0 | X31: 0 | Y31: 0 | Z31: 0 | AB31: 0 | AC31: 0 | AD31: 0 | AE31: 0 | AF31: 0
N32: 0 | Q32: 0 | T32: 0 | U32: 0 | W32: 0 | X32: 0 | Y32: 0 | Z32: 0 | AB32: 0 | AC32: 0 | AD32: 0 | AE32: 0 | AF32: 0
N33: 0 | Q33: 0 | T33: 0 | U33: 0 | W33: 0 | X33: 0 | Y33: 0 | Z33: 0 | AB33: 0 | AC33: 0 | AD33: 0 | AE33: 0 | AF33: 0
N34: 0 | Q34: 0 | T34: 0 | U34: 0 | W34: 0 | X34: 0 | Y34: 0 | Z34: 0 | AB34: 0 | AC34: 0 | AD34: 0 | AE34: 0 | AF34: 0
N35: 0 | Q35: 0 | T35: 0 | U35: 0 | W35: 0 | X35: 0 | Y35: 0 | Z35: 0 | AB35: 0 | AC35: 0 | AD35: 0 | AE35: 0 | AF35: 0
N36: 0 | Q36: 0 | T36: 0 | U36: 0 | W36: 0 | X36: 0 | Y36: 0 | Z36: 0 | AB36: 0 | AC36: 0 | AD36: 0 | AE36: 0 | AF36: 0
N37: 0 | Q37: 0 | T37: 0 | U37: 0 | W37: 0 | X37: 0 | Y37: 0 | Z37: 0 | AB37: 0 | AC37: 0 | AD37: 0 | AE37: 0 | AF37: 0
N38: 0 | Q38: 0 | T38: 0 | U38: 0 | W38: 0 | X38: 0 | Y38: 0 | Z38: 0 | AB38: 0 | AC38: 0 | AD38: 0 | AE38: 0 | AF38: 0
N39: 0 | Q39: 0 | T39: 0 | U39: 0 | W39: 0 | X39: 0 | Y39: 0 | Z39: 0 | AB39: 0 | AC39: 0 | AD39: 0 | AE39: 0 | AF39: 0
N40: 0 | Q40: 0 | T40: 0 | U40: 0 | W40: 0 | X40: 0 | Y40: 0 | Z40: 0 | AB40: 0 | AC40: 0 | AD40: 0 | AE40: 0 | AF40: 0
N41: 0 | Q41: 0 | T41: 0 | U41: 0 | W41: 0 | X41: 0 | Y41: 0 | Z41: 0 | AB41: 0 | AC41: 0 | AD41: 0 | AE41: 0 | AF41: 0
N42: 0 | Q42: 0 | T42: 0 | U42: 0 | W42: 0 | X42: 0 | Y42: 0 | Z42: 0 | AB42: 0 | AC42: 0 | AD42: 0 | AE42: 0 | AF42: 0
N43: 0 | Q43: 0 | T43: 0 | U43: 0 | W43: 0 | X43: 0 | Y43: 0 | Z43: 0 | AB43: 0 | AC43: 0 | AD43: 0 | AE43: 0 | AF43: 0
N44: 0 | Q44: 0 | T44: 0 | U44: 0 | W44: 0 | X44: 0 | Y44: 0 | Z44: 0 | AB44: 0 | AC44: 0 | AD44: 0 | AE44: 0 | AF44: 0
N45: 0 | Q45: 0 | T45: 0 | U45: 0 | W45: 0 | X45: 0 | Y45: 0 | Z45: =SUM(N45,Q45,T45,U45,W45,X45,Y45) -> 0 | AB45: 0 | AC45: 0 | AD45: 0 | AE45: 0 | AF45: 0
N46: 0 | Q46: 0 | T46: 0 | U46: 0 | W46: 0 | X46: 0 | Y46: 0 | Z46: 0 | AB46: 0 | AC46: 0 | AD46: 0 | AE46: 0 | AF46: 0
N47: 0 | Q47: 0 | T47: 0 | U47: 0 | W47: 0 | X47: 0 | Y47: 0 | Z47: 0 | AB47: 0 | AC47: 0 | AD47: 0 | AE47: 0 | AF47: 0
N48: 0 | Q48: 0 | T48: 0 | U48: 0 | W48: 0 | X48: 0 | Y48: 0 | Z48: 0 | AB48: 0 | AC48: 0 | AD48: 0 | AE48: 0 | AF48: 0
N49: 0 | Q49: 0 | T49: 0 | U49: 0 | W49: 0 | X49: 0 | Y49: 0 | Z49: 0 | AB49: 0 | AC49: 0 | AD49: 0 | AE49: 0 | AF49: 0
N50: 0 | Q50: 0 | T50: 0 | U50: 0 | W50: 0 | X50: 0 | Y50: 0 | Z50: 0 | AB50: 0 | AC50: 0 | AD50: 0 | AE50: 0 | AF50: 0
N51: 0 | Q51: 0 | T51: 0 | U51: 0 | W51: 0 | X51: 0 | Y51: 0 | Z51: 0 | AB51: 0 | AC51: 0 | AD51: 0 | AE51: 0 | AF51: 0
N52: 0 | Q52: 0 | T52: 0 | U52: 0 | W52: 0 | X52: 0 | Y52: 0 | Z52: 0 | AB52: 0 | AC52: 0 | AD52: 0 | AE52: 0 | AF52: 0
N53: 0 | Q53: 0 | T53: 0 | U53: 0 | W53: 0 | X53: 0 | Y53: 0 | Z53: 0 | AB53: 0 | AC53: 0 | AD53: 0 | AE53: 0 | AF53: 0
N54: 0 | Q54: 0 | T54: 0 | U54: 0 | W54: 0 | X54: 0 | Y54: 0 | Z54: 0 | AB54: 0 | AC54: 0 | AD54: 0 | AE54: 0 | AF54: 0
N55: 0 | Q55: 0 | T55: 0 | U55: 0 | W55: 0 | X55: 0 | Y55: 0 | Z55: 0 | AB55: 0 | AC55: 0 | AD55: 0 | AE55: 0 | AF55: 0
N56: 0 | Q56: 0 | T56: 0 | U56: 0 | W56: 0 | X56: 0 | Y56: 0 | Z56: 0 | AB56: 0 | AC56: 0 | AD56: 0 | AE56: 0 | AF56: 0
N57: 0 | Q57: 0 | T57: 0 | U57: 0 | W57: 0 | X57: 0 | Y57: 0 | Z57: 0 | AB57: 0 | AC57: 0 | AD57: 0 | AE57: 0 | AF57: 0
N58: 0 | Q58: 0 | T58: 0 | U58: 0 | W58: 0 | X58: 0 | Y58: 0 | Z58: 0 | AB58: 0 | AC58: 0 | AD58: 0 | AE58: 0 | AF58: 0
N59: 0 | Q59: 0 | T59: 0 | U59: 0 | W59: 0 | X59: 0 | Y59: 0 | Z59: 0 | AB59: 0 | AC59: 0 | AD59: 0 | AE59: 0 | AF59: 0
N60: 0 | Q60: 0 | T60: 0 | U60: 0 | W60: 0 | X60: 0 | Y60: 0 | Z60: 0 | AB60: 0 | AC60: 0 | AD60: 0 | AE60: 0 | AF60: 0
N61: 0 | Q61: 0 | T61: 0 | U61: 0 | W61: 0 | X61: 0 | Y61: 0 | Z61: 0 | AB61: 0 | AC61: 0 | AD61: 0 | AE61: 0 | AF61: 0
N62: 0 | Q62: 0 | T62: 0 | U62: 0 | W62: 0 | X62: 0 | Y62: 0 | Z62: 0 | AB62: 0 | AC62: 0 | AD62: 0 | AE62: 0 | AF62: 0
N63: 0 | Q63: 0 | T63: 0 | U63: 0 | W63: 0 | X63: 0 | Y63: 0 | Z63: 0 | AB63: 0 | AC63: 0 | AD63: 0 | AE63: 0 | AF63: 0
N64: 0 | Q64: 0 | T64: 0 | U64: 0 | W64: 0 | X64: 0 | Y64: 0 | Z64: 0 | AB64: 0 | AC64: 0 | AD64: 0 | AE64: 0 | AF64: 0
D65: Non material projects - [forecast] | Z65: 17023336.8 | AA65: 2018, 2019, 2020, 2021, 2022, 2023, 2024, 2025
B68: 2.3.2 - AUGEX ASSET DATA - SUBTRANSMISSION LINES
B69: PROJECT DESCRIPTION AND CHANGES | L69: PLANT AND EQUIPMENT EXPENDITURE AND VOLUME | X69: OTHER EXPENDITURE | Z69: TOTAL DIRECT EXPENDITURE ($0's) | AA69: YEARS INCURRED | AB69: ALL RELATED PARTY CONTRACTS | AD69: ALL NON RELATED PARTY CONTRACTS | AE69: LAND AND EASEMENTS
B70: LINE ID | D70: PROJECT ID | E70: PROJECT TYPE | F70: PROJECT TRIGGER | G70: VOLTAGE (KV) | H70: ROUTE LINE LENGTH ADDED | L70: POLES/TOWERS (INCLUDING STRUCTURES, AND CIVIL WORKS) | O70: OVERHEAD LINES | R70: UNDERGROUND CABLES | U70: OTHER PLANT ITEM | V70: INSTALLATION (LABOUR) | X70: CIVIL WORKS | Y70: OTHER DIRECT | AB70: RELATED PARTY MARGINS | AC70: TOTAL | AE70: LAND PURCHASE | AF70: EASEMENTS
H71: KM ADDED | L71: POLES/TOWERS ADDED | M71: POLES/TOWERS UPGRADED | N71: =CONCATENATE("EXPENDITURE ($0's, real ", dms_DollarReal,")") -> EXPENDITURE ($0's, real June 2020) | O71: CIRCUIT KM ADDED | P71: CIRCUIT KM UPGRADED | Q71: =CONCATENATE("EXPENDITURE ($0's, real ", dms_DollarReal,")") -> EXPENDITURE ($0's, real June 2020) | R71: CIRCUIT KM ADDED | S71: CIRCUIT KM UPGRADED | T71: =CONCATENATE("EXPENDITURE ($0's, real ", dms_DollarReal,")") -> EXPENDITURE ($0's, real June 2020) | U71: =CONCATENATE("EXPENDITURE ($0's, real ", dms_DollarReal,")") -> EXPENDITURE ($0's, real June 2020) | V71: VOLUME | W71: =CONCATENATE("EXPENDITURE ($0's, real ", dms_DollarReal,")") -> EXPENDITURE ($0's, real June 2020) | X71: =CONCATENATE("EXPENDITURE ($0's, real ", dms_DollarReal,")") -> EXPENDITURE ($0's, real June 2020) | AB71: =CONCATENATE("EXPENDITURE ($0's, real ", dms_DollarReal,")") -> EXPENDITURE ($0's, real June 2020) | AE71: =CONCATENATE("EXPENDITURE ($0's, real ", dms_DollarReal,")") -> EXPENDITURE ($0's, real June 2020)
B72: Egans Hill-Gracemere 66kV - New Line Construction | D72: 575416 | E72: New line on new route - single circuit | F72: Demand growth | G72: 66 | H72: 7.4 | L72: 82 | M72: 0 | N72: 616270.5112 | O72: 6.7 | P72: 0 | Q72: 469668.084 | R72: 0.7 | S72: 0 | T72: 642791.7425 | U72: 1249862.528 | V72: 10072 | W72: 867568.0927 | X72: 783999.0641 | Y72: 175878.1102 | Z72: =SUM(N72,Q72,T72,U72,W72,X72,Y72) -> 4806038.133 | AA72: 2018, 2019, 2020, 2021, 2022 | AB72: 0 | AC72: 0 | AD72: 178489.1944 | AE72: 0 | AF72: 0
B73: Planella Second 33kV - New Line Construction | D73: 1273009 | E73: New line on new route - dual circuit | F73: Demand growth | G73: 33 | H73: 7.6 | L73: 6 | M73: 38 | N73: 386058.9696 | O73: 0.9 | P73: 3.3 | Q73: 170430.5447 | R73: 3.4 | S73: 0 | T73: 1367520.104 | U73: 500498.0572 | V73: 11814 | W73: 907636.5001 | X73: 807248.0112 | Y73: 631544.0229 | Z73: 4770936.21 | AA73: 2020, 2021, 2022, 2023 | AB73: 0 | AC73: 0 | AD73: 1438792.034 | AE73: 0 | AF73: 0
B74: DURO - CLON 66kV - Line Reinforcement | D74: 1346920 | E74: Line upgrade - raising/retensoring | F74: Demand growth | G74: 66 | H74: 0 | L74: 0 | M74: 120 | N74: 2187557.213 | O74: 0 | P74: 30 | Q74: 264135.8976 | R74: 0 | S74: 0 | T74: 0 | U74: 893748.6078 | V74: 29622 | W74: 1507136.16 | X74: 39794.92378 | Y74: 298677.1933 | Z74: 5191049.996 | AA74: 2020, 2021, 2022, 2023 | AB74: 0 | AC74: 0 | AD74: 338472.117 | AE74: 0 | AF74: 0
B75: Reinforce Burnett Heads 66kV - New Line Construction | D75: 1274346 | E75: New line on new route - dual circuit | F75: Demand growth | G75: 66 | H75: 13.2 | L75: 110 | M75: 0 | N75: 468746.1982 | O75: 13.2 | P75: 0 | Q75: 366045.594 | R75: 0.9 | S75: 0 | T75: 403133.9141 | U75: 2601700.862 | V75: 19578 | W75: 1482876.143 | X75: 515573.3378 | Y75: 1032513.748 | Z75: 6870589.797 | AA75: 2018, 2019, 2020, 2021, 2022 | AB75: 0 | AC75: 0 | AD75: 1544199.083 | AE75: 0 | AF75: 1101899.365
B76: NIKE-POVE 66kV - New Line Construction | D76: 1170529 | E76: New line on new route - single circuit | F76: Demand growth | G76: 66 | H76: 10.6 | L76: 80 | M76: 0 | N76: 447504.8003 | O76: 8 | P76: 0 | Q76: 311177.0581 | R76: 2.6 | S76: 0 | T76: 1207152.381 | U76: 431125.0838 | V76: 13795 | W76: 1097857.698 | X76: 1073060.106 | Y76: 3371662.441 | Z76: 7939539.568 | AA76: 2018, 2019, 2020, 2021, 2022 | AB76: 0 | AC76: 0 | AD76: 3541767.201 | AE76: 0 | AF76: 693889.0721
N77: 0 | Q77: 0 | T77: 0 | U77: 0 | W77: 0 | X77: 0 | Y77: 0 | Z77: 0 | AB77: 0 | AC77: 0 | AD77: 0 | AE77: 0 | AF77: 0
N78: 0 | Q78: 0 | T78: 0 | U78: 0 | W78: 0 | X78: 0 | Y78: 0 | Z78: 0 | AB78: 0 | AC78: 0 | AD78: 0 | AE78: 0 | AF78: 0
N79: 0 | Q79: 0 | T79: 0 | U79: 0 | W79: 0 | X79: 0 | Y79: 0 | Z79: 0 | AB79: 0 | AC79: 0 | AD79: 0 | AE79: 0 | AF79: 0
N80: 0 | Q80: 0 | T80: 0 | U80: 0 | W80: 0 | X80: 0 | Y80: 0 | Z80: 0 | AB80: 0 | AC80: 0 | AD80: 0 | AE80: 0 | AF80: 0
N81: 0 | Q81: 0 | T81: 0 | U81: 0 | W81: 0 | X81: 0 | Y81: 0 | Z81: 0 | AB81: 0 | AC81: 0 | AD81: 0 | AE81: 0 | AF81: 0
N82: 0 | Q82: 0 | T82: 0 | U82: 0 | W82: 0 | X82: 0 | Y82: 0 | Z82: 0 | AB82: 0 | AC82: 0 | AD82: 0 | AE82: 0 | AF82: 0
N83: 0 | Q83: 0 | T83: 0 | U83: 0 | W83: 0 | X83: 0 | Y83: 0 | Z83: 0 | AB83: 0 | AC83: 0 | AD83: 0 | AE83: 0 | AF83: 0
N84: 0 | Q84: 0 | T84: 0 | U84: 0 | W84: 0 | X84: 0 | Y84: 0 | Z84: 0 | AB84: 0 | AC84: 0 | AD84: 0 | AE84: 0 | AF84: 0
N85: 0 | Q85: 0 | T85: 0 | U85: 0 | W85: 0 | X85: 0 | Y85: 0 | Z85: 0 | AB85: 0 | AC85: 0 | AD85: 0 | AE85: 0 | AF85: 0
N86: 0 | Q86: 0 | T86: 0 | U86: 0 | W86: 0 | X86: 0 | Y86: 0 | Z86: 0 | AB86: 0 | AC86: 0 | AD86: 0 | AE86: 0 | AF86: 0
N87: 0 | Q87: 0 | T87: 0 | U87: 0 | W87: 0 | X87: 0 | Y87: 0 | Z87: 0 | AB87: 0 | AC87: 0 | AD87: 0 | AE87: 0 | AF87: 0
N88: 0 | Q88: 0 | T88: 0 | U88: 0 | W88: 0 | X88: 0 | Y88: 0 | Z88: 0 | AB88: 0 | AC88: 0 | AD88: 0 | AE88: 0 | AF88: 0
N89: 0 | Q89: 0 | T89: 0 | U89: 0 | W89: 0 | X89: 0 | Y89: 0 | Z89: 0 | AB89: 0 | AC89: 0 | AD89: 0 | AE89: 0 | AF89: 0
N90: 0 | Q90: 0 | T90: 0 | U90: 0 | W90: 0 | X90: 0 | Y90: 0 | Z90: 0 | AB90: 0 | AC90: 0 | AD90: 0 | AE90: 0 | AF90: 0
N91: 0 | Q91: 0 | T91: 0 | U91: 0 | W91: 0 | X91: 0 | Y91: 0 | Z91: 0 | AB91: 0 | AC91: 0 | AD91: 0 | AE91: 0 | AF91: 0
N92: 0 | Q92: 0 | T92: 0 | U92: 0 | W92: 0 | X92: 0 | Y92: 0 | Z92: 0 | AB92: 0 | AC92: 0 | AD92: 0 | AE92: 0 | AF92: 0
N93: 0 | Q93: 0 | T93: 0 | U93: 0 | W93: 0 | X93: 0 | Y93: 0 | Z93: 0 | AB93: 0 | AC93: 0 | AD93: 0 | AE93: 0 | AF93: 0
N94: 0 | Q94: 0 | T94: 0 | U94: 0 | W94: 0 | X94: 0 | Y94: 0 | Z94: 0 | AB94: 0 | AC94: 0 | AD94: 0 | AE94: 0 | AF94: 0
N95: 0 | Q95: 0 | T95: 0 | U95: 0 | W95: 0 | X95: 0 | Y95: 0 | Z95: 0 | AB95: 0 | AC95: 0 | AD95: 0 | AE95: 0 | AF95: 0
N96: 0 | Q96: 0 | T96: 0 | U96: 0 | W96: 0 | X96: 0 | Y96: 0 | Z96: 0 | AB96: 0 | AC96: 0 | AD96: 0 | AE96: 0 | AF96: 0
N97: 0 | Q97: 0 | T97: 0 | U97: 0 | W97: 0 | X97: 0 | Y97: 0 | Z97: 0 | AB97: 0 | AC97: 0 | AD97: 0 | AE97: 0 | AF97: 0
N98: 0 | Q98: 0 | T98: 0 | U98: 0 | W98: 0 | X98: 0 | Y98: 0 | Z98: 0 | AB98: 0 | AC98: 0 | AD98: 0 | AE98: 0 | AF98: 0
N99: 0 | Q99: 0 | T99: 0 | U99: 0 | W99: 0 | X99: 0 | Y99: 0 | Z99: 0 | AB99: 0 | AC99: 0 | AD99: 0 | AE99: 0 | AF99: 0
N100: 0 | Q100: 0 | T100: 0 | U100: 0 | W100: 0 | X100: 0 | Y100: 0 | Z100: 0 | AB100: 0 | AC100: 0 | AD100: 0 | AE100: 0 | AF100: 0
N101: 0 | Q101: 0 | T101: 0 | U101: 0 | W101: 0 | X101: 0 | Y101: 0 | Z101: 0 | AB101: 0 | AC101: 0 | AD101: 0 | AE101: 0 | AF101: 0
N102: 0 | Q102: 0 | T102: 0 | U102: 0 | W102: 0 | X102: 0 | Y102: 0 | Z102: 0 | AB102: 0 | AC102: 0 | AD102: 0 | AE102: 0 | AF102: 0
N103: 0 | Q103: 0 | T103: 0 | U103: 0 | W103: 0 | X103: 0 | Y103: 0 | Z103: 0 | AB103: 0 | AC103: 0 | AD103: 0 | AE103: 0 | AF103: 0
N104: 0 | Q104: 0 | T104: 0 | U104: 0 | W104: 0 | X104: 0 | Y104: 0 | Z104: =SUM(N104,Q104,T104,U104,W104,X104,Y104) -> 0 | AB104: 0 | AC104: 0 | AD104: 0 | AE104: 0 | AF104: 0
N105: 0 | Q105: 0 | T105: 0 | U105: 0 | W105: 0 | X105: 0 | Y105: 0 | Z105: 0 | AB105: 0 | AC105: 0 | AD105: 0 | AE105: 0 | AF105: 0
N106: 0 | Q106: 0 | T106: 0 | U106: 0 | W106: 0 | X106: 0 | Y106: 0 | Z106: 0 | AB106: 0 | AC106: 0 | AD106: 0 | AE106: 0 | AF106: 0
N107: 0 | Q107: 0 | T107: 0 | U107: 0 | W107: 0 | X107: 0 | Y107: 0 | Z107: 0 | AB107: 0 | AC107: 0 | AD107: 0 | AE107: 0 | AF107: 0
N108: 0 | Q108: 0 | T108: 0 | U108: 0 | W108: 0 | X108: 0 | Y108: 0 | Z108: 0 | AB108: 0 | AC108: 0 | AD108: 0 | AE108: 0 | AF108: 0
N109: 0 | Q109: 0 | T109: 0 | U109: 0 | W109: 0 | X109: 0 | Y109: 0 | Z109: 0 | AB109: 0 | AC109: 0 | AD109: 0 | AE109: 0 | AF109: 0
N110: 0 | Q110: 0 | T110: 0 | U110: 0 | W110: 0 | X110: 0 | Y110: 0 | Z110: 0 | AB110: 0 | AC110: 0 | AD110: 0 | AE110: 0 | AF110: 0
N111: 0 | Q111: 0 | T111: 0 | U111: 0 | W111: 0 | X111: 0 | Y111: 0 | Z111: 0 | AB111: 0 | AC111: 0 | AD111: 0 | AE111: 0 | AF111: 0
N112: 0 | Q112: 0 | T112: 0 | U112: 0 | W112: 0 | X112: 0 | Y112: 0 | Z112: 0 | AB112: 0 | AC112: 0 | AD112: 0 | AE112: 0 | AF112: 0
N113: 0 | Q113: 0 | T113: 0 | U113: 0 | W113: 0 | X113: 0 | Y113: 0 | Z113: 0 | AB113: 0 | AC113: 0 | AD113: 0 | AE113: 0 | AF113: 0
N114: 0 | Q114: 0 | T114: 0 | U114: 0 | W114: 0 | X114: 0 | Y114: 0 | Z114: 0 | AB114: 0 | AC114: 0 | AD114: 0 | AE114: 0 | AF114: 0
N115: 0 | Q115: 0 | T115: 0 | U115: 0 | W115: 0 | X115: 0 | Y115: 0 | Z115: 0 | AB115: 0 | AC115: 0 | AD115: 0 | AE115: 0 | AF115: 0
N116: 0 | Q116: 0 | T116: 0 | U116: 0 | W116: 0 | X116: 0 | Y116: 0 | Z116: 0 | AB116: 0 | AC116: 0 | AD116: 0 | AE116: 0 | AF116: 0
N117: 0 | Q117: 0 | T117: 0 | U117: 0 | W117: 0 | X117: 0 | Y117: 0 | Z117: 0 | AB117: 0 | AC117: 0 | AD117: 0 | AE117: 0 | AF117: 0
N118: 0 | Q118: 0 | T118: 0 | U118: 0 | W118: 0 | X118: 0 | Y118: 0 | Z118: 0 | AB118: 0 | AC118: 0 | AD118: 0 | AE118: 0 | AF118: 0
N119: 0 | Q119: 0 | T119: 0 | U119: 0 | W119: 0 | X119: 0 | Y119: 0 | Z119: 0 | AB119: 0 | AC119: 0 | AD119: 0 | AE119: 0 | AF119: 0
N120: 0 | Q120: 0 | T120: 0 | U120: 0 | W120: 0 | X120: 0 | Y120: 0 | Z120: 0 | AB120: 0 | AC120: 0 | AD120: 0 | AE120: 0 | AF120: 0
N121: 0 | Q121: 0 | T121: 0 | U121: 0 | W121: 0 | X121: 0 | Y121: 0 | Z121: 0 | AB121: 0 | AC121: 0 | AD121: 0 | AE121: 0 | AF121: 0
N122: 0 | Q122: 0 | T122: 0 | U122: 0 | W122: 0 | X122: 0 | Y122: 0 | Z122: 0 | AB122: 0 | AC122: 0 | AD122: 0 | AE122: 0 | AF122: 0
N123: 0 | Q123: 0 | T123: 0 | U123: 0 | W123: 0 | X123: 0 | Y123: 0 | Z123: 0 | AB123: 0 | AC123: 0 | AD123: 0 | AE123: 0 | AF123: 0
N124: 0 | Q124: 0 | T124: 0 | U124: 0 | W124: 0 | X124: 0 | Y124: 0 | Z124: 0 | AB124: 0 | AC124: 0 | AD124: 0 | AE124: 0 | AF124: 0
N125: 0 | Q125: 0 | T125: 0 | U125: 0 | W125: 0 | X125: 0 | Y125: 0 | Z125: 0 | AB125: 0 | AC125: 0 | AD125: 0 | AE125: 0 | AF125: 0
D126: Non material projects - [forecast] | Z126: 3678975.854 | AA126: 2018, 2019, 2020, 2021, 2022, 2023, 2024, 2025 | AE126: 0 | AF126: 0

Sheet 2.3 Augex (b)
B1: =SheetHeader -> REGULATORY REPORTING STATEMENT
B2: =dms_TradingName -> Ergon Energy
B3: =dms_Reg_Year_Span -> 2020-21 to 2024-25
B4: 2.3 AUGEX PROJECT DATA
B6: There are FOUR tables on this worksheet. These tables have been 'grouped' (and sub-grouped) for easy navigation. See the Instructions sheet on how to group or ungroup tables.
B8: NOTE: DNSP must provide expenditure information on an 'as incurred' basis.
B9: 2.3.3 - AUGEX DATA - HV/LV FEEDERS AND DISTRIBUTION SUBSTATIONS
B10: PROJECT TYPE | C10: Units | D10: VOLUMES (0's)
D11: =CRCP_y4 -> 2018-19 | E11: =CRCP_y5 -> 2019-20 | F11: =FRCP_y1 -> 2020-21 | G11: =FRCP_y2 -> 2021-22 | H11: =FRCP_y3 -> 2022-23 | I11: =FRCP_y4 -> 2023-24 | J11: =FRCP_y5 -> 2024-25
B12: DESCRIPTOR METRICS - UNITS ADDED
B13: HV Feeder Augmentations - Overhead Lines | C13: Circuit Line Length in KM | D13: 15.88304268 | E13: 10.88226205 | F13: 24.78606202 | G13: 21.20226828 | H13: 20.08254289 | I13: 19.88889756 | J13: 21.38302271
B14: HV Feeder Augmentations - Underground Cables | C14: Circuit Line Length in KM | D14: 1.570850375 | E14: 1.076267676 | F14: 2.451368772 | G14: 2.096927632 | H14: 1.98618556 | I14: 1.967033825 | J14: 2.114804444
B15: LV Feeder Augmentations - Overhead Lines | C15: Circuit Line Length in KM | D15: 1.396311444 | E15: 0.9566823783 | F15: 2.178994464 | G15: 1.863935673 | H15: 1.765498276 | I15: 1.748474511 | J15: 1.879826172
B16: LV Feeder Augmentations - Underground Cables | C16: Circuit Line Length in KM | D16: 0.5236167917 | E16: 0.3587558919 | F16: 0.8171229238 | G16: 0.6989758773 | H16: 0.6620618534 | I16: 0.6556779415 | J16: 0.7049348147
B17: Distribution Substation Augmentations - Pole Mounted | C17: Number | D17: 52.01260131 | E17: 35.63641859 | F17: 81.16754377 | G17: 69.43160381 | H17: 65.76481077 | I17: 65.13067552 | J17: 70.02352492
B18: Distribution Substation Augmentations - Ground Mounted | C18: Number | D18: 0.3490778611 | E18: 0.2391705946 | F18: 0.5447486159 | G18: 0.4659839182 | H18: 0.4413745689 | I18: 0.4371186277 | J18: 0.4699565431
B19: Distribution Substation Augmentations - Indoor | C19: Number | D19: 0 | E19: 0 | F19: 0 | G19: 0 | H19: 0 | I19: 0 | J19: 0
B20: DESCRIPTOR METRICS - UNITS UPGRADED
B21: HV Feeder Augmentations - Overhead Lines | C21: Circuit Line Length in KM | D21: 29.6716182 | E21: 20.32950054 | F21: 46.30363235 | G21: 39.60863305 | H21: 37.51683836 | I21: 37.15508335 | J21: 39.94630616
B22: HV Feeder Augmentations - Underground Cables | C22: Circuit Line Length in KM | D22: 0.3490778611 | E22: 0.2391705946 | F22: 0.5447486159 | G22: 0.4659839182 | H22: 0.4413745689 | I22: 0.4371186277 | J22: 0.4699565431
B23: LV Feeder Augmentations - Overhead Lines | C23: Circuit Line Length in KM | D23: 1.396311444 | E23: 0.9566823783 | F23: 2.178994464 | G23: 1.863935673 | H23: 1.765498276 | I23: 1.748474511 | J23: 1.879826172
B24: LV Feeder Augmentations - Underground Cables | C24: Circuit Line Length in KM | D24: 0 | E24: 0 | F24: 0 | G24: 0 | H24: 0 | I24: 0 | J24: 0
B25: Distribution Substation Augmentations - Pole Mounted | C25: Number | D25: 30.54431285 | E25: 20.92742703 | F25: 47.66550389 | G25: 40.77359284 | H25: 38.62027478 | I25: 38.24787992 | J25: 41.12119752
B26: Distribution Substation Augmentations - Ground Mounted | C26: Number | D26: 0.6981557222 | E26: 0.4783411891 | F26: 1.089497232 | G26: 0.9319678364 | H26: 0.8827491378 | I26: 0.8742372553 | J26: 0.9399130862
B27: Distribution Substation Augmentations - Indoor | C27: Number | D27: 0 | E27: 0 | F27: 0 | G27: 0 | H27: 0 | I27: 0 | J27: 0
B29: COST METRICS
B30: PROJECT TYPE | D30: =CONCATENATE("TOTAL DIRECT EXPENDITURE ($0's, real ", dms_DollarReal,")") -> TOTAL DIRECT EXPENDITURE ($0's, real June 2020)
D31: =CRCP_y4 -> 2018-19 | E31: =CRCP_y5 -> 2019-20 | F31: =FRCP_y1 -> 2020-21 | G31: =FRCP_y2 -> 2021-22 | H31: =FRCP_y3 -> 2022-23 | I31: =FRCP_y4 -> 2023-24 | J31: =FRCP_y5 -> 2024-25
B32: HV Feeder Augmentations - Overhead Lines | D32: 8159395.256 | E32: 6159525.036 | F32: 9710877.598 | G32: 9715146.015 | H32: 9735511.805 | I32: 9755151.959 | J32: 9774008.875
B33: HV Feeder Augmentations - Underground Cables | D33: 858959.9437 | E33: 648428.6043 | F33: 1022288.37 | G33: 1022737.717 | H33: 1024881.674 | I33: 1026949.243 | J33: 1028934.357
B34: HV Feeder Non-Material Projects | D34: 3842500.852 | E34: 2900702.743 | F34: 4573139.832 | G34: 4575149.956 | H34: 4584740.809 | I34: 4593989.939 | J34: 4602870.22
B35: LV Feeder Augmentations - Overhead Lines | D35: 752056.779 | E35: 567727.4373 | F35: 1235607.854 | G35: 1557856.594 | H35: 1561522.555 | I35: 1566856.634 | J35: 1569227.826
B36: LV Feeder Augmentations - Underground Cables | D36: 270934.7241 | E36: 204528.5421 | F36: 445138.03 | G36: 561230.8252 | H36: 562551.518 | I36: 564473.1645 | J36: 565327.4062
B37: LV Feeder Non-Material Projects | D37: 165765.5349 | E37: 125136.3527 | F37: 272348.0494 | G37: 343376.9083 | H37: 344184.9456 | I37: 345360.6633 | J37: 345883.3126
B38: Distribution Substation Augmentations - Pole Mounted | D38: 1791362.171 | E38: 1352298.766 | F38: 1294835.441 | G38: 1295404.586 | H38: 1298120.133 | I38: 1300738.925 | J38: 1303253.281
B39: Distribution Substation Augmentations - Ground Mounted | D39: 173940.2624 | E39: 131307.452 | F39: 125727.7953 | G39: 125783.059 | H39: 126046.7371 | I39: 126301.0203 | J39: 126545.1629
B40: Distribution Substation Augmentations - Indoor | D40: 0 | E40: 0 | F40: 0 | G40: 0 | H40: 0 | I40: 0 | J40: 0
B45: 2.3.4 - AUGEX - TOTAL EXPENDITURE
D46: =CONCATENATE("TOTAL DIRECT EXPENDITURE ($0's, real ", dms_DollarReal,")") -> TOTAL DIRECT EXPENDITURE ($0's, real June 2020)
D47: =CRCP_y4 -> 2018-19 | E47: =CRCP_y5 -> 2019-20 | F47: =FRCP_y1 -> 2020-21 | G47: =FRCP_y2 -> 2021-22 | H47: =FRCP_y3 -> 2022-23 | I47: =FRCP_y4 -> 2023-24 | J47: =FRCP_y5 -> 2024-25
B48: Subtransmission Substations, Switching Stations, Zone Substations | D48: 6360103.609 | E48: 8093034.915 | F48: 7328975.634 | G48: 13730342.22 | H48: 11220803.05 | I48: 3860412.337 | J48: 902793.7064
B49: Subtransmission Lines | D49: 3782864.498 | E49: 3397087.077 | F49: 7954939.989 | G49: 10963585.01 | H49: 6670824.648 | I49: 330067.5305 | J49: 22010.92279
B50: HV Feeders | D50: 12860856.05 | E50: 9708656.383 | F50: 15306305.8 | G50: 15313033.69 | H50: 15345134.29 | I50: 15376091.14 | J50: 15405813.45
B51: HV Feeders - Land Purchases and Easements | D51: 0 | E51: 0 | F51: 0 | G51: 0 | H51: 0 | I51: 0 | J51: 0
B52: Distribution Substations | D52: 1965302.433 | E52: 1483606.218 | F52: 1420563.236 | G52: 1421187.645 | H52: 1424166.87 | I52: 1427039.945 | J52: 1429798.444
B53: Distribution Substations - Land Purchases and Easements | D53: 0 | E53: 0 | F53: 0 | G53: 0 | H53: 0 | I53: 0 | J53: 0
B54: LV Feeders | D54: 1188757.038 | E54: 897392.3321 | F54: 1953093.933 | G54: 2462464.328 | H54: 2468259.019 | I54: 2476690.462 | J54: 2480438.545
B55: LV Feeders - Land Purchases and Easements | D55: 0 | E55: 0 | F55: 0 | G55: 0 | H55: 0 | I55: 0 | J55: 0
B56: Other Assets | D56: 12203834.25 | E56: 11995732.06 | F56: 21566977.94 | G56: 17632850.79 | H56: 19009408.79 | I56: 18847297.56 | J56: 12761746.25
B60: 2.3.5 - AUGEX - BY DRIVER
D61: =CONCATENATE("TOTAL DIRECT EXPENDITURE ($0's, real ", dms_DollarReal,")") -> TOTAL DIRECT EXPENDITURE ($0's, real June 2020)
D62: =CRCP_y4 -> 2018-19 | E62: =CRCP_y5 -> 2019-20 | F62: =FRCP_y1 -> 2020-21 | G62: =FRCP_y2 -> 2021-22 | H62: =FRCP_y3 -> 2022-23 | I62: =FRCP_y4 -> 2023-24 | J62: =FRCP_y5 -> 2024-25
B63: "Greenfield" driven augex (network expansion capex) | D63: 6613343.305 | E63: 6637540.814 | F63: 15762486.59 | G63: 14657790.75 | H63: 6487467.285 | I63: 6830526.962 | J63: 403527.296
B64: Reinforcement driven augex (augmentation of the existing network) | D64: 31748374.58 | E64: 28937968.17 | F64: 39768369.94 | G64: 46865672.94 | H64: 49651129.38 | I64: 35487072.01 | J64: 32599074.02
B68: 2.3.6 - AUGEX - GREENFIELDS DRIVEN
D69: =CONCATENATE("TOTAL DIRECT EXPENDITURE ($0's, real ", dms_DollarReal,")") -> TOTAL DIRECT EXPENDITURE ($0's, real June 2020)
D70: =CRCP_y4 -> 2018-19 | E70: =CRCP_y5 -> 2019-20 | F70: =FRCP_y1 -> 2020-21 | G70: =FRCP_y2 -> 2021-22 | H70: =FRCP_y3 -> 2022-23 | I70: =FRCP_y4 -> 2023-24 | J70: =FRCP_y5 -> 2024-25
B71: Subtransmission Substations, Switching Stations, Zone Substations | D71: 1266988.605 | E71: 1253883.204 | F71: 4851237.81 | G71: 1263974.937 | H71: 1078408.309 | I71: 1839626.295 | J71: 381068.0874
B72: Subtransmission Lines | D72: 2312270.919 | E72: 3297242.914 | F72: 7643932.613 | G72: 9513574.771 | H72: 1808451.276 | I72: 329961.7275 | J72: 22459.2086
B73: HV Feeders | D73: 1059271.697 | E73: 1381218.303 | F73: 407986.4834 | G73: 342692.8123 | H73: 44889.29612 | I73: 2099484.464 | J73: 0
B74: HV Feeders - Land Purchases and Easements | D74: 0 | E74: 0 | F74: 0 | G74: 0 | H74: 0 | I74: 0 | J74: 0
B75: Distribution Substations | D75: 161870.1924 | E75: 211067.7299 | F75: 37864.82556 | G75: 31804.98395 | H75: 4166.131566 | I75: 194851.0949 | J75: 0
B76: Distribution Substations - Land Purchases and Easements | D76: 0 | E76: 0 | F76: 0 | G76: 0 | H76: 0 | I76: 0 | J76: 0
B77: LV Feeders | D77: 97910.79846 | E77: 127669.027 | F77: 52059.32353 | G77: 55107.88018 | H77: 7220.426222 | I77: 338172.6278 | J77: 0
B78: LV Feeders - Land Purchases and Easements | D78: 0 | E78: 0 | F78: 0 | G78: 0 | H78: 0 | I78: 0 | J78: 0
B79: Other Assets | D79: 1715031.094 | E79: 366459.6354 | F79: 2769405.533 | G79: 3450635.362 | H79: 3544331.845 | I79: 2028430.754 | J79: 0

Sheet 2.4 Augex model
B1: =SheetHeader -> REGULATORY REPORTING STATEMENT
B2: =dms_TradingName -> Ergon Energy
B3: =dms_Reg_Year_Span -> 2020-21 to 2024-25
B4: 2.4 AUGEX MODEL
B6: There are SIX tables on this worksheet. These tables have been 'grouped' (and sub-grouped) for easy navigation. See the Instructions sheet on how to group or ungroup tables.
B8: 2.4.1 - AUGEX MODEL INPUTS - ASSET STATUS - SUBTRANSMISSION LINES
B9: Line ID | C9: Primary type of area supplied by line | D9: Line voltage | E9: Originating substation | F9: Terminating substation | G9: =CRCP_y4 -> 2018-19 | L9: =PRCP_y5 -> 2014-15 | Q9: =CONCATENATE("Average per annum growth rate in annual line maximum demand (50% PoE) from ", CRCP_y4, " to ", dms_CRCP_FinalYear_Result) -> Average per annum growth rate in annual line maximum demand (50% PoE) from 2018-19 to 2019-20 | R9: Network Segment ID
G10: =CONCATENATE(IF(dms_RPT="Financial","Route line length as at 30 June ","Route line length as at 31 December ")) -> Route line length as at 30 June | H10: Maximum demand (weather corrected at 50% PoE) | J10: Line rating | L10: =CONCATENATE(IF(dms_RPT="Financial","Route line length as at 30 June ","Route line length as at 31 December ")) -> Route line length as at 30 June | M10: Maximum demand (weather corrected at 50% PoE) | O10: Line rating
J11: Thermal | K11: N-1 emergency | O11: Thermal | P11: N-1 emergency
C12: CBD, urban, long rural, or short rural | D12: kV | E12: name | F12: name | G12: km | H12: MVA | I12: MW | J12: MVA | K12: MVA | L12: km | M12: MVA | N12: MW | O12: MVA | P12: MVA | Q12: %
B1275: 2.4.2 - AUGEX MODEL INPUTS - ASSET STATUS - HIGH VOLTAGE FEEDERS
B1276: High voltage feeder ID | C1276: High voltage feeder type | D1276: Voltage level | E1276: Originating substation | G1276: =CRCP_y4 -> 2018-19 | L1276: =PRCP_y5 -> 2014-15 | Q1276: =CONCATENATE("Average per annum growth rate in annual high voltage feeder maximum demand (50% PoE) from ", CRCP_y4, " to ",dms_CRCP_FinalYear_Result) -> Average per annum growth rate in annual high voltage feeder maximum demand (50% PoE) from 2018-19 to 2019-20 | R1276: Network segment ID
G1277: =CONCATENATE(IF(dms_RPT="Financial","Route line length as at 30 June ","Route line length as at 31 December ")) -> Route line length as at 30 June | H1277: Maximum demand (weather corrected at 50% PoE) | J1277: Rating | L1277: =CONCATENATE(IF(dms_RPT="Financial","Route line length as at 30 June ","Route line length as at 31 December ")) -> Route line length as at 30 June | M1277: Maximum demand (weather corrected at 50% PoE) | O1277: Rating
J1278: Thermal | K1278: Operational | O1278: Thermal | P1278: Operational
C1279: CBD, urban, short rural, or long rural | D1279: kV | E1279: name | G1279: km | H1279: MVA | I1279: MW | J1279: MVA | K1279: MVA | L1279: km | M1279: MVA | N1279: MW | O1279: MVA | P1279: MVA | Q1279: %
B6717: 2.4.3 - AUGEX MODEL INPUTS - ASSET STATUS - SUBTRANSMISSION SUBSTATIONS, SUBTRANSMISSION SWITCHING STATIONS AND ZONE SUBSTATIONS
B6718: Substation ID | C6718: Subtransmission substation, subtransmission switching station, or zone substation | D6718: Primary type of area supplied by substation | E6718: Substation voltage | G6718: =CRCP_y4 -> 2018-19 | O6718: =PRCP_y5 -> 2014-15 | W6718: =CONCATENATE("Average per annum growth rate in annual substation maximum demand (50% PoE) from ", CRCP_y4, " to ", dms_CRCP_FinalYear_Result) -> Average per annum growth rate in annual substation maximum demand (50% PoE) from 2018-19 to 2019-20 | X6718: Network segment ID
G6719: =CONCATENATE(IF(dms_RPT="Financial","Number of transformers as at 30 June ","Number of transformers as at 31 December ")) -> Number of transformers as at 30 June | H6719: Maximum demand (weather corrected at 50% PoE) | J6719: =CONCATENATE(IF(dms_RPT="Financial","Substation rating as at 30 June ","Substation rating as at 31 December ")) -> Substation rating as at 30 June | O6719: =CONCATENATE(IF(dms_RPT="Financial","Number of transformers as at 30 June ","Number of transformers as at 31 December ")) -> Number of transformers as at 30 June | P6719: Maximum demand (weather corrected at 50% PoE) | R6719: =CONCATENATE(IF(dms_RPT="Financial","Substation rating as at 30 June ","Substation rating as at 31 December ")) -> Substation rating as at 30 June
E6720: Primary | F6720: Secondary | J6720: tx name plate total (ONAN) | K6720: tx name plate total (in service) | L6720: tx normal cyclic total | M6720: Substation normal cyclic | N6720: N-1 emergency | R6720: tx name plate (ONAN) | S6720: tx name plate (in service) | T6720: tx normal cyclic total | U6720: Substation normal cyclic | V6720: N-1 emergency
C6721: STS, SSW or ZSS | D6721: CBD, Urban, Short rural, Long rural | E6721: kV | F6721: kV | H6721: MVA | I6721: MW | J6721: MVA | K6721: MVA | L6721: MVA | M6721: MVA | N6721: MVA | P6721: MVA | Q6721: MW | R6721: MVA | S6721: MVA | T6721: MVA | U6721: MVA | V6721: MVA | W6721: %
B7664: 2.4.4 - AUGEX MODEL INPUTS - ASSET STATUS - DISTRIBUTION SUBSTATIONS
B7665: Distribution substation category ID | C7665: Description of distribution substation category | D7665: =CRCP_y4 -> 2018-19 | P7665: =PRCP_y5 -> 2014-15 | AB7665: =CONCATENATE("Average per annum growth rate in annual substation maximum demand (50% PoE) from ", CRCP_y4, " to ", dms_CRCP_FinalYear_Result) -> Average per annum growth rate in annual substation maximum demand (50% PoE) from 2018-19 to 2019-20 | AC7665: Network segment ID
D7666: Aggregate of the normal cyclic ratings of all individual distribution substations in the distribution substation category that were within the following utilisation bands: | O7666: Aggregate of the normal cyclic ratings of all individual distribution substations in the distribution substation category | P7666: Aggregate of the normal cyclic ratings of all individual distribution substations in the distribution substation category that were within the following utilisation bands: | AA7666: Aggregate of the normal cyclic ratings of all individual distribution substations in the distribution substation category
D7667: 0-20 % | E7667: 20-40 % | F7667: 40-60 % | G7667: 60-80 % | H7667: 80-100 % | I7667: 100-120 % | J7667: 120-140 % | K7667: 140-160 % | L7667: 160-180 % | M7667: 180-200 % | N7667: >200% | P7667: 0-20 % | Q7667: 20-40 % | R7667: 40-60 % | S7667: 60-80 % | T7667: 80-100 % | U7667: 100-120 % | V7667: 120-140 % | W7667: 140-160 % | X7667: 160-180 % | Y7667: 180-200 % | Z7667: >200%
D7668: % | E7668: % | F7668: % | G7668: % | H7668: % | I7668: % | J7668: % | K7668: % | L7668: % | M7668: % | N7668: % | O7668: MVA | P7668: % | Q7668: % | R7668: % | S7668: % | T7668: % | U7668: % | V7668: % | W7668: % | X7668: % | Y7668: % | Z7668: % | AA7668: MVA | AB7668: %
E7726: ED_AUG245_00001 | F7726: ED_AUG245_00002 | G7726: ED_AUG245_00003 | H7726: ED_AUG245_00004 | I7726: ED_AUG245_00005 | J7726: ED_AUG245_00006 | K7726: ED_AUG245_00007 | L7726: ED_AUG245_00008
B7727: 2.4.5 - AUGEX MODEL INPUTS - NETWORK SEGMENT DATA
E7728: HISTORICAL | I7728: FORECAST
B7729: Network segment ID | C7729: Network segment title | D7729: AER segment group | E7729: Average unit cost of augmentation for the network segment for the period | F7729: Capacity factor for the period | G7729: Mean value of the utilisation threshold for the period | H7729: Standard deviation of the utilisation threshold for the period | I7729: Average unit cost of augmentation for the network segment for the period | J7729: Capacity factor for the period | K7729: Mean value of the utilisation threshold for the period | L7729: Standard deviation of the utilisation threshold for the period
E7730: =CONCATENATE(PRCP_y5," to ",CRCP_y3) -> 2014-15 to 2017-18 | I7730: =CONCATENATE(CRCP_y4," to ",FRCP_y5) -> 2018-19 to 2024-25
D7731: ID | E7731: =CONCATENATE("$0's, real ", dms_DollarReal, " per MVA") -> $0's, real June 2020 per MVA | G7731: % | H7731: % | I7731: =CONCATENATE("$0's, real ", dms_DollarReal, " per MVA") -> $0's, real June 2020 per MVA | K7731: % | L7731: %
B7732: 1
B7733: 2
B7734: 3
B7735: 4
B7736: 5
B7737: 6
B7738: 7
B7739: 8
B7740: 9
B7741: 10
B7742: 11
B7743: 12
B7744: 13
B7745: 14
B7746: 15
B7747: 16
B7748: 17
B7749: 18
B7750: 19
B7751: 20
B7752: 21
B7753: 22
B7754: 23
B7755: 24
B7756: 25
B7757: 26
B7758: 27
B7759: 28
B7760: 29
B7761: 30
B7762: 31
B7763: 32
B7764: 33
B7765: 34
B7766: 35
B7767: 36
B7768: 37
B7769: 38
B7770: 39
B7771: 40
B7772: 41
B7773: 42
B7774: 43
B7775: 44
B7776: 45
B7777: 46
B7778: 47
B7779: 48
B7780: 49
B7781: 50
B7782: 51
B7783: 52
B7784: 53
B7785: 54
B7786: 55
B7787: 56
B7788: 57
B7789: 58
B7790: 59
B7791: 60
B7792: 61
B7793: 62
B7794: 63
B7795: 64
B7796: 65
B7797: 66
B7798: 67
B7799: 68
B7800: 69
B7801: 70
B7802: 71
B7803: 72
B7804: 73
B7805: 74
B7806: 75
B7807: 76
B7808: 77
B7809: 78
B7810: 79
B7811: 80
B7812: 81
B7813: 82
B7814: 83
B7815: 84
B7816: 85
B7817: 86
B7818: 87
B7819: 88
B7820: 89
B7821: 90
B7822: 91
B7823: 92
B7824: 93
B7825: 94
B7826: 95
B7827: 96
B7828: 97
B7829: 98
B7830: 99
B7831: 100
B7836: 2.4.6 - CAPEX AND NET CAPACITY ADDED BY SEGMENT GROUP
B7837: AER DNSP segment group | C7837: =CONCATENATE("CAPEX ($0's, real ", dms_DollarReal, ")") -> CAPEX ($0's, real June 2020) | K7837: =CONCATENATE("CAPEX ($0's, real ", dms_DollarReal, ")") -> CAPEX ($0's, real June 2020) | S7837: =CONCATENATE("CAPEX ($0's, real ", dms_DollarReal, ")") -> CAPEX ($0's, real June 2020) | AA7837: Net capacity added (MVA) | AG7837: Net capacity added (MVA) | AM7837: Net capacity added (MVA) | AS7837: Net capacity added (MVA)
C7838: In total for all purposes | K7838: For customer-initiated & capacity-related augmentation | S7838: For NSP-initiated & capacity-related augmentation | AA7838: In total for all purposes | AG7838: For customer-initiated & capacity-related augmentation | AM7838: For NSP-initiated & capacity-related augmentation | AS7838: Residual
AA7839: =CONCATENATE("over period ", CRCP_y4, " to ", CRCP_y5) -> over period 2018-19 to 2019-20 | AD7839: =CONCATENATE("over period ", FRCP_y1, " to ", dms_MultiYear_FinalYear_Result) -> over period 2020-21 to 2024-25 | AG7839: =CONCATENATE("over period ", CRCP_y4, " to ", CRCP_y5) -> over period 2018-19 to 2019-20 | AJ7839: =CONCATENATE("over period ", FRCP_y1, " to ", dms_MultiYear_FinalYear_Result) -> over period 2020-21 to 2024-25 | AM7839: =CONCATENATE("over period ", CRCP_y4, " to ", CRCP_y5) -> over period 2018-19 to 2019-20 | AP7839: =CONCATENATE("over period ", FRCP_y1, " to ", dms_MultiYear_FinalYear_Result) -> over period 2020-21 to 2024-25 | AS7839: =CONCATENATE("over period ", CRCP_y4, " to ", CRCP_y5) -> over period 2018-19 to 2019-20 | AV7839: =CONCATENATE("over period ", FRCP_y1, " to ", dms_MultiYear_FinalYear_Result) -> over period 2020-21 to 2024-25
C7840: Historical | D7840: Forecast | K7840: Historical | L7840: Forecast | S7840: Historical | T7840: Forecast | AA7840: Forecast | AD7840: Forecast | AG7840: Forecast | AJ7840: Forecast | AM7840: Forecast | AP7840: Forecast | AS7840: Forecast | AV7840: Forecast
C7841: =CONCATENATE(PRCP_y5, " to ", CRCP_y3) -> 2014-15 to 2017-18 | D7841: =CRCP_y4 -> 2018-19 | E7841: =CRCP_y5 -> 2019-20 | F7841: =FRCP_y1 -> 2020-21 | G7841: =FRCP_y2 -> 2021-22 | H7841: =FRCP_y3 -> 2022-23 | I7841: =FRCP_y4 -> 2023-24 | J7841: =FRCP_y5 -> 2024-25 | K7841: =CONCATENATE(PRCP_y5, " to ", CRCP_y3) -> 2014-15 to 2017-18 | L7841: =CRCP_y4 -> 2018-19 | M7841: =CRCP_y5 -> 2019-20 | N7841: =FRCP_y1 -> 2020-21 | O7841: =FRCP_y2 -> 2021-22 | P7841: =FRCP_y3 -> 2022-23 | Q7841: =FRCP_y4 -> 2023-24 | R7841: =FRCP_y5 -> 2024-25 | S7841: =CONCATENATE(PRCP_y5, " to ", CRCP_y3) -> 2014-15 to 2017-18 | T7841: =CRCP_y4 -> 2018-19 | U7841: =CRCP_y5 -> 2019-20 | V7841: =FRCP_y1 -> 2020-21 | W7841: =FRCP_y2 -> 2021-22 | X7841: =FRCP_y3 -> 2022-23 | Y7841: =FRCP_y4 -> 2023-24 | Z7841: =FRCP_y5 -> 2024-25 | AA7841: type 1 | AB7841: type 2 | AC7841: type 3 | AD7841: type 1 | AE7841: type 2 | AF7841: type 3 | AG7841: type 1 | AH7841: type 2 | AI7841: type 3 | AJ7841: type 1 | AK7841: type 2 | AL7841: type 3 | AM7841: type 1 | AN7841: type 2 | AO7841: type 3 | AP7841: type 1 | AQ7841: type 2 | AR7841: type 3 | AS7841: type 1 | AT7841: type 2 | AU7841: type 3 | AV7841: type 1 | AW7841: type 2 | AX7841: type 3
B7842: Subtransmission lines | AS7842: =AA7842-AG7842-AM7842 -> 0 | AT7842: =AB7842-AH7842-AN7842 -> 0 | AV7842: =AD7842-AJ7842-AP7842 -> 0 | AW7842: =AE7842-AK7842-AQ7842 -> 0
B7843: Subtransmission substations and subtransmission switching stations | AS7843: =AA7843-AG7843-AM7843 -> 0 | AT7843: =AB7843-AH7843-AN7843 -> 0 | AU7843: =AC7843-AI7843-AO7843 -> 0 | AV7843: =AD7843-AJ7843-AP7843 -> 0 | AW7843: =AE7843-AK7843-AQ7843 -> 0 | AX7843: =AF7843-AL7843-AR7843 -> 0
B7844: Zone substations | AS7844: 0 | AT7844: =AB7844-AH7844-AN7844 -> 0 | AU7844: =AC7844-AI7844-AO7844 -> 0 | AV7844: 0 | AW7844: =AE7844-AK7844-AQ7844 -> 0 | AX7844: =AF7844-AL7844-AR7844 -> 0
B7845: High voltage feeders - CBD | AS7845: 0 | AV7845: 0
B7846: High voltage feeders - urban | AS7846: 0 | AV7846: 0
B7847: High voltage feeders - short rural | AS7847: 0 | AV7847: 0
B7848: High voltage feeders - long rural | AS7848: 0 | AV7848: 0
B7849: Distribution substations - CBD | AS7849: 0 | AV7849: 0
B7850: Distribution substations - urban | AS7850: 0 | AV7850: 0
B7851: Distribution substations - short rural | AS7851: 0 | AV7851: 0
B7852: Distribution substations - long rural | AS7852: 0 | AV7852: 0
B7854: Unmodelled augmentation
B7857: Unmodelled augmentation - see comments in guidance paper - this should cover capex allocated to the augmentation category that is not considered to be primarily related to peak demand and capacity needs.

Sheet 2.5 Connections
B1: =SheetHeader -> REGULATORY REPORTING STATEMENT
B2: =dms_TradingName -> Ergon Energy
B3: =dms_Reg_Year_Span -> 2020-21 to 2024-25
B4: 2.5 CONNECTIONS
B6: There are THREE tables on this worksheet - each has been 'grouped' (and sub-grouped) for easy navigation. See the Instructions sheet on how to group or ungroup tables.
B8: 2.5.1 - DESCRIPTOR METRICS
B9: VOLUMES AND EXPENDITURE - ALL
B10: CONNECTION SUBCATEGORY | C10: DESCRIPTOR METRIC | D10: Unit of Measure | E10: =CONCATENATE("VOLUMES and EXPENDITURE (0's, real ", dms_DollarReal, ")") -> VOLUMES and EXPENDITURE (0's, real June 2020)
E11: =CRCP_y4 -> 2018-19 | F11: =CRCP_y5 -> 2019-20 | G11: =FRCP_y1 -> 2020-21 | H11: =FRCP_y2 -> 2021-22 | I11: =FRCP_y3 -> 2022-23 | J11: =FRCP_y4 -> 2023-24 | K11: =FRCP_y5 -> 2024-25
B12: RESIDENTIAL | C12: Underground connections | D12: 0's | E12: 5452.45 | F12: 5468.14 | G12: 5488.24 | H12: 5539.74 | I12: 5543.61 | J12: 5568.14 | K12: 5595.6
C13: Overhead connections | D13: 0's | E13: 3559.95 | F13: 3570.19 | G13: 3583.32 | H13: 3616.95 | I13: 3619.47 | J13: 3635.49 | K13: 3653.41
C14: Distribution substations installed | D14: MVA added | E14: 19.86 | F14: 19.91 | G14: 19.99 | H14: 20.17 | I14: 20.19 | J14: 20.28 | K14: 20.38
C15: Distribution substations installed | D15: 0's | E15: 502.02 | F15: 503.46 | G15: 505.31 | H15: 510.06 | I15: 510.41 | J15: 512.67 | K15: 515.2
C16: Distribution substations installed | D16: total spend $0's | E16: 6566108.299 | F16: 6591042.535 | G16: 6594669.543 | H16: 6653785.844 | I16: 6559114.558 | J16: 6592950.558 | K16: 6734132.057
C17: Augmentation HV | D17: net circuit KM added | E17: 99.79 | F17: 100.08 | G17: 100.45 | H17: 101.39 | I17: 101.46 | J17: 101.91 | K17: 102.41
C18: Augmentation HV | D18: total spend $0's | E18: 5843085.748 | F18: 5865274.372 | G18: 5868501.992 | H18: 5921108.749 | I18: 5836862.119 | J18: 5866972.295 | K18: 5992607.689
C19: Augmentation LV | D19: net circuit KM added | E19: 13.75 | F19: 13.79 | G19: 13.84 | H19: 13.97 | I19: 13.98 | J19: 14.04 | K19: 14.11
C20: Augmentation LV | D20: total spend $0's | E20: 8044537.706 | F20: 8075086.161 | G20: 8079529.819 | H20: 8151956.786 | I20: 8035969.255 | J20: 8077423.786 | K20: 8250393.808
C21: Mean days to connect residential customer with LV single phase connection | D21: 0's | E21: 9 | F21: 9 | G21: 9 | H21: 9 | I21: 9 | J21: 9 | K21: 9
C22: Volume of GSL breaches for residential customers | D22: 0's | E22: 47 | F22: 47 | G22: 47 | H22: 47 | I22: 47 | J22: 47 | K22: 47
C23: Volume of customer complaints relating to connection services | D23: 0's | E23: 40 | F23: 40 | G23: 40 | H23: 40 | I23: 40 | J23: 40 | K23: 40
C24: GSL payments | D24: $0's | E24: 8651.114436 | F24: 8651.114436 | G24: 8651.114436 | H24: 8651.114436 | I24: 8651.114436 | J24: 8651.114436 | K24: 8651.114436
B25: COMMERCIAL/INDUSTRIAL | C25: Underground connections | D25: 0's | E25: 480.57 | F25: 482.49 | G25: 484.44 | H25: 486.09 | I25: 490.3 | J25: 492.32 | K25: 494.36
C26: Overhead connections | D26: 0's | E26: 1119.64 | F26: 1124.12 | G26: 1128.65 | H26: 1132.48 | I26: 1142.29 | J26: 1147 | K26: 1151.76
C27: Distribution substations installed | D27: MVA added | E27: 116.32 | F27: 116.79 | G27: 117.26 | H27: 117.65 | I27: 118.67 | J27: 119.16 | K27: 119.66
C28: Distribution substations installed | D28: 0's | E28: 515.33 | F28: 517.39 | G28: 519.48 | H28: 521.24 | I28: 525.76 | J28: 527.92 | K28: 530.11
C29: Distribution substations installed | D29: total spend $0's | E29: 14430568.38 | F29: 14489007.45 | G29: 13283270.05 | H29: 12947573.2 | I29: 12472129.27 | J29: 12531088.75 | K29: 12771505.74
C30: Augmentation HV | D30: net circuit KM added | E30: 123.27 | F30: 123.76 | G30: 124.26 | H30: 124.69 | I30: 125.77 | J30: 126.28 | K30: 126.81
C31: Augmentation HV | D31: total spend $0's | E31: 15415914.56 | F31: 15478343.97 | G31: 14193761.86 | H31: 13834135.03 | I31: 13321003.46 | J31: 13378161.55 | K31: 13628394.96
C32: Augmentation LV | D32: net circuit KM added | E32: 6.95 | F32: 6.98 | G32: 7.01 | H32: 7.03 | I32: 7.09 | J32: 7.12 | K32: 7.15
C33: Augmentation LV | D33: total spend $0's | E33: 5799395.948 | F33: 5822881.6 | G33: 5338580.206 | H33: 5203593.212 | I33: 5012125.414 | J33: 5035379.448 | K33: 5131499.68
B34: SUBDIVISION | C34: Underground connections | D34: 0's | E34: 2916.39 | F34: 2924.78 | G34: 2935.54 | H34: 2963.08 | I34: 2965.15 | J34: 2978.27 | K34: 2992.96
C35: Overhead connections | D35: 0's | E35: 222.5 | F35: 223.14 | G35: 223.96 | H35: 226.06 | I35: 226.22 | J35: 227.22 | K35: 228.34
C36: Distribution substations installed | D36: MVA added | E36: 17.31 | F36: 17.36 | G36: 17.42 | H36: 17.59 | I36: 17.6 | J36: 17.68 | K36: 17.77
C37: Distribution substations installed | D37: 0's | E37: 77.39 | F37: 77.61 | G37: 77.9 | H37: 78.63 | I37: 78.68 | J37: 79.03 | K37: 79.42
C38: Distribution substations installed | D38: total spend $0's | E38: 1779849.105 | F38: 1786984.362 | G38: 1810901.189 | H38: 1838372.385 | I38: 1834926.146 | J38: 1834671.754 | K38: 1834670.226
C39: Augmentation HV | D39: net circuit KM added | E39: 20.37 | F39: 20.42 | G39: 20.5 | H39: 20.69 | I39: 20.71 | J39: 20.8 | K39: 20.9
C40: Augmentation HV | D40: total spend $0's | E40: 6438171.804 | F40: 6463981.87 | G40: 6550495.163 | H40: 6649865.547 | I40: 6637399.631 | J40: 6636479.409 | K40: 6636473.942
C41: Augmentation LV | D41: net circuit KM added | E41: 73.32 | F41: 73.53 | G41: 73.8 | H41: 74.49 | I41: 74.54 | J41: 74.87 | K41: 75.24
C42: Augmentation LV | D42: total spend $0's | E42: 6644377.678 | F42: 6671014.403 | G42: 6760298.58 | H42: 6862851.678 | I42: 6849986.496 | J42: 6849036.792 | K42: 6849031.142
C43: Cost per lot | D43: $0's | E43: 2035.06 | F43: 2040.91 | G43: 2048.42 | H43: 2067.64 | I43: 2069.08 | J43: 2078.24 | K43: 2088.49
B44: EMBEDDED GENERATION | C44: Underground connections | D44: 0's | E44: 3644.47 | F44: 3654.96 | G44: 3668.39 | H44: 3702.82 | I44: 3705.4 | J44: 3721.8 | K44: 3740.15
C45: Overhead connections | D45: 0's | E45: 7098.52 | F45: 7118.94 | G45: 7145.12 | H45: 7212.17 | I45: 7217.2 | J45: 7249.14 | K45: 7284.88
C46: Distribution substations installed | D46: MVA added | E46: 0.51 | F46: 0.51 | G46: 0.51 | H46: 0.52 | I46: 0.52 | J46: 0.52 | K46: 0.52
C47: Distribution substations installed | D47: 0's | E47: 8.66 | F47: 8.68 | G47: 8.71 | H47: 8.79 | I47: 8.8 | J47: 8.84 | K47: 8.88
C48: Distribution substations installed | D48: total spend $0's | E48: 5159108.504 | F48: 5157422.096 | G48: 3094130.454 | H48: 2479617.654 | I48: 1772938.429 | J48: 1773099.441 | K48: 1773501.278
C49: Augmentation HV | D49: net circuit KM added | E49: 3.05 | F49: 3.06 | G49: 3.07 | H49: 3.1 | I49: 3.11 | J49: 3.12 | K49: 3.14
C50: Augmentation HV | D50: total spend $0's | E50: 9598116.04 | F50: 9594978.604 | G50: 5756386.619 | H50: 4613133.831 | I50: 3298412.657 | J50: 3298712.202 | K50: 3299459.793
C51: Augmentation LV | D51: net circuit KM added | E51: 0.51 | F51: 0.51 | G51: 0.51 | H51: 0.52 | I51: 0.52 | J51: 0.52 | K51: 0.52
C52: Augmentation LV | D52: total spend $0's | E52: 3325618.642 | F52: 3324531.567 | G52: 1994510.861 | H52: 1598389.081 | I52: 1142855.805 | J52: 1142959.594 | K52: 1143218.621
B54: VOLUMES AND EXPENDITURE - STANDARD CONTROL SERVICES
B55: CONNECTION SUBCATEGORY | C55: DESCRIPTOR METRIC | D55: Unit of Measure | E55: =CONCATENATE("VOLUMES and EXPENDITURE (0's, real ", dms_DollarReal, ")") -> VOLUMES and EXPENDITURE (0's, real June 2020)
E56: =CRCP_y4 -> 2018-19 | F56: =CRCP_y5 -> 2019-20 | G56: =FRCP_y1 -> 2020-21 | H56: =FRCP_y2 -> 2021-22 | I56: =FRCP_y3 -> 2022-23 | J56: =FRCP_y4 -> 2023-24 | K56: =FRCP_y5 -> 2024-25
B57: RESIDENTIAL | C57: Underground connections | D57: 0's | E57: 5452.45 | F57: 5468.14 | G57: 5488.24 | H57: 5539.74 | I57: 5543.61 | J57: 5568.14 | K57: 5595.6
C58: Overhead connections | D58: 0's | E58: 3559.95 | F58: 3570.19 | G58: 3583.32 | H58: 3616.95 | I58: 3619.47 | J58: 3635.49 | K58: 3653.41
C59: Distribution substations installed | D59: MVA added | E59: 19.86 | F59: 19.91 | G59: 19.99 | H59: 20.17 | I59: 20.19 | J59: 20.28 | K59: 20.38
C60: Distribution substations installed | D60: 0's | E60: 502.02 | F60: 503.46 | G60: 505.31 | H60: 510.06 | I60: 510.41 | J60: 512.67 | K60: 515.2
C61: Distribution substations installed | D61: total spend $0's | E61: 5413719.836 | F61: 5435337.726 | G61: 5434715.639 | H61: 5482947.039 | I61: 5387458.134 | J61: 5416108.862 | K61: 5551488.021
C62: Augmentation HV | D62: net circuit KM added | E62: 99.79 | F62: 100.08 | G62: 100.45 | H62: 101.39 | I62: 101.46 | J62: 101.91 | K62: 102.41
C63: Augmentation HV | D63: total spend $0's | E63: 4817591.757 | F63: 4836829.212 | G63: 4836275.623 | H63: 4879196.061 | I63: 4794221.846 | J63: 4819717.722 | K63: 4940189.696
C64: Augmentation LV | D64: net circuit KM added | E64: 13.75 | F64: 13.79 | G64: 13.84 | H64: 13.97 | I64: 13.98 | J64: 14.04 | K64: 14.11
C65: Augmentation LV | D65: total spend $0's | E65: 6632676.673 | F65: 6659162.07 | G65: 6658399.906 | H65: 6717491.12 | I65: 6600501.873 | J65: 6635603.615 | K65: 6801464.836
C66: Mean days to connect residential customer with LV single phase connection | D66: 0's | E66: 9 | F66: 9 | G66: 9 | H66: 9 | I66: 9 | J66: 9 | K66: 9
C67: Volume of GSL breaches for residential customers | D67: 0's | E67: 47 | F67: 47 | G67: 47 | H67: 47 | I67: 47 | J67: 47 | K67: 47
C68: Volume of customer complaints relating to connection services | D68: 0's | E68: 40 | F68: 40 | G68: 40 | H68: 40 | I68: 40 | J68: 40 | K68: 40
C69: GSL payments | D69: $0's | E69: 8651.114436 | F69: 8651.114436 | G69: 8651.114436 | H69: 8651.114436 | I69: 8651.114436 | J69: 8651.114436 | K69: 8651.114436
B70: COMMERCIAL/INDUSTRIAL | C70: Underground connections | D70: 0's | E70: 459 | F70: 461 | G70: 463 | H70: 465 | I70: 469 | J70: 470 | K70: 472
C71: Overhead connections | D71: 0's | E71: 1191 | F71: 1196 | G71: 1201 | H71: 1205 | I71: 1216 | J71: 1221 | K71: 1226
C72: Distribution substations installed | D72: MVA added | E72: 107 | F72: 107 | G72: 108 | H72: 108 | I72: 109 | J72: 110 | K72: 110
C73: Distribution substations installed | D73: 0's | E73: 504 | F73: 506 | G73: 508 | H73: 510 | I73: 514 | J73: 516 | K73: 518
C74: Distribution substations installed | D74: total spend $0's | E74: 10386178.63 | F74: 10438909.23 | G74: 10441952.03 | H74: 10472542.77 | I74: 10379478.95 | J74: 10432486.21 | K74: 10679393.54
C75: Augmentation HV | D75: net circuit KM added | E75: 121 | F75: 121 | G75: 122 | H75: 122 | I75: 123 | J75: 124 | K75: 124
C76: Augmentation HV | D76: total spend $0's | E76: 9554654.252 | F76: 9603162.811 | G76: 9605961.374 | H76: 9634103.698 | I76: 9548490.636 | J76: 9597253.079 | K76: 9824392.957
C77: Augmentation LV | D77: net circuit KM added | E77: 6 | F77: 6 | G77: 6 | H77: 6 | I77: 6 | J77: 6 | K77: 6
C78: Augmentation LV | D78: total spend $0's | E78: 4057488.425 | F78: 4078088.321 | G78: 4079276.757 | H78: 4091227.349 | I78: 4054870.822 | J78: 4075578.761 | K78: 4172035.656
B79: SUBDIVISION | C79: Underground connections | D79: 0's | E79: 0 | F79: 0 | G79: 0 | H79: 0 | I79: 0 | J79: 0 | K79: 0
C80: Overhead connections | D80: 0's | E80: 0 | F80: 0 | G80: 0 | H80: 0 | I80: 0 | J80: 0 | K80: 0
C81: Distribution substations installed | D81: MVA added | E81: 0 | F81: 0 | G81: 0 | H81: 0 | I81: 0 | J81: 0 | K81: 0
C82: Distribution substations installed | D82: 0's | E82: 0 | F82: 0 | G82: 0 | H82: 0 | I82: 0 | J82: 0 | K82: 0
C83: Distribution substations installed | D83: total spend $0's | E83: 0 | F83: 0 | G83: 0 | H83: 0 | I83: 0 | J83: 0 | K83: 0
C84: Augmentation HV | D84: net circuit KM added | E84: 0 | F84: 0 | G84: 0 | H84: 0 | I84: 0 | J84: 0 | K84: 0
C85: Augmentation HV | D85: total spend $0's | E85: 0 | F85: 0 | G85: 0 | H85: 0 | I85: 0 | J85: 0 | K85: 0
C86: Augmentation LV | D86: net circuit KM added | E86: 0 | F86: 0 | G86: 0 | H86: 0 | I86: 0 | J86: 0 | K86: 0
C87: Augmentation LV | D87: total spend $0's | E87: 0 | F87: 0 | G87: 0 | H87: 0 | I87: 0 | J87: 0 | K87: 0
C88: Cost per lot | D88: $0's | E88: 0 | F88: 0 | G88: 0 | H88: 0 | I88: 0 | J88: 0 | K88: 0
B89: EMBEDDED GENERATION | C89: Underground connections | D89: 0's | E89: 0 | F89: 0 | G89: 0 | H89: 0 | I89: 0 | J89: 0 | K89: 0
C90: Overhead connections | D90: 0's | E90: 0 | F90: 0 | G90: 0 | H90: 0 | I90: 0 | J90: 0 | K90: 0
C91: Distribution substations installed | D91: MVA added | E91: 0 | F91: 0 | G91: 0 | H91: 0 | I91: 0 | J91: 0 | K91: 0
C92: Distribution substations installed | D92: 0's | E92: 0 | F92: 0 | G92: 0 | H92: 0 | I92: 0 | J92: 0 | K92: 0
C93: Distribution substations installed | D93: total spend $0's | E93: 0 | F93: 0 | G93: 0 | H93: 0 | I93: 0 | J93: 0 | K93: 0
C94: Augmentation HV | D94: net circuit KM added | E94: 0 | F94: 0 | G94: 0 | H94: 0 | I94: 0 | J94: 0 | K94: 0
C95: Augmentation HV | D95: total spend $0's | E95: 0 | F95: 0 | G95: 0 | H95: 0 | I95: 0 | J95: 0 | K95: 0
C96: Augmentation LV | D96: net circuit KM added | E96: 0 | F96: 0 | G96: 0 | H96: 0 | I96: 0 | J96: 0 | K96: 0
C97: Augmentation LV | D97: total spend $0's | E97: 0 | F97: 0 | G97: 0 | H97: 0 | I97: 0 | J97: 0 | K97: 0
B101: 2.5.2 - COST METRICS BY CONNECTION CLASSIFICATION
B102: EXPENDITURE - ALL
B103: CONNECTION SUBCATEGORY | C103: CONNECTION CLASSICIATION | E103: =CONCATENATE("EXPENDITURE ($'0s, real ", dms_DollarReal,")") -> EXPENDITURE ($'0s, real June 2020)
E104: =CRCP_y4 -> 2018-19 | F104: =CRCP_y5 -> 2019-20 | G104: =FRCP_y1 -> 2020-21 | H104: =FRCP_y2 -> 2021-22 | I104: =FRCP_y3 -> 2022-23 | J104: =FRCP_y4 -> 2023-24 | K104: =FRCP_y5 -> 2024-25
B105: RESIDENTIAL | C105: Simple connection LV | E105: 6075017.854 | F105: 6098087.221 | G105: 6101449.502 | H105: 6156142.538 | I105: 6068541.931 | J105: 6099836.048 | K105: 6230446.072
C106: Complex connection LV | E106: 709972.4151 | F106: 712668.4725 | G106: 713054.4147 | H106: 719448.2372 | I106: 709221.2084 | J106: 712890.4716 | K106: 728167.6633
C107: Complex connection HV | E107: 13668741.48 | F107: 13720647.37 | G107: 13728197.44 | H107: 13851260.6 | I107: 13654182.79 | J107: 13724620.12 | K107: 14018519.82
B108: COMMERCIAL/INDUSTRIAL | C108: Simple connection LV | E108: 5310216.093 | F108: 5336329.652 | G108: 5340961.369 | H108: 5356939.575 | I108: 5323043.028 | J108: 5349209.55 | K108: 5459905.229
C109: Complex connection HV (customer connected at LV, minor HV works) | E109: 22842559.9 | F109: 22954890.61 | G109: 22974112.71 | H109: 23043047.35 | I109: 22898301.85 | J109: 23012064.95 | K109: 23489551.52
C110: Complex connection HV (customer connected at LV, upstream asset works) | E110: 6249395.742 | F110: 6254324.688 | G110: 3753537.567 | H110: 2990223.093 | I110: 2155034.677 | J110: 2154569.274 | K110: 2153391.958
C111: Complex connection HV (customer connected at HV) | E111: 753627.1899 | F111: 754221.5748 | G111: 452646.6331 | H111: 360597.0084 | I111: 259879.9599 | J111: 259823.8367 | K111: 259681.8608
C112: Complex connection sub-transmission | E112: 490079.9629 | F112: 490466.4967 | G112: 294353.8291 | H112: 234494.4213 | I112: 168998.6301 | J112: 168962.1323 | K112: 168869.8084
B113: SUBDIVISION | C113: Complex connection LV | E113: 3711966.062 | F113: 3726846.999 | G113: 3776726.753 | H113: 3834019.34 | I113: 3826832.031 | J113: 3826301.479 | K113: 3826298.316
C114: Complex connection HV (no upstream asset works) | E114: 4278111.681 | F114: 4295262.257 | G114: 4352749.597 | H114: 4418780.409 | I114: 4410496.909 | J114: 4409885.429 | K114: 4409881.793
C115: Complex connection HV (with upstream asset works) | E115: 6872320.844 | F115: 6899871.379 | G115: 6992218.58 | H115: 7098289.86 | I115: 7084983.332 | J115: 7084001.047 | K115: 7083995.201
B116: EMBEDDED GENERATION | C116: Simple connection LV | E116: 3243104.726 | F116: 3242044.615 | G116: 1945023.853 | H116: 1558730.49 | I116: 1114499.723 | J116: 1114600.938 | K116: 1114853.541
C117: Complex connection HV (small capacity) | E117: 968298.2391 | F117: 967981.7179 | G117: 580728.4442 | H117: 465392.3025 | I117: 332757.7133 | J117: 332787.9342 | K117: 332863.3523
C118: Complex connection HV (large capacity) | E118: 13871440.22 | F118: 13866905.93 | G118: 8319275.636 | H118: 6667017.773 | I118: 4766949.455 | J118: 4767382.365 | K118: 4768462.798
B120: EXPENDITURE - STANDARD CONTROL SERVICES
E121: =CONCATENATE("EXPENDITURE ($'0s, real ", dms_DollarReal,")") -> EXPENDITURE ($'0s, real June 2020)
E122: =CRCP_y4 -> 2018-19 | F122: =CRCP_y5 -> 2019-20 | G122: =FRCP_y1 -> 2020-21 | H122: =FRCP_y2 -> 2021-22 | I122: =FRCP_y3 -> 2022-23 | J122: =FRCP_y4 -> 2023-24 | K122: =FRCP_y5 -> 2024-25
B123: RESIDENTIAL | C123: Simple connection LV | E123: 5005920.237 | F123: 5025912.953 | G123: 5025333.25 | H123: 5069928.109 | I123: 4981568.978 | J123: 5008052.598 | K123: 5133279.655
C124: Complex connection LV | E124: 588126.8903 | F124: 590472.3004 | G124: 590408.9729 | H124: 595651.9018 | I124: 585338.4237 | J124: 588459.4324 | K124: 603123.125
C125: Complex connection HV | E125: 11269941.14 | F125: 11314943.76 | G125: 11313648.94 | H125: 11414054.21 | I125: 11215274.45 | J125: 11274918.17 | K125: 11556739.77
B126: COMMERCIAL/INDUSTRIAL | C126: Simple connection LV | E126: 4468099.758 | F126: 4490847.406 | G126: 4492068.859 | H126: 4505162.781 | I126: 4463889.632 | J126: 4486518.602 | K126: 4593630.886
C127: Complex connection HV (customer connected at LV, minor HV works) | E127: 19530221.54 | F127: 19629312.95 | G127: 19635121.3 | H127: 19692711.03 | I127: 19518950.77 | J127: 19618799.45 | K127: 20082191.27
C128: Complex connection HV (customer connected at LV, upstream asset works) | E128: 0 | F128: 0 | G128: 0 | H128: 0 | I128: 0 | J128: 0 | K128: 0
C129: Complex connection HV (customer connected at HV) | E129: 0 | F129: 0 | G129: 0 | H129: 0 | I129: 0 | J129: 0 | K129: 0
C130: Complex connection sub-transmission | E130: 0 | F130: 0 | G130: 0 | H130: 0 | I130: 0 | J130: 0 | K130: 0
B131: SUBDIVISION | C131: Complex connection LV | E131: 0 | F131: 0 | G131: 0 | H131: 0 | I131: 0 | J131: 0 | K131: 0
C132: Complex connection HV (no upstream asset works) | E132: 0 | F132: 0 | G132: 0 | H132: 0 | I132: 0 | J132: 0 | K132: 0
C133: Complex connection HV (with upstream asset works) | E133: 0 | F133: 0 | G133: 0 | H133: 0 | I133: 0 | J133: 0 | K133: 0
B134: EMBEDDED GENERATION | C134: Simple connection LV | E134: 0 | F134: 0 | G134: 0 | H134: 0 | I134: 0 | J134: 0 | K134: 0
C135: Complex connection HV (small capacity) | E135: 0 | F135: 0 | G135: 0 | H135: 0 | I135: 0 | J135: 0 | K135: 0
C136: Complex connection HV (large capacity) | E136: 0 | F136: 0 | G136: 0 | H136: 0 | I136: 0 | J136: 0 | K136: 0
B138: EXPENDITURE - STANDARD CONTROL SERVICES - CAPITAL CONTRIBUTIONS
E139: =CONCATENATE("EXPENDITURE ($'0s, real ", dms_DollarReal,")") -> EXPENDITURE ($'0s, real June 2020)
E140: =CRCP_y4 -> 2018-19 | F140: =CRCP_y5 -> 2019-20 | G140: =FRCP_y1 -> 2020-21 | H140: =FRCP_y2 -> 2021-22 | I140: =FRCP_y3 -> 2022-23 | J140: =FRCP_y4 -> 2023-24 | K140: =FRCP_y5 -> 2024-25
B141: RESIDENTIAL | C141: Simple connection LV | E141: 1069097.617 | F141: 1072174.268 | G141: 1076116.252 | H141: 1086214.429 | I141: 1086972.953 | J141: 1091783.45 | K141: 1097166.417
C142: Complex connection LV | E142: 121845.5248 | F142: 122196.1721 | G142: 122645.4418 | H142: 123796.3354 | I142: 123882.7847 | J142: 124431.0392 | K142: 125044.5383
C143: Complex connection HV | E143: 2398800.346 | F143: 2405703.619 | G143: 2414548.491 | H143: 2437206.395 | I143: 2438908.341 | J143: 2449701.951 | K143: 2461780.046
B144: COMMERCIAL/INDUSTRIAL | C144: Simple connection LV | E144: 842116.3355 | F144: 845482.2462 | G144: 848892.5097 | H144: 851776.7941 | I144: 859153.3963 | J144: 862690.9476 | K144: 866274.3437
C145: Complex connection HV (customer connected at LV, minor HV works) | E145: 3312338.351 | F145: 3325577.657 | G145: 3338991.417 | H145: 3350336.317 | I145: 3379351.076 | J145: 3393265.504 | K145: 3407360.255
C146: Complex connection HV (customer connected at LV, upstream asset works) | E146: 6249395.742 | F146: 6254324.688 | G146: 3753537.567 | H146: 2990223.093 | I146: 2155034.677 | J146: 2154569.274 | K146: 2153391.958
C147: Complex connection HV (customer connected at HV) | E147: 753627.1899 | F147: 754221.5748 | G147: 452646.6331 | H147: 360597.0084 | I147: 259879.9599 | J147: 259823.8367 | K147: 259681.8608
C148: Complex connection sub-transmission | E148: 490079.9629 | F148: 490466.4967 | G148: 294353.8291 | H148: 234494.4213 | I148: 168998.6301 | J148: 168962.1323 | K148: 168869.8084
B149: SUBDIVISION | C149: Complex connection LV | E149: 3711966.062 | F149: 3726846.999 | G149: 3776726.753 | H149: 3834019.34 | I149: 3826832.031 | J149: 3826301.479 | K149: 3826298.316
C150: Complex connection HV (no upstream asset works) | E150: 4278111.681 | F150: 4295262.257 | G150: 4352749.597 | H150: 4418780.409 | I150: 4410496.909 | J150: 4409885.429 | K150: 4409881.793
C151: Complex connection HV (with upstream asset works) | E151: 6872320.844 | F151: 6899871.379 | G151: 6992218.58 | H151: 7098289.86 | I151: 7084983.332 | J151: 7084001.047 | K151: 7083995.201
B152: EMBEDDED GENERATION | C152: Simple connection LV | E152: 3243104.726 | F152: 3242044.615 | G152: 1945023.853 | H152: 1558730.49 | I152: 1114499.723 | J152: 1114600.938 | K152: 1114853.541
C153: Complex connection HV (small capacity) | E153: 968298.2391 | F153: 967981.7179 | G153: 580728.4442 | H153: 465392.3025 | I153: 332757.7133 | J153: 332787.9342 | K153: 332863.3523
C154: Complex connection HV (large capacity) | E154: 13871440.22 | F154: 13866905.93 | G154: 8319275.636 | H154: 6667017.773 | I154: 4766949.455 | J154: 4767382.365 | K154: 4768462.798
B158: 2.5.3 - VOLUMES BY CONNECTION CLASSIFICATION
B159: NEW CONNECTIONS - ALL
E160: VOLUMES (0's)
E161: =CRCP_y4 -> 2018-19 | F161: =CRCP_y5 -> 2019-20 | G161: =FRCP_y1 -> 2020-21 | H161: =FRCP_y2 -> 2021-22 | I161: =FRCP_y3 -> 2022-23 | J161: =FRCP_y4 -> 2023-24 | K161: =FRCP_y5 -> 2024-25
B162: RESIDENTIAL | C162: Simple connection LV | E162: 10368.76081 | F162: 10398.60005 | G162: 10436.83181 | H162: 10534.77009 | I162: 10542.12672 | J162: 10588.78185 | K162: 10640.98915
C163: Complex connection LV | E163: 131.868846 | F163: 132.2483384 | G163: 132.7345661 | H163: 133.9801352 | I163: 134.073696 | J163: 134.6670513 | K163: 135.3310184
C164: Complex connection HV | E164: 966.3593425 | F164: 968.6297221 | G164: 972.1910114 | H164: 981.3139634 | I164: 981.9992331 | J164: 986.3451596 | K164: 991.2082698
B165: COMMERCIAL/INDUSTRIAL | C165: Simple connection LV | E165: 2047.884855 | F165: 2048.62571 | G165: 2056.888868 | H165: 2063.877565 | I165: 2081.751266 | J165: 2090.322846 | K165: 2099.005509
C166: Complex connection HV (customer connected at LV, minor HV works) | E166: 654.359225 | F166: 633.2454215 | G166: 635.7996251 | H166: 637.9598832 | I166: 643.484777 | J166: 646.1343159 | K166: 648.8181915
C167: Complex connection HV (customer connected at LV, upstream asset works) | E167: 75.53863575 | F167: 72.58360452 | G167: 72.87637143 | H167: 73.12398367 | I167: 73.75725585 | J167: 74.06095025 | K167: 74.36858037
C168: Complex connection HV (customer connected at HV) | E168: 6.487980984 | F168: 1.750062582 | G168: 1.817624176 | H168: 1.874765462 | I168: 2.020905195 | J168: 2.090988518 | K168: 2.161980085
C169: Complex connection sub-transmission | E169: 9.268544263 | F169: 16.75006258 | G169: 16.81762418 | H169: 16.87476546 | I169: 17.0209052 | J169: 17.09098852 | K169: 17.16198008
B170: SUBDIVISION | C170: Complex connection LV | E170: 227.0791711 | F170: 19.40323112 | G170: 19.47456955 | H170: 19.65731714 | I170: 19.67104421 | J170: 19.75810019 | K170: 19.85551621
C171: Complex connection HV (no upstream asset works) | E171: 66.18899606 | F171: 6.127336144 | G171: 6.149864068 | H171: 6.207573833 | I171: 6.211908697 | J171: 6.239400061 | K171: 6.270163014
C172: Complex connection HV (with upstream asset works) | E172: 157.8352983 | F172: 21.95628785 | G172: 22.03701291 | H172: 22.24380623 | I172: 22.2593395 | J172: 22.35785022 | K172: 22.46808413
B173: EMBEDDED GENERATION | C173: Simple connection LV | E173: 11966.97049 | F173: 12001.40906 | G173: 12045.53375 | H173: 12158.56795 | I173: 12167.0585 | J173: 12220.90492 | K173: 12281.15929
C174: Complex connection HV (small capacity) | E174: 12.72865309 | F174: 9.701615561 | G174: 9.737284774 | H174: 9.828658568 | I174: 9.835522103 | J174: 9.879050096 | K174: 9.927758106
C175: Complex connection HV (large capacity) | E175: 17.82011433 | F175: 0 | G175: 0 | H175: 0 | I175: 0 | J175: 0 | K175: 0
B177: NEW CONNECTIONS - STANDARD CONTROL SERVICES
E178: VOLUMES (0's)
E179: =CRCP_y4 -> 2018-19 | F179: =CRCP_y5 -> 2019-20 | G179: =FRCP_y1 -> 2020-21 | H179: =FRCP_y2 -> 2021-22 | I179: =FRCP_y3 -> 2022-23 | J179: =FRCP_y4 -> 2023-24 | K179: =FRCP_y5 -> 2024-25
B180: RESIDENTIAL | C180: Simple connection LV | E180: 10368.76081 | F180: 10398.60005 | G180: 10436.83181 | H180: 10534.77009 | I180: 10542.12672 | J180: 10588.78185 | K180: 10640.98915
C181: Complex connection LV | E181: 131.868846 | F181: 132.2483384 | G181: 132.7345661 | H181: 133.9801352 | I181: 134.073696 | J181: 134.6670513 | K181: 135.3310184
C182: Complex connection HV | E182: 965.8501964 | F182: 968.6297221 | G182: 972.1910114 | H182: 981.3139634 | I182: 981.9992331 | J182: 986.3451596 | K182: 991.2082698
B183: COMMERCIAL/INDUSTRIAL | C183: Simple connection LV | E183: 2040.47002 | F183: 2048.62571 | G183: 2056.888868 | H183: 2063.877565 | I183: 2081.751266 | J183: 2090.322846 | K183: 2099.005509
C184: Complex connection HV (customer connected at LV, minor HV works) | E184: 630.7244371 | F184: 633.2454215 | G184: 635.7996251 | H184: 637.9598832 | I184: 643.484777 | J184: 646.1343159 | K184: 648.8181915
C185: Complex connection HV (customer connected at LV, upstream asset works) | E185: 0 | F185: 0 | G185: 0 | H185: 0 | I185: 0 | J185: 0 | K185: 0
C186: Complex connection HV (customer connected at HV) | E186: 0 | F186: 0 | G186: 0 | H186: 0 | I186: 0 | J186: 0 | K186: 0
C187: Complex connection sub-transmission | E187: 0 | F187: 0 | G187: 0 | H187: 0 | I187: 0 | J187: 0 | K187: 0
B188: SUBDIVISION | C188: Complex connection LV | E188: 0 | F188: 0 | G188: 0 | H188: 0 | I188: 0 | J188: 0 | K188: 0
C189: Complex connection HV (no upstream asset works) | E189: 0 | F189: 0 | G189: 0 | H189: 0 | I189: 0 | J189: 0 | K189: 0
C190: Complex connection HV (with upstream asset works) | E190: 0 | F190: 0 | G190: 0 | H190: 0 | I190: 0 | J190: 0 | K190: 0
B191: EMBEDDED GENERATION | C191: Simple connection LV | E191: 0 | F191: 0 | G191: 0 | H191: 0 | I191: 0 | J191: 0 | K191: 0
C192: Complex connection HV (small capacity) | E192: 0 | F192: 0 | G192: 0 | H192: 0 | I192: 0 | J192: 0 | K192: 0
C193: Complex connection HV (large capacity) | E193: 0 | F193: 0 | G193: 0 | H193: 0 | I193: 0 | J193: 0 | K193: 0
B195: EXISTING CONNECTIONS
E196: VOLUMES (0's)
E197: =CRCP_y4 -> 2018-19 | F197: =CRCP_y5 -> 2019-20 | G197: =FRCP_y1 -> 2020-21 | H197: =FRCP_y2 -> 2021-22 | I197: =FRCP_y3 -> 2022-23 | J197: =FRCP_y4 -> 2023-24 | K197: =FRCP_y5 -> 2024-25
B198: RESIDENTIAL | C198: Simple connection LV | E198: 651812 | F198: 660851
C199: Complex connection LV
C200: Complex connection HV
B201: COMMERCIAL/INDUSTRIAL | C201: Simple connection LV
C202: Complex connection HV (customer connected at LV, minor HV works) | E202: 104044.88 | F202: 106100.96
C203: Complex connection HV (customer connected at LV, upstream asset works) | E203: 8865.9 | F203: 9598.71
C204: Complex connection HV (customer connected at HV) | E204: 91.76 | F204: 107.58
C205: Complex connection sub-transmission
B206: SUBDIVISION | C206: Complex connection LV
C207: Complex connection HV (no upstream asset works)
C208: Complex connection HV (with upstream asset works)
B209: EMBEDDED GENERATION | C209: Simple connection LV | E209: 155001 | F209: 167002
C210: Complex connection HV (small capacity)
C211: Complex connection HV (large capacity) | E211: 23 | F211: 27

Sheet 2.6 Non-network
B1: =SheetHeader -> REGULATORY REPORTING STATEMENT
B2: =dms_TradingName -> Ergon Energy
B3: =dms_Reg_Year_Span -> 2020-21 to 2024-25
B4: 2.6 NON NETWORK EXPENDITURE
B6: There are THREE tables on this worksheet - each has been 'grouped' (and sub-grouped) for easy navigation. See the Instructions sheet on how to group or ungroup tables.
B8: 2.6.1 - NON-NETWORK EXPENDITURE
E9: =CONCATENATE("EXPENDITURE ($'0s, real ", dms_DollarReal,")") -> EXPENDITURE ($'0s, real June 2020)
B10: SERVICE SUBCATEGORY | C10: ASSET CATEGORY | E10: =CRCP_y4 -> 2018-19 | F10: =CRCP_y5 -> 2019-20 | G10: =FRCP_y1 -> 2020-21 | H10: =FRCP_y2 -> 2021-22 | I10: =FRCP_y3 -> 2022-23 | J10: =FRCP_y4 -> 2023-24 | K10: =FRCP_y5 -> 2024-25
B11: OPEX
B12: IT & COMMUNICATIONS | C12: Total IT and communications | E12: 23176744.53 | F12: 22750977.67 | G12: 21748769 | H12: 21438276.46 | I12: 21168060.53 | J12: 20875521.57 | K12: 20587273.74
B13: MOTOR VEHICLES | C13: Car | E13: 163312.5945 | F13: 160312.4712 | G13: 153250.5088 | H13: 151062.6544 | I13: 149158.6051 | J13: 147097.2588 | K13: 145066.1495
C14: Light commercial vehicle | E14: 4174019.885 | F14: 4097341.328 | G14: 3916848.382 | H14: 3860930.173 | I14: 3812265.588 | J14: 3759580.731 | K14: 3707668.687
C15: Elevated work platform (LCV) | E15: 0 | F15: 0 | G15: 0 | H15: 0 | I15: 0 | J15: 0 | K15: 0
C16: Elevated work platform (HCV) | E16: 3653771.68 | F16: 3586650.308 | G16: 3428653.932 | H16: 3379705.347 | I16: 3337106.297 | J16: 3290988.06 | K16: 3245546.313
C17: Heavy commercial vehicle | E17: 1677071.366 | F17: 1646262.837 | G17: 1573742.926 | H17: 1551275.657 | I17: 1531722.808 | J17: 1510554.661 | K17: 1489697.021
B18: BUILDINGS AND PROPERTY | C18: Total buildings and property expenditure | E18: 15450025.63 | F18: 15166201.95 | G18: 14498112.02 | H18: 14291132.23 | I18: 14111001.54 | J18: 13915989.92 | K18: 13723838.84
B19: OTHER | C19: Other expenditure
B20: OTHER - DNSP nominated | C20: Office furniture and equipment | E20: 0 | F20: 0 | G20: 0 | H20: 0 | I20: 0 | J20: 0 | K20: 0
C21: Plant and equipment | E21: 1421357.501 | F21: 1395246.547 | G21: 1333784.213 | H21: 1314742.673 | I21: 1298171.173 | J21: 1280230.67 | K21: 1262553.329
C22: Crane borer plant HCV
C23: Other Fleet Assets
B31: CAPEX
B32: IT & COMMUNICATIONS | C32: Total IT and communications | E32: 100357479.9 | F32: 75855264.85 | G32: 72054169.83 | H32: 72057523.12 | I32: 71637681.64 | J32: 67696987.89 | K32: 72552988.67
B33: MOTOR VEHICLES | C33: Car | E33: 298779.0592 | F33: 439799.0482 | G33: 431774.3229 | H33: 401084.1047 | I33: 376985.5398 | J33: 210737.1862 | K33: 464756.4051
C34: Light commercial vehicle | E34: 9694621.961 | F34: 12531709.87 | G34: 12919504.58 | H34: 11767005.58 | I34: 10829939.37 | J34: 11455675.11 | K34: 11880919.39
C35: Elevated work platform (LCV) | E35: 0 | F35: 0 | G35: 0 | H35: 0 | I35: 0 | J35: 0 | K35: 0
C36: Elevated work platform (HCV) | E36: 12931821.02 | F36: 11074633.65 | G36: 9591525.224 | H36: 8787880.766 | I36: 13336622.79 | J36: 12229700.87 | K36: 13076567
C37: Heavy commercial vehicle | E37: 9086076.652 | F37: 8768265.032 | G37: 8387196.852 | H37: 7449553.122 | I37: 9072682.675 | J37: 7315313.611 | K37: 8376799.093
B38: BUILDINGS AND PROPERTY | C38: Total buildings and property expenditure | E38: 51944004.35 | F38: 41635654.42 | G38: 45280433.65 | H38: 51118388.44 | I38: 52258306.51 | J38: 40129307.21 | K38: 37013221.7
B39: OTHER | C39: Other expenditure | E39: 0 | F39: 0 | G39: 0 | H39: 0 | I39: 0 | J39: 0 | K39: 0
B40: OTHER - DNSP nominated | C40: Office furniture and equipment | E40: 0 | F40: 0 | G40: 0 | H40: 0 | I40: 0 | J40: 0 | K40: 0
C41: Plant and equipment | E41: 6642212.309 | F41: 6648444.183 | G41: 6696792.828 | H41: 6728100.26 | I41: 6759773.775 | J41: 6798482.206 | K41: 6894731.587
C42: Crane borer plant HCV | E42: 1459081.758 | F42: 1646264.744 | G42: 1818709.444 | H42: 4158806.955 | I42: 1524837.524 | J42: 3967096.147 | K42: 3507014.267
C43: Other Fleet Assets | E43: 4027849.588 | F43: 2771193.538 | G43: 5699562.026 | H43: 6105785.933 | I43: 4117673.715 | J43: 3598460.679 | K43: 3728674.527
B54: 2.6.2 - ANNUAL DESCRIPTOR METRICS
B55: IT & COMMUNICATIONS
E56: VOLUMES (0's)
E57: =CRCP_y4 -> 2018-19 | F57: =CRCP_y5 -> 2019-20 | G57: =FRCP_y1 -> 2020-21 | H57: =FRCP_y2 -> 2021-22 | I57: =FRCP_y3 -> 2022-23 | J57: =FRCP_y4 -> 2023-24 | K57: =FRCP_y5 -> 2024-25
B58: Employee numbers | E58: 2673 | F58: 2673 | G58: 2673 | H58: 2673 | I58: 2673 | J58: 2673 | K58: 2673
B59: User numbers | E59: 3564 | F59: 3564 | G59: 3564 | H59: 3564 | I59: 3564 | J59: 3564 | K59: 3564
B60: Number of devices
B62: MOTOR VEHICLES
E63: VOLUMES (0's or %)
B64: ASSET CATEGORY | C64: DESCRIPTOR METRIC | D64: Units | E64: =CRCP_y4 -> 2018-19 | F64: =CRCP_y5 -> 2019-20 | G64: =FRCP_y1 -> 2020-21 | H64: =FRCP_y2 -> 2021-22 | I64: =FRCP_y3 -> 2022-23 | J64: =FRCP_y4 -> 2023-24 | K64: =FRCP_y5 -> 2024-25
B65: CAR | C65: Average kilometres travelled | D65: 0's | E65: 14781.88815 | F65: 14781.88815 | G65: 14781.88815 | H65: 14781.88815 | I65: 14781.88815 | J65: 14781.88815 | K65: 14781.88815
C66: Number purchased | D66: 0's | E66: 3.103881535 | F66: 6.066743254 | G66: 7.28131578 | H66: 6.420822679 | I66: 5.604305109 | J66: 0 | K66: 7.191557869
C67: Number leased | D67: 0's | E67: 6 | F67: 6 | G67: 3 | H67: 0 | I67: 0 | J67: 0 | K67: 0
C68: Number in fleet | D68: 0's | E68: 61 | F68: 61 | G68: 61 | H68: 61 | I68: 61 | J68: 61 | K68: 61
C69: Proportion of total fleet expenditure allocated as regulatory expenditure | D69: % | E69: 0.825 | F69: 0.835 | G69: 0.85 | H69: 0.849 | I69: 0.847 | J69: 0.842 | K69: 0.85
B70: LIGHT COMMERCIAL VEHICLE | C70: Average kilometres travelled | D70: 0's | E70: 22884.42087 | F70: 22884.42087 | G70: 22884.42087 | H70: 22884.42087 | I70: 22884.42087 | J70: 22884.42087 | K70: 22884.42087
C71: Number purchased | D71: 0's | E71: 69.06136416 | F71: 94.03452044 | G71: 121.355263 | H71: 110.7591912 | I71: 92.07072679 | J71: 94.07260103 | K71: 103.0789961
C72: Number leased | D72: 0's | E72: 10 | F72: 10 | G72: 5 | H72: 0 | I72: 0 | J72: 0 | K72: 0
C73: Number in fleet | D73: 0's | E73: 791 | F73: 791 | G73: 791 | H73: 791 | I73: 791 | J73: 791 | K73: 791
C74: Proportion of total fleet expenditure allocated as regulatory expenditure | D74: % | E74: 0.825 | F74: 0.835 | G74: 0.85 | H74: 0.849 | I74: 0.847 | J74: 0.842 | K74: 0.85
B75: ELEVATED WORK PLATFORM (LCV) | C75: Average kilometres travelled | D75: 0's | E75: 0 | F75: 0 | G75: 0 | H75: 0 | I75: 0 | J75: 0 | K75: 0
C76: Number purchased | D76: 0's | E76: 0 | F76: 0 | G76: 0 | H76: 0 | I76: 0 | J76: 0 | K76: 0
C77: Number leased | D77: 0's | E77: 0 | F77: 0 | G77: 0 | H77: 0 | I77: 0 | J77: 0 | K77: 0
C78: Number in fleet | D78: 0's | E78: 0 | F78: 0 | G78: 0 | H78: 0 | I78: 0 | J78: 0 | K78: 0
C79: Proportion of total fleet expenditure allocated as regulatory expenditure | D79: % | E79: 0 | F79: 0 | G79: 0 | H79: 0 | I79: 0 | J79: 0 | K79: 0
B80: ELEVATED WORK PLATFORM (HCV) | C80: Average kilometres travelled | D80: 0's | E80: 14243.40697 | F80: 14243.40697 | G80: 14243.40697 | H80: 14243.40697 | I80: 14243.40697 | J80: 14243.40697 | K80: 14243.40697
C81: Number purchased | D81: 0's | E81: 16.29537806 | F81: 21.23360139 | G81: 22.65298243 | H81: 19.26246804 | I81: 36.0276757 | J81: 29.497341 | K81: 33.56060339
C82: Number leased | D82: 0's | E82: 0 | F82: 0 | G82: 0 | H82: 0 | I82: 0 | J82: 0 | K82: 0
C83: Number in fleet | D83: 0's | E83: 186.0239 | F83: 186.0239 | G83: 186.0239 | H83: 186.0239 | I83: 186.0239 | J83: 186.0239 | K83: 186.0239
C84: Proportion of total fleet expenditure allocated as regulatory expenditure | D84: % | E84: 0.825 | F84: 0.835 | G84: 0.85 | H84: 0.849 | I84: 0.847 | J84: 0.842 | K84: 0.85
B85: HEAVY COMMERCIAL VEHICLE | C85: Average kilometres travelled | D85: 0's | E85: 13149.29309 | F85: 13149.29309 | G85: 13149.29309 | H85: 13149.29309 | I85: 13149.29309 | J85: 13149.29309 | K85: 13149.29309
C86: Number purchased | D86: 0's | E86: 43.45434149 | F86: 33.3670879 | G86: 40.90509296 | H86: 38.52493607 | I86: 46.4356709 | J86: 34.28069359 | K86: 40.75216126
C87: Number leased | D87: 0's | E87: 0 | F87: 0 | G87: 0 | H87: 0 | I87: 0 | J87: 0 | K87: 0
C88: Number in fleet | D88: 0's | E88: 206 | F88: 206 | G88: 206 | H88: 206 | I88: 206 | J88: 206 | K88: 206
C89: Proportion of total fleet expenditure allocated as regulatory expenditure | D89: % | E89: 0.825 | F89: 0.835 | G89: 0.85 | H89: 0.849 | I89: 0.847 | J89: 0.842 | K89: 0.85
B93: 2.6.4 - INFORMATION & COMMUNICATIONS TECHNOLOGY - CAPEX BY PURPOSE
E94: =CONCATENATE("EXPENDITURE ($'0s, real ", dms_DollarReal,")") -> EXPENDITURE ($'0s, real June 2020)
E95: =CRCP_y4 -> 2018-19 | F95: =CRCP_y5 -> 2019-20 | G95: =FRCP_y1 -> 2020-21 | H95: =FRCP_y2 -> 2021-22 | I95: =FRCP_y3 -> 2022-23 | J95: =FRCP_y4 -> 2023-24 | K95: =FRCP_y5 -> 2024-25
B96: ICT CAPABILITY GROWTH
B97: Distribution Operations, Asset and Works Management | C97: Distribution Operations, Asset and Works Management | D97: 0 | E97: 1593615.995 | F97: 0 | G97: 2769986.715 | H97: 2067029.457 | I97: 1756329.857 | J97: 1776603.18 | K97: 1427899.5
B98: Customer and Market Systems | C98: Customer and Market Systems | D98: Customer and Market Systems | E98: 5631568.336 | F98: 2503359.497 | G98: 502058.5294 | H98: 1105319.968 | I98: 1035201.365 | J98: 559830.5369 | K98: 724901.0322
B99: Corporate Systems | C99: Corporate Systems | D99: Corporate Systems | E99: 0 | F99: 0 | G99: 251139.4488 | H99: 42791.12295 | I99: 319211.6642 | J99: 190724.4442 | K99: 751665.9416
B100: ICT Management Systems, Productivity and Cybersecurity | C100: ICT Management Systems, Productivity and Cybersecurity | D100: ICT Management Systems, Productivity and Cybersecurity | E100: 2450460.303 | F100: 2035719.66 | G100: 99138.36447 | H100: 302648.0697 | I100: 274569.6739 | J100: 323084.3298 | K100: 309325.8041
B101: Infrastructure Program | C101: Infrastructure Program | D101: Infrastructure Program | E101: 51123.66066 | F101: 0 | G101: 701038.9437 | H101: 707533.1478 | I101: 721668.2114 | J101: 720732.7999 | K101: 726188.186
B102: Minor Applications Change | C102: Minor Applications Change | D102: Minor Applications Change | E102: 0 | F102: 0 | G102: 281673.3796 | H102: 283928.7419 | I102: 287267.0744 | J102: 287391.049 | K102: 289084.9271
B103: ICT ASSET EXTENSIONS
B104: Distribution Operations, Asset and Works Management | C104: Distribution Operations, Asset and Works Management | D104: 0 | E104: 289084.7338 | F104: 407143.9952 | G104: 417363.7459 | H104: 16148.40544 | I104: 180255.6278 | J104: 435111.7576 | K104: 147451.427
B105: Customer and Market Systems | C105: Customer and Market Systems | D105: Customer and Market Systems | E105: 3202140.568 | F105: 305357.9964 | G105: 235294.1746 | H105: 0 | I105: 0 | J105: 50203.58511 | K105: 105696.6625
B106: Corporate Systems | C106: Corporate Systems | D106: Corporate Systems | E106: 20420.52887 | F106: 407143.9952 | G106: 73059.95114 | H106: 0 | I106: 0 | J106: 291881.4862 | K106: 587203.7515
B107: ICT Management Systems, Productivity and Cybersecurity | C107: ICT Management Systems, Productivity and Cybersecurity | D107: ICT Management Systems, Productivity and Cybersecurity | E107: 0 | F107: 0 | G107: 322199.5794 | H107: 983606.2528 | I107: 250489.7075 | J107: 997092.4283 | K107: 283443.3139
B108: Infrastructure Program | C108: Infrastructure Program | D108: Infrastructure Program | E108: 0 | F108: 2442863.655 | G108: 0 | H108: 0 | I108: 0 | J108: 0 | K108: 0
B109: Minor Applications Change | C109: Minor Applications Change | D109: Minor Applications Change | E109: 2174869.516 | F109: 1815862.809 | G109: 915438.6151 | H109: 922768.3849 | I109: 933616.989 | J109: 934020.8829 | K109: 939526.0662
B110: ICT ASSET REMEDIATION
B111: Distribution Operations, Asset and Works Management | C111: Distribution Operations, Asset and Works Management | D111: 0 | E111: 909864.8915 | F111: 2605721.253 | G111: 96314.5812 | H111: 3726.611751 | I111: 41597.47692 | J111: 100410.4545 | K111: 34027.26874
B112: Customer and Market Systems | C112: Customer and Market Systems | D112: Customer and Market Systems | E112: 0 | F112: 0 | G112: 54298.41466 | H112: 0 | I112: 0 | J112: 11585.50791 | K112: 24391.58658
B113: Corporate Systems | C113: Corporate Systems | D113: Corporate Systems | E113: 1100070.443 | F113: 0 | G113: 16859.95637 | H113: 0 | I113: 0 | J113: 67357.29864 | K113: 135508.5662
B114: ICT Management Systems, Productivity and Cybersecurity | C114: ICT Management Systems, Productivity and Cybersecurity | D114: ICT Management Systems, Productivity and Cybersecurity | E114: 0 | F114: 0 | G114: 74353.77335 | H114: 226986.026 | I114: 57805.32524 | J114: 230098.2201 | K114: 65409.93826
B115: Infrastructure Program | C115: Infrastructure Program | D115: Infrastructure Program | E115: 0 | F115: 0 | G115: 0 | H115: 0 | I115: 0 | J115: 0 | K115: 0
B116: Minor Applications Change | C116: Minor Applications Change | D116: Minor Applications Change | E116: 253214.2207 | F116: 203571.9976 | G116: 211255.1135 | H116: 212946.5827 | I116: 215450.0419 | J116: 215543.3133 | K116: 216813.7485
B117: ICT ASSET REPLACEMENT
B118: Distribution Operations, Asset and Works Management | C118: Distribution Operations, Asset and Works Management | D118: 0 | E118: 8464877.333 | F118: 15684880.79 | G118: 24416202.84 | H118: 18583390.1 | I118: 15585116.77 | J118: 15453906.2 | K118: 12669617.55
B119: Customer and Market Systems | C119: Customer and Market Systems | D119: Customer and Market Systems | E119: 1231253.066 | F119: 346073.9027 | G119: 4228935.479 | H119: 9947879.502 | I119: 9316802.491 | J119: 4976685.739 | K119: 6394020.934
B120: Corporate Systems | C120: Corporate Systems | D120: Corporate Systems | E120: 31808408.29 | F120: 8890344.62 | G120: 2170335.658 | H120: 385120.6431 | I120: 2872905.295 | J120: 1357283.343 | K120: 6042281.05
B121: ICT Management Systems, Productivity and Cybersecurity | C121: ICT Management Systems, Productivity and Cybersecurity | D121: ICT Management Systems, Productivity and Cybersecurity | E121: 7158683.077 | F121: 4237863.579 | G121: 495691.6121 | H121: 1513240.348 | I121: 2162831.821 | J121: 1680567.684 | K121: 2435079.006
B122: Infrastructure Program | C122: Infrastructure Program | D122: Infrastructure Program | E122: 6140245.751 | F122: 4614650.487 | G122: 4611933.243 | H122: 5202723.802 | I122: 5320606.644 | J122: 5692843.77 | K122: 5524640.605
B123: Minor Applications Change | C123: Minor Applications Change | D123: Minor Applications Change | E123: 355021.0834 | F123: 1832148.505 | G123: 1408367.003 | H123: 1419643.604 | I123: 1436333.894 | J123: 1436955.245 | K123: 1445424.742

Sheet 2.10 Overheads
B1: =SheetHeader -> REGULATORY REPORTING STATEMENT
B2: =dms_TradingName -> Ergon Energy
B3: =dms_Reg_Year_Span -> 2020-21 to 2024-25
B4: 2.10 OVERHEADS
B6: There are TWO tables on this worksheet. Each table has been 'grouped' (and sub-grouped) for easy navigation. See the Instructions sheet on how to group or ungroup data.
B8: 2.10.1 - NETWORK OVERHEADS EXPENDITURE
D9: =CONCATENATE("EXPENDITURE ($0's, real ", dms_DollarReal,")") -> EXPENDITURE ($0's, real June 2020)
D10: =CRCP_y4 -> 2018-19 | E10: =CRCP_y5 -> 2019-20 | F10: =FRCP_y1 -> 2020-21 | G10: =FRCP_y2 -> 2021-22 | H10: =FRCP_y3 -> 2022-23 | I10: =FRCP_y4 -> 2023-24 | J10: =FRCP_y5 -> 2024-25
B11: OPEX
B12: Standard Control Services | C12: Total | D12: 134306792 | E12: 131839517.9 | F12: 126031824.3 | G12: 124232552.7 | H12: 122666679.9 | I12: 120971447.4 | J12: 119301081.6
B13: Alternative Control Services | C13: Total | D13: 9927683.123 | E13: 10158160.58 | F13: 11234734.68 | G13: 10627753.54 | H13: 10037741.94 | I13: 9477787.753 | J13: 8922803.945
B14: CAPEX
B15: Standard Control Services | C15: Total | D15: 59206525.08 | E15: 59206525.08 | F15: 59590885.58 | G15: 60513452.71 | H15: 62104328.22 | I15: 64336096.89 | J15: 67275308.09
B16: Alternative Control Services | C16: Total | D16: 2652605.649 | E16: 2725815.837 | F16: 2941040.107 | G16: 2864576.203 | H16: 2676441.915 | I16: 2515984.934 | J16: 2220930.024
B17: OTHER DISTRIBUTION SERVICES
B18: Negotiated Services | C18: Total | D18: 0 | E18: 0 | F18: 0 | G18: 0 | H18: 0 | I18: 0 | J18: 0
B19: Unregulated Distribution Services | C19: Total | D19: 10459442.67 | E19: 9418710.342 | F19: 9127670.675 | G19: 8468639.711 | H19: 8004548.35 | I19: 8055715.144 | J19: 8077423.678
B23: 2.10.2 - CORPORATE OVERHEADS EXPENDITURE
D24: =CONCATENATE("EXPENDITURE ($0's, real ", dms_DollarReal,")") -> EXPENDITURE ($0's, real June 2020)
D25: =CRCP_y4 -> 2018-19 | E25: =CRCP_y5 -> 2019-20 | F25: =FRCP_y1 -> 2020-21 | G25: =FRCP_y2 -> 2021-22 | H25: =FRCP_y3 -> 2022-23 | I25: =FRCP_y4 -> 2023-24 | J25: =FRCP_y5 -> 2024-25
B26: OPEX
B27: Standard Control Services | C27: Total | D27: 36255714.6 | E27: 35589681.38 | F27: 39641081.95 | G27: 39200549.73 | H27: 38819264.63 | I27: 38406260.49 | J27: 37987802.12
B28: Alternative Control Services | C28: Total | D28: 5354112.6 | E28: 7526805.478 | F28: 4213382.141 | G28: 4093570.592 | H28: 3950988.337 | I28: 3794671.404 | J28: 3615363.875
B29: CAPEX
B30: Standard Control Services | C30: Total | D30: 11277433.35 | E30: 11277433.35 | F30: 11350644.87 | G30: 11526371.94 | H30: 11829395.85 | I30: 12254494.65 | J30: 12814344.4
B31: Alternative Control Services | C31: Total | D31: 903464.2642 | E31: 944201.4612 | F31: 1158697.875 | G31: 1116825.323 | H31: 1053969.214 | I31: 995329.8373 | J31: 909832.851
B32: OTHER DISTRIBUTION SERVICES
B33: Negotiated Services | C33: Total | D33: 0 | E33: 0 | F33: 0 | G33: 0 | H33: 0 | I33: 0 | J33: 0
B34: Unregulated Distribution Services | C34: Total | D34: 2786648.853 | E34: 2606132.59 | F34: 2456975.117 | G34: 2501084.36 | H34: 2359606.529 | I34: 2372780.055 | J34: 2377509.471

Sheet 2.11 Labour
B1: =SheetHeader -> REGULATORY REPORTING STATEMENT
B2: =dms_TradingName -> Ergon Energy
B3: =dms_Reg_Year_Span -> 2020-21 to 2024-25
B4: 2.11 LABOUR
B6: Table numbering on this worksheet starts at 2.11.3.
B8: 2.11.3 - LABOUR / NON-LABOUR EXPENDITURE SPLIT - STANDARD CONTROL SERVICES
C9: EXPENDITURE
C10: =CONCATENATE("($0's, real ", dms_DollarReal,")") -> ($0's, real June 2020)
C11: =CRCP_y4 -> 2018-19 | D11: =CRCP_y5 -> 2019-20 | E11: =FRCP_y1 -> 2020-21 | F11: =FRCP_y2 -> 2021-22 | G11: =FRCP_y3 -> 2022-23 | H11: =FRCP_y4 -> 2023-24 | I11: =FRCP_y5 -> 2024-25
B12: OPEX
B13: In-house labour expenditure | C13: 230653666.3 | D13: 226416458.3 | E13: 219718916.5 | F13: 216655252.8 | G13: 213990228.5 | H13: 211104913 | I13: 208255208.5
B14: Labour expenditure outsourced to related parties | C14: 46656.24979 | D14: 45799.15423 | E14: 44444.38633 | F14: 43824.6734 | G14: 43285.5966 | H14: 42701.95966 | I14: 42125.52605
B15: Labour expenditure outsourced to unrelated parties | C15: 90184381.23 | D15: 88527655 | E15: 85908951.08 | F15: 84711074.54 | G15: 83669063.91 | H15: 82540920.59 | I15: 81426700.98
B16: Controllable non-labour expenditure | C16: 72134814.68 | D16: 70809666.82 | E16: 68715072.18 | F16: 67756939.51 | G16: 66923477.63 | H16: 66021121.72 | I16: 65129902.82
B17: Uncontrollable non-labour expenditure | C17: 2563721.857 | D17: 2516625.174 | E17: 2442181.812 | F17: 2408129.106 | G17: 2378507.287 | H17: 2346436.926 | I17: 2314762.381
B18: Total | C18: =SUM(C13:C17) -> 395583240.3 | D18: =SUM(D13:D17) -> 388316204.5 | E18: 376829566 | F18: 371575220.7 | G18: 367004562.9 | H18: 362056094.2 | I18: 357168700.2
B19: CAPEX
B20: In-house labour expenditure | C20: 233116013.6 | D20: 221205328.7 | E20: 238240436.1 | F20: 238008617.8 | G20: 251628881.3 | H20: 249414721.7 | I20: 255467168
B21: Labour expenditure outsourced to related parties | C21: 43473.81834 | D21: 41967.43937 | E21: 43617.35372 | F21: 43360.31077 | G21: 44414.77162 | H21: 44330.63603 | I21: 44968.96552
B22: Labour expenditure outsourced to unrelated parties | C22: 117750653 | D22: 99423593.98 | E22: 101785061.1 | F22: 108438942 | G22: 114177106.2 | H22: 103297992.3 | I22: 100959641.9
B23: Controllable non-labour expenditure | C23: 174994334.8 | D23: 175351308.6 | E23: 190466520.3 | F23: 196573581.5 | G23: 196238350.3 | H23: 194694582.4 | I23: 195215523.8
B24: Uncontrollable non-labour expenditure | C24: 0 | D24: 0 | E24: 0 | F24: 0 | G24: 0 | H24: 0 | I24: 0
B25: Total | C25: =SUM(C20:C24) -> 525904475.3 | D25: =SUM(D20:D24) -> 496022198.7 | E25: =SUM(E20:E24) -> 530535634.9 | F25: =SUM(F20:F24) -> 543064501.7 | G25: =SUM(G20:G24) -> 562088752.5 | H25: =SUM(H20:H24) -> 547451627 | I25: =SUM(I20:I24) -> 551687302.7

Sheet 2.14 Forecast price changes
B1: =SheetHeader -> REGULATORY REPORTING STATEMENT
B2: =dms_TradingName -> Ergon Energy
B3: =dms_Reg_Year_Span -> 2020-21 to 2024-25
B4: 2.14 FORECAST PRICE CHANGES
B6: There is ONE table on this worksheet. It has been grouped for easy navigation. See the Instructions sheet on how to group or ungroup data.
B8: Instructions
B9: =CONCATENATE(dms_TradingName, " must provide all forecast price changes used to forecast opex and capex, including forecast changes in CPI. Forecast price changes must be expressed in real terms, except for CPI. "&"If the same escalators are not used for capex and opex, report capex and opex escalators separately. Add additional rows as required. If price changes for a given year were not used to forecast either opex or capex enter '0' for that year.") -> Ergon Energy must provide all forecast price changes used to forecast opex and capex, including forecast changes in CPI. Forecast price changes must be expressed in real terms, except for CPI. If the same escalators are not used for capex and opex, report capex and opex escalators separately. Add additional rows as required. If price changes for a given year were not used to forecast either opex or capex enter '0' for that year.
B11: 2.14.2 - FORECAST CAPEX AND OPEX PRICE CHANGES
C12: Price changes (% YoY real) Current regulatory period | E12: Price changes (%YoY real) Forthcoming regulatory period
C13: Forecast
C14: =CRCP_y4 -> 2018-19 | D14: =CRCP_y5 -> 2019-20 | E14: =FRCP_y1 -> 2020-21 | F14: =FRCP_y2 -> 2021-22 | G14: =FRCP_y3 -> 2022-23 | H14: =FRCP_y4 -> 2023-24 | I14: =FRCP_y5 -> 2024-25
B15: OPEX
B16: Labour - Internal | C16: 0 | D16: 0 | E16: -0.003137554306 | F16: 0.000913873751 | G16: 0.004725136985 | H16: 0.005249602806 | I16: 0.005249602806
B17: Contractors | C17: 0 | D17: 0 | E17: -0.003137554306 | F17: 0.000913873751 | G17: 0.004725136985 | H17: 0.005249602806 | I17: 0.005249602806
B18: CPI | C18: 0.02 | D18: 0.0225 | E18: 0.0242 | F18: 0.0242 | G18: 0.0242 | H18: 0.0242 | I18: 0.0242
B19: CAPEX
B20: Labour - Internal | C20: 8.147426818e-05 | D20: -0.0005099993733 | E20: -0.003137554306 | F20: 0.000913873751 | G20: 0.004725136985 | H20: 0.005249602806 | I20: 0.005249602806
B21: Contractors | C21: 8.147426818e-05 | D21: -0.0005099993733 | E21: -0.003137554306 | F21: 0.000913873751 | G21: 0.004725136985 | H21: 0.005249602806 | I21: 0.005249602806
B22: Materials | C22: 0 | D22: 0 | E22: 0 | F22: 0 | G22: 0 | H22: 0 | I22: 0
B23: Other | C23: 0 | D23: 0 | E23: 0 | F23: 0 | G23: 0 | H23: 0 | I23: 0
B24: CPI | C24: 0.02 | D24: 0.0225 | E24: 0.0242 | F24: 0.0242 | G24: 0.0242 | H24: 0.0242 | I24: 0.0242

Sheet 2.16 Opex Summary
B1: =SheetHeader -> REGULATORY REPORTING STATEMENT
B2: =dms_TradingName -> Ergon Energy
B3: =dms_Reg_Year_Span -> 2020-21 to 2024-25
B4: 2.16 OPEX SUMMARY
B6: There are FOUR tables on this worksheet. Each table has been 'grouped' (and 'sub-grouped') for easy navigation. See the Instructions sheet on how to group or ungroup data.
B8: Instructions | J8: IMPORTANT!
B9: =CONCATENATE("Complete the tables below in accordance with the regulatory information notice. ",dms_TradingName,"'s total forecast opex must reconcile to Table 2.16.1 (and if ",dms_TradingName," owns any dual function assets Table 2.16.3). If ",dms_TradingName," did not forecast its total opex using a Base Year approach, total forecast opex must reconcile to Table 2.16.2 (and if ",dms_TradingName," owns any dual function assets Table 2.16.4).") -> Complete the tables below in accordance with the regulatory information notice. Ergon Energy's total forecast opex must reconcile to Table 2.16.1 (and if Ergon Energy owns any dual function assets Table 2.16.3). If Ergon Energy did not forecast its total opex using a Base Year approach, total forecast opex must reconcile to Table 2.16.2 (and if Ergon Energy owns any dual function assets Table 2.16.4). | J9: =CONCATENATE("Has ",dms_TradingName," used a base-step-trend model to derive its opex forecast? ") -> Has Ergon Energy used a base-step-trend model to derive its opex forecast? | L9: Yes
B10: =CONCATENATE("If ",dms_TradingName," does not own any dual function assets,Table 2.16.3 and 2.16.4 may be left blank.") -> If Ergon Energy does not own any dual function assets,Table 2.16.3 and 2.16.4 may be left blank. | J10: Yes / No
B11: The total step changes in Table 2.16.1 and Table 2.16.3 must "&"reconcile (in each year) to the total step changes for each year in Table 2.17.1 and Table 2.17.3 of worksheet '2.17 Step Changes', respectively.") | J11: Please nominate the base year. | L11: 2018-19
B14: 2.16.1 - STANDARD CONTROL SERVICES - OPEX BY DRIVER
C15: EXPENDITURE
C16: =CONCATENATE("Forecast ($0's, real ", dms_DollarReal,")") -> Forecast ($0's, real June 2020)
C17: =CRCP_y1 -> 2015-16 | D17: =CRCP_y2 -> 2016-17 | E17: =CRCP_y3 -> 2017-18 | F17: =CRCP_y4 -> 2018-19 | G17: =CRCP_y5 -> 2019-20 | H17: =FRCP_y1 -> 2020-21 | I17: =FRCP_y2 -> 2021-22 | J17: =FRCP_y3 -> 2022-23 | K17: =FRCP_y4 -> 2023-24 | L17: =FRCP_y5 -> 2024-25
B18: Base year total opex, excluding category specific | F18: 377499606.6 | G18: 377499606.6 | H18: 377499606.6 | I18: 377499606.6 | J18: 377499606.6 | K18: 377499606.6 | L18: 377499606.6
B19: Increment from base year to final year | G19: 0
B20: Price growth | H20: -718511.2031 | I20: -520549.0239 | J20: 598386.357 | K20: 1901790.437 | L20: 3269530.313
B21: Output growth | H21: 4339747.503 | I21: 8916130.187 | J21: 13559390.92 | K21: 17760368.31 | L21: 22198665.61
B22: Productivity growth | H22: -9910446.862 | I22: -19984312.78 | J22: -30358584.21 | K22: -40856053.17 | L22: -51581936.2
B23: Step changes | H23: 0 | I23: 0 | J23: 0 | K23: 0 | L23: 0
B24: Category specific | F24: 0 | G24: 0 | H24: 5619169.993 | I24: 5664345.725 | J24: 5705763.272 | K24: 5750382.055 | L24: 5782833.907
B25: Total opex | C25: =SUM(C18:C24) -> 0 | D25: =SUM(D18:D24) -> 0 | E25: =SUM(E18:E24) -> 0 | F25: 377499606.6 | G25: 377499606.6 | H25: 376829566 | I25: 371575220.7 | J25: 367004562.9 | K25: 362056094.2 | L25: 357168700.2
B28: 2.16.2 - STANDARD CONTROL SERVICES - OPEX BY CATEGORY
C29: EXPENDITURE
C30: =CONCATENATE("Forecast ($0's, real ", dms_DollarReal,")") -> Forecast ($0's, real June 2020)
C31: =CRCP_y1 -> 2015-16 | D31: =CRCP_y2 -> 2016-17 | E31: =CRCP_y3 -> 2017-18 | F31: =CRCP_y4 -> 2018-19 | G31: =CRCP_y5 -> 2019-20 | H31: =FRCP_y1 -> 2020-21 | I31: =FRCP_y2 -> 2021-22 | J31: =FRCP_y3 -> 2022-23 | K31: =FRCP_y4 -> 2023-24 | L31: =FRCP_y5 -> 2024-25
B32: Vegetation management
B33: Maintenance
B34: Emergency response
B35: Non-network
B36: Metering
B37: Network overheads
B38: Corporate overheads
B39: Total opex | C39: =SUM(C32:C38) -> 0 | D39: =SUM(D32:D38) -> 0 | E39: 0 | F39: 0 | G39: 0 | H39: =SUM(H32:H38) -> 0 | I39: 0 | J39: 0 | K39: 0 | L39: 0
B42: 2.16.3 - DUAL FUNCTION ASSETS - OPEX BY DRIVER
C43: EXPENDITURE
C44: =CONCATENATE("Forecast ($0's, real ", dms_DollarReal,")") -> Forecast ($0's, real June 2020)
C45: =CRCP_y1 -> 2015-16 | D45: =CRCP_y2 -> 2016-17 | E45: =CRCP_y3 -> 2017-18 | F45: =CRCP_y4 -> 2018-19 | G45: =CRCP_y5 -> 2019-20 | H45: =FRCP_y1 -> 2020-21 | I45: =FRCP_y2 -> 2021-22 | J45: =FRCP_y3 -> 2022-23 | K45: =FRCP_y4 -> 2023-24 | L45: =FRCP_y5 -> 2024-25
B46: Base year total opex, excluding category specific
B47: Increment from base year to final year
B48: Price growth
B49: Output growth
B50: Productivity growth
B51: Step changes
B52: Category specific
B53: Total opex | C53: =SUM(C46:C52) -> 0 | D53: =SUM(D46:D52) -> 0 | E53: 0 | F53: 0 | G53: 0 | H53: =SUM(H46:H52) -> 0 | I53: 0 | J53: 0 | K53: 0 | L53: 0
B56: 2.16.4 - DUAL FUNCTION ASSETS - OPEX BY CATEGORY
C57: EXPENDITURE
C58: =CONCATENATE("Forecast ($0's, real ", dms_DollarReal,")") -> Forecast ($0's, real June 2020)
C59: =CRCP_y1 -> 2015-16 | D59: =CRCP_y2 -> 2016-17 | E59: =CRCP_y3 -> 2017-18 | F59: =CRCP_y4 -> 2018-19 | G59: =CRCP_y5 -> 2019-20 | H59: =FRCP_y1 -> 2020-21 | I59: =FRCP_y2 -> 2021-22 | J59: =FRCP_y3 -> 2022-23 | K59: =FRCP_y4 -> 2023-24 | L59: =FRCP_y5 -> 2024-25
B60: Vegetation management
B61: Maintenance
B62: Emergency response
B63: Non-network
B64: Metering
B65: Network overheads
B66: Corporate overheads
B67: Total opex | C67: =SUM(C60:C66) -> 0 | D67: =SUM(D60:D66) -> 0 | E67: 0 | F67: 0 | G67: 0 | H67: =SUM(H60:H66) -> 0 | I67: 0 | J67: 0 | K67: 0 | L67: 0

Sheet 2.17 Step Changes
B1: =SheetHeader -> REGULATORY REPORTING STATEMENT
B2: =dms_TradingName -> Ergon Energy
B3: =dms_Reg_Year_Span -> 2020-21 to 2024-25
B4: 2.17 STEP CHANGES
B6: There are FIVE tables on this worksheet. Each table has been 'grouped' (and 'sub-grouped') for easy navigation. See the Instructions sheet on how to group or ungroup data.
B8: Instructions
B9: =CONCATENATE("Complete the Tables below in accordance with the regulatory information notice. If ",dms_TradingName," does not own any dual function assets,Table 2.17.3 and 2.17.4 may be left blank."&" The total step changes in Table 2.17.1 and Table 2.17.3 must reconcile (in each year) to the total step changes for each year in Table 2.16.1 and Table 2.16.3 of worksheet '2.16 Opex Summary', respectively.") -> Complete the Tables below in accordance with the regulatory information notice. If Ergon Energy does not own any dual function assets,Table 2.17.3 and 2.17.4 may be left blank. The total step changes in Table 2.17.1 and Table 2.17.3 must reconcile (in each year) to the total step changes for each year in Table 2.16.1 and Table 2.16.3 of worksheet '2.16 Opex Summary', respectively.
B10: The total category specific forecast in Table 2.17.5 must reconcile (in each year) to the total category specific forecasts for each year in Table 2.16.1 and Table 2.16.3 of worksheet '2.16 Opex Summary'.
B12: 2.17.1 - STEP CHANGES FOR STANDARD CONTROL SERVICES - FORECAST OPEX
E13: EXPENDITURE
E14: =CONCATENATE("Forecast ($0's, real ", dms_DollarReal, ")") -> Forecast ($0's, real June 2020)
B15: Step change | C15: Description | E15: =CRCP_y4 -> 2018-19 | F15: =CRCP_y5 -> 2019-20 | G15: =FRCP_y1 -> 2020-21 | H15: =FRCP_y2 -> 2021-22 | I15: =FRCP_y3 -> 2022-23 | J15: =FRCP_y4 -> 2023-24 | K15: =FRCP_y5 -> 2024-25
B16: N/A
B17: N/A
B18: N/A
B19: N/A
B20: N/A
B21: N/A
B22: N/A
B23: N/A
B24: N/A
B25: N/A
B26: Total | E26: =SUM(E16:E25) -> 0 | F26: 0 | G26: 0 | H26: 0 | I26: 0 | J26: 0 | K26: 0
B27: Check | G27: =IF(G$26-'2.16 Opex Summary'!H$23=0,"OK","Error") -> OK | H27: =IF(H$26-'2.16 Opex Summary'!I$23=0,"OK","Error") -> OK | I27: =IF(I$26-'2.16 Opex Summary'!J$23=0,"OK","Error") -> OK | J27: =IF(J$26-'2.16 Opex Summary'!K$23=0,"OK","Error") -> OK | K27: =IF(K$26-'2.16 Opex Summary'!L$23=0,"OK","Error") -> OK
B29: 2.17.2 - STEP CHANGES FOR STANDARD CONTROL SERVICES - FORECAST CAPEX
E30: EXPENDITURE
E31: =CONCATENATE("Forecast ($0's, real ", dms_DollarReal, ")") -> Forecast ($0's, real June 2020)
B32: Step change | C32: Description | E32: =CRCP_y4 -> 2018-19 | F32: =CRCP_y5 -> 2019-20 | G32: =FRCP_y1 -> 2020-21 | H32: =FRCP_y2 -> 2021-22 | I32: =FRCP_y3 -> 2022-23 | J32: =FRCP_y4 -> 2023-24 | K32: =FRCP_y5 -> 2024-25
B33: N/A
B34: N/A
B35: N/A
B36: N/A
B37: N/A
B38: N/A
B39: N/A
B40: N/A
B41: N/A
B42: N/A
B43: Total | E43: =SUM(E33:E42) -> 0 | F43: 0 | G43: 0 | H43: 0 | I43: 0 | J43: 0 | K43: 0
B45: 2.17.3 - STEP CHANGES FOR DUAL FUNCTION ASSETS - FORECAST OPEX
E46: EXPENDITURE
E47: =CONCATENATE("Forecast ($0's, real ", dms_DollarReal, ")") -> Forecast ($0's, real June 2020)
B48: Step change | C48: Description | E48: =CRCP_y4 -> 2018-19 | F48: =CRCP_y5 -> 2019-20 | G48: =FRCP_y1 -> 2020-21 | H48: =FRCP_y2 -> 2021-22 | I48: =FRCP_y3 -> 2022-23 | J48: =FRCP_y4 -> 2023-24 | K48: =FRCP_y5 -> 2024-25
B59: Total | E59: =SUM(E49:E58) -> 0 | F59: 0 | G59: 0 | H59: 0 | I59: 0 | J59: 0 | K59: 0
B60: Check | G60: =IF(G$26-'2.16 Opex Summary'!H$51=0,"OK","Error") -> OK | H60: =IF(H$26-'2.16 Opex Summary'!I$51=0,"OK","Error") -> OK | I60: =IF(I$26-'2.16 Opex Summary'!J$51=0,"OK","Error") -> OK | J60: =IF(J$26-'2.16 Opex Summary'!K$51=0,"OK","Error") -> OK | K60: =IF(K$26-'2.16 Opex Summary'!L$51=0,"OK","Error") -> OK
B62: 2.17.4 - STEP CHANGES FOR DUAL FUNCTION ASSETS - FORECAST CAPEX
E63: EXPENDITURE
E64: =CONCATENATE("Forecast ($0's, real ", dms_DollarReal, ")") -> Forecast ($0's, real June 2020)
B65: Step change | C65: Description | E65: =CRCP_y4 -> 2018-19 | F65: =CRCP_y5 -> 2019-20 | G65: =FRCP_y1 -> 2020-21 | H65: =FRCP_y2 -> 2021-22 | I65: =FRCP_y3 -> 2022-23 | J65: =FRCP_y4 -> 2023-24 | K65: =FRCP_y5 -> 2024-25
B76: Total | E76: =SUM(E66:E75) -> 0 | F76: 0 | G76: 0 | H76: 0 | I76: 0 | J76: 0 | K76: 0
B79: 2.17.5 - FORECAST CATEGORY SPECIFIC OPEX
D80: EXPENDITURE
D81: =CONCATENATE("Forecast ($0's, real ", dms_DollarReal, ")") -> Forecast ($0's, real June 2020)
B82: Category | C82: Description | D82: =CRCP_y3 -> 2017-18 | E82: =CRCP_y4 -> 2018-19 | F82: =CRCP_y5 -> 2019-20 | G82: =FRCP_y1 -> 2020-21 | H82: =FRCP_y2 -> 2021-22 | I82: =FRCP_y3 -> 2022-23 | J82: =FRCP_y4 -> 2023-24 | K82: =FRCP_y5 -> 2024-25
B83: Debt Raising Costs | G83: 5619169.993 | H83: 5664345.725 | I83: 5705763.272 | J83: 5750382.055 | K83: 5782833.907
B93: Total | D93: =SUM(D90:D92) -> 0 | E93: 0 | F93: 0 | G93: 0 | H93: 0 | I93: 0 | J93: 0 | K93: 0

Sheet 3.1 Revenue
B1: =SheetHeader -> REGULATORY REPORTING STATEMENT
B2: =dms_TradingName -> Ergon Energy
B3: =dms_Reg_Year_Span -> 2020-21 to 2024-25
B4: 3.1 REVENUE
B6: There are THREE tables on this worksheet. Each table has been 'grouped' (and 'sub-grouped') for easy navigation. See the Instructions sheet on how to group or ungroup data.
B8: 3.1.1 - REVENUE GROUPING BY CHARGEABLE QUANTITY
C9: Standard control services | K9: Alternative control services
C10: REVENUE | K10: REVENUE
C11: =CONCATENATE("Forecast ($0's, real ", dms_DollarReal,")") -> Forecast ($0's, real June 2020) | K11: =CONCATENATE("Forecast ($0's, real ", dms_DollarReal,")") -> Forecast ($0's, real June 2020)
C12: =CRCP_y4 -> 2018-19 | D12: =CRCP_y5 -> 2019-20 | E12: =FRCP_y1 -> 2020-21 | F12: =FRCP_y2 -> 2021-22 | G12: =FRCP_y3 -> 2022-23 | H12: =FRCP_y4 -> 2023-24 | I12: =FRCP_y5 -> 2024-25 | K12: =CRCP_y4 -> 2018-19 | L12: =CRCP_y5 -> 2019-20 | M12: =FRCP_y1 -> 2020-21 | N12: =FRCP_y2 -> 2021-22 | O12: =FRCP_y3 -> 2022-23 | P12: =FRCP_y4 -> 2023-24 | Q12: =FRCP_y5 -> 2024-25
A13: DREV0101 | B13: Revenue from Fixed Customer Charges | C13: 599360452.8 | D13: 597446764.1 | E13: 602187068.7 | F13: 610113680.3 | G13: 604257628.6 | H13: 598400002.4 | I13: 592537407.9
A14: DREV0102 | B14: Revenue from Energy Delivery charges where time of use is not a determinant | C14: 417777501.5 | D14: 438956261.4 | E14: 396519667.6 | F14: 409086485 | G14: 413987794.3 | H14: 418911159.7 | I14: 423854294.2
A15: DREV0103 | B15: Revenue from On–Peak Energy Delivery charges | C15: 87247.76687 | D15: 298202.9118 | E15: 29284999.42 | F15: 30020357.79 | G15: 29980114.69 | H15: 29934180.24 | I15: 29882329.15
A16: DREV0104 | B16: Revenue from Shoulder period Energy Delivery Charges | D16: 0 | E16: 0 | F16: 0 | G16: 0 | H16: 0 | I16: 0
A17: DREV0105 | B17: Revenue from Off–Peak Energy Delivery charges | C17: 1184429.701 | D17: 1792867.655 | E17: 2135427.757 | F17: 2219826.029 | G17: 2248238.236 | H17: 2276796.006 | I17: 2305472.013
A18: DREV0106 | B18: Revenue from controlled load customer charges | C18: 54744210.34 | D18: 54355494.31 | E18: 35295592.19 | F18: 36690574.8 | G18: 37160189.02 | H18: 37632209.16 | I18: 38106182.73
A19: DREV0107 | B19: Revenue from unmetered supplies | C19: 4932687.211 | D19: 5680659.816 | E19: 5302267.809 | F19: 5511828.52 | G19: 5582376.228 | H19: 5653285.244 | I19: 5724487.767
A20: DREV0108 | B20: Revenue from Contracted Maximum Demand charges | C20: 212357414 | D20: 217029143 | E20: 102473615.8 | F20: 87364603.72 | G20: 87739906.31 | H20: 88103759.38 | I20: 88460386.33
A21: DREV0109 | B21: Revenue from Measured Maximum Demand charges | C21: 24472193.02 | D21: 25118171.79 | E21: 27033284.57 | F21: 18749506.96 | G21: 18640688.78 | H21: 18524797.7 | I21: 18404218.13
A22: DREV0110 | B22: Revenue from metering charges | D22: 0 | E22: 0 | F22: 0 | G22: 0 | H22: 0 | I22: 0 | K22: 52473683.02 | L22: 49382768.53 | M22: 45752238.82 | N22: 43176544.34 | O22: 40942834.66 | P22: 39016048.19 | Q22: 36668289.77
A23: DREV0111 | B23: Revenue from connection charges | D23: 0 | E23: 0 | F23: 0 | G23: 0 | H23: 0 | I23: 0 | K23: 39760514.23 | L23: 39676837.53 | M23: 44159898.16 | N23: 43573927.95 | O23: 42933551.38 | P23: 42192177.69 | Q23: 41341976.74
A24: DREV0112 | B24: Revenue from public lighting charges | C24: 11182086.61 | D24: 12877692.75 | E24: 12019902.13 | F24: 12494963.04 | G24: 12654889.94 | H24: 12815636.27 | I24: 12977047.86 | K24: 41961869.82 | L24: 36972210.79 | M24: 31757441.81 | N24: 31952688.79 | O24: 32151497.97 | P24: 32355141.05 | Q24: 32563649.55
A25: DREV0113 | B25: Revenue from other Sources | K25: 18863907.3 | L25: 18824207.89 | M25: 18615943.57 | N25: 18615943.49 | O25: 18615943.54 | P25: 18615943.5 | Q25: 18615943.5
A26: DREV01 | B26: Total revenue by chargeable quantity | C26: =SUM(C13:C25) -> 1326098223 | D26: =SUM(D13:D25) -> 1353555258 | E26: 1212251826 | F26: 1212251826 | G26: 1212251826 | H26: 1212251826 | I26: 1212251826 | K26: =SUM(K13:K25) -> 153059974.4 | L26: =SUM(L13:L25) -> 144856024.7 | M26: 140285522.4 | N26: 137319104.6 | O26: 134643827.5 | P26: 132179310.4 | Q26: 129189859.6
B29: 3.1.2 - REVENUE GROUPING BY CUSTOMER TYPE OR CLASS
C30: Standard control services | K30: Alternative control services
C31: REVENUE | K31: REVENUE
C32: =CONCATENATE("Forecast ($0's, real ", dms_DollarReal,")") -> Forecast ($0's, real June 2020) | K32: =CONCATENATE("Forecast ($0's, real ", dms_DollarReal,")") -> Forecast ($0's, real June 2020)
C33: =CRCP_y4 -> 2018-19 | D33: =CRCP_y5 -> 2019-20 | E33: =FRCP_y1 -> 2020-21 | F33: =FRCP_y2 -> 2021-22 | G33: =FRCP_y3 -> 2022-23 | H33: =FRCP_y4 -> 2023-24 | I33: =FRCP_y5 -> 2024-25 | K33: =CRCP_y4 -> 2018-19 | L33: =CRCP_y5 -> 2019-20 | M33: =FRCP_y1 -> 2020-21 | N33: =FRCP_y2 -> 2021-22 | O33: =FRCP_y3 -> 2022-23 | P33: =FRCP_y4 -> 2023-24 | Q33: =FRCP_y5 -> 2024-25
A34: DREV0201 | B34: Revenue from residential Customers | C34: 591664783.1 | D34: 599000811.2 | E34: 537901291.4 | F34: 551888342.5 | G34: 551753469.9 | H34: 551636967.7 | I34: 551533355.9
A35: DREV0202 | B35: Revenue from Non residential customers not on demand tariffs | C35: 213651793.5 | D35: 220617672.7 | E35: 198984558.4 | F35: 205576421.1 | G35: 206946925.2 | H35: 208326750.7 | I35: 209713605.4
A36: DREV0203 | B36: Revenue from Non-residential low voltage demand tariff customers | C36: 371349412.2 | D36: 379228666.9 | E36: 333172965.2 | F36: 340887550.3 | G36: 339838509 | H36: 338784539.7 | I36: 337722574.9
A37: DREV0204 | B37: Revenue from Non-residential high voltage demand tariff customers | C37: 133317460.5 | D37: 136149754.4 | E37: 124870841.2 | F37: 95892720.74 | G37: 95475655.73 | H37: 95034646.53 | I37: 94580754.34
A38: DREV0205 | B38: Revenue from unmetered supplies | C38: 16114773.82 | D38: 18558352.56 | E38: 17322169.94 | F38: 18006791.56 | G38: 18237266.17 | H38: 18468921.51 | I38: 18701535.63
A39: DREV0206 | B39: Revenue from Other Customers | K39: 153059974.4 | L39: 144856024.8 | M39: 140285522.4 | N39: 137319104.7 | O39: 134643827.5 | P39: 132179310.4 | Q39: 129189859.6
A40: DREV02 | B40: Total revenue by customer class | C40: =SUM(C34:C39) -> 1326098223 | D40: =SUM(D34:D39) -> 1353555258 | E40: 1212251826 | F40: 1212251826 | G40: 1212251826 | H40: 1212251826 | I40: 1212251826 | K40: =SUM(K34:K39) -> 153059974.4 | L40: =SUM(L34:L39) -> 144856024.8 | M40: 140285522.4 | N40: 137319104.7 | O40: 134643827.5 | P40: 132179310.4 | Q40: 129189859.6
B43: 3.1.3 - REVENUE (penalties) ALLOWED (deducted) THROUGH INCENTIVE SCHEMES
C44: Standard control services | K44: Alternative control services
C45: REVENUE | K45: REVENUE
C46: =CONCATENATE("Forecast ($0's, real ", dms_DollarReal,")") -> Forecast ($0's, real June 2020) | K46: =CONCATENATE("Forecast ($0's, real ", dms_DollarReal,")") -> Forecast ($0's, real June 2020)
C47: =CRCP_y4 -> 2018-19 | D47: =CRCP_y5 -> 2019-20 | E47: =FRCP_y1 -> 2020-21 | F47: =FRCP_y2 -> 2021-22 | G47: =FRCP_y3 -> 2022-23 | H47: =FRCP_y4 -> 2023-24 | I47: =FRCP_y5 -> 2024-25 | K47: =CRCP_y4 -> 2018-19 | L47: =CRCP_y5 -> 2019-20 | M47: =FRCP_y1 -> 2020-21 | N47: =FRCP_y2 -> 2021-22 | O47: =FRCP_y3 -> 2022-23 | P47: =FRCP_y4 -> 2023-24 | Q47: =FRCP_y5 -> 2024-25
A48: DREV0301 | B48: EBSS | C48: 0 | D48: 0 | E48: 0 | F48: 0 | G48: 0 | H48: 0 | I48: 0
A49: DREV0302 | B49: STPIS | C49: 0 | D49: 0 | E49: 0 | F49: 0 | G49: 0 | H49: 0 | I49: 0
A50: DREV0303 | B50: F-Factor | C50: 0 | D50: 0 | E50: 0 | F50: 0 | G50: 0 | H50: 0 | I50: 0
A51: DREV0304 | B51: S-Factor True up | C51: 0 | D51: 0 | E51: 0 | F51: 0 | G51: 0 | H51: 0 | I51: 0
A52: DREV0305 | B52: Other | C52: 0 | D52: 0 | E52: 1098473.493 | F52: 1108687.132 | G52: 1113226.628 | H52: 1116924.212 | I52: 1126316.856
A53: DREV03 | B53: Total revenue of incentive schemes | C53: =SUM(C48:C52) -> 0 | D53: =SUM(D48:D52) -> 0 | E53: 1098473.493 | F53: 1108687.132 | G53: 1113226.628 | H53: 1116924.212 | I53: 1126316.856 | K53: =SUM(K48:K52) -> 0 | L53: =SUM(L48:L52) -> 0 | M53: 0 | N53: 0 | O53: 0 | P53: 0 | Q53: 0

Sheet 3.2 Operating expenditure
B1: =SheetHeader -> REGULATORY REPORTING STATEMENT
B2: =dms_TradingName -> Ergon Energy
B3: =dms_Reg_Year_Span -> 2020-21 to 2024-25
B4: 3.2 OPERATING EXPENDITURE
B6: There are THREE tables on this worksheet. Both ROWS and COLUMNS have been grouped for ease of navigation. see the Instructions sheet on how to group or ungroup tables.
B8: Instructions
B9: =CONCATENATE("Forecasts for opex in table 3.2.1 are to be for the opex categories that ",dms_TradingName," has reported in its response to its annual reporting RIN.") -> Forecasts for opex in table 3.2.1 are to be for the opex categories that Ergon Energy has reported in its response to its annual reporting RIN.
B11: 3.2.1 - OPEX CATEGORIES
B12: CURRENT OPEX CATEGORIES AND COST ALLOCATIONS
C13: Standard control services | K13: Alternative control services
C14: EXPENDITURE | K14: EXPENDITURE
C15: =CONCATENATE("Forecast ($0's, real ",dms_DollarReal,")") -> Forecast ($0's, real June 2020) | K15: =CONCATENATE("Forecast ($0's, real ",dms_DollarReal,")") -> Forecast ($0's, real June 2020)
C16: =CRCP_y4 -> 2018-19 | D16: =CRCP_y5 -> 2019-20 | E16: =FRCP_y1 -> 2020-21 | F16: =FRCP_y2 -> 2021-22 | G16: =FRCP_y3 -> 2022-23 | H16: =FRCP_y4 -> 2023-24 | I16: =FRCP_y5 -> 2024-25 | K16: =CRCP_y4 -> 2018-19 | L16: =CRCP_y5 -> 2019-20 | M16: =FRCP_y1 -> 2020-21 | N16: =FRCP_y2 -> 2021-22 | O16: =FRCP_y3 -> 2022-23 | P16: =FRCP_y4 -> 2023-24 | Q16: =FRCP_y5 -> 2024-25
A17: DOPEX0101 | B17: Preventative Maintenance | C17: 67681326.92 | D17: 66437991.57 | E17: 63511315.97 | F17: 62604607.65 | G17: 61815516.14 | H17: 60961236.3 | I17: 60119487.55 | K17: 8755966.543 | L17: 9072807.301 | M17: 8645593.124 | N17: 8179249.251 | O17: 7724349.132 | P17: 7298165.816 | Q17: 6876120.789
A18: DOPEX0102 | B18: Corrective Maintenance | C18: 45794556.48 | D18: 44953290.6 | E18: 42973042.62 | F18: 42359545.41 | G18: 41825630.11 | H18: 41247607.07 | I18: 40678062.82 | K18: 5644145.146 | L18: 5848382.476 | M18: 5572997.821 | N18: 5272389.945 | O18: 4979158.777 | P18: 4704438.621 | Q18: 4432386.029
A19: DOPEX0103 | B19: Forced Maintenance | C19: 82023269.32 | D19: 80516466.25 | E19: 76969616.46 | F19: 75870773.04 | G19: 74914469.89 | H19: 73879164.76 | I19: 72859046.11 | K19: 4821.619728 | L19: 4996.093401 | M19: 4760.840754 | N19: 4504.040685 | O19: 4253.54231 | P19: 4018.857324 | Q19: 3786.451157
A20: DOPEX0104 | B20: Other Network Maintenance | C20: 58629513.13 | D20: 57552463.52 | E20: 55017206.42 | F20: 54231762.78 | G20: 53548205.68 | H20: 52808178.66 | I20: 52079006.8 | K20: 0 | L20: 0 | M20: 0 | N20: 0 | O20: 0 | P20: 0 | Q20: 0
A21: DOPEX0105 | B21: Network Operating Costs | C21: 46408868.04 | D21: 45556316.99 | E21: 43549504.96 | F21: 42927777.98 | G21: 42386700.47 | H21: 41800923.53 | I21: 41223739.13 | K21: 0 | L21: 0 | M21: 0 | N21: 0 | O21: 0 | P21: 0 | Q21: 0
A22: DOPEX0106 | B22: Meter Reading | C22: 0 | D22: 0 | E22: 0 | F22: 0 | G22: 0 | H22: 0 | I22: 0 | K22: 10058566.94 | L22: 10422543.2 | M22: 9931773.582 | N22: 9396053.049 | O22: 8873478.725 | P22: 8383893.321 | Q22: 7899061.848
A23: DOPEX0107 | B23: Customer Service (incl Call Centre) | C23: 8599337.588 | D23: 8441364.023 | E23: 8069511.512 | F23: 7954308.525 | G23: 7854049.494 | H23: 7745507.876 | I23: 7638558.412 | K23: 38177997.08 | L23: 39559494.54 | M23: 37696743.97 | N23: 35663379.08 | O23: 33679911.54 | P23: 31821655.76 | Q23: 29981443.87
A24: DOPEX0108 | B24: Other Operating Costs | C24: 56453518.36 | D24: 55416442.72 | E24: 52975279.97 | F24: 52218987.54 | G24: 51560800.21 | H24: 50848238.79 | I24: 50146129.65 | K24: 2158758.306 | L24: 2236874.481 | M24: 2131546.058 | N24: 2016570.32 | O24: 1904416.008 | P24: 1799341.74 | Q24: 1695287.755
A25: DOPEX0109 | B25: Training | C25: 20403086.89 | D25: 20028273.32 | E25: 19146003.15 | F25: 18872668.54 | G25: 18634790.48 | H25: 18377260.87 | I25: 18123508.86 | K25: 0 | L25: 0 | M25: 0 | N25: 0 | O25: 0 | P25: 0 | Q25: 0
A26: DOPEX0110 | B26: Feed-in-Tariff | C26: 0 | D26: 0 | E26: 0 | F26: 0 | G26: 0 | H26: 0 | I26: 0 | K26: 0 | L26: 0 | M26: 0 | N26: 0 | O26: 0 | P26: 0 | Q26: 0
A27: DOPEX0111 | B27: Debt raising costs | C27: 0 | D27: 0 | E27: 5619169.993 | F27: 5664345.725 | G27: 5705763.272 | H27: 5750382.055 | I27: 5782833.907 | K27: 0 | L27: 0 | M27: 0 | N27: 0 | O27: 0 | P27: 0 | Q27: 0
A28: DOPEX0112 | B28: Over absorbed overheads | C28: 0 | D28: 0 | E28: 0 | F28: 0 | G28: 0 | H28: 0 | I28: 0 | K28: 0 | L28: 0 | M28: 0 | N28: 0 | O28: 0 | P28: 0 | Q28: 0
A29: DOPEX0113 | B29: Non-network Alternatives | C29: 7238407.654 | D29: 7105434.963 | E29: 6792431.777 | F29: 6695460.798 | G29: 6611068.747 | H29: 6519704.91 | I29: 6429681.253 | K29: 0 | L29: 0 | M29: 0 | N29: 0 | O29: 0 | P29: 0 | Q29: 0
A30: DOPEX0114 | B30: Not Proceeding Cust. Initiated Capital Works | C30: 2231613.323 | D30: 2190617.618 | E30: 2094118.206 | F30: 2064221.889 | G30: 2038203.677 | H30: 2010036.051 | I30: 1982281.606 | K30: 0 | L30: 0 | M30: 0 | N30: 0 | O30: 0 | P30: 0 | Q30: 0
A31: DOPEX0115 | B31: Corporate Restructuring | C31: 0 | D31: 0 | E31: 0 | F31: 0 | G31: 0 | H31: 0 | I31: 0 | K31: 0 | L31: 0 | M31: 0 | N31: 0 | O31: 0 | P31: 0 | Q31: 0
A32: DOPEX0116 | B32: AEMC Levy | C32: 119742.5932 | D32: 117542.8698 | E32: 112364.9612 | F32: 110760.8022 | G32: 109364.7323 | H32: 107853.3304 | I32: 106364.0987 | K32: 0 | L32: 0 | M32: 0 | N32: 0 | O32: 0 | P32: 0 | Q32: 0
A33: DOPEX0117
A34: DOPEX0118
A35: DOPEX0119
A36: DOPEX0120
A37: DOPEX0121
A38: DOPEX0122
A39: DOPEX0123
A40: DOPEX0124
A41: DOPEX0125
A42: DOPEX0126
A43: DOPEX0127
A44: DOPEX0128
A45: DOPEX0129
A46: DOPEX0130
A47: DOPEX0131
A48: DOPEX0132
A49: DOPEX0133
A50: DOPEX0134
A51: DOPEX0135
A52: DOPEX0136
A53: DOPEX0137
A54: DOPEX0138
A55: DOPEX0139
A56: DOPEX0140
A57: DOPEX0141
A58: DOPEX0142
A59: DOPEX0143
A60: DOPEX0144
A61: DOPEX0145
A62: DOPEX0146
A63: DOPEX0147
A64: DOPEX0148
A65: DOPEX0149
A66: DOPEX01 | B66: Total opex | C66: =SUM(C17:C65) -> 395583240.3 | D66: =SUM(D17:D65) -> 388316204.5 | E66: 376829566 | F66: 371575220.7 | G66: 367004562.9 | H66: 362056094.2 | I66: 357168700.2 | K66: =SUM(K17:K65) -> 64800255.64 | L66: =SUM(L17:L65) -> 67145098.09 | M66: 63983415.4 | N66: 60532145.68 | O66: 57165567.72 | P66: 54011514.12 | Q66: 50888086.74
B69: 3.2.2 - OPEX CONSISTENCY
B70: OPEX CONSISTENCY - CURRENT COST ALLOCATION APPROACH
C71: Standard control services | K71: Alternative control services
C72: EXPENDITURE | K72: EXPENDITURE
C73: =CONCATENATE("Forecast ($0's, real ",dms_DollarReal,")") -> Forecast ($0's, real June 2020) | K73: =CONCATENATE("Forecast ($0's, real ",dms_DollarReal,")") -> Forecast ($0's, real June 2020)
C74: =CRCP_y4 -> 2018-19 | D74: =CRCP_y5 -> 2019-20 | E74: =FRCP_y1 -> 2020-21 | F74: =FRCP_y2 -> 2021-22 | G74: =FRCP_y3 -> 2022-23 | H74: =FRCP_y4 -> 2023-24 | I74: =FRCP_y5 -> 2024-25 | K74: =CRCP_y4 -> 2018-19 | L74: =CRCP_y5 -> 2019-20 | M74: =FRCP_y1 -> 2020-21 | N74: =FRCP_y2 -> 2021-22 | O74: =FRCP_y3 -> 2022-23 | P74: =FRCP_y4 -> 2023-24 | Q74: =FRCP_y5 -> 2024-25
A75: DOPEX0201 | B75: Opex for network services | C75: 392970443.9 | D75: 385751406.3 | E75: 374340636.2 | F75: 369120995.4 | G75: 364580526.5 | H75: 359664742 | I75: 354809628.8 | K75: 0 | L75: 0 | M75: 0 | N75: 0 | O75: 0 | P75: 0 | Q75: 0
A76: DOPEX0202 | B76: Opex for metering | C76: 2574522.658 | D76: 2527227.56 | E76: 2452470.573 | F76: 2418274.405 | G76: 2388527.791 | H76: 2356322.319 | I76: 2324514.332 | K76: 30416355.45 | L76: 31516992.49 | M76: 30032941.79 | N76: 28412962.9 | O76: 26832737.16 | P76: 25352267.45 | Q76: 23886173.27
A77: DOPEX0203 | B77: Opex for connection services | C77: 0 | D77: 0 | E77: 0 | F77: 0 | G77: 0 | H77: 0 | I77: 0 | K77: 7958017.4 | L77: 8245983.811 | M77: 7857702.536 | N77: 7433857.535 | O77: 7020413.394 | P77: 6633069.036 | Q77: 6249485.835
A78: DOPEX0204 | B78: Opex for public lighting | C78: 0 | D78: 0 | E78: 0 | F78: 0 | G78: 0 | H78: 0 | I78: 0 | K78: 11330229.91 | L78: 11740222.18 | M78: 11187406.59 | N78: 10583957.13 | O78: 9995315.895 | P78: 9443834.236 | Q78: 8897707.528
A79: DOPEX0205 | B79: Opex for amounts payable for easement levy or similar direct charges on DNSP | C79: 0 | D79: 0 | E79: 0 | F79: 0 | G79: 0 | H79: 0 | I79: 0 | K79: 0 | L79: 0 | M79: 0 | N79: 0 | O79: 0 | P79: 0 | Q79: 0
A80: DOPEX0207 | B80: Opex for transmission connection point planning | C80: 38273.72314 | D80: 37570.61823 | E80: 36459.25562 | F80: 35950.88384 | G80: 35508.66063 | H80: 35029.88321 | I80: 34557.01494 | K80: 0 | L80: 0 | M80: 0 | N80: 0 | O80: 0 | P80: 0 | Q80: 0
B83: 3.2.4 - OPEX FOR HIGH VOLTAGE CUSTOMERS
C84: End user costs (not standard control services)
C85: EXPENDITURE
C86: =CONCATENATE("Forecast ($0's, real ",dms_DollarReal,")") -> Forecast ($0's, real June 2020)
C87: =CRCP_y4 -> 2018-19 | D87: =CRCP_y5 -> 2019-20 | E87: =FRCP_y1 -> 2020-21 | F87: =FRCP_y2 -> 2021-22 | G87: =FRCP_y3 -> 2022-23 | H87: =FRCP_y4 -> 2023-24 | I87: =FRCP_y5 -> 2024-25
A88: DOPEX0401 | B88: Opex for high voltage customers | C88: 171648.0374 | D88: 183399.8715 | E88: 193748.8348 | F88: 207288.781 | G88: 222329.3207 | H88: 239057.416 | I88: 257686.8028

Sheet 3.3 Assets (RAB)
B1: =SheetHeader -> REGULATORY REPORTING STATEMENT
B2: =dms_TradingName -> Ergon Energy
B3: =dms_Reg_Year_Span -> 2020-21 to 2024-25
B4: 3.3 ASSETS
B6: There are FOUR tables on this worksheet. Both ROWS and COLUMNS in each have been grouped (and sub-grouped) for ease of navigation. see the Instructions sheet on how to group or ungroup tables.
B8: 3.3.1 - REGULATORY ASSET BASE VALUES
C9: Network services | K9: Standard control services | S9: Alternative control services
C10: =CONCATENATE("Forecast ($0's, real ", dms_DollarReal,")") -> Forecast ($0's, real June 2020) | K10: =CONCATENATE("Forecast ($0's, real ", dms_DollarReal,")") -> Forecast ($0's, real June 2020) | S10: =CONCATENATE("Forecast ($0's, real ", dms_DollarReal,")") -> Forecast ($0's, real June 2020)
C11: =CRCP_y4 -> 2018-19 | D11: =CRCP_y5 -> 2019-20 | E11: =FRCP_y1 -> 2020-21 | F11: =FRCP_y2 -> 2021-22 | G11: =FRCP_y3 -> 2022-23 | H11: =FRCP_y4 -> 2023-24 | I11: =FRCP_y5 -> 2024-25 | K11: =CRCP_y4 -> 2018-19 | L11: =CRCP_y5 -> 2019-20 | M11: =FRCP_y1 -> 2020-21 | N11: =FRCP_y2 -> 2021-22 | O11: =FRCP_y3 -> 2022-23 | P11: =FRCP_y4 -> 2023-24 | Q11: =FRCP_y5 -> 2024-25 | S11: =CRCP_y4 -> 2018-19 | T11: =CRCP_y5 -> 2019-20 | U11: =FRCP_y1 -> 2020-21 | V11: =FRCP_y2 -> 2021-22 | W11: =FRCP_y3 -> 2022-23 | X11: =FRCP_y4 -> 2023-24 | Y11: =FRCP_y5 -> 2024-25
B12: For total asset base:
A13: DRAB0101 | B13: Opening value | C13: 9151400836 | D13: 9449873541 | E13: 9714860125 | F13: 1.002483626e+10 | G13: 1.03302443e+10 | H13: 1.064296567e+10 | I13: 1.093641255e+10 | K13: 1.11813422e+10 | L13: 1.153411889e+10 | M13: 1.184855551e+10 | N13: 1.22169812e+10 | O13: 1.257983585e+10 | P13: 1.295134459e+10 | Q13: 1.329984535e+10 | S13: 148756393.5 | T13: 148548685 | U13: 173132624.8 | V13: 173864165.9 | W13: 173985158.7 | X13: 173229054.1 | Y13: 170978816.9
A14: DRAB0102 | B14: Inflation addition | C14: 160149773.4 | D14: 207983814.1 | E14: 224986952 | F14: 226795751.2 | G14: 228454075.8 | H14: 230240575.2 | I14: 231539920.7 | K14: 195673488.5 | L14: 254117864.7 | M14: 274892563.6 | N14: 277102582.6 | O14: 279128749.4 | P14: 281311522.2 | Q14: 282899082.8 | S14: 2975127.869 | T14: 3272800.897 | U14: 3973328.945 | V14: 3896731.342 | W14: 3807517.444 | X14: 3699687.281 | Y14: 3559101.29
A15: DRAB0103 | B15: Straight line depreciation | C15: -352562914.4 | D15: -356784067.2 | E15: -367896184.2 | F15: -384308305.2 | G15: -394807201.7 | H15: -403324136.8 | I15: -417687846.9 | K15: -424809904.6 | L15: -429896053.7 | M15: -443285259.3 | N15: -463060542.6 | O15: -475710867 | P15: -485973087.6 | Q15: -503280201 | S15: -16791173.68 | T15: -18420008.84 | U15: -16285444.32 | V15: -17373351.43 | W15: -18521714.47 | X15: -19658712.27 | Y15: -19930799.27
A16: DRAB0105 | B16: Actual additions (recognised in RAB) | C16: 490980957.3 | D16: 413879822.3 | E16: 452975137.3 | F16: 463008139.2 | G16: 479159729.5 | H16: 466615708.3 | I16: 470159010.1 | K16: 584271503.9 | L16: 492520499.2 | M16: 539044255.7 | N16: 550983613 | O16: 570204142.5 | P16: 555276650.9 | Q16: 559493210.1 | S16: 13645761.08 | T16: 39771795.83 | U16: 13084191.93 | V16: 13636581.06 | W16: 13995340.46 | X16: 13745743.5 | Y16: 14395995.48
A17: DRAB0106 | B17: Disposals | C17: -95110.97005 | D17: -92985.08021 | E17: -89766.50349 | F17: -87553.50097 | G17: -85225.59911 | H17: -85267.80486 | I17: -85318.79241 | K17: -2358399.206 | L17: -2305685.025 | M17: -2225876.263 | N17: -2171002.011 | O17: -2113278.681 | P17: -2114325.227 | Q17: -2115589.529 | S17: -37423.72524 | T17: -40648.10853 | U17: -40535.42927 | V17: -38968.2157 | W17: -37248.0351 | X17: -36955.68116 | Y17: -36616.92266
A18: DRAB0107 | B18: Closing value | C18: =SUM(C13+C14+C15+C16+C17) -> 9449873541 | D18: 9714860125 | E18: 1.002483626e+10 | F18: 1.03302443e+10 | G18: 1.064296567e+10 | H18: 1.093641255e+10 | I18: 1.122033832e+10 | K18: =SUM(K13+K14+K15+K16+K17) -> 1.153411889e+10 | L18: 1.184855551e+10 | M18: 1.22169812e+10 | N18: 1.257983585e+10 | O18: 1.295134459e+10 | P18: 1.329984535e+10 | Q18: 1.363684186e+10 | S18: =SUM(S13+S14+S15+S16+S17) -> 148548685 | T18: 173132624.8 | U18: 173864165.9 | V18: 173985158.7 | W18: 173229054.1 | X18: 170978816.9 | Y18: 168966497.5
B21: 3.3.2 - ASSET VALUE ROLL FORWARD
C22: Network services | K22: Standard control services | S22: Alternative control services
C23: =CONCATENATE("Forecast ($0's, real ", dms_DollarReal,")") -> Forecast ($0's, real June 2020) | K23: =CONCATENATE("Forecast ($0's, real ", dms_DollarReal,")") -> Forecast ($0's, real June 2020) | S23: =CONCATENATE("Forecast ($0's, real ", dms_DollarReal,")") -> Forecast ($0's, real June 2020)
C24: =CRCP_y4 -> 2018-19 | D24: =CRCP_y5 -> 2019-20 | E24: =FRCP_y1 -> 2020-21 | F24: =FRCP_y2 -> 2021-22 | G24: =FRCP_y3 -> 2022-23 | H24: =FRCP_y4 -> 2023-24 | I24: =FRCP_y5 -> 2024-25 | K24: =CRCP_y4 -> 2018-19 | L24: =CRCP_y5 -> 2019-20 | M24: =FRCP_y1 -> 2020-21 | N24: =FRCP_y2 -> 2021-22 | O24: =FRCP_y3 -> 2022-23 | P24: =FRCP_y4 -> 2023-24 | Q24: =FRCP_y5 -> 2024-25 | S24: =CRCP_y4 -> 2018-19 | T24: =CRCP_y5 -> 2019-20 | U24: =FRCP_y1 -> 2020-21 | V24: =FRCP_y2 -> 2021-22 | W24: =FRCP_y3 -> 2022-23 | X24: =FRCP_y4 -> 2023-24 | Y24: =FRCP_y5 -> 2024-25
B25: For overhead network assets less than 33kV:
A26: DRAB0201 | B26: Opening value | C26: 3184065332 | D26: 3372662604 | E26: 3541861207 | F26: 3731886879 | G26: 3922906611 | H26: 4119153464 | I26: 4308157110 | K26: 3797978665 | L26: 4006545189 | M26: 4194306619 | N26: 4405674825 | O26: 4617860421 | P26: 4835748626 | Q26: 5045347101 | S26: 0.3048234034 | T26: -0.1399501621 | U26: -0.6278691823 | V26: -1.059246719 | W26: -1.519441319 | X26: -2.010054372 | Y26: -2.530784829
A27: DRAB0202 | B27: Inflation addition | C27: 55790622.63 | D27: 72454342.21 | E27: 78377645.32 | F27: 79007768.18 | G27: 79585470.91 | H27: 80207825.3 | I27: 80660472.18 | K27: 66533440.44 | L27: 86405858.81 | M27: 93469729.33 | N27: 94221186.12 | O27: 94910128.96 | P27: 95652321.41 | Q27: 96192128.15 | S27: 0 | T27: 0 | U27: 0 | V27: 0 | W27: 0 | X27: 0 | Y27: 0
A28: DRAB0203 | B28: Straight line depreciation | C28: -89978849.07 | D28: -91056144.67 | E28: -93892108.01 | F28: -98080704.4 | G28: -100760165.5 | H28: -102933803.2 | I28: -106599617.3 | K28: -108679508.2 | L28: -109980702.4 | M28: -113406075.2 | N28: -118465204.1 | O28: -121701548.2 | P28: -124326941.5 | Q28: -128754636.2 | S28: -0.4447735655 | T28: -0.4879190201 | U28: -0.4313775363 | V28: -0.4601946001 | W28: -0.4906130529 | X28: -0.5207304573 | Y28: -0.5279376428
A29: DRAB0205 | B29: Actual additions (recognised in RAB) | C29: 222785499.1 | D29: 187800405.3 | E29: 205540134.6 | F29: 210092668.2 | G29: 217421547.4 | H29: 211729624 | I29: 213337418 | K29: 250754892.1 | L29: 211377628 | M29: 231344474.7 | N29: 236468551.8 | O29: 244717528.1 | P29: 238311017.6 | Q29: 240120660.6 | S29: 0 | T29: 0 | U29: 0 | V29: 0 | W29: 0 | X29: 0 | Y29: 0
A30: DRAB0206 | B30: Disposals | C30: 0 | D30: 0 | E30: 0 | F30: 0 | G30: 0 | H30: 0 | I30: 0 | K30: -42299.81394 | L30: -41354.3421 | M30: -39922.90683 | N30: -38938.69234 | O30: -37903.37733 | P30: -37922.14798 | Q30: -37944.82427 | S30: 0 | T30: 0 | U30: 0 | V30: 0 | W30: 0 | X30: 0 | Y30: 0
A31: DRAB0207 | B31: Closing value | C31: =SUM(C26+C27+C28+C29+C30) -> 3372662604 | D31: 3541861207 | E31: 3731886879 | F31: 3922906611 | G31: 4119153464 | H31: 4308157110 | I31: 4495555383 | K31: =SUM(K26+K27+K28+K29+K30) -> 4006545189 | L31: 4194306619 | M31: 4405674825 | N31: 4617860421 | O31: 4835748626 | P31: 5045347101 | Q31: 5252867309 | S31: =SUM(S26+S27+S28+S29+S30) -> -0.1399501621 | T31: -0.6278691823 | U31: -1.059246719 | V31: -1.519441319 | W31: -2.010054372 | X31: -2.530784829 | Y31: -3.058722472
B32: For underground network assets less than 33kV:
A33: DRAB0301 | B33: Opening value | C33: 587478827.5 | D33: 598840216 | E33: 611004112.8 | F33: 624941804 | G33: 638693983.1 | H33: 652626978.9 | I33: 666030562.8 | K33: 1025678156 | L33: 1052433022 | M33: 1079611451 | N33: 1110407530 | O33: 1141037512 | P33: 1172208705 | Q33: 1202310338 | S33: 0.3048234034 | T33: -0.1399501621 | U33: -0.6278691823 | V33: -1.059246719 | W33: -1.519441319 | X33: -2.010054372 | Y33: -2.530784829
A34: DRAB0302 | B34: Inflation addition | C34: 10273674.2 | D34: 13342247.7 | E34: 14433006.03 | F34: 14549041.24 | G34: 14655423.45 | H34: 14770028.13 | I34: 14853381.68 | K34: 17942364.03 | L34: 23301446.05 | M34: 25206390.92 | N34: 25409039.56 | O34: 25594829.79 | P34: 25794980.08 | Q34: 25940552.12 | S34: 0 | T34: 0 | U34: 0 | V34: 0 | W34: 0 | X34: 0 | Y34: 0
A35: DRAB0303 | B35: Straight line depreciation | C35: -12397405.06 | D35: -12545836.28 | E35: -12936579.06 | F35: -13513689.42 | G35: -13882869.13 | H35: -14182355.8 | I35: -14687436.53 | K35: -21014725.55 | L35: -21266329.91 | M35: -21928674.36 | N35: -22906928.75 | O35: -23532721.82 | P35: -24040378.88 | Q35: -24896536.5 | S35: -0.4447735655 | T35: -0.4879190201 | U35: -0.4313775363 | V35: -0.4601946001 | W35: -0.4906130529 | X35: -0.5207304573 | Y35: -0.5279376428
A36: DRAB0305 | B36: Actual additions (recognised in RAB) | C36: 13485119.41 | D36: 11367485.32 | E36: 12441264.21 | F36: 12716827.3 | G36: 13160441.5 | H36: 12815911.59 | I36: 12913230.74 | K36: 29827227.34 | L36: 25143312.31 | M36: 27518363.38 | N36: 28127870.99 | O36: 29109084.51 | P36: 28347031.8 | Q36: 28562288.35 | S36: 0 | T36: 0 | U36: 0 | V36: 0 | W36: 0 | X36: 0 | Y36: 0
A37: DRAB0306 | B37: Disposals | C37: 0 | D37: 0 | E37: 0 | F37: 0 | G37: 0 | H37: 0 | I37: 0 | K37: 0 | L37: 0 | M37: 0 | N37: 0 | O37: 0 | P37: 0 | Q37: 0 | S37: 0 | T37: 0 | U37: 0 | V37: 0 | W37: 0 | X37: 0 | Y37: 0
A38: DRAB0307 | B38: Closing value | C38: =SUM(C33+C34+C35+C36+C37) -> 598840216 | D38: 611004112.8 | E38: 624941804 | F38: 638693983.1 | G38: 652626978.9 | H38: 666030562.8 | I38: 679109738.7 | K38: =SUM(K33+K34+K35+K36+K37) -> 1052433022 | L38: 1079611451 | M38: 1110407530 | N38: 1141037512 | O38: 1172208705 | P38: 1202310338 | Q38: 1231916642 | S38: =SUM(S33+S34+S35+S36+S37) -> -0.1399501621 | T38: -0.6278691823 | U38: -1.059246719 | V38: -1.519441319 | W38: -2.010054372 | X38: -2.530784829 | Y38: -3.058722472
B39: For distribution substations and transformers:
A40: DRAB0401 | B40: Opening value | C40: 1028973182 | D40: 1074119892 | E40: 1113650433 | F40: 1159170987 | G40: 1204408789 | H40: 1250849995 | I40: 1294818150 | K40: 1759052121 | L40: 1818641403 | M40: 1871200821 | N40: 1932652556 | O40: 1993233171 | P40: 2055296323 | Q40: 2113526144 | S40: 0.3048234034 | T40: -0.1399501621 | U40: -0.6278691823 | V40: -1.059246719 | W40: -1.519441319 | X40: -2.010054372 | Y40: -2.530784829
A41: DRAB0402 | B41: Inflation addition | C41: 18011254.25 | D41: 23390912.62 | E41: 25303171.59 | F41: 25506598.3 | G41: 25693101.88 | H41: 25894020.65 | I41: 26040151.62 | K41: 30778784.53 | L41: 39971889.22 | M41: 43239679.78 | N41: 43587308.37 | O41: 43906017.63 | P41: 44249360.49 | Q41: 44499078.45 | S41: 0 | T41: 0 | U41: 0 | V41: 0 | W41: 0 | X41: 0 | Y41: 0
A42: DRAB0403 | B42: Straight line depreciation | C42: -39847984.45 | D42: -40325074.99 | E42: -41581008.18 | F42: -43435967.72 | G42: -44622592.43 | H42: -45585208.41 | I42: -47208648.87 | K42: -69216446.19 | L42: -70045158.42 | M42: -72226730.04 | N42: -75448817.9 | O42: -77509999.82 | P42: -79182075.8 | Q42: -82002012.13 | S42: -0.4447735655 | T42: -0.4879190201 | U42: -0.4313775363 | V42: -0.4601946001 | W42: -0.4906130529 | X42: -0.5207304573 | Y42: -0.5279376428
A43: DRAB0405 | B43: Actual additions (recognised in RAB) | C43: 66983440.24 | D43: 56464703.83 | E43: 61798390.72 | F43: 63167170.86 | G43: 65370696.4 | H43: 63659343.49 | I43: 64142748.27 | K43: 98031459.81 | L43: 82637101.41 | M43: 90443047.33 | N43: 92446281.48 | O43: 95671180.43 | P43: 93166584.91 | Q43: 93874056.43 | S43: 0 | T43: 0 | U43: 0 | V43: 0 | W43: 0 | X43: 0 | Y43: 0
A44: DRAB0406 | B44: Disposals | C44: 0 | D44: 0 | E44: 0 | F44: 0 | G44: 0 | H44: 0 | I44: 0 | K44: -4515.660812 | L44: -4414.728213 | M44: -4261.91723 | N44: -4156.848711 | O44: -4046.325023 | P44: -4048.32886 | Q44: -4050.749637 | S44: 0 | T44: 0 | U44: 0 | V44: 0 | W44: 0 | X44: 0 | Y44: 0
A45: DRAB0407 | B45: Closing value | C45: =SUM(C40+C41+C42+C43+C44) -> 1074119892 | D45: 1113650433 | E45: 1159170987 | F45: 1204408789 | G45: 1250849995 | H45: 1294818150 | I45: 1337792402 | K45: =SUM(K40+K41+K42+K43+K44) -> 1818641403 | L45: 1871200821 | M45: 1932652556 | N45: 1993233171 | O45: 2055296323 | P45: 2113526144 | Q45: 2169893216 | S45: =SUM(S40+S41+S42+S43+S44) -> -0.1399501621 | T45: -0.6278691823 | U45: -1.059246719 | V45: -1.519441319 | W45: -2.010054372 | X45: -2.530784829 | Y45: -3.058722472
B46: For overhead network assets 33kV and above:
A47: DRAB0501 | B47: Opening value | C47: 1171022599 | D47: 1173312426 | E47: 1178383734 | F47: 1185941494 | G47: 1192403075 | H47: 1198592745 | I47: 1203655793 | K47: 1265026036 | L47: 1270215745 | M47: 1278069390 | N47: 1288801244 | O47: 1298417525 | P47: 1307827810 | Q47: 1315976672 | S47: 0.3048234034 | T47: -0.1399501621 | U47: -0.6278691823 | V47: -1.059246719 | W47: -1.519441319 | X47: -2.010054372 | Y47: -2.530784829
A48: DRAB0502 | B48: Inflation addition | C48: 20466682.15 | D48: 26579735.49 | E48: 28752687.8 | F48: 28983847.15 | G48: 29195776.28 | H48: 29424085.79 | I48: 29590138.42 | K48: 22111418.99 | L48: 28715727.53 | M48: 31063301.92 | N48: 31313037.63 | O48: 31541997.74 | P48: 31788654.58 | Q48: 31968051.48 | S48: 0 | T48: 0 | U48: 0 | V48: 0 | W48: 0 | X48: 0 | Y48: 0
A49: DRAB0503 | B49: Straight line depreciation | C49: -36601729.9 | D49: -37039953.8 | E49: -38193571.18 | F49: -39897414.65 | G49: -40987369.83 | H49: -41871565.37 | I49: -43362750.68 | K49: -39037706.68 | L49: -39505095.96 | M49: -40735490.72 | N49: -42552731.1 | O49: -43715226.71 | P49: -44658268.65 | Q49: -46248697.71 | S49: -0.4447735655 | T49: -0.4879190201 | U49: -0.4313775363 | V49: -0.4601946001 | W49: -0.4906130529 | X49: -0.5207304573 | Y49: -0.5279376428
A50: DRAB0505 | B50: Actual additions (recognised in RAB) | C50: 18424874.59 | D50: 15531526.65 | E50: 16998643.17 | F50: 17375148.2 | G50: 17981263.41 | H50: 17510528.22 | I50: 17643496.49 | K50: 22115996.21 | L50: 18643013.43 | M50: 20404042.7 | N50: 20855974.35 | O50: 21583514.8 | P50: 21018475.52 | Q50: 21178081.81 | S50: 0 | T50: 0 | U50: 0 | V50: 0 | W50: 0 | X50: 0 | Y50: 0
A51: DRAB0506 | B51: Disposals | C51: 0 | D51: 0 | E51: 0 | F51: 0 | G51: 0 | H51: 0 | I51: 0 | K51: 0 | L51: 0 | M51: 0 | N51: 0 | O51: 0 | P51: 0 | Q51: 0 | S51: 0 | T51: 0 | U51: 0 | V51: 0 | W51: 0 | X51: 0 | Y51: 0
A52: DRAB0507 | B52: Closing value | C52: =SUM(C47+C48+C49+C50+C51) -> 1173312426 | D52: 1178383734 | E52: 1185941494 | F52: 1192403075 | G52: 1198592745 | H52: 1203655793 | I52: 1207526677 | K52: =SUM(K47+K48+K49+K50+K51) -> 1270215745 | L52: 1278069390 | M52: 1288801244 | N52: 1298417525 | O52: 1307827810 | P52: 1315976672 | Q52: 1322874108 | S52: =SUM(S47+S48+S49+S50+S51) -> -0.1399501621 | T52: -0.6278691823 | U52: -1.059246719 | V52: -1.519441319 | W52: -2.010054372 | X52: -2.530784829 | Y52: -3.058722472
B53: For underground network assets 33kV and above:
A54: DRAB0601 | B54: Opening value | C54: 71287324.59 | D54: 71983435.82 | E54: 72681585.57 | F54: 73598127.89 | G54: 74446992.6 | H54: 75299095 | I54: 76044923.73 | K54: 71969774.64 | L54: 73301820.06 | M54: 74643424.43 | N54: 76225429.44 | O54: 77768358.97 | P54: 79333289.98 | Q54: 80806075.19 | S54: 0.3048234034 | T54: -0.1399501621 | U54: -0.6278691823 | V54: -1.059246719 | W54: -1.519441319 | X54: -2.010054372 | Y54: -2.530784829
A55: DRAB0602 | B55: Inflation addition | C55: 1245701.654 | D55: 1617771.763 | E55: 1750028.192 | F55: 1764097.672 | G55: 1776996.708 | H55: 1790892.733 | I55: 1800999.503 | K55: 1258103.636 | L55: 1633878.008 | M55: 1767451.158 | N55: 1781660.712 | O55: 1794688.168 | P55: 1808722.54 | Q55: 1818929.93 | S55: 0 | T55: 0 | U55: 0 | V55: 0 | W55: 0 | X55: 0 | Y55: 0
A56: DRAB0603 | B56: Straight line depreciation | C56: -2700093.676 | D56: -2732421.263 | E56: -2817523.115 | F56: -2943214.905 | G56: -3023620.424 | H56: -3088847.144 | I56: -3198851.235 | K56: -2098153.528 | L56: -2123274.227 | M56: -2189404.062 | N56: -2287074.997 | O56: -2349555.468 | P56: -2400240.995 | Q56: -2485721.538 | S56: -0.4447735655 | T56: -0.4879190201 | U56: -0.4313775363 | V56: -0.4601946001 | W56: -0.4906130529 | X56: -0.5207304573 | Y56: -0.5279376428
A57: DRAB0605 | B57: Actual additions (recognised in RAB) | C57: 2150503.259 | D57: 1812799.241 | E57: 1984037.251 | F57: 2027981.935 | G57: 2098726.12 | H57: 2043783.137 | I57: 2059302.847 | K57: 2172095.314 | L57: 1831000.59 | M57: 2003957.91 | N57: 2048343.819 | O57: 2119798.308 | P57: 2064303.672 | Q57: 2079979.207 | S57: 0 | T57: 0 | U57: 0 | V57: 0 | W57: 0 | X57: 0 | Y57: 0
A58: DRAB0606 | B58: Disposals | C58: 0 | D58: 0 | E58: 0 | F58: 0 | G58: 0 | H58: 0 | I58: 0 | K58: 0 | L58: 0 | M58: 0 | N58: 0 | O58: 0 | P58: 0 | Q58: 0 | S58: 0 | T58: 0 | U58: 0 | V58: 0 | W58: 0 | X58: 0 | Y58: 0
A59: DRAB0607 | B59: Closing value | C59: =SUM(C54+C55+C56+C57+C58) -> 71983435.82 | D59: 72681585.57 | E59: 73598127.89 | F59: 74446992.6 | G59: 75299095 | H59: 76044923.73 | I59: 76706374.84 | K59: =SUM(K54+K55+K56+K57+K58) -> 73301820.06 | L59: 74643424.43 | M59: 76225429.44 | N59: 77768358.97 | O59: 79333289.98 | P59: 80806075.19 | Q59: 82219262.79 | S59: =SUM(S54+S55+S56+S57+S58) -> -0.1399501621 | T59: -0.6278691823 | U59: -1.059246719 | V59: -1.519441319 | W59: -2.010054372 | X59: -2.530784829 | Y59: -3.058722472
B60: Zone substations and transformers
A61: DRAB0701 | B61: Opening value | C61: 1867821566 | D61: 1905768394 | E61: 1942233033 | F61: 1985550148 | G61: 2027735204 | H61: 2070624207 | I61: 2110680727 | K61: 2026900467 | L61: 2068286581 | M61: 2107911442 | N61: 2155028841 | O61: 2200908388 | P61: 2247565087 | Q61: 2291108474 | S61: 0.3048234034 | T61: -0.1399501621 | U61: -0.6278691823 | V61: -1.059246719 | W61: -1.519441319 | X61: -2.010054372 | Y61: -2.530784829
A62: DRAB0702 | B62: Inflation addition | C62: 32670180.42 | D62: 42428213.21 | E62: 45896813.7 | F62: 46265804.52 | G62: 46604098.87 | H62: 46968540.59 | I62: 47233604.04 | K62: 35452299.16 | L62: 46041303.97 | M62: 49805282.64 | N62: 50205695.89 | O62: 50572798.62 | P62: 50968275.37 | Q62: 51255911.03 | S62: 0 | T62: 0 | U62: 0 | V62: 0 | W62: 0 | X62: 0 | Y62: 0
A63: DRAB0703 | B63: Straight line depreciation | C63: -61604340.03 | D63: -62341914.3 | E63: -64283566.72 | F63: -67151304.18 | G63: -68985806.81 | H63: -70473995.56 | I63: -72983808.28 | K63: -67500658.3 | L63: -68308827.81 | M63: -70436321.04 | N63: -73578537.42 | O63: -75588625.26 | P63: -77219252.6 | Q63: -79969286.29 | S63: -0.4447735655 | T63: -0.4879190201 | U63: -0.4313775363 | V63: -0.4601946001 | W63: -0.4906130529 | X63: -0.5207304573 | Y63: -0.5279376428
A64: DRAB0705 | B64: Actual additions (recognised in RAB) | C64: 66880987.63 | D64: 56378339.86 | E64: 61703868.76 | F64: 63070555.32 | G64: 65270710.52 | H64: 63561975.16 | I64: 64044640.57 | K64: 73511057.6 | L64: 61967257.59 | M64: 67820718.72 | N64: 69322888.15 | O64: 71741149.92 | P64: 69863023.6 | Q64: 70393536.76 | S64: 0 | T64: 0 | U64: 0 | V64: 0 | W64: 0 | X64: 0 | Y64: 0
A65: DRAB0706 | B65: Disposals | C65: 0 | D65: 0 | E65: 0 | F65: 0 | G65: 0 | H65: 0 | I65: 0 | K65: -76584.54994 | L65: -74872.75669 | M65: -72281.11822 | N65: -70499.18074 | O65: -68624.72487 | P65: -68658.70947 | Q65: -68699.76529 | S65: 0 | T65: 0 | U65: 0 | V65: 0 | W65: 0 | X65: 0 | Y65: 0
A66: DRAB0707 | B66: Closing value | C66: =SUM(C61+C62+C63+C64+C65) -> 1905768394 | D66: 1942233033 | E66: 1985550148 | F66: 2027735204 | G66: 2070624207 | H66: 2110680727 | I66: 2148975163 | K66: =SUM(K61+K62+K63+K64+K65) -> 2068286581 | L66: 2107911442 | M66: 2155028841 | N66: 2200908388 | O66: 2247565087 | P66: 2291108474 | Q66: 2332719936 | S66: =SUM(S61+S62+S63+S64+S65) -> -0.1399501621 | T66: -0.6278691823 | U66: -1.059246719 | V66: -1.519441319 | W66: -2.010054372 | X66: -2.530784829 | Y66: -3.058722472
B67: For easements:
A68: DRAB0801 | B68: Opening value | C68: 107138474.1 | D68: 109886361.7 | E68: 113057005.3 | F68: 116496211.7 | G68: 119974436.3 | H68: 123500801.2 | I68: 127025764.6 | K68: 107152430.8 | L68: 109907281.6 | M68: 113083906.3 | N68: 116529654.7 | O68: 120014561.4 | P68: 123547831.9 | Q68: 127079531.9 | S68: 0 | T68: 0 | U68: 0 | V68: 0 | W68: 0 | X68: 0 | Y68: 0
A69: DRAB0802 | B69: Inflation addition | C69: 1874558.567 | D69: 2434457.647 | E69: 2633479.957 | F69: 2654652.013 | G69: 2674062.759 | H69: 2694973.796 | I69: 2710182.679 | K69: 1874802.831 | L69: 2434774.869 | M69: 2633823.112 | N69: 2654997.927 | O69: 2674411.203 | P69: 2695324.964 | Q69: 2710535.829 | S69: 0 | T69: 0 | U69: 0 | V69: 0 | W69: 0 | X69: 0 | Y69: 0
A70: DRAB0803 | B70: Actual additions (recognised in RAB) | C70: 873329.0657 | D70: 736185.9419 | E70: 805726.4697 | F70: 823572.6041 | G70: 852302.1363 | H70: 829989.5433 | I70: 836292.1675 | K70: 880048.0214 | L70: 741849.7872 | M70: 811925.3249 | N70: 829908.7586 | O70: 858859.3214 | P70: 836375.0665 | Q70: 842726.1798 | S70: 0 | T70: 0 | U70: 0 | V70: 0 | W70: 0 | X70: 0 | Y70: 0
A71: DRAB0804 | B71: Disposals | C71: 0 | D71: 0 | E71: 0 | F71: 0 | G71: 0 | H71: 0 | I71: 0 | K71: 0 | L71: 0 | M71: 0 | N71: 0 | O71: 0 | P71: 0 | Q71: 0 | S71: 0 | T71: 0 | U71: 0 | V71: 0 | W71: 0 | X71: 0 | Y71: 0
A72: DRAB0805 | B72: Closing value | C72: =SUM(C68+C69+C70+C71) -> 109886361.7 | D72: =SUM(D68+D69+D70+D71) -> 113057005.3 | E72: =SUM(E68+E69+E70+E71) -> 116496211.7 | F72: 119974436.3 | G72: 123500801.2 | H72: 127025764.6 | I72: 130572239.4 | K72: =SUM(K68+K69+K70+K71) -> 109907281.6 | L72: =SUM(L68+L69+L70+L71) -> 113083906.3 | M72: =SUM(M68+M69+M70+M71) -> 116529654.7 | N72: 120014561.4 | O72: 123547831.9 | P72: 127079531.9 | Q72: 130632793.9 | S72: =SUM(S68+S69+S70+S71) -> 0 | T72: =SUM(T68+T69+T70+T71) -> 0 | U72: =SUM(U68+U69+U70+U71) -> 0 | V72: 0 | W72: 0 | X72: 0 | Y72: 0
B73: For meters:
A74: DRAB0901 | B74: Opening value | C74: 0 | D74: 0 | E74: 0 | F74: 0 | G74: 0 | H74: 0 | I74: 0 | K74: 26394660.06 | L74: 27366994.54 | M74: 27886767.59 | N74: 28641313.89 | O74: 29332738.47 | P74: 30055169.69 | Q74: 30619728.65 | S74: 62573462.55 | T74: 63431477.58 | U74: 76172822.19 | V74: 77392588.69 | W74: 78396466.93 | X74: 79062238.58 | Y74: 79097365.86
A75: DRAB0902 | B75: Inflation addition | C75: 0 | D75: 0 | E75: 0 | F75: 0 | G75: 0 | H75: 0 | I75: 0 | K75: 460686.8203 | L75: 598286.2164 | M75: 647197.441 | N75: 652400.6326 | O75: 657170.9689 | P75: 662310.0129 | Q75: 666047.7101 | S75: 1255925.94 | T75: 1381586.178 | U75: 1677308.374 | V75: 1644973.321 | W75: 1607312.403 | X75: 1561792.78 | Y75: 1502445.551
A76: DRAB0903 | B76: Straight line depreciation | C76: 0 | D76: 0 | E76: 0 | F76: 0 | G76: 0 | H76: 0 | I76: 0 | K76: -3016516.26 | L76: -3052632.3 | M76: -3147707.194 | N76: -3288128.74 | O76: -3377956.94 | P76: -3450827.546 | Q76: -3573722.96 | S76: -6887991.496 | T76: -7556164.129 | U76: -6680533.717 | V76: -7126809.545 | W76: -7597885.302 | X76: -8064298.869 | Y76: -8175913.038
A77: DRAB0905 | B77: Actual additions (recognised in RAB) | C77: 0 | D77: 0 | E77: 0 | F77: 0 | G77: 0 | H77: 0 | I77: 0 | K77: 3528163.923 | L77: 2974119.13 | M77: 3255056.054 | N77: 3327152.69 | O77: 3443217.187 | P77: 3353076.496 | Q77: 3378538.481 | S77: 6490080.582 | T77: 18915922.56 | U77: 6222991.849 | V77: 6485714.458 | W77: 6656344.548 | X77: 6537633.371 | Y77: 6846900.675
A78: DRAB0906 | B78: Disposals | C78: 0 | D78: 0 | E78: 0 | F78: 0 | G78: 0 | H78: 0 | I78: 0 | K78: 0 | L78: 0 | M78: 0 | N78: 0 | O78: 0 | P78: 0 | Q78: 0 | S78: 0 | T78: 0 | U78: 0 | V78: 0 | W78: 0 | X78: 0 | Y78: 0
A79: DRAB0907 | B79: Closing value | C79: =SUM(C74+C75+C76+C77+C78) -> 0 | D79: 0 | E79: 0 | F79: 0 | G79: 0 | H79: 0 | I79: 0 | K79: =SUM(K74+K75+K76+K77+K78) -> 27366994.54 | L79: 27886767.59 | M79: 28641313.89 | N79: 29332738.47 | O79: 30055169.69 | P79: 30619728.65 | Q79: 31090591.88 | S79: =SUM(S74+S75+S76+S77+S78) -> 63431477.58 | T79: 76172822.19 | U79: 77392588.69 | V79: 78396466.93 | W79: 79062238.58 | X79: 79097365.86 | Y79: 79270799.04
B80: For “other” asset items with long lives:
A81: DRAB1001 | B81: Opening value | C81: 742671521.8 | D81: 766650828.9 | E81: 783659546.1 | F81: 805520368.1 | G81: 826342424.7 | H81: 847828929.3 | I81: 866495756.9 | K81: 741185482.8 | L81: 769558869.9 | M81: 790756404.6 | N81: 817087252 | O81: 842609117.7 | P81: 868985016.3 | Q81: 892587380.5 | S81: 86182930.91 | T81: 85117208.41 | U81: 96959806.99 | V81: 96471584.63 | W81: 95588702.37 | X81: 94166829.56 | Y81: 91881468.75
A82: DRAB1002 | B82: Inflation addition | C82: 12992061.2 | D82: 16872571.12 | E82: 18251941.21 | F82: 18398679.04 | G82: 18533209.7 | H82: 18678138.47 | I82: 18783547.15 | K82: 12966022.34 | L82: 16838754.9 | M82: 18215360.44 | N82: 18361804.17 | O82: 18496065.2 | P82: 18640703.51 | Q82: 18745900.93 | S82: 1719201.93 | T82: 1891214.719 | U82: 2296020.571 | V82: 2251758.02 | W82: 2200205.041 | X82: 2137894.501 | Y82: 2056655.739
A83: DRAB1003 | B83: Straight line depreciation | C83: -53994048.12 | D83: -54640506.16 | E83: -56342296.55 | F83: -58855768.08 | G83: -60463645.43 | H83: -61767990.79 | I83: -63967753.8 | K83: -50277209.47 | L83: -50879166.67 | M83: -52463809.33 | N83: -54804258.68 | O83: -56301453.07 | P83: -57516010 | Q83: -59564345.87 | S83: -9903182.188 | T83: -10863844.72 | U83: -9604910.598 | V83: -10246541.88 | W83: -10923829.17 | X83: -11594413.4 | Y83: -11754886.23
A84: DRAB1005 | B84: Actual additions (recognised in RAB) | C84: 64983611.29 | D84: 54778917.77 | E84: 59953364.39 | F84: 61281278.81 | G84: 63419016.84 | H84: 61758757.35 | I84: 62227729.8 | K84: 66663602.56 | L84: 56195091.82 | M84: 61503311.01 | N84: 62865555.4 | O84: 65058559.38 | P84: 63355377.96 | Q84: 63836474.55 | S84: 7155680.497 | T84: 20855873.27 | U84: 6861200.079 | V84: 7150866.598 | W84: 7338995.912 | X84: 7208110.132 | Y84: 7549094.807
A85: DRAB1006 | B85: Disposals | C85: -2317.297096 | D85: -2265.501616 | E85: -2187.083758 | F85: -2133.165853 | G85: -2076.448523 | H85: -2077.47683 | I85: -2078.719098 | K85: -979028.2637 | L85: -957145.3385 | M85: -924014.8009 | N85: -901235.1781 | O85: -877272.8348 | P85: -877707.2812 | Q85: -878232.1234 | S85: -37422.74554 | T85: -40644.69314 | U85: -40532.40964 | V85: -38964.9943 | W85: -37244.60081 | X85: -36952.03602 | Y85: -36613.2271
A86: DRAB1007 | B86: Closing value | C86: =SUM(C81+C82+C83+C84+C85) -> 766650828.9 | D86: 783659546.1 | E86: 805520368.1 | F86: 826342424.7 | G86: 847828929.3 | H86: 866495756.9 | I86: 883537201.3 | K86: =SUM(K81+K82+K83+K84+K85) -> 769558869.9 | L86: 790756404.6 | M86: 817087252 | N86: 842609117.7 | O86: 868985016.3 | P86: 892587380.5 | Q86: 914727178 | S86: =SUM(S81+S82+S83+S84+S85) -> 85117208.41 | T86: 96959806.99 | U86: 96471584.63 | V86: 95588702.37 | W86: 94166829.56 | X86: 91881468.75 | Y86: 89695719.84
B87: For “other” asset items with short lives:
A88: DRAB1101 | B88: Opening value | C88: 390942009.6 | D88: 376649382.9 | E88: 358329468.3 | F88: 341730243.4 | G88: 323332780.2 | H88: 304489459.3 | I88: 283503764.1 | K88: 360004405.7 | L88: 337861981.2 | M88: 466766199.2 | N88: 441613461.7 | O88: 414334965.7 | P88: 386457646.2 | Q88: 356164819.4 | S88: 0.3048234034 | T88: -0.1399501621 | U88: -0.6278691823 | V88: -1.059246719 | W88: -1.519441319 | X88: -2.010054372 | Y88: -2.530784829
A89: DRAB1102 | B89: Inflation addition | C89: 6825038.322 | D89: 8863562.348 | E89: 9588178.221 | F89: 9665263.087 | G89: 9735935.237 | H89: 9812069.762 | I89: 9867443.446 | K89: 6295565.698 | L89: 8175945.167 | M89: 8844346.811 | N89: 8915451.589 | O89: 8980641.137 | P89: 9050869.301 | Q89: 9101947.207 | S89: 0 | T89: 0 | U89: 0 | V89: 0 | W89: 0 | X89: 0 | Y89: 0
A90: DRAB1103 | B90: Straight line depreciation | C90: -55438464.08 | D90: -56102215.77 | E90: -57849531.43 | F90: -60430241.82 | G90: -62081132.12 | H90: -63420370.54 | I90: -65678980.28 | K90: -63968980.42 | L90: -64734865.98 | M90: -66751047.39 | N90: -69728860.99 | O90: -71633779.74 | P90: -73179091.61 | Q90: -75785241.76 | S90: -0.4447735655 | T90: -0.4879190201 | U90: -0.4313775363 | V90: -0.4601946001 | W90: -0.4906130529 | X90: -0.5207304573 | Y90: -0.5279376428
A91: DRAB1105 | B91: Actual additions (recognised in RAB) | C91: 34413592.74 | D91: 29009458.38 | E91: 31749707.73 | F91: 32452935.9 | G91: 33585025.13 | H91: 32705795.84 | I91: 32954151.19 | K91: 36786961.11 | L91: 186691036.7 | M91: 33939358.56 | N91: 34691085.58 | O91: 35901250.48 | P91: 34961384.26 | Q91: 35226867.68 | S91: 0 | T91: 0 | U91: 0 | V91: 0 | W91: 0 | X91: 0 | Y91: 0
A92: DRAB1106 | B92: Disposals | C92: -92793.67295 | D92: -90719.5786 | E92: -87579.41974 | F92: -85420.33512 | G92: -83149.15059 | H92: -83190.32803 | I92: -83240.07331 | K92: -1255970.918 | L92: -1227897.86 | M92: -1185395.52 | N92: -1156172.111 | O92: -1125431.419 | P92: -1125988.759 | Q92: -1126662.066 | S92: 0 | T92: 0 | U92: 0 | V92: 0 | W92: 0 | X92: 0 | Y92: 0
A93: DRAB1107 | B93: Closing value | C93: =SUM(C88+C89+C90+C91+C92) -> 376649382.9 | D93: 358329468.3 | E93: 341730243.4 | F93: 323332780.2 | G93: 304489459.3 | H93: 283503764.1 | I93: 260563138.4 | K93: =SUM(K88+K89+K90+K91+K92) -> 337861981.2 | L93: 466766199.2 | M93: 441613461.7 | N93: 414334965.7 | O93: 386457646.2 | P93: 356164819.4 | Q93: 323581730.4 | S93: =SUM(S88+S89+S90+S91+S92) -> -0.1399501621 | T93: -0.6278691823 | U93: -1.059246719 | V93: -1.519441319 | W93: -2.010054372 | X93: -2.530784829 | Y93: -3.058722472
B97: 3.3.3 - TOTAL DISAGGREGATED RAB ASSET VALUES
C98: Network services | K98: Standard control services | S98: Alternative control services
C99: =CONCATENATE("Forecast ($0's, real ", dms_DollarReal,")") -> Forecast ($0's, real June 2020) | K99: =CONCATENATE("Forecast ($0's, real ", dms_DollarReal,")") -> Forecast ($0's, real June 2020) | S99: =CONCATENATE("Forecast ($0's, real ", dms_DollarReal,")") -> Forecast ($0's, real June 2020)
C100: =CRCP_y4 -> 2018-19 | D100: =CRCP_y5 -> 2019-20 | E100: =FRCP_y1 -> 2020-21 | F100: =FRCP_y2 -> 2021-22 | G100: =FRCP_y3 -> 2022-23 | H100: =FRCP_y4 -> 2023-24 | I100: =FRCP_y5 -> 2024-25 | K100: =CRCP_y4 -> 2018-19 | L100: =CRCP_y5 -> 2019-20 | M100: =FRCP_y1 -> 2020-21 | N100: =FRCP_y2 -> 2021-22 | O100: =FRCP_y3 -> 2022-23 | P100: =FRCP_y4 -> 2023-24 | Q100: =FRCP_y5 -> 2024-25 | S100: =CRCP_y4 -> 2018-19 | T100: =CRCP_y5 -> 2019-20 | U100: =FRCP_y1 -> 2020-21 | V100: =FRCP_y2 -> 2021-22 | W100: =FRCP_y3 -> 2022-23 | X100: =FRCP_y4 -> 2023-24 | Y100: =FRCP_y5 -> 2024-25
A101: DRAB1201 | B101: Overhead network assets less than 33kV (wires and poles) | C101: 3278363968 | D101: 3457261906 | E101: 3636874043 | F101: 3827396745 | G101: 4021030038 | H101: 4213655287 | I101: 4401856247 | K101: 3902261927 | L101: 4100425904 | M101: 4299990722 | N101: 4511767623 | O101: 4726804523 | P101: 4940547864 | Q101: 5149107205 | S101: 0.08243662064 | T101: -0.3839096722 | U101: -0.8435579504 | V101: -1.289344019 | W101: -1.764747845 | X101: -2.2704196 | Y101: -2.79475365
A102: DRAB1202 | B102: Underground network assets less than 33kV (cables) | C102: 593159521.8 | D102: 604922164.4 | E102: 617972958.4 | F102: 631817893.5 | G102: 645660481 | H102: 659328770.9 | I102: 672570150.8 | K102: 1039055589 | L102: 1066022236 | M102: 1095009491 | N102: 1125722521 | O102: 1156623109 | P102: 1187259521 | Q102: 1217113490 | S102: 0.08243662064 | T102: -0.3839096722 | U102: -0.8435579504 | V102: -1.289344019 | W102: -1.764747845 | X102: -2.2704196 | Y102: -2.79475365
A103: DRAB1203 | B103: Distribution substations including transformers | C103: 1051546537 | D103: 1093885163 | E103: 1136410710 | F103: 1181789888 | G103: 1227629392 | H103: 1272834073 | I103: 1316305276 | K103: 1788846762 | L103: 1844921112 | M103: 1901926688 | N103: 1962942863 | O103: 2024264747 | P103: 2084411234 | Q103: 2141709680 | S103: 0.08243662064 | T103: -0.3839096722 | U103: -0.8435579504 | V103: -1.289344019 | W103: -1.764747845 | X103: -2.2704196 | Y103: -2.79475365
A104: DRAB1204 | B104: Overhead network assets 33kV and above (wires and towers / poles etc) | C104: 1172167512 | D104: 1175848080 | E104: 1182162614 | F104: 1189172284 | G104: 1195497910 | H104: 1201124269 | I104: 1205591235 | K104: 1267620891 | L104: 1274142567 | M104: 1283435317 | N104: 1293609384 | O104: 1303122668 | P104: 1311902241 | Q104: 1319425390 | S104: 0.08243662064 | T104: -0.3839096722 | U104: -0.8435579504 | V104: -1.289344019 | W104: -1.764747845 | X104: -2.2704196 | Y104: -2.79475365
A105: DRAB1205 | B105: Underground network assets 33kV and above(cables, ducts etc) | C105: 71635380.21 | D105: 72332510.69 | E105: 73139856.73 | F105: 74022560.24 | G105: 74873043.8 | H105: 75672009.36 | I105: 76375649.28 | K105: 72635797.35 | L105: 73972622.24 | M105: 75434426.93 | N105: 76996894.2 | O105: 78550824.47 | P105: 80069682.59 | Q105: 81512668.99 | S105: 0.08243662064 | T105: -0.3839096722 | U105: -0.8435579504 | V105: -1.289344019 | W105: -1.764747845 | X105: -2.2704196 | Y105: -2.79475365
A106: DRAB1206 | B106: Zone substations and transformers | C106: 1886794980 | D106: 1924000713 | E106: 1963891591 | F106: 2006642676 | G106: 2049179705 | H106: 2090652467 | I106: 2129827945 | K106: 2047593524 | L106: 2088099011 | M106: 2131470141 | N106: 2177968614 | O106: 2224236737 | P106: 2269336781 | Q106: 2311914205 | S106: 0.08243662064 | T106: -0.3839096722 | U106: -0.8435579504 | V106: -1.289344019 | W106: -1.764747845 | X106: -2.2704196 | Y106: -2.79475365
A107: DRAB1207 | B107: Easements | C107: 108512417.9 | D107: 111471683.5 | E107: 114776608.5 | F107: 118235324 | G107: 121737618.8 | H107: 125263282.9 | I107: 128799002 | K107: 108529856.2 | L107: 111495593.9 | M107: 114806780.5 | N107: 118272108 | O107: 121781196.6 | P107: 125313681.9 | Q107: 128856162.9 | S107: 0 | T107: 0 | U107: 0 | V107: 0 | W107: 0 | X107: 0 | Y107: 0
A108: DRAB1208 | B108: Meters | C108: 0 | D108: 0 | E108: 0 | F108: 0 | G108: 0 | H108: 0 | I108: 0 | K108: 26880827.3 | L108: 27626881.07 | M108: 28264040.74 | N108: 28987026.18 | O108: 29693954.08 | P108: 30337449.17 | Q108: 30855160.27 | S108: 63002470.06 | T108: 69802149.88 | U108: 76782705.44 | V108: 77894527.81 | W108: 78729352.75 | X108: 79079802.22 | Y108: 79184082.45
A109: DRAB1209 | B109: “Other” assets with long lives | C109: 754661175.3 | D109: 775155187.5 | E109: 794589957.1 | F109: 815931396.4 | G109: 837085677 | H109: 857162343.1 | I109: 875016479.1 | K109: 755372176.3 | L109: 780157637.3 | M109: 803921828.3 | N109: 829848184.8 | O109: 855797067 | P109: 880786198.4 | Q109: 903657279.3 | S109: 85650069.66 | T109: 91038507.7 | U109: 96715695.81 | V109: 96030143.5 | W109: 94877765.97 | X109: 93024149.16 | Y109: 90788594.3
A110: DRAB1210 | B110: “Other” assets with short lives | C110: 383795696.3 | D110: 367489425.6 | E110: 350029855.9 | F110: 332531511.8 | G110: 313911119.8 | H110: 293996611.7 | I110: 272033451.2 | K110: 348933193.5 | L110: 402314090.2 | M110: 454189830.4 | N110: 427974213.7 | O110: 400396305.9 | P110: 371311232.8 | Q110: 339873274.9 | S110: 0.08243662064 | T110: -0.3839096722 | U110: -0.8435579504 | V110: -1.289344019 | W110: -1.764747845 | X110: -2.2704196 | Y110: -2.79475365
A111: DRAB13 | B111: Value of Capital Contributions or Contributed Assets (included in the above) | C111: 0 | D111: 0 | E111: 0 | F111: 0 | G111: 0 | H111: 0 | I111: 0 | K111: 0 | L111: 0 | M111: 0 | N111: 0 | O111: 0 | P111: 0 | Q111: 0 | S111: 0 | T111: 0 | U111: 0 | V111: 0 | W111: 0 | X111: 0 | Y111: 0
B114: 3.3.4 - ASSET LIVES
C115: Network services | K115: Standard control services | S115: Alternative control services
C116: Forecast ( years ) | K116: Forecast ( years ) | S116: Forecast ( years )
C117: =CRCP_y4 -> 2018-19 | D117: =CRCP_y5 -> 2019-20 | E117: =FRCP_y1 -> 2020-21 | F117: =FRCP_y2 -> 2021-22 | G117: =FRCP_y3 -> 2022-23 | H117: =FRCP_y4 -> 2023-24 | I117: =FRCP_y5 -> 2024-25 | K117: =CRCP_y4 -> 2018-19 | L117: =CRCP_y5 -> 2019-20 | M117: =FRCP_y1 -> 2020-21 | N117: =FRCP_y2 -> 2021-22 | O117: =FRCP_y3 -> 2022-23 | P117: =FRCP_y4 -> 2023-24 | Q117: =FRCP_y5 -> 2024-25 | S117: =CRCP_y4 -> 2018-19 | T117: =CRCP_y5 -> 2019-20 | U117: =FRCP_y1 -> 2020-21 | V117: =FRCP_y2 -> 2021-22 | W117: =FRCP_y3 -> 2022-23 | X117: =FRCP_y4 -> 2023-24 | Y117: =FRCP_y5 -> 2024-25
B118: Estimated service life of new assets
A119: DRAB1401 | B119: Overhead network assets less than 33kV (wires and poles) | C119: 49 | D119: 49 | E119: 49 | F119: 49 | G119: 49 | H119: 49 | I119: 49 | K119: 49 | L119: 49 | M119: 49 | N119: 49 | O119: 49 | P119: 49 | Q119: 49 | S119: 48 | T119: 48 | U119: 48 | V119: 48 | W119: 48 | X119: 48 | Y119: 48
A120: DRAB1402 | B120: Underground network assets less than 33kV (cables) | C120: 56 | D120: 56 | E120: 56 | F120: 56 | G120: 56 | H120: 56 | I120: 56 | K120: 56 | L120: 56 | M120: 56 | N120: 56 | O120: 56 | P120: 56 | Q120: 56 | S120: 60 | T120: 60 | U120: 60 | V120: 60 | W120: 60 | X120: 60 | Y120: 60
A121: DRAB1403 | B121: Distribution substations including transformers | C121: 45 | D121: 45 | E121: 45 | F121: 45 | G121: 45 | H121: 45 | I121: 45 | K121: 45 | L121: 45 | M121: 45 | N121: 45 | O121: 45 | P121: 45 | Q121: 45 | S121: 45 | T121: 45 | U121: 45 | V121: 45 | W121: 45 | X121: 45 | Y121: 45
A122: DRAB1404 | B122: Overhead network assets 33kV and above (wires and towers / poles etc) | C122: 51 | D122: 51 | E122: 51 | F122: 51 | G122: 51 | H122: 51 | I122: 51 | K122: 51 | L122: 51 | M122: 51 | N122: 51 | O122: 51 | P122: 51 | Q122: 51 | S122: 36 | T122: 36 | U122: 36 | V122: 36 | W122: 36 | X122: 36 | Y122: 36
A123: DRAB1405 | B123: Underground network assets 33kV and above(cables, ducts etc) | C123: 45 | D123: 45 | E123: 45 | F123: 45 | G123: 45 | H123: 45 | I123: 45 | K123: 45 | L123: 45 | M123: 45 | N123: 45 | O123: 45 | P123: 45 | Q123: 45 | S123: 15 | T123: 15 | U123: 15 | V123: 15 | W123: 15 | X123: 15 | Y123: 15
A124: DRAB1406 | B124: Zone substations and transformers | C124: 39 | D124: 39 | E124: 39 | F124: 39 | G124: 39 | H124: 39 | I124: 39 | K124: 39 | L124: 39 | M124: 39 | N124: 39 | O124: 39 | P124: 39 | Q124: 39 | S124: 35 | T124: 35 | U124: 35 | V124: 35 | W124: 35 | X124: 35 | Y124: 35
A125: DRAB1407 | B125: Meters | C125: 15 | D125: 15 | E125: 15 | F125: 15 | G125: 15 | H125: 15 | I125: 15 | K125: 15 | L125: 15 | M125: 15 | N125: 15 | O125: 15 | P125: 15 | Q125: 15 | S125: 15 | T125: 15 | U125: 15 | V125: 15 | W125: 15 | X125: 15 | Y125: 15
A126: DRAB1408 | B126: “Other” assets with long lives | C126: 15 | D126: 15 | E126: 15 | F126: 15 | G126: 15 | H126: 15 | I126: 15 | K126: 31 | L126: 31 | M126: 31 | N126: 31 | O126: 31 | P126: 31 | Q126: 31 | S126: 20 | T126: 20 | U126: 20 | V126: 20 | W126: 20 | X126: 20 | Y126: 20
A127: DRAB1409 | B127: “Other” assets with short lives | C127: 6 | D127: 6 | E127: 6 | F127: 6 | G127: 6 | H127: 6 | I127: 6 | K127: 6 | L127: 6 | M127: 6 | N127: 6 | O127: 6 | P127: 6 | Q127: 6 | S127: 0 | T127: 0 | U127: 0 | V127: 0 | W127: 0 | X127: 0 | Y127: 0
B128: Estimated residual service life
A129: DRAB1501 | B129: Overhead network assets less than 33kV (wires and poles) | C129: 27 | D129: 27 | E129: 27 | F129: 27 | G129: 27 | H129: 27 | I129: 27 | K129: 27 | L129: 27 | M129: 27 | N129: 27 | O129: 27 | P129: 27 | Q129: 27 | S129: 46 | T129: 46 | U129: 46 | V129: 46 | W129: 46 | X129: 46 | Y129: 46
A130: DRAB1502 | B130: Underground network assets less than 33kV (cables) | C130: 41 | D130: 41 | E130: 41 | F130: 41 | G130: 41 | H130: 41 | I130: 41 | K130: 47 | L130: 47 | M130: 47 | N130: 47 | O130: 47 | P130: 47 | Q130: 47 | S130: 59 | T130: 59 | U130: 59 | V130: 59 | W130: 59 | X130: 59 | Y130: 59
A131: DRAB1503 | B131: Distribution substations including transformers | C131: 29 | D131: 29 | E131: 29 | F131: 29 | G131: 29 | H131: 29 | I131: 29 | K131: 30 | L131: 30 | M131: 30 | N131: 30 | O131: 30 | P131: 30 | Q131: 30 | S131: 44 | T131: 44 | U131: 44 | V131: 44 | W131: 44 | X131: 44 | Y131: 44
A132: DRAB1504 | B132: Overhead network assets 33kV and above (wires and towers / poles etc) | C132: 27 | D132: 27 | E132: 27 | F132: 27 | G132: 27 | H132: 27 | I132: 27 | K132: 26 | L132: 26 | M132: 26 | N132: 26 | O132: 26 | P132: 26 | Q132: 26 | S132: 52 | T132: 52 | U132: 52 | V132: 52 | W132: 52 | X132: 52 | Y132: 52
A133: DRAB1505 | B133: Underground network assets 33kV and above (cables, ducts etc) | C133: 34 | D133: 34 | E133: 34 | F133: 34 | G133: 34 | H133: 34 | I133: 34 | K133: 36 | L133: 36 | M133: 36 | N133: 36 | O133: 36 | P133: 36 | Q133: 36 | S133: 41 | T133: 41 | U133: 41 | V133: 41 | W133: 41 | X133: 41 | Y133: 41
A134: DRAB1506 | B134: Zone substations and transformers | C134: 27 | D134: 27 | E134: 27 | F134: 27 | G134: 27 | H134: 27 | I134: 27 | K134: 26 | L134: 26 | M134: 26 | N134: 26 | O134: 26 | P134: 26 | Q134: 26 | S134: 40 | T134: 40 | U134: 40 | V134: 40 | W134: 40 | X134: 40 | Y134: 40
A135: DRAB1507 | B135: Meters | C135: 17 | D135: 17 | E135: 17 | F135: 17 | G135: 17 | H135: 17 | I135: 17 | K135: 11 | L135: 11 | M135: 11 | N135: 11 | O135: 11 | P135: 11 | Q135: 11 | S135: 10 | T135: 10 | U135: 10 | V135: 10 | W135: 10 | X135: 10 | Y135: 10
A136: DRAB1508 | B136: “Other” assets with long lives | C136: 16 | D136: 16 | E136: 16 | F136: 16 | G136: 16 | H136: 16 | I136: 16 | K136: 16 | L136: 16 | M136: 16 | N136: 16 | O136: 16 | P136: 16 | Q136: 16 | S136: 11 | T136: 11 | U136: 11 | V136: 11 | W136: 11 | X136: 11 | Y136: 11
A137: DRAB1509 | B137: “Other” assets with short lives | C137: 10 | D137: 10 | E137: 10 | F137: 10 | G137: 10 | H137: 10 | I137: 10 | K137: 2 | L137: 2 | M137: 2 | N137: 2 | O137: 2 | P137: 2 | Q137: 2 | S137: 0 | T137: 0 | U137: 0 | V137: 0 | W137: 0 | X137: 0 | Y137: 0

Sheet 3.4 Operational data
B1: =SheetHeader -> REGULATORY REPORTING STATEMENT
B2: =dms_TradingName -> Ergon Energy
B3: =dms_Reg_Year_Span -> 2020-21 to 2024-25
B4: 3.4 OPERATIONAL DATA
B6: There are TWO tables on this worksheet. Each table has been grouped for ease of navigation. See the Instructions sheet on how to group or ungroup tables.
B9: 3.4.1 - ENERGY DELIVERY
D10: Standard control services
D11: Forecast
C12: Units | D12: =CRCP_y4 -> 2018-19 | E12: =CRCP_y5 -> 2019-20 | F12: =FRCP_y1 -> 2020-21 | G12: =FRCP_y2 -> 2021-22 | H12: =FRCP_y3 -> 2022-23 | I12: =FRCP_y4 -> 2023-24 | J12: =FRCP_y5 -> 2024-25
A13: DOPED01 | B13: Total energy delivered | C13: GWh | D13: 13596.44234 | E13: 13624.04533 | F13: 13652.63413 | G13: 13685.16622 | H13: 13719.66996 | I13: 13747.27294 | J13: 13780.79085
B14: 3.4.1.1 - Energy grouping - delivery by chargeable quantity
A15: DOPED0201 | B15: Energy Delivery where time of use is not a determinant | C15: GWh | D15: 12552.86576 | E15: 12557.04652 | F15: 12562.53191 | G15: 12572.1642 | H15: 12583.92666 | I15: 12588.97316 | J15: 12599.9983
A16: DOPED0202 | B16: Energy Delivery at On-peak times | C16: GWh | D16: 118.3697577 | E16: 143.3697577 | F16: 168.3697577 | G16: 193.3697577 | H16: 218.3697577 | I16: 243.3697577 | J16: 268.3697577
A17: DOPED0203 | B17: Energy Delivery at Shoulder times | C17: GWh | D17: 0 | E17: 0 | F17: 0 | G17: 0 | H17: 0 | I17: 0 | J17: 0
A18: DOPED0204 | B18: Energy Delivery at Off-peak times | C18: GWh | D18: 36.26561869 | E18: 44.59895202 | F18: 52.93228536 | G18: 61.26561869 | H18: 69.59895202 | I18: 77.93228536 | J18: 86.26561869
A19: DOPED0205 | B19: Controlled load energy deliveries | C19: GWh | D19: 796.0192638 | E19: 783.9200709 | F19: 771.8208779 | G19: 759.721685 | H19: 747.6224921 | I19: 735.5232992 | J19: 723.4241063
A20: DOPED0206 | B20: Energy Delivery to unmetered supplies | C20: GWh | D20: 92.92193824 | E20: 95.11002393 | F20: 96.97929916 | G20: 98.64496355 | H20: 100.1520927 | I20: 101.474438 | J20: 102.7330692
B21: 3.4.1.2 - Energy - received from TNSP and other DNSPs by time of receipt
A22: DOPED0301 | B22: Energy into DNSP network at On-peak times | C22: GWh | D22: 0 | E22: 0 | F22: 0 | G22: 0 | H22: 0 | I22: 0 | J22: 0
A23: DOPED0302 | B23: Energy into DNSP network at Shoulder times | C23: GWh | D23: 0 | E23: 0 | F23: 0 | G23: 0 | H23: 0 | I23: 0 | J23: 0
A24: DOPED0303 | B24: Energy into DNSP network at Off-peak times | C24: GWh | D24: 0 | E24: 0 | F24: 0 | G24: 0 | H24: 0 | I24: 0 | J24: 0
A25: DOPED0304 | B25: Energy received from TNSP and other DNSPs not included in the above categories | C25: GWh | D25: 12394.16932 | E25: 12345.63307 | F25: 12300.6829 | G25: 12260.77893 | H25: 12221.45582 | I25: 12172.2667 | J25: 12133.52997
B26: 3.4.1.3 - Energy - received into DNSP system from embedded generation by time of receipt
A27: DOPED0401 | B27: Energy into DNSP network at On-peak times from non-residential embedded generation | C27: GWh | D27: 0 | E27: 0 | F27: 0 | G27: 0 | H27: 0 | I27: 0 | J27: 0
A28: DOPED0402 | B28: Energy into DNSP network at Shoulder times from non-residential embedded generation | C28: GWh | D28: 0 | E28: 0 | F28: 0 | G28: 0 | H28: 0 | I28: 0 | J28: 0
A29: DOPED0403 | B29: Energy into DNSP network at Off-peak times from non-residential embedded generation | C29: GWh | D29: 0 | E29: 0 | F29: 0 | G29: 0 | H29: 0 | I29: 0 | J29: 0
A30: DOPED0404 | B30: Energy received from embedded generation not included in above categories from non-residential embedded generation | C30: GWh | D30: 1432.31923 | E30: 1433.971008 | F30: 1435.622785 | G30: 1437.274563 | H30: 1438.92634 | I30: 1440.578118 | J30: 1442.229895
A31: DOPED0405 | B31: Energy into DNSP network at On-peak times from residential embedded generation | C31: GWh | D31: 0 | E31: 0 | F31: 0 | G31: 0 | H31: 0 | I31: 0 | J31: 0
A32: DOPED0406 | B32: Energy into DNSP network at Shoulder times from residential embedded generation | C32: GWh | D32: 0 | E32: 0 | F32: 0 | G32: 0 | H32: 0 | I32: 0 | J32: 0
A33: DOPED0407 | B33: Energy into DNSP network at Off-peak times from residential embedded generation | C33: GWh | D33: 0 | E33: 0 | F33: 0 | G33: 0 | H33: 0 | I33: 0 | J33: 0
A34: DOPED0408 | B34: Energy received from embedded generation not included in above categories from residential embedded generation | C34: GWh | D34: 510.856464 | E34: 579.2774101 | F34: 645.1280299 | G34: 710.0603145 | H34: 776.4583627 | I34: 845.4345535 | J34: 910.1533935
B35: 3.4.1.4 - Energy grouping - customer type or class
A36: DOPED0501 | B36: Residential customers energy deliveries | C36: GWh | D36: 3917.608864 | E36: 3911.505407 | F36: 3907.974728 | G36: 3907.201176 | H36: 3908.205021 | I36: 3908.188058 | J36: 3910.607524
A37: DOPED0502 | B37: Non residential customers not on demand tariffs energy deliveries | C37: GWh | D37: 1392.188989 | E37: 1385.403307 | F37: 1380.283597 | G37: 1376.676044 | H37: 1374.097291 | I37: 1371.473547 | J37: 1369.956086
A38: DOPED0503 | B38: Non-residential low voltage demand tariff customers energy deliveries | C38: GWh | D38: 3414.304269 | E38: 3451.63586 | F38: 3484.265292 | G38: 3514.379452 | H38: 3542.373439 | I38: 3566.542085 | J38: 3590.612725
A39: DOPED0504 | B39: Non-residential high voltage demand tariff customers energy deliveries | C39: GWh | D39: 4779.418279 | E39: 4780.390728 | F39: 4783.131216 | G39: 4788.264588 | H39: 4794.842112 | I39: 4799.594815 | J39: 4806.88145
A40: DOPED0505 | B40: Other Customer Class Energy Deliveries | C40: GWh | D40: 92.92193824 | E40: 95.11002393 | F40: 96.97929916 | G40: 98.64496355 | H40: 100.1520927 | I40: 101.474438 | J40: 102.7330692
B44: 3.4.3 - SYSTEM DEMAND
D45: Standard control services
D46: Forecast
C47: Units | D47: =CRCP_y4 -> 2018-19 | E47: =CRCP_y5 -> 2019-20 | F47: =FRCP_y1 -> 2020-21 | G47: =FRCP_y2 -> 2021-22 | H47: =FRCP_y3 -> 2022-23 | I47: =FRCP_y4 -> 2023-24 | J47: =FRCP_y5 -> 2024-25
B48: 3.4.3.1 - Annual system maximum demand characteristics at the zone substation level – MW measure
A49: DOPSD0102 | B49: Non–coincident Summated Weather Adjusted System Annual Maximum Demand 10% POE | C49: MW | D49: 3483.340915 | E49: 3452.385784 | F49: 3486.577917 | G49: 3549.890078 | H49: 3540.558894 | I49: 3533.839478 | J49: 3510.300137
A50: DOPSD0103 | B50: Non–coincident Summated Weather Adjusted System Annual Maximum Demand 50% POE | C50: MW | D50: 3310.406464 | E50: 3280.982197 | F50: 3314.051477 | G50: 3373.997528 | H50: 3365.565138 | I50: 3358.87446 | J50: 3336.041551
A51: DOPSD0105 | B51: Coincident Weather Adjusted System Annual Maximum Demand 10% POE | C51: MW | D51: 2637.394552 | E51: 2610.830389 | F51: 2651.157736 | G51: 2704.86338 | H51: 2673.171482 | I51: 2674.751233 | J51: 2666.425271
A52: DOPSD0106 | B52: Coincident Weather Adjusted System Annual Maximum Demand 50% POE | C52: MW | D52: 2482.436279 | E52: 2458.93479 | F52: 2497.870877 | G52: 2549.001202 | H52: 2518.61588 | I52: 2520.279359 | J52: 2512.357912
B53: 3.4.3.2 - Annual system maximum demand characteristics at the transmission connection point – MW measure
A54: DOPSD0108 | B54: Non–coincident Summated Weather Adjusted System Annual Maximum Demand 10% POE | C54: MW | D54: 3301.326394 | E54: 3255.158836 | F54: 3287.12882 | G54: 3346.666898 | H54: 3320.989133 | I54: 3321.25147 | J54: 3301.143831
A55: DOPSD0109 | B55: Non–coincident Summated Weather Adjusted System Annual Maximum Demand 50% POE | C55: MW | D55: 3125.331632 | E55: 3082.540894 | F55: 3111.974813 | G55: 3167.345397 | H55: 3144.544459 | I55: 3145.664733 | J55: 3125.214718
A56: DOPSD0111 | B56: Coincident Weather Adjusted System Annual Maximum Demand 10% POE | C56: MW | D56: 2703.967 | E56: 2676.796 | F56: 2678.183 | G56: 2746.65 | H56: 2766.49 | I56: 2701.77 | J56: 2727.123
A57: DOPSD0112 | B57: Coincident Weather Adjusted System Annual Maximum Demand 50% POE | C57: MW | D57: 2565.571 | E57: 2525.5 | F57: 2562.61 | G57: 2615.117 | H57: 2584.017 | I57: 2585.78 | J57: 2577.194
B58: 3.4.3.3 - Annual system maximum demand characteristics at the zone substation level – MVA measure
A59: DOPSD0202 | B59: Non–coincident Summated Weather Adjusted System Annual Maximum Demand 10% POE | C59: MVA | D59: 3655.938705 | E59: 3622.038165 | F59: 3728.936582 | G59: 3797.68687 | H59: 3785.322061 | I59: 3775.715746 | J59: 3751.414387
A60: DOPSD0203 | B60: Non–coincident Summated Weather Adjusted System Annual Maximum Demand 50% POE | C60: MVA | D60: 3472.903116 | E60: 3505.766604 | F60: 3544.679175 | G60: 3609.715808 | H60: 3598.397203 | I60: 3588.862738 | J60: 3565.365238
A61: DOPSD0205 | B61: Coincident Weather Adjusted System Annual Maximum Demand 10% POE | C61: MVA | D61: 2686.155577 | E61: 2659.31663 | F61: 2700.309218 | G61: 2755.813181 | H61: 2722.45873 | I61: 2723.926883 | J61: 2715.292884
A62: DOPSD0206 | B62: Coincident Weather Adjusted System Annual Maximum Demand 50% POE | C62: MVA | D62: 2530.023741 | E62: 2505.622547 | F62: 2545.898387 | G62: 2598.773632 | H62: 2566.744398 | I62: 2568.298177 | J62: 2560.078608
B63: 3.4.3.4 - Annual system maximum demand characteristics at the transmission connection point – MVA measure
A64: DOPSD0208 | B64: Non–coincident Summated Weather Adjusted System Annual Maximum Demand 10% POE | C64: MVA | D64: 3418.382413 | E64: 3370.482881 | F64: 3433.668191 | G64: 3497.386494 | H64: 3468.238156 | I64: 3468.032426 | J64: 3447.43115
A65: DOPSD0209 | B65: Non–coincident Summated Weather Adjusted System Annual Maximum Demand 50% POE | C65: MVA | D65: 3237.102118 | E65: 3220.797429 | F65: 3251.97214 | G65: 3311.384657 | H65: 3285.179601 | I65: 3285.929343 | J65: 3264.912861
A66: DOPSD0211 | B66: Coincident Weather Adjusted System Annual Maximum Demand 10% POE | C66: MVA | D66: 2739.570872 | E66: 2711.762841 | F66: 2712.44529 | G66: 2782.216508 | H66: 2801.253612 | I66: 2735.525376 | J66: 2761.049766
A67: DOPSD0212 | B67: Coincident Weather Adjusted System Annual Maximum Demand 50% POE | C67: MVA | D67: 2600.72605 | E67: 2559.285268 | F67: 2596.704764 | G67: 2650.305551 | H67: 2617.743957 | I67: 2619.329508 | J67: 2610.492016
B68: 3.4.3.5 - Power factor conversion between MVA and MW
A69: DOPSD0301 | B69: Average overall network power factor conversion between MVA and MW | C69: Factor | D69: 0.986482602 | E69: 0.986798944 | F69: 0.986869988 | G69: 0.986722832 | H69: 0.987116021 | I69: 0.987191566 | J69: 0.987244544
A70: DOPSD0302 | B70: Average power factor conversion for low voltage distribution lines | C70: Factor | D70: 0.967121212 | E70: 0.972460373 | F70: 0.977799534 | G70: 0.98 | H70: 0.98 | I70: 0.98 | J70: 0.98
A71: DOPSD0303 | B71: Average power factor conversion for 3.3 kV lines | C71: Factor | D71: 0.843140335 | E71: 0.837810502 | F71: 0.83248067 | G71: 0.827150837 | H71: 0.821821005 | I71: 0.816491172 | J71: 0.81116134
A72: DOPSD0304 | B72: Average power factor conversion for 6.6 kV lines | C72: Factor | D72: 0.82275 | E72: 0.7959 | F72: 0.76905 | G72: 0.7422 | H72: 0.71535 | I72: 0.6885 | J72: 0.66165
A73: DOPSD0305 | B73: Average power factor conversion for 7.6 kV lines | C73: Factor | D73: 0 | E73: 0 | F73: 0 | G73: 0 | H73: 0 | I73: 0 | J73: 0
A74: DOPSD0306 | B74: Average power factor conversion for 11 kV lines | C74: Factor | D74: 0.885192308 | E74: 0.886153846 | F74: 0.887115385 | G74: 0.888076923 | H74: 0.889038462 | I74: 0.89 | J74: 0.890961538
A75: DOPSD0307 | B75: Average power factor conversion for SWER lines | C75: Factor | D75: 0.677461538 | E75: 0.661835165 | F75: 0.646208791 | G75: 0.630582418 | H75: 0.614956044 | I75: 0.59932967 | J75: 0.583703297
A76: DOPSD0308 | B76: Average power factor conversion for 22 kV lines | C76: Factor | D76: 0.892692308 | E76: 0.891362637 | F76: 0.890032967 | G76: 0.888703297 | H76: 0.887373626 | I76: 0.886043956 | J76: 0.884714286
A77: DOPSD0309 | B77: Average power factor conversion for 33 kV lines | C77: Factor | D77: 0.899730769 | E77: 0.900206593 | F77: 0.900682418 | G77: 0.901158242 | H77: 0.901634066 | I77: 0.90210989 | J77: 0.902585714
A78: DOPSD0310 | B78: Average power factor conversion for 44 kV lines | C78: Factor | D78: 0 | E78: 0 | F78: 0 | G78: 0 | H78: 0 | I78: 0 | J78: 0
A79: DOPSD0311 | B79: Average power factor conversion for 66 kV lines | C79: Factor | D79: 0.920038462 | E79: 0.92278022 | F79: 0.925521978 | G79: 0.928263736 | H79: 0.931005495 | I79: 0.933747253 | J79: 0.936489011
A80: DOPSD0312 | B80: Average power factor conversion for 110 kV lines | C80: Factor | D80: 0.947538462 | E80: 0.950274725 | F80: 0.953010989 | G80: 0.955747253 | H80: 0.958483516 | I80: 0.96121978 | J80: 0.963956044
A81: DOPSD0313 | B81: Average power factor conversion for 132 kV lines | C81: Factor | D81: 0.855115385 | E81: 0.848956044 | F81: 0.842796703 | G81: 0.836637363 | H81: 0.830478022 | I81: 0.824318681 | J81: 0.818159341
A82: DOPSD0314 | B82: Average power factor conversion for 220 kV lines | C82: Factor | D82: 0.910953574 | E82: 0.897780361 | F82: 0.884607148 | G82: 0.871433935 | H82: 0.858260722 | I82: 0.845087509 | J82: 0.831914296
B83: 3.4.3.6 - Demand supplied (for customers charged on this basis) – MW measure
A84: DOPSD0401 | B84: Summated Chargeable Contracted Maximum Demand | C84: MW | D84: 718.64 | E84: 718.64 | F84: 718.64 | G84: 718.64 | H84: 718.64 | I84: 718.64 | J84: 718.64
A85: DOPSD0402 | B85: Summated Chargeable Measured Maximum Demand | C85: MW | D85: 0 | E85: 0 | F85: 0 | G85: 0 | H85: 0 | I85: 0 | J85: 0
B86: 3.4.3.7 - Demand supplied (for customers charged on this basis) – MVA measure
A87: DOPSD0403 | B87: Summated Chargeable Contracted Maximum Demand | C87: MVA | D87: 1637.56 | E87: 1637.56 | F87: 1637.56 | G87: 1637.56 | H87: 1637.56 | I87: 1637.56 | J87: 1637.56
A88: DOPSD0404 | B88: Summated Chargeable Measured Maximum Demand | C88: MVA | D88: 209.48 | E88: 209.48 | F88: 209.48 | G88: 209.48 | H88: 209.48 | I88: 209.48 | J88: 209.48

Sheet 3.5 Physical assets
B1: =SheetHeader -> REGULATORY REPORTING STATEMENT
B2: =dms_TradingName -> Ergon Energy
B3: =dms_Reg_Year_Span -> 2020-21 to 2024-25
B4: 3.5 PHYSICAL ASSETS DATA
B6: There are THREE tables on this worksheet. Each table has been grouped (and sub-grouped) for ease of navigation. See the Instructions sheet on how to group or ungroup tables.
B10: 3.5.1 - NETWORK CAPACITIES VARIABLES
D11: VOLUMES
C12: Units | D12: =CRCP_y4 -> 2018-19 | E12: =CRCP_y5 -> 2019-20 | F12: =FRCP_y1 -> 2020-21 | G12: =FRCP_y2 -> 2021-22 | H12: =FRCP_y3 -> 2022-23 | I12: =FRCP_y4 -> 2023-24 | J12: =FRCP_y5 -> 2024-25
B13: Circuit length
B14: 3.5.1.1 - Overhead network length of circuit at each voltage
A15: DPA0101 | B15: Overhead low voltage distribution | C15: km | D15: 16535.63025 | E15: 16553.43663 | F15: 16572.49299 | G15: 16591.30242 | H15: 16610.02229 | I15: 16628.75901 | J15: 16647.66406
A16: DPA0102 | B16: Overhead 2.2 kV | C16: km | D16: 0 | E16: 0 | F16: 0 | G16: 0 | H16: 0 | I16: 0 | J16: 0
A17: DPA0103 | B17: Overhead 7.6 kV | C17: km | D17: 0 | E17: 0 | F17: 0 | G17: 0 | H17: 0 | I17: 0 | J17: 0
A18: DPA0104 | B18: Overhead 11 kV | C18: km | D18: 34807.21035 | E18: 34844.16318 | F18: 34885.13949 | G18: 34925.26704 | H18: 34972.91428 | I18: 35013.31596 | J18: 35053.95318
A19: DPA0105 | B19: Overhead SWER | C19: km | D19: 62186.07542 | E19: 62252.09482 | F19: 62325.30253 | G19: 62396.99384 | H19: 62482.11973 | I19: 62554.30081 | J19: 62626.9027
A20: DPA0106 | B20: Overhead 22 kV | C20: km | D20: 14875.20875 | E20: 14891.00091 | F20: 14908.51254 | G20: 14925.66145 | H20: 14946.02397 | I20: 14963.29003 | J20: 14980.65676
A21: DPA0107 | B21: Overhead 33 kV | C21: km | D21: 4121.282372 | E21: 4125.657702 | F21: 4130.509425 | G21: 4135.260652 | H21: 4140.902234 | I21: 4145.685919 | J21: 4150.497493
